Workbook

Sheet Model Qualifications (hidden)
A1: MODEL QUALIFICATIONS/ASSUMPTIONS & LIMITING CONDITIONS
A3: This model conforms to the specifications required by the terms of Oliver Wyman’s engagement with the Pennsylvania Department of Insurance (PID). This model is not to be used, reproduced, or distributed for any purpose other than those permitted by the terms of Oliver Wyman’s engagement by the PID without the prior written permission of Oliver Wyman.
A5: Information furnished by others which is incorporated or reflected in this model, is believed to be reliable but has not been verified. No warranty is given as to the accuracy of such information. This model has been constructed to work in a way that imports, through a macro, information submitted by carriers. To the extent the carriers’ data is incorrect or defective, the results this model generates may not be accurate. Oliver Wyman is not reviewing or verifying information provided by carriers after delivery of this model and is therefore not responsible for any output from this model. In addition, Oliver Wyman shall have no responsibility if the PID staff does not follow the user instructions accompanying Oliver Wyman’s delivery of this model.
A7: Public information and industry and statistical data which is included or reflected in this model, including without limitation rating parameters and calculations as set forth in State and Federal regulations, are from sources we deem to be reliable; however, we make no representation as to the accuracy or completeness of such information and have accepted the information without further verification.
A9: The results produced by this model may contain predictions based on current data. Any such predictions are subject to inherent risks and uncertainties. In particular, actual results could be impacted by future events which cannot be predicted or controlled, including, without limitation, changes in business strategies, the development of future products and services, changes in market and industry conditions, the outcome of contingencies, changes in management, and changes in law or regulations. Oliver Wyman accepts no responsibility for actual results or future events. No obligation is assumed to revise the model to reflect changes, events ,or conditions which occur subsequent to the date hereof.
A11: All decisions in connection with the use of the model or any results produced by the model are the sole responsibility of the PID. This model is for the exclusive use of the PID. Oliver Wyman shall have no responsibility for any changes the PID or any third party makes to this model. There are no third party beneficiaries with respect to this model, and Oliver Wyman does not accept any liability to any third party. In particular, Oliver Wyman shall not have any liability to any third party with respect to the use of this model or any results produced by this model or any actions taken or decisions made as a consequence of the results produced by this model.

Sheet Instructions
A1: Pennsylvania Plan and Insurer Summary Workbook Instructions and Notes
B3: Important Notes
C4: 1) | D4: All files desired to be uploaded in columns G-J of the "Inputs" tab should have a unique name to avoid the error of trying to open two files with the same name (regardless of location) at the same time during the macro process.
C5: 2) | D5: The file extension MUST be included in the file path input into columns G-J on the "Inputs" tab (e.g., .xlsx or .xlsm).
C6: 3) | D6: A standard process for folder hierarchies and file naming will be beneficial for review purposes to easily determine if the appropriate file is input into columns G-J of the "Inputs" tab.
E7: Example: Year\Company\Legal Entity\Filing Submission Number\File Name (2019\Aetna\Aetna Health Inc.\Submission 1\PA Act Memo Exhibits_20190101.xlsx)
C8: 4) | D8: The data population process does not verify that any modification was done to the inputted files.
E9: If the inputted files were modified by the carrier (e.g., added or deleted rows/columns), the workbook may not bring in the intended data since it brings in pre-specified cells from the standard templates.
C10: 5) | D10: If a file name or path cannot be found, the data population macro will end and notify the user of which file is causing the issue. The issue will need to be corrected and the data populated again.
C11: 6) | D11: All information inputted into columns C-J of the "Inputs" tab will be imported at once and there should be no blank rows between filings. The data population process ends at the first blank row.
C12: 7) | D12: When the data population macro is run, all data in the underlying tables will be deleted in order to avoid duplication of data.
C13: 8) | D13: Any light yellow cell in the file is able to be edited for manual input purposes.
C14: 9) | D14: The file is not protected and if certain sections of the file are intended to be available for public use, proper protection should be applied to the worksheets and workbook in total.
B16: Instructions
C17: 1) | D17: If desired, press the 'Reset Map and Reporting Tool' button on the "Inputs" tab to remove any data currently in the file.
E18: Please note that when the data population macro is run, all data in the underlying tables will be deleted in order to avoid duplication of data so it is not necessary to complete this step.
E19: Please note the workbook may not work properly if rows/columns are added or deleted.
C20: 2) | D20: Populate cells E2:E3 of the "Inputs" tab with the appropriate years for the prior and current filings.
C21: 3) | D21: Populate columns C-F of the "Inputs" tab with the necessary filing information.
C22: 4) | D22: Populate columns G-J of the "Inputs" tab with the file path and file name for the appropriate excel file.
C23: 5) | D23: Press the 'Populate Map and Reporting Tool' button to populate the underlying tables with all the filings listed in columns C-J of the "Inputs" tab.
E24: All information inputted into columns C-J of the "Inputs" tab will be imported at once and there should be no blank rows between filings. The data population process ends at the first blank row.
C25: 6) | D25: Review the "Tab Descriptions" tab for information and summaries regarding the map and report tabs.

Sheet Tab Descriptions (hidden)
A1: ="Pennsylvania Plan and Insurer Summary Workbook - "&year_current&" ACA-Compliant Health Insurance Rate Filings in the Individual and Small Group Markets" -> Pennsylvania Plan and Insurer Summary Workbook - 2019 ACA-Compliant Health Insurance Rate Filings in the Individual and Small Group Markets
A3: Below is a brief description of each tab in the file and any comments regarding the use of these tabs.
A5: Plans by County
B6: A summary of the number of plans by metal level in each county based on the selected Market/Exchange drop-downs.
A8: Issuers by County
B9: A summary of the number of unique insurers (legal entities) by metal level in each county based on the selected Market/Exchange drop-downs.
A11: Rate Inc Distribution
B12: A summary of the premium weighted average, minimum, and maximum rate changes as well as a distribution of rate change.
B13: The rate change groupings can be adjusted in column Z but there must be 8 groupings.
A15: Rate by County
B16: The non-tobacco rates for every plan by county for the selected age (first quarter rates for small group plans).
B17: Note that rates are calculated by multiplying the 21-year-old rate by the federally-established age factor and may vary slightly from the actual rate due to rounding.
A19: Plan Map
B20: A visual summary of the number of plans in each county based on the selected Market/Exchange drop-downs.
B21: Every time the tab is selected or a drop-down is changed, the map will automatically refresh; alternatively, the "Update Map" button can be pressed.
B22: Up to 20 groupings are possible by changing/adding inputs in column Q. Please note that the last grouping's "High" value will be ignored in order to capture all possible results.
B23: The format of the groupings in column R (background color, pattern, text color) will be applied to the map once it refreshed; be sure to add formatting to any new groupings added.
A25: Issuer Map
B26: A visual summary of the number of unique insurers (legal entities) in each county based on the selected Market/Exchange drop-downs.
B27: Every time the tab is selected or a drop-down is changed, the map will automatically refresh; alternatively, the "Update Map" button can be pressed.
B28: Up to 20 groupings are possible by changing/adding inputs in column Q. Please note that the last grouping's "High" value will be ignored in order to capture all possible results.
B29: The format of the groupings in column R (background color, pattern, text color) will be applied to the map once it refreshed; be sure to add formatting to any new groupings added.
A31: Service Area Map
... 30 more rows

Sheet Inputs (hidden)
A1: User Inputs
D2: Prior Year | E2: 2018 | G2: Prior Data Last Updated: | H2: 2018-07-31T09:07:11
D3: Current Year | E3: 2019 | G3: Current Data Last Updated: | H3: 2018-07-31T09:07:21 | J3: MANUAL INPUT NEEDED
G4: Report Data Last Updated: | H4: 2018-07-31T09:07:23
B5: Filing Submissions
G6: ="Prior Filings ("&year_prior&")" -> Prior Filings (2018) | I6: ="Current Filings ("&year_current&")" -> Current Filings (2019)
C7: Parent Company | D7: Legal Entity | E7: =year_current&" SERFF ID" -> 2019 SERFF ID | F7: Market | G7: PA Plan Design Summary and Rate Tables | H7: PA Actuarial Memorandum Rate Exhibits | I7: PA Plan Design Summary and Rate Tables | J7: PA Actuarial Memorandum Rate Exhibits
C8: Aetna | D8: Aetna Health Inc. PA AZ DC DE IN KY MA MD NV NC OK TN VA WV | E8: AETN-131455854 | F8: Small Group | G8: G:\PA Map Reporting Tool\2018 Plan Design Summary and Rate Tables\Aetna Health, Inc. Small Group Rates Table.xlsm | H8: G:\PA Map Reporting Tool\2018 PA Actuarial Memorandum Rate Exhibits\Aetna Health, Inc. Small Group ActMemo.xlsm | I8: G:\PA Map&Reporting Tool R1.xlsm\2019 PD Summary and Rate Tables\2019_SmGrp_AetnaHealthInc_PDSRateTable_Q1_07132018.xlsm | J8: G:\PA Map&Reporting Tool R1.xlsm\2019 Actuarial Memorandum Exhibits\2019_SmGrp_AetnaHealthInc_PAAMExhibits_07132018.xlsm | L8: Populate Prior Plan, Current Plan, and Report Data (current data in the tool will be erased)
C9: Aetna | D9: Aetna HealthAssurance Pennsylvania, Inc. | E9: AETN-131455851 | F9: Small Group | G9: G:\PA Map Reporting Tool\2018 Plan Design Summary and Rate Tables\Aetna HealthAssurance of PA Small Group Rates Table.xlsm | H9: G:\PA Map Reporting Tool\2018 PA Actuarial Memorandum Rate Exhibits\Aetna HealthAssurance of PA Small Group ActMemo.xlsm | I9: G:\PA Map&Reporting Tool R1.xlsm\2019 PD Summary and Rate Tables\2019_SmGrp_AetnaHealthAssuranceOfPennsylvania_PDSRateTable_Q1_07132018.xlsm | J9: G:\PA Map&Reporting Tool R1.xlsm\2019 Actuarial Memorandum Exhibits\2019_SmGrp_AetnaHealthAssuranceOfPennsylvania_PAAMExhibits_07132018.xlsm
C10: Aetna | D10: Aetna Life Insurance Company | E10: AETN-131455780 | F10: Small Group | G10: G:\PA Map Reporting Tool\2018 Plan Design Summary and Rate Tables\Aetna Life Insurance Company Small Group Rates Table.xlsm | H10: G:\PA Map Reporting Tool\2018 PA Actuarial Memorandum Rate Exhibits\Aetna Life Insurance Company Small Group ActMemo.xlsm | I10: G:\PA Map&Reporting Tool R1.xlsm\2019 PD Summary and Rate Tables\2019_SmGrp_AetnaLifeInsuranceCo_PDSRateTable_Q1_07132018.xlsm | J10: G:\PA Map&Reporting Tool R1.xlsm\2019 Actuarial Memorandum Exhibits\2019_SmGrp_AetnaLifeInsuranceCo_PAAMExhibits_07132018.xlsm
C11: Capital Blue Cross | D11: Capital Advantage Assurance Company | E11: CABC-131454875 | F11: Individual | G11: G:\PA Map Reporting Tool\2018 Plan Design Summary and Rate Tables\Capital Advantage Assurance Company Individual Rates Table.xlsm | H11: G:\PA Map Reporting Tool\2018 PA Actuarial Memorandum Rate Exhibits\Capital Advantage Assurance Company Individual ActMemo.xlsm | I11: G:\PA Map&Reporting Tool R1.xlsm\2019 PD Summary and Rate Tables\Ind_18-12_Revised_CAAC_PPO_PARateTables_RateRule_20180716.xlsm | J11: G:\PA Map&Reporting Tool R1.xlsm\2019 Actuarial Memorandum Exhibits\Ind_18-12_Revised_CAAC_PPO_PARateandMemoExhibits_Supporting_20180716.xlsm
C12: Capital Blue Cross | D12: Capital Advantage Insurance Company | E12: CABC-131454888 | F12: Individual | G12: G:\PA Map Reporting Tool\2018 Plan Design Summary and Rate Tables\Capital Advantage Insurance Company Individual Rates Table.xlsm | H12: G:\PA Map Reporting Tool\2018 PA Actuarial Memorandum Rate Exhibits\Capital Advantage Insurance Company Individual ActMemo.xlsm | I12: G:\PA Map&Reporting Tool R1.xlsm\2019 PD Summary and Rate Tables\Ind_18-13_Revised_CAIC_PPO_PARateTables_RateRule_20180716.xlsm | J12: G:\PA Map&Reporting Tool R1.xlsm\2019 Actuarial Memorandum Exhibits\Ind_18-13_Revised_CAIC_PPO_PARateandMemoExhibits_Supporting_20180716.xlsm
C13: Capital Blue Cross | D13: Keystone Health Plan Central | E13: CABC-131454728 | F13: Individual | G13: G:\PA Map Reporting Tool\2018 Plan Design Summary and Rate Tables\Keystone Health Plan Central Individual Rates Table.xlsm | H13: G:\PA Map Reporting Tool\2018 PA Actuarial Memorandum Rate Exhibits\Keystone Health Plan Central Individual ActMemo.xlsm | I13: G:\PA Map&Reporting Tool R1.xlsm\2019 PD Summary and Rate Tables\Ind_18-11_Revised_KHP_HMO_PARateTables_RateRule_20180716.xlsm | J13: G:\PA Map&Reporting Tool R1.xlsm\2019 Actuarial Memorandum Exhibits\Ind_18-11_Revised_KHP_HMO_PARateandMemoExhibits_Supporting_20180716.xlsm
C14: Capital Blue Cross | D14: Capital Advantage Assurance Company | E14: CABC-131455101 | F14: Small Group | G14: G:\PA Map Reporting Tool\2018 Plan Design Summary and Rate Tables\Capital Advantage Assurance Company Small Group Rates Table.xlsm | H14: G:\PA Map Reporting Tool\2018 PA Actuarial Memorandum Rate Exhibits\Capital Advantage Assurance Company Small Group ActMemo.xlsm | I14: G:\PA Map&Reporting Tool R1.xlsm\2019 PD Summary and Rate Tables\SG_18-19_Revised_CAAC_PPO_PARateTables_RateRule_20180716.xlsm | J14: G:\PA Map&Reporting Tool R1.xlsm\2019 Actuarial Memorandum Exhibits\SG_18-19_Revised_CAAC_PPO_PARateandMemoExhibits_Supporting_20180716.xlsm | L14: Remove Prior Plan, Current Plan, and Report Data
C15: Capital Blue Cross | D15: Capital Advantage Insurance Company | E15: CABC-131455106 | F15: Small Group | G15: G:\PA Map Reporting Tool\2018 Plan Design Summary and Rate Tables\Capital Advantage Insurance Company Small Group Rates Table.xlsm | H15: G:\PA Map Reporting Tool\2018 PA Actuarial Memorandum Rate Exhibits\Capital Advantage Insurance Company Small Group ActMemo.xlsm | I15: G:\PA Map&Reporting Tool R1.xlsm\2019 PD Summary and Rate Tables\SG_18-20_Revised_CAIC_PPO_PARateTables_RateRule_20180716.xlsm | J15: G:\PA Map&Reporting Tool R1.xlsm\2019 Actuarial Memorandum Exhibits\SG_18-20_Revised_CAIC_PPO_PARateandMemoExhibits_Supporting_20180716.xlsm
C16: Capital Blue Cross | D16: Keystone Health Plan Central | E16: CABC-131455108 | F16: Small Group | G16: G:\PA Map Reporting Tool\2018 Plan Design Summary and Rate Tables\Keystone Health Plan Central Small Group Rates Table.xlsm | H16: G:\PA Map Reporting Tool\2018 PA Actuarial Memorandum Rate Exhibits\Keystone Health Plan Central Small Group ActMemo.xlsm | I16: G:\PA Map&Reporting Tool R1.xlsm\2019 PD Summary and Rate Tables\SG_18-18_Revised_KHP_HMO_PARateTables_RateRule_20180716.xlsm | J16: G:\PA Map&Reporting Tool R1.xlsm\2019 Actuarial Memorandum Exhibits\SG_18-18_Revised_KHP_HMO_PARateandMemoExhibits_Supporting_20180716.xlsm
C17: Centene | D17: Pennsylvania Health & Wellness, Inc. | E17: CECO-131500564 | F17: Individual | I17: G:\PA Map&Reporting Tool R1.xlsm\2019 PD Summary and Rate Tables\2019_PA_Health_and_Wellness_Inc_Plan_Design_Summary_and_Rate_Tables_20180713.xlsb | J17: G:\PA Map&Reporting Tool R1.xlsm\2019 Actuarial Memorandum Exhibits\2019_PA_Health_and_Wellness_Inc_Actuarial_Memorandum_Rate_Exhibits_20180713.xlsm
C18: Geisinger Health | D18: Geisinger Health Plan | E18: GSHP-131501956 | F18: Individual | G18: G:\PA Map Reporting Tool\2018 Plan Design Summary and Rate Tables\Geisinger Health Plan Individual Rates Table.xlsm | H18: G:\PA Map Reporting Tool\2018 PA Actuarial Memorandum Rate Exhibits\Geisinger Health Plan Individual ActMemo.xlsm | I18: G:\PA Map&Reporting Tool R1.xlsm\2019 PD Summary and Rate Tables\SERFF_Exhibits_GHP_Indiv_20180713.xlsm | J18: G:\PA Map&Reporting Tool R1.xlsm\2019 Actuarial Memorandum Exhibits\PA_Act_Memo_Rate_Exhibits_GHP_Indiv_20180713.xlsm
C19: Geisinger Health | D19: Geisinger Quality Options | E19: GSHP-131501975 | F19: Individual | G19: G:\PA Map Reporting Tool\2018 Plan Design Summary and Rate Tables\Geisinger Quality Options Individual Rates Table.xlsm | H19: G:\PA Map Reporting Tool\2018 PA Actuarial Memorandum Rate Exhibits\Geisinger Quality Options Individual ActMemo.xlsm | I19: G:\PA Map&Reporting Tool R1.xlsm\2019 PD Summary and Rate Tables\SERFF_Exhibits_GQO_Indiv_20180713.xlsm | J19: G:\PA Map&Reporting Tool R1.xlsm\2019 Actuarial Memorandum Exhibits\PA_Act_Memo_Rate_Exhibits_GQO_Indiv_20180713.xlsm
C20: Geisinger Health | D20: Geisinger Health Plan | E20: GSHP-131502009 | F20: Small Group | G20: G:\PA Map Reporting Tool\2018 Plan Design Summary and Rate Tables\Geisinger Health Plan Small Group Rates Table.xlsm | H20: G:\PA Map Reporting Tool\2018 PA Actuarial Memorandum Rate Exhibits\Geisinger Health Plan Small Group ActMemo.xlsm | I20: G:\PA Map&Reporting Tool R1.xlsm\2019 PD Summary and Rate Tables\SERFF_Exhibits_GHP_SG_20180730.xlsm | J20: G:\PA Map&Reporting Tool R1.xlsm\2019 Actuarial Memorandum Exhibits\PA_Act_Memo_Rate_Exhibits_GHP_SG_20180515.xlsm
C21: Geisinger Health | D21: Geisinger Quality Options | E21: GSHP-131502028 | F21: Small Group | G21: G:\PA Map Reporting Tool\2018 Plan Design Summary and Rate Tables\Geisinger Quality Options Small Group Rates Table.xlsm | H21: G:\PA Map Reporting Tool\2018 PA Actuarial Memorandum Rate Exhibits\Geisinger Quality Options Small Group ActMemo.xlsm | I21: G:\PA Map&Reporting Tool R1.xlsm\2019 PD Summary and Rate Tables\SERFF_Exhibits_GQO_SG_20180730.xlsm | J21: G:\PA Map&Reporting Tool R1.xlsm\2019 Actuarial Memorandum Exhibits\PA_Act_Memo_Rate_Exhibits_GQO_SG_20180515.xlsm
C22: Highmark | D22: First Priority Health | E22: HGHM-131475735 | F22: Individual | G22: G:\PA Map Reporting Tool\2018 Plan Design Summary and Rate Tables\First Priority Health Individual Rates Table.xlsm | H22: G:\PA Map Reporting Tool\2018 PA Actuarial Memorandum Rate Exhibits\First Priority Health Individual ActMemo.xlsm | I22: G:\PA Map&Reporting Tool R1.xlsm\2019 PD Summary and Rate Tables\2019_Indiv_FPH_PDSRateTable_071318.xlsm | J22: G:\PA Map&Reporting Tool R1.xlsm\2019 Actuarial Memorandum Exhibits\Copy of 2019_Indiv_FPH_PAAMExhibits_071318.xlsm
C23: Highmark | D23: First Priority Life Insurance Company | E23: HGHM-131475736 | F23: Individual | G23: G:\PA Map Reporting Tool\2018 Plan Design Summary and Rate Tables\First Priority Life Insurance Company Individual Rates Table.xlsm | H23: G:\PA Map Reporting Tool\2018 PA Actuarial Memorandum Rate Exhibits\First Priority Life Insurance Company Individual ActMemo.xlsm | I23: G:\PA Map&Reporting Tool R1.xlsm\2019 PD Summary and Rate Tables\2019_Indiv_FPLIC_PDSRateTable_071318.xlsm | J23: G:\PA Map&Reporting Tool R1.xlsm\2019 Actuarial Memorandum Exhibits\Copy of 2019_Indiv_FPLIC_PAAMExhibits_071318.xlsm
C24: Highmark | D24: HHIC | E24: HGHM-131475752 | F24: Individual | G24: G:\PA Map Reporting Tool\2018 Plan Design Summary and Rate Tables\HHIC Individual Rates Table.xlsm | H24: G:\PA Map Reporting Tool\2018 PA Actuarial Memorandum Rate Exhibits\HHIC Individual ActMemo.xlsm | I24: G:\PA Map&Reporting Tool R1.xlsm\2019 PD Summary and Rate Tables\2019_Indiv_HHIC_PDSRateTable_071318.xlsm | J24: G:\PA Map&Reporting Tool R1.xlsm\2019 Actuarial Memorandum Exhibits\Copy of 2019_Indiv_HHIC_PAAMExhibits_071318.xlsm
C25: Highmark | D25: Highmark Choice Company | E25: HGHM-131475734 | F25: Individual | G25: G:\PA Map Reporting Tool\2018 Plan Design Summary and Rate Tables\Highmark Choice Co Individual Rates Table.xlsm | H25: G:\PA Map Reporting Tool\2018 PA Actuarial Memorandum Rate Exhibits\Highmark Choice Co Individual ActMemo.xlsm | I25: G:\PA Map&Reporting Tool R1.xlsm\2019 PD Summary and Rate Tables\2019_Indiv_HCC_PDSRateTable_071318.xlsm | J25: G:\PA Map&Reporting Tool R1.xlsm\2019 Actuarial Memorandum Exhibits\Copy of 2019_Indiv_HCC_PAAMExhibits_071318.xlsm
C26: Highmark | D26: Highmark Select Resources | E26: HGHM-131475762 | F26: Individual | G26: G:\PA Map Reporting Tool\2018 Plan Design Summary and Rate Tables\Highmark Select Resources Inc. Individual Rates Table.xlsm | H26: G:\PA Map Reporting Tool\2018 PA Actuarial Memorandum Rate Exhibits\Highmark Select Resources Inc. Individual ActMemo.xlsm | I26: G:\PA Map&Reporting Tool R1.xlsm\2019 PD Summary and Rate Tables\2019_Indiv_HSR_PDSRateTable_071318.xlsm | J26: G:\PA Map&Reporting Tool R1.xlsm\2019 Actuarial Memorandum Exhibits\Copy of 2019_Indiv_HSR_PAAMExhibits_071318.xlsm
C27: Highmark | D27: Highmark, Inc. | E27: HGHM-131475700 | F27: Individual | G27: G:\PA Map Reporting Tool\2018 Plan Design Summary and Rate Tables\Highmark Individual Rates Table.xlsm | H27: G:\PA Map Reporting Tool\2018 PA Actuarial Memorandum Rate Exhibits\Highmark Individual ActMemo.xlsm | I27: G:\PA Map&Reporting Tool R1.xlsm\2019 PD Summary and Rate Tables\2019_Indiv_HI_PDSRateTable_071318.xlsm | J27: G:\PA Map&Reporting Tool R1.xlsm\2019 Actuarial Memorandum Exhibits\Copy of 2019_Indiv_HI_PAAMExhibits_071318.xlsm
C28: Highmark | D28: First Priority Life Insurance Company | E28: HGHM-131496216 | F28: Small Group | G28: G:\PA Map Reporting Tool\2018 Plan Design Summary and Rate Tables\First Priority Life Insurance Company Small Group Rates Table.xlsm | H28: G:\PA Map Reporting Tool\2018 PA Actuarial Memorandum Rate Exhibits\First Priority Life Insurance Company Small Group ActMemo.xlsm | I28: G:\PA Map&Reporting Tool R1.xlsm\2019 PD Summary and Rate Tables\2019_SmGrp_FPLIC_PDSRateTable_051818.xlsm | J28: G:\PA Map&Reporting Tool R1.xlsm\2019 Actuarial Memorandum Exhibits\Copy of 2019_SmGrp_FPLIC_PAAMExhibits_051818 v2.xlsm
C29: Highmark | D29: HHIC | E29: HGHM-131496229 | F29: Small Group | G29: G:\PA Map Reporting Tool\2018 Plan Design Summary and Rate Tables\HHIC Small Group Rates Table.xlsm | H29: G:\PA Map Reporting Tool\2018 PA Actuarial Memorandum Rate Exhibits\HHIC Small Group ActMemo.xlsm | I29: G:\PA Map&Reporting Tool R1.xlsm\2019 PD Summary and Rate Tables\2019_SmGrp_HHIC_PDSRateTable_05182018 v2.xlsm | J29: G:\PA Map&Reporting Tool R1.xlsm\2019 Actuarial Memorandum Exhibits\Copy of 2019_SmGrp_HHIC_PAAMExhibits_051818 v2.xlsm
C30: Highmark | D30: Highmark Benefits Group | E30: HGHM-131496086 | F30: Small Group | G30: G:\PA Map Reporting Tool\2018 Plan Design Summary and Rate Tables\Highmark Benefits Group Small Group Rates Table.xlsm | H30: G:\PA Map Reporting Tool\2018 PA Actuarial Memorandum Rate Exhibits\Highmark Benefits Group Small Group ActMemo.xlsm | I30: G:\PA Map&Reporting Tool R1.xlsm\2019 PD Summary and Rate Tables\2019_SmGrp_HBG_PDSRateTable_051818.xlsm | J30: G:\PA Map&Reporting Tool R1.xlsm\2019 Actuarial Memorandum Exhibits\Copy of 2019_SmGrp_HBG_PAAMExhibits_051818 v2.xlsm
C31: Highmark | D31: Highmark Choice Company | E31: HGHM-131496326 | F31: Small Group | G31: G:\PA Map Reporting Tool\2018 Plan Design Summary and Rate Tables\Highmark Choice Co Small Group Rates Table.xlsm | H31: G:\PA Map Reporting Tool\2018 PA Actuarial Memorandum Rate Exhibits\Highmark Choice Co Small Group ActMemo.xlsm | I31: G:\PA Map&Reporting Tool R1.xlsm\2019 PD Summary and Rate Tables\2019_SmGrp_HCC_PDSRateTable_051818_v2.xlsm | J31: G:\PA Map&Reporting Tool R1.xlsm\2019 Actuarial Memorandum Exhibits\Copy of 2019_SmGrp_HCC_PAAMExhibits_051818_v2.xlsm
C32: Highmark | D32: Highmark Coverage Advantage, Inc | E32: HGHM-131496215 | F32: Small Group | G32: G:\PA Map Reporting Tool\2018 Plan Design Summary and Rate Tables\Highmark Coverage Advantage Small Group Rates Table.xlsm | H32: G:\PA Map Reporting Tool\2018 PA Actuarial Memorandum Rate Exhibits\Highmark Coverage Advantage Small Group ActMemo.xlsm | I32: G:\PA Map&Reporting Tool R1.xlsm\2019 PD Summary and Rate Tables\2019_SmGrp_HCA_PDSRateTable_051818.xlsm | J32: G:\PA Map&Reporting Tool R1.xlsm\2019 Actuarial Memorandum Exhibits\Copy of 2019_SmGrp_HCA_PAAMExhibits_051818 v2.xlsm
C33: Highmark | D33: Highmark, Inc. | E33: HGHM-131496088 | F33: Small Group | G33: G:\PA Map Reporting Tool\2018 Plan Design Summary and Rate Tables\Highmark Small Group Rates Table.xlsm | H33: G:\PA Map Reporting Tool\2018 PA Actuarial Memorandum Rate Exhibits\Highmark Small Group ActMemo.xlsm | I33: G:\PA Map&Reporting Tool R1.xlsm\2019 PD Summary and Rate Tables\2019_SmGrp_HMK_PDSRateTable_052118.xlsm | J33: G:\PA Map&Reporting Tool R1.xlsm\2019 Actuarial Memorandum Exhibits\Copy of 2019_SmGrp_HMK_PAAMExhibits_052118 v2.xlsm
C34: Independence Blue Cross | D34: Keystone Health Plan East | E34: INAC-131476931 | F34: Individual | G34: G:\PA Map Reporting Tool\2018 Plan Design Summary and Rate Tables\KHPE Individual Rates Table.xlsm | H34: G:\PA Map Reporting Tool\2018 PA Actuarial Memorandum Rate Exhibits\KHPE Individual ActMemo.xlsm | I34: G:\PA Map&Reporting Tool R1.xlsm\2019 PD Summary and Rate Tables\2019_Indiv_KHPE_PDSRateTable_071318.xlsm | J34: G:\PA Map&Reporting Tool R1.xlsm\2019 Actuarial Memorandum Exhibits\2019_Indiv_KHPE_PAAMExhibits_071318 Revised.xlsm
C35: Independence Blue Cross | D35: QCC Insurance Company | E35: INAC-131478475 | F35: Individual | G35: G:\PA Map Reporting Tool\2018 Plan Design Summary and Rate Tables\QCC Individual Rates Table.xlsm | H35: G:\PA Map Reporting Tool\2018 PA Actuarial Memorandum Rate Exhibits\QCC Individual ActMemo.xlsm | I35: G:\PA Map&Reporting Tool R1.xlsm\2019 PD Summary and Rate Tables\2019_Indiv_QCC_PDSRateTable_071318.xlsm | J35: G:\PA Map&Reporting Tool R1.xlsm\2019 Actuarial Memorandum Exhibits\2019_Indiv_QCC_PAAMExhibits_071318 revised.xlsm
C36: Independence Blue Cross | D36: Keystone Health Plan East | E36: INAC-131478481 | F36: Small Group | G36: G:\PA Map Reporting Tool\2018 Plan Design Summary and Rate Tables\KHPE Small Group Rates Table.xlsm | H36: G:\PA Map Reporting Tool\2018 PA Actuarial Memorandum Rate Exhibits\KHPE Small Group ActMemo.xlsm | I36: G:\PA Map&Reporting Tool R1.xlsm\2019 PD Summary and Rate Tables\2019_SmGrp_KHPE_PDSRateTable_062518_Q1.xlsm | J36: G:\PA Map&Reporting Tool R1.xlsm\2019 Actuarial Memorandum Exhibits\2019_SmGrp_KHPE_PAAMExhibits_062118.xlsm
C37: Independence Blue Cross | D37: QCC Insurance Company | E37: INAC-131478429 | F37: Small Group | G37: G:\PA Map Reporting Tool\2018 Plan Design Summary and Rate Tables\QCC Small Group Rates Table.xlsm | H37: G:\PA Map Reporting Tool\2018 PA Actuarial Memorandum Rate Exhibits\QCC Small Group ActMemo.xlsm | I37: G:\PA Map&Reporting Tool R1.xlsm\2019 PD Summary and Rate Tables\2019_SmGrp_QCC_PDSRateTable_062518_Q1.xlsm | J37: G:\PA Map&Reporting Tool R1.xlsm\2019 Actuarial Memorandum Exhibits\2019_SmGrp_QCC_PAAMExhibits_062118.xlsm
C38: UnitedHealthcare | D38: UnitedHealthcare Insurance Company | E38: UHLC-131482147 | F38: Small Group | G38: G:\PA Map Reporting Tool\2018 Plan Design Summary and Rate Tables\UnitedHealthcare Insurance Company Small Group Rates Table.xlsm | H38: G:\PA Map Reporting Tool\2018 PA Actuarial Memorandum Rate Exhibits\UnitedHealthcare Insurance Company Small Group ActMemo.xlsm | I38: G:\PA Map&Reporting Tool R1.xlsm\2019 PD Summary and Rate Tables\2019_SmGrp_UHIC_PDSRateTable_062118_Q1 v2.xlsm | J38: G:\PA Map&Reporting Tool R1.xlsm\2019 Actuarial Memorandum Exhibits\Copy of 2019_SmGrp_UHIC_PAAMExhibits_071318.xlsm
C39: UnitedHealthcare | D39: UnitedHealthcare of PA, Inc | E39: UHLC-131482151 | F39: Small Group | I39: G:\PA Map&Reporting Tool R1.xlsm\2019 PD Summary and Rate Tables\2019_SmGrp_UHCPA_PDSRateTable_062118_Q1 v2.xlsm | J39: G:\PA Map&Reporting Tool R1.xlsm\2019 Actuarial Memorandum Exhibits\Copy of 2019_SmGrp_UHCPA_PAAMExhibits_071318.xlsm
C40: UPMC | D40: UPMC Health Coverage | E40: UPMC-131496004 | F40: Individual | G40: G:\PA Map Reporting Tool\2018 Plan Design Summary and Rate Tables\UPMC Health Coverage, Inc. Individual Rates Table.xlsm | H40: G:\PA Map Reporting Tool\2018 PA Actuarial Memorandum Rate Exhibits\UPMC Health Coverage, Inc. Individual ActMemo.xlsm | I40: G:\PA Map&Reporting Tool R1.xlsm\2019 PD Summary and Rate Tables\2019_Indiv_UPMCHealthCoverage_PDSRateTable_071618.xlsm | J40: G:\PA Map&Reporting Tool R1.xlsm\2019 Actuarial Memorandum Exhibits\2019_Indiv_UPMCHealthCoverage_PAAMExhibits_071618.xlsm
C41: UPMC | D41: UPMC Health Options, Inc. | E41: UPMC-131495924 | F41: Individual | G41: G:\PA Map Reporting Tool\2018 Plan Design Summary and Rate Tables\UPMC Health Options, Inc. Individual Rates Table.xlsm | H41: G:\PA Map Reporting Tool\2018 PA Actuarial Memorandum Rate Exhibits\UPMC Health Options, Inc. Individual ActMemo.xlsm | I41: G:\PA Map&Reporting Tool R1.xlsm\2019 PD Summary and Rate Tables\2019_Indiv_UPMCHealthOptions_PDSRateTable_071618.xlsm | J41: G:\PA Map&Reporting Tool R1.xlsm\2019 Actuarial Memorandum Exhibits\2019_Indiv_UPMCHealthOptions_PAAMExhibits_071618.xlsm
C42: UPMC | D42: UPMC Health Benefits | E42: UPMC-131496028 | F42: Small Group | I42: G:\PA Map&Reporting Tool R1.xlsm\2019 PD Summary and Rate Tables\2019_SmGrp_UPMCHealthBenefits_PDSRateTable_071618.xlsm | J42: G:\PA Map&Reporting Tool R1.xlsm\2019 Actuarial Memorandum Exhibits\2019_SmGrp_UPMCHealthBenefits_PAAMExhibits_071618.xlsm
C43: UPMC | D43: UPMC Health Coverage | E43: UPMC-131496011 | F43: Small Group | G43: G:\PA Map Reporting Tool\2018 Plan Design Summary and Rate Tables\UPMC Health Coverage, Inc. Small Group Rates Table.xlsm | H43: G:\PA Map Reporting Tool\2018 PA Actuarial Memorandum Rate Exhibits\UPMC Health Coverage, Inc. Small Group ActMemo.xlsm | I43: G:\PA Map&Reporting Tool R1.xlsm\2019 PD Summary and Rate Tables\2019_SmGrp_UPMCHealthCoverage_PDSRateTable_071618.xlsm | J43: G:\PA Map&Reporting Tool R1.xlsm\2019 Actuarial Memorandum Exhibits\2019_SmGrp_UPMCHealthCoverage_PAAMExhibits_071618.xlsm
C44: UPMC | D44: UPMC Health Options, Inc. | E44: UPMC-131495951 | F44: Small Group | G44: G:\PA Map Reporting Tool\2018 Plan Design Summary and Rate Tables\UPMC Health Options, Inc. Small Group Rates Table.xlsm | H44: G:\PA Map Reporting Tool\2018 PA Actuarial Memorandum Rate Exhibits\UPMC Health Options, Inc. Small Group ActMemo.xlsm | I44: G:\PA Map&Reporting Tool R1.xlsm\2019 PD Summary and Rate Tables\2019_SmGrp_UPMCHealthOptions_PDSRateTable_071618.xlsm | J44: G:\PA Map&Reporting Tool R1.xlsm\2019 Actuarial Memorandum Exhibits\2019_SmGrp_UPMCHealthOptions_PAAMExhibits_071618.xlsm

Sheet Prior Plans (hidden)
A1: PRIOR RATES FOR AGE 21, NON-TOBACCO USER, BY RATING AREA AND COUNTY
B4: Inputs Tab | C4: Inputs Tab | D4: Inputs Tab | E4: Prior Rate Tables; Plan Design Summary Tab | F4: Prior Rate Tables; Plan Design Summary Tab | G4: Prior Rate Tables; Plan Design Summary Tab | H4: Prior Rate Tables; Plan Design Summary Tab | I4: Prior Rate Tables; Plan Design Summary Tab | J4: Prior Rate Tables; Rates by County Tab | K4: Prior Rate Tables; Rates by County Tab | L4: Prior Rate Tables; Rates by County Tab | M4: Prior Rate Tables; Rates by County Tab | N4: Prior Rate Tables; Rates by County Tab | O4: Prior Rate Tables; Rates by County Tab | P4: Prior Rate Tables; Rates by County Tab | Q4: Prior Rate Tables; Rates by County Tab | R4: Prior Rate Tables; Rates by County Tab | S4: Prior Rate Tables; Rates by County Tab | T4: Prior Rate Tables; Rates by County Tab | U4: Prior Rate Tables; Rates by County Tab | V4: Prior Rate Tables; Rates by County Tab | W4: Prior Rate Tables; Rates by County Tab | X4: Prior Rate Tables; Rates by County Tab | Y4: Prior Rate Tables; Rates by County Tab | Z4: Prior Rate Tables; Rates by County Tab | AA4: Prior Rate Tables; Rates by County Tab | AB4: Prior Rate Tables; Rates by County Tab | AC4: Prior Rate Tables; Rates by County Tab | AD4: Prior Rate Tables; Rates by County Tab | AE4: Prior Rate Tables; Rates by County Tab | AF4: Prior Rate Tables; Rates by County Tab | AG4: Prior Rate Tables; Rates by County Tab | AH4: Prior Rate Tables; Rates by County Tab | AI4: Prior Rate Tables; Rates by County Tab | AJ4: Prior Rate Tables; Rates by County Tab | AK4: Prior Rate Tables; Rates by County Tab | AL4: Prior Rate Tables; Rates by County Tab | AM4: Prior Rate Tables; Rates by County Tab | AN4: Prior Rate Tables; Rates by County Tab | AO4: Prior Rate Tables; Rates by County Tab | AP4: Prior Rate Tables; Rates by County Tab | AQ4: Prior Rate Tables; Rates by County Tab | AR4: Prior Rate Tables; Rates by County Tab | AS4: Prior Rate Tables; Rates by County Tab | AT4: Prior Rate Tables; Rates by County Tab | AU4: Prior Rate Tables; Rates by County Tab | AV4: Prior Rate Tables; Rates by County Tab | AW4: Prior Rate Tables; Rates by County Tab | AX4: Prior Rate Tables; Rates by County Tab | AY4: Prior Rate Tables; Rates by County Tab | AZ4: Prior Rate Tables; Rates by County Tab | BA4: Prior Rate Tables; Rates by County Tab | BB4: Prior Rate Tables; Rates by County Tab | BC4: Prior Rate Tables; Rates by County Tab | BD4: Prior Rate Tables; Rates by County Tab | BE4: Prior Rate Tables; Rates by County Tab | BF4: Prior Rate Tables; Rates by County Tab | BG4: Prior Rate Tables; Rates by County Tab | BH4: Prior Rate Tables; Rates by County Tab | BI4: Prior Rate Tables; Rates by County Tab | BJ4: Prior Rate Tables; Rates by County Tab | BK4: Prior Rate Tables; Rates by County Tab | BL4: Prior Rate Tables; Rates by County Tab | BM4: Prior Rate Tables; Rates by County Tab | BN4: Prior Rate Tables; Rates by County Tab | BO4: Prior Rate Tables; Rates by County Tab | BP4: Prior Rate Tables; Rates by County Tab | BQ4: Prior Rate Tables; Rates by County Tab | BR4: Prior Rate Tables; Rates by County Tab | BS4: Prior Rate Tables; Rates by County Tab | BT4: Prior Rate Tables; Rates by County Tab | BU4: Prior Rate Tables; Rates by County Tab | BV4: Prior Rate Tables; Rates by County Tab | BW4: Prior Rate Tables; Rates by County Tab | BX4: Prior Rate Tables; Rates by County Tab
J6: =INDEX(Lookups!$B:$B,MATCH(J$7,Lookups!$A:$A,0),1) -> Rating Area 1 | K6: =INDEX(Lookups!$B:$B,MATCH(K$7,Lookups!$A:$A,0),1) -> Rating Area 1 | L6: =INDEX(Lookups!$B:$B,MATCH(L$7,Lookups!$A:$A,0),1) -> Rating Area 1 | M6: =INDEX(Lookups!$B:$B,MATCH(M$7,Lookups!$A:$A,0),1) -> Rating Area 1 | N6: =INDEX(Lookups!$B:$B,MATCH(N$7,Lookups!$A:$A,0),1) -> Rating Area 1 | O6: =INDEX(Lookups!$B:$B,MATCH(O$7,Lookups!$A:$A,0),1) -> Rating Area 1 | P6: =INDEX(Lookups!$B:$B,MATCH(P$7,Lookups!$A:$A,0),1) -> Rating Area 1 | Q6: =INDEX(Lookups!$B:$B,MATCH(Q$7,Lookups!$A:$A,0),1) -> Rating Area 1 | R6: =INDEX(Lookups!$B:$B,MATCH(R$7,Lookups!$A:$A,0),1) -> Rating Area 2 | S6: =INDEX(Lookups!$B:$B,MATCH(S$7,Lookups!$A:$A,0),1) -> Rating Area 2 | T6: =INDEX(Lookups!$B:$B,MATCH(T$7,Lookups!$A:$A,0),1) -> Rating Area 2 | U6: =INDEX(Lookups!$B:$B,MATCH(U$7,Lookups!$A:$A,0),1) -> Rating Area 3 | V6: =INDEX(Lookups!$B:$B,MATCH(V$7,Lookups!$A:$A,0),1) -> Rating Area 3 | W6: =INDEX(Lookups!$B:$B,MATCH(W$7,Lookups!$A:$A,0),1) -> Rating Area 3 | X6: =INDEX(Lookups!$B:$B,MATCH(X$7,Lookups!$A:$A,0),1) -> Rating Area 3 | Y6: =INDEX(Lookups!$B:$B,MATCH(Y$7,Lookups!$A:$A,0),1) -> Rating Area 3 | Z6: =INDEX(Lookups!$B:$B,MATCH(Z$7,Lookups!$A:$A,0),1) -> Rating Area 3 | AA6: =INDEX(Lookups!$B:$B,MATCH(AA$7,Lookups!$A:$A,0),1) -> Rating Area 3 | AB6: =INDEX(Lookups!$B:$B,MATCH(AB$7,Lookups!$A:$A,0),1) -> Rating Area 3 | AC6: =INDEX(Lookups!$B:$B,MATCH(AC$7,Lookups!$A:$A,0),1) -> Rating Area 3 | AD6: =INDEX(Lookups!$B:$B,MATCH(AD$7,Lookups!$A:$A,0),1) -> Rating Area 3 | AE6: =INDEX(Lookups!$B:$B,MATCH(AE$7,Lookups!$A:$A,0),1) -> Rating Area 3 | AF6: =INDEX(Lookups!$B:$B,MATCH(AF$7,Lookups!$A:$A,0),1) -> Rating Area 3 | AG6: =INDEX(Lookups!$B:$B,MATCH(AG$7,Lookups!$A:$A,0),1) -> Rating Area 3 | AH6: =INDEX(Lookups!$B:$B,MATCH(AH$7,Lookups!$A:$A,0),1) -> Rating Area 4 | AI6: =INDEX(Lookups!$B:$B,MATCH(AI$7,Lookups!$A:$A,0),1) -> Rating Area 4 | AJ6: =INDEX(Lookups!$B:$B,MATCH(AJ$7,Lookups!$A:$A,0),1) -> Rating Area 4 | AK6: =INDEX(Lookups!$B:$B,MATCH(AK$7,Lookups!$A:$A,0),1) -> Rating Area 4 | AL6: =INDEX(Lookups!$B:$B,MATCH(AL$7,Lookups!$A:$A,0),1) -> Rating Area 4 | AM6: =INDEX(Lookups!$B:$B,MATCH(AM$7,Lookups!$A:$A,0),1) -> Rating Area 4 | AN6: =INDEX(Lookups!$B:$B,MATCH(AN$7,Lookups!$A:$A,0),1) -> Rating Area 4 | AO6: =INDEX(Lookups!$B:$B,MATCH(AO$7,Lookups!$A:$A,0),1) -> Rating Area 4 | AP6: =INDEX(Lookups!$B:$B,MATCH(AP$7,Lookups!$A:$A,0),1) -> Rating Area 4 | AQ6: =INDEX(Lookups!$B:$B,MATCH(AQ$7,Lookups!$A:$A,0),1) -> Rating Area 4 | AR6: =INDEX(Lookups!$B:$B,MATCH(AR$7,Lookups!$A:$A,0),1) -> Rating Area 5 | AS6: =INDEX(Lookups!$B:$B,MATCH(AS$7,Lookups!$A:$A,0),1) -> Rating Area 5 | AT6: =INDEX(Lookups!$B:$B,MATCH(AT$7,Lookups!$A:$A,0),1) -> Rating Area 5 | AU6: =INDEX(Lookups!$B:$B,MATCH(AU$7,Lookups!$A:$A,0),1) -> Rating Area 5 | AV6: =INDEX(Lookups!$B:$B,MATCH(AV$7,Lookups!$A:$A,0),1) -> Rating Area 5 | AW6: =INDEX(Lookups!$B:$B,MATCH(AW$7,Lookups!$A:$A,0),1) -> Rating Area 5 | AX6: =INDEX(Lookups!$B:$B,MATCH(AX$7,Lookups!$A:$A,0),1) -> Rating Area 5 | AY6: =INDEX(Lookups!$B:$B,MATCH(AY$7,Lookups!$A:$A,0),1) -> Rating Area 6 | AZ6: =INDEX(Lookups!$B:$B,MATCH(AZ$7,Lookups!$A:$A,0),1) -> Rating Area 6 | BA6: =INDEX(Lookups!$B:$B,MATCH(BA$7,Lookups!$A:$A,0),1) -> Rating Area 6 | BB6: =INDEX(Lookups!$B:$B,MATCH(BB$7,Lookups!$A:$A,0),1) -> Rating Area 6 | BC6: =INDEX(Lookups!$B:$B,MATCH(BC$7,Lookups!$A:$A,0),1) -> Rating Area 6 | BD6: =INDEX(Lookups!$B:$B,MATCH(BD$7,Lookups!$A:$A,0),1) -> Rating Area 6 | BE6: =INDEX(Lookups!$B:$B,MATCH(BE$7,Lookups!$A:$A,0),1) -> Rating Area 6 | BF6: =INDEX(Lookups!$B:$B,MATCH(BF$7,Lookups!$A:$A,0),1) -> Rating Area 6 | BG6: =INDEX(Lookups!$B:$B,MATCH(BG$7,Lookups!$A:$A,0),1) -> Rating Area 6 | BH6: =INDEX(Lookups!$B:$B,MATCH(BH$7,Lookups!$A:$A,0),1) -> Rating Area 6 | BI6: =INDEX(Lookups!$B:$B,MATCH(BI$7,Lookups!$A:$A,0),1) -> Rating Area 7 | BJ6: =INDEX(Lookups!$B:$B,MATCH(BJ$7,Lookups!$A:$A,0),1) -> Rating Area 7 | BK6: =INDEX(Lookups!$B:$B,MATCH(BK$7,Lookups!$A:$A,0),1) -> Rating Area 7 | BL6: =INDEX(Lookups!$B:$B,MATCH(BL$7,Lookups!$A:$A,0),1) -> Rating Area 7 | BM6: =INDEX(Lookups!$B:$B,MATCH(BM$7,Lookups!$A:$A,0),1) -> Rating Area 8 | BN6: =INDEX(Lookups!$B:$B,MATCH(BN$7,Lookups!$A:$A,0),1) -> Rating Area 8 | BO6: =INDEX(Lookups!$B:$B,MATCH(BO$7,Lookups!$A:$A,0),1) -> Rating Area 8 | BP6: =INDEX(Lookups!$B:$B,MATCH(BP$7,Lookups!$A:$A,0),1) -> Rating Area 8 | BQ6: =INDEX(Lookups!$B:$B,MATCH(BQ$7,Lookups!$A:$A,0),1) -> Rating Area 8 | BR6: =INDEX(Lookups!$B:$B,MATCH(BR$7,Lookups!$A:$A,0),1) -> Rating Area 9 | BS6: =INDEX(Lookups!$B:$B,MATCH(BS$7,Lookups!$A:$A,0),1) -> Rating Area 9 | BT6: =INDEX(Lookups!$B:$B,MATCH(BT$7,Lookups!$A:$A,0),1) -> Rating Area 9 | BU6: =INDEX(Lookups!$B:$B,MATCH(BU$7,Lookups!$A:$A,0),1) -> Rating Area 9 | BV6: =INDEX(Lookups!$B:$B,MATCH(BV$7,Lookups!$A:$A,0),1) -> Rating Area 9 | BW6: =INDEX(Lookups!$B:$B,MATCH(BW$7,Lookups!$A:$A,0),1) -> Rating Area 9 | BX6: =INDEX(Lookups!$B:$B,MATCH(BX$7,Lookups!$A:$A,0),1) -> Rating Area 9 | CA6: Individual | CG6: Small Group
B7: Parent Company | C7: Legal Entity | D7: Market | E7: HIOS Plan ID | F7: Plan Marketing Name | G7: Product | H7: Metal | I7: On/Off Exchange | J7: Clarion | K7: Crawford | L7: Erie | M7: Forest | N7: McKean | O7: Mercer | P7: Venango | Q7: Warren | R7: Cameron | S7: Elk | T7: Potter | U7: Bradford | V7: Carbon | W7: Clinton | X7: Lackawanna | Y7: Luzerne | Z7: Lycoming | AA7: Monroe | AB7: Pike | AC7: Sullivan | AD7: Susquehanna | AE7: Tioga | AF7: Wayne | AG7: Wyoming | AH7: Allegheny | AI7: Armstrong | AJ7: Beaver | AK7: Butler | AL7: Fayette | AM7: Greene | AN7: Indiana | AO7: Lawrence | AP7: Washington | AQ7: Westmoreland | AR7: Bedford | AS7: Blair | AT7: Cambria | AU7: Clearfield | AV7: Huntingdon | AW7: Jefferson | AX7: Somerset | AY7: Centre | AZ7: Columbia | BA7: Lehigh | BB7: Mifflin | BC7: Montour | BD7: Northampton | BE7: Northumberland | BF7: Schuylkill | BG7: Snyder | BH7: Union | BI7: Adams | BJ7: Berks | BK7: Lancaster | BL7: York | BM7: Bucks | BN7: Chester | BO7: Delaware | BP7: Montgomery | BQ7: Philadelphia | BR7: Cumberland | BS7: Dauphin | BT7: Franklin | BU7: Fulton | BV7: Juniata | BW7: Lebanon | BX7: Perry | BZ7: County | CA7: Catastrophic | CB7: Bronze | CC7: Silver | CD7: Gold | CE7: Platinum | CF7: 2nd Lowest Silver | CG7: Catastrophic | CH7: Bronze | CI7: Silver | CJ7: Gold | CK7: Platinum | CL7: 2nd Lowest Silver
B8: Aetna | C8: Aetna Health Inc. PA AZ DC DE IN KY MA MD NV NC OK TN VA WV | D8: Small Group | E8: 64844PA0060126 | F8: PA Silver QPOS 5000 80/50 | G8: QPOS | H8: Silver | I8: Off | J8: 313.79 | K8: 0 | L8: 0 | M8: 313.79 | N8: 313.79 | O8: 0 | P8: 313.79 | Q8: 0 | R8: 316.51 | S8: 316.51 | T8: 316.51 | U8: 399 | V8: 399 | W8: 399 | X8: 399 | Y8: 399 | Z8: 399 | AA8: 399 | AB8: 399 | AC8: 399 | AD8: 399 | AE8: 399 | AF8: 399 | AG8: 399 | AH8: 0 | AI8: 0 | AJ8: 0 | AK8: 0 | AL8: 0 | AM8: 0 | AN8: 0 | AO8: 0 | AP8: 0 | AQ8: 0 | AR8: 0 | AS8: 311.78 | AT8: 311.78 | AU8: 311.78 | AV8: 311.78 | AW8: 311.78 | AX8: 0 | AY8: 392.93 | AZ8: 392.93 | BA8: 392.93 | BB8: 392.93 | BC8: 392.93 | BD8: 392.93 | BE8: 392.93 | BF8: 392.93 | BG8: 392.93 | BH8: 392.93 | BI8: 393.25 | BJ8: 393.25 | BK8: 393.25 | BL8: 393.25 | BM8: 399.72 | BN8: 399.72 | BO8: 399.72 | BP8: 399.72 | BQ8: 399.72 | BR8: 373.04 | BS8: 373.04 | BT8: 373.04 | BU8: 373.04 | BV8: 373.04 | BW8: 373.04 | BX8: 373.04 | BZ8: Clarion | CA8: =MIN(IF((PriorPlansTable[Market]=$CA$6)*(PriorPlansTable[Metal]=CA$7)*(INDIRECT("PriorPlansTable["&$BZ8&"]")>0),INDIRECT("PriorPlansTable["&$BZ8&"]"))) -> 205.7 | CB8: =MIN(IF((PriorPlansTable[Market]=$CA$6)*(PriorPlansTable[Metal]=CB$7)*(INDIRECT("PriorPlansTable["&$BZ8&"]")>0),INDIRECT("PriorPlansTable["&$BZ8&"]"))) -> 205.78 | CC8: =MIN(IF((PriorPlansTable[Market]=$CA$6)*(PriorPlansTable[Metal]=CC$7)*(INDIRECT("PriorPlansTable["&$BZ8&"]")>0),INDIRECT("PriorPlansTable["&$BZ8&"]"))) -> 263.78 | CD8: =MIN(IF((PriorPlansTable[Market]=$CA$6)*(PriorPlansTable[Metal]=CD$7)*(INDIRECT("PriorPlansTable["&$BZ8&"]")>0),INDIRECT("PriorPlansTable["&$BZ8&"]"))) -> 332.61 | CE8: =MIN(IF((PriorPlansTable[Market]=$CA$6)*(PriorPlansTable[Metal]=CE$7)*(INDIRECT("PriorPlansTable["&$BZ8&"]")>0),INDIRECT("PriorPlansTable["&$BZ8&"]"))) -> 581.41 | CF8: =MIN(IF((PriorPlansTable[Market]=$CA$6)*(PriorPlansTable[Metal]="Silver")*(INDIRECT("PriorPlansTable["&$BZ8&"]")>CC8),INDIRECT("PriorPlansTable["&$BZ8&"]"))) -> 345.42 | CG8: =MIN(IF((PriorPlansTable[Market]=$CG$6)*(PriorPlansTable[Metal]=CG$7)*(INDIRECT("PriorPlansTable["&$BZ8&"]")>0),INDIRECT("PriorPlansTable["&$BZ8&"]"))) -> 0 | CH8: =MIN(IF((PriorPlansTable[Market]=$CG$6)*(PriorPlansTable[Metal]=CH$7)*(INDIRECT("PriorPlansTable["&$BZ8&"]")>0),INDIRECT("PriorPlansTable["&$BZ8&"]"))) -> 189.44 | CI8: =MIN(IF((PriorPlansTable[Market]=$CG$6)*(PriorPlansTable[Metal]=CI$7)*(INDIRECT("PriorPlansTable["&$BZ8&"]")>0),INDIRECT("PriorPlansTable["&$BZ8&"]"))) -> 209.57 | CJ8: =MIN(IF((PriorPlansTable[Market]=$CG$6)*(PriorPlansTable[Metal]=CJ$7)*(INDIRECT("PriorPlansTable["&$BZ8&"]")>0),INDIRECT("PriorPlansTable["&$BZ8&"]"))) -> 246.05 | CK8: =MIN(IF((PriorPlansTable[Market]=$CG$6)*(PriorPlansTable[Metal]=CK$7)*(INDIRECT("PriorPlansTable["&$BZ8&"]")>0),INDIRECT("PriorPlansTable["&$BZ8&"]"))) -> 313.68 | CL8: =MIN(IF((PriorPlansTable[Market]=$CG$6)*(PriorPlansTable[Metal]="Silver")*(INDIRECT("PriorPlansTable["&$BZ8&"]")>CI8),INDIRECT("PriorPlansTable["&$BZ8&"]"))) -> 209.75
B9: Aetna | C9: Aetna Health Inc. PA AZ DC DE IN KY MA MD NV NC OK TN VA WV | D9: Small Group | E9: 64844PA0070142 | F9: PA Silver HMO 5000 80% | G9: HMO | H9: Silver | I9: Off | J9: 307.32 | K9: 0 | L9: 0 | M9: 307.32 | N9: 307.32 | O9: 0 | P9: 307.32 | Q9: 0 | R9: 309.98 | S9: 309.98 | T9: 309.98 | U9: 390.77 | V9: 390.77 | W9: 390.77 | X9: 390.77 | Y9: 390.77 | Z9: 390.77 | AA9: 390.77 | AB9: 390.77 | AC9: 390.77 | AD9: 390.77 | AE9: 390.77 | AF9: 390.77 | AG9: 390.77 | AH9: 0 | AI9: 0 | AJ9: 0 | AK9: 0 | AL9: 0 | AM9: 0 | AN9: 0 | AO9: 0 | AP9: 0 | AQ9: 0 | AR9: 0 | AS9: 305.35 | AT9: 305.35 | AU9: 305.35 | AV9: 305.35 | AW9: 305.35 | AX9: 0 | AY9: 384.83 | AZ9: 384.83 | BA9: 384.83 | BB9: 384.83 | BC9: 384.83 | BD9: 384.83 | BE9: 384.83 | BF9: 384.83 | BG9: 384.83 | BH9: 384.83 | BI9: 385.14 | BJ9: 385.14 | BK9: 385.14 | BL9: 385.14 | BM9: 391.48 | BN9: 391.48 | BO9: 391.48 | BP9: 391.48 | BQ9: 391.48 | BR9: 365.35 | BS9: 365.35 | BT9: 365.35 | BU9: 365.35 | BV9: 365.35 | BW9: 365.35 | BX9: 365.35 | BZ9: Crawford | CA9: =MIN(IF((PriorPlansTable[Market]=$CA$6)*(PriorPlansTable[Metal]=CA$7)*(INDIRECT("PriorPlansTable["&$BZ9&"]")>0),INDIRECT("PriorPlansTable["&$BZ9&"]"))) -> 205.7 | CB9: =MIN(IF((PriorPlansTable[Market]=$CA$6)*(PriorPlansTable[Metal]=CB$7)*(INDIRECT("PriorPlansTable["&$BZ9&"]")>0),INDIRECT("PriorPlansTable["&$BZ9&"]"))) -> 205.78 | CC9: =MIN(IF((PriorPlansTable[Market]=$CA$6)*(PriorPlansTable[Metal]=CC$7)*(INDIRECT("PriorPlansTable["&$BZ9&"]")>0),INDIRECT("PriorPlansTable["&$BZ9&"]"))) -> 259.97 | CD9: =MIN(IF((PriorPlansTable[Market]=$CA$6)*(PriorPlansTable[Metal]=CD$7)*(INDIRECT("PriorPlansTable["&$BZ9&"]")>0),INDIRECT("PriorPlansTable["&$BZ9&"]"))) -> 327.07 | CE9: =MIN(IF((PriorPlansTable[Market]=$CA$6)*(PriorPlansTable[Metal]=CE$7)*(INDIRECT("PriorPlansTable["&$BZ9&"]")>0),INDIRECT("PriorPlansTable["&$BZ9&"]"))) -> 577.97 | CF9: =MIN(IF((PriorPlansTable[Market]=$CA$6)*(PriorPlansTable[Metal]="Silver")*(INDIRECT("PriorPlansTable["&$BZ9&"]")>CC9),INDIRECT("PriorPlansTable["&$BZ9&"]"))) -> 310.7 | CG9: =MIN(IF((PriorPlansTable[Market]=$CG$6)*(PriorPlansTable[Metal]=CG$7)*(INDIRECT("PriorPlansTable["&$BZ9&"]")>0),INDIRECT("PriorPlansTable["&$BZ9&"]"))) -> 0 | CH9: =MIN(IF((PriorPlansTable[Market]=$CG$6)*(PriorPlansTable[Metal]=CH$7)*(INDIRECT("PriorPlansTable["&$BZ9&"]")>0),INDIRECT("PriorPlansTable["&$BZ9&"]"))) -> 189.44 | CI9: =MIN(IF((PriorPlansTable[Market]=$CG$6)*(PriorPlansTable[Metal]=CI$7)*(INDIRECT("PriorPlansTable["&$BZ9&"]")>0),INDIRECT("PriorPlansTable["&$BZ9&"]"))) -> 209.57 | CJ9: =MIN(IF((PriorPlansTable[Market]=$CG$6)*(PriorPlansTable[Metal]=CJ$7)*(INDIRECT("PriorPlansTable["&$BZ9&"]")>0),INDIRECT("PriorPlansTable["&$BZ9&"]"))) -> 246.05 | CK9: =MIN(IF((PriorPlansTable[Market]=$CG$6)*(PriorPlansTable[Metal]=CK$7)*(INDIRECT("PriorPlansTable["&$BZ9&"]")>0),INDIRECT("PriorPlansTable["&$BZ9&"]"))) -> 313.68 | CL9: =MIN(IF((PriorPlansTable[Market]=$CG$6)*(PriorPlansTable[Metal]="Silver")*(INDIRECT("PriorPlansTable["&$BZ9&"]")>CI9),INDIRECT("PriorPlansTable["&$BZ9&"]"))) -> 209.75
B10: Aetna | C10: Aetna HealthAssurance Pennsylvania, Inc. | D10: Small Group | E10: 18939PA0010025 | F10: PA Silver PPO 5000 80/50 | G10: PPO | H10: Silver | I10: Off | J10: 319.89 | K10: 0 | L10: 0 | M10: 319.89 | N10: 319.89 | O10: 0 | P10: 319.89 | Q10: 0 | R10: 322.65 | S10: 322.65 | T10: 322.65 | U10: 406.75 | V10: 406.75 | W10: 406.75 | X10: 406.75 | Y10: 406.75 | Z10: 406.75 | AA10: 406.75 | AB10: 406.75 | AC10: 406.75 | AD10: 406.75 | AE10: 406.75 | AF10: 406.75 | AG10: 406.75 | AH10: 0 | AI10: 0 | AJ10: 0 | AK10: 0 | AL10: 0 | AM10: 0 | AN10: 0 | AO10: 0 | AP10: 0 | AQ10: 0 | AR10: 0 | AS10: 317.83 | AT10: 317.83 | AU10: 317.83 | AV10: 317.83 | AW10: 317.83 | AX10: 0 | AY10: 400.56 | AZ10: 400.56 | BA10: 400.56 | BB10: 400.56 | BC10: 400.56 | BD10: 400.56 | BE10: 400.56 | BF10: 400.56 | BG10: 400.56 | BH10: 400.56 | BI10: 400.89 | BJ10: 400.89 | BK10: 400.89 | BL10: 400.89 | BM10: 407.49 | BN10: 407.49 | BO10: 407.49 | BP10: 407.49 | BQ10: 407.49 | BR10: 380.28 | BS10: 380.28 | BT10: 380.28 | BU10: 380.28 | BV10: 380.28 | BW10: 380.28 | BX10: 380.28 | BZ10: Erie | CA10: =MIN(IF((PriorPlansTable[Market]=$CA$6)*(PriorPlansTable[Metal]=CA$7)*(INDIRECT("PriorPlansTable["&$BZ10&"]")>0),INDIRECT("PriorPlansTable["&$BZ10&"]"))) -> 162.98 | CB10: =MIN(IF((PriorPlansTable[Market]=$CA$6)*(PriorPlansTable[Metal]=CB$7)*(INDIRECT("PriorPlansTable["&$BZ10&"]")>0),INDIRECT("PriorPlansTable["&$BZ10&"]"))) -> 190.33 | CC10: =MIN(IF((PriorPlansTable[Market]=$CA$6)*(PriorPlansTable[Metal]=CC$7)*(INDIRECT("PriorPlansTable["&$BZ10&"]")>0),INDIRECT("PriorPlansTable["&$BZ10&"]"))) -> 208.98 | CD10: =MIN(IF((PriorPlansTable[Market]=$CA$6)*(PriorPlansTable[Metal]=CD$7)*(INDIRECT("PriorPlansTable["&$BZ10&"]")>0),INDIRECT("PriorPlansTable["&$BZ10&"]"))) -> 263.53 | CE10: =MIN(IF((PriorPlansTable[Market]=$CA$6)*(PriorPlansTable[Metal]=CE$7)*(INDIRECT("PriorPlansTable["&$BZ10&"]")>0),INDIRECT("PriorPlansTable["&$BZ10&"]"))) -> 460.65 | CF10: =MIN(IF((PriorPlansTable[Market]=$CA$6)*(PriorPlansTable[Metal]="Silver")*(INDIRECT("PriorPlansTable["&$BZ10&"]")>CC10),INDIRECT("PriorPlansTable["&$BZ10&"]"))) -> 263.78 | CG10: =MIN(IF((PriorPlansTable[Market]=$CG$6)*(PriorPlansTable[Metal]=CG$7)*(INDIRECT("PriorPlansTable["&$BZ10&"]")>0),INDIRECT("PriorPlansTable["&$BZ10&"]"))) -> 0 | CH10: =MIN(IF((PriorPlansTable[Market]=$CG$6)*(PriorPlansTable[Metal]=CH$7)*(INDIRECT("PriorPlansTable["&$BZ10&"]")>0),INDIRECT("PriorPlansTable["&$BZ10&"]"))) -> 189.44 | CI10: =MIN(IF((PriorPlansTable[Market]=$CG$6)*(PriorPlansTable[Metal]=CI$7)*(INDIRECT("PriorPlansTable["&$BZ10&"]")>0),INDIRECT("PriorPlansTable["&$BZ10&"]"))) -> 201.72 | CJ10: =MIN(IF((PriorPlansTable[Market]=$CG$6)*(PriorPlansTable[Metal]=CJ$7)*(INDIRECT("PriorPlansTable["&$BZ10&"]")>0),INDIRECT("PriorPlansTable["&$BZ10&"]"))) -> 245.5 | CK10: =MIN(IF((PriorPlansTable[Market]=$CG$6)*(PriorPlansTable[Metal]=CK$7)*(INDIRECT("PriorPlansTable["&$BZ10&"]")>0),INDIRECT("PriorPlansTable["&$BZ10&"]"))) -> 313.68 | CL10: =MIN(IF((PriorPlansTable[Market]=$CG$6)*(PriorPlansTable[Metal]="Silver")*(INDIRECT("PriorPlansTable["&$BZ10&"]")>CI10),INDIRECT("PriorPlansTable["&$BZ10&"]"))) -> 202.06
B11: Aetna | C11: Aetna Life Insurance Company | D11: Small Group | E11: 33906PA0090128 | F11: PA Silver PPO 5000 80/50 | G11: PPO | H11: Silver | I11: Off | J11: 319.89 | K11: 0 | L11: 0 | M11: 319.89 | N11: 319.89 | O11: 0 | P11: 319.89 | Q11: 0 | R11: 322.65 | S11: 322.65 | T11: 322.65 | U11: 406.75 | V11: 406.75 | W11: 406.75 | X11: 406.75 | Y11: 406.75 | Z11: 406.75 | AA11: 406.75 | AB11: 406.75 | AC11: 406.75 | AD11: 406.75 | AE11: 406.75 | AF11: 406.75 | AG11: 406.75 | AH11: 0 | AI11: 0 | AJ11: 0 | AK11: 0 | AL11: 0 | AM11: 0 | AN11: 0 | AO11: 0 | AP11: 0 | AQ11: 0 | AR11: 0 | AS11: 317.83 | AT11: 317.83 | AU11: 317.83 | AV11: 317.83 | AW11: 317.83 | AX11: 0 | AY11: 400.56 | AZ11: 400.56 | BA11: 400.56 | BB11: 400.56 | BC11: 400.56 | BD11: 400.56 | BE11: 400.56 | BF11: 400.56 | BG11: 400.56 | BH11: 400.56 | BI11: 400.89 | BJ11: 400.89 | BK11: 400.89 | BL11: 400.89 | BM11: 407.49 | BN11: 407.49 | BO11: 407.49 | BP11: 407.49 | BQ11: 407.49 | BR11: 380.28 | BS11: 380.28 | BT11: 380.28 | BU11: 380.28 | BV11: 380.28 | BW11: 380.28 | BX11: 380.28 | BZ11: Forest | CA11: =MIN(IF((PriorPlansTable[Market]=$CA$6)*(PriorPlansTable[Metal]=CA$7)*(INDIRECT("PriorPlansTable["&$BZ11&"]")>0),INDIRECT("PriorPlansTable["&$BZ11&"]"))) -> 205.7 | CB11: =MIN(IF((PriorPlansTable[Market]=$CA$6)*(PriorPlansTable[Metal]=CB$7)*(INDIRECT("PriorPlansTable["&$BZ11&"]")>0),INDIRECT("PriorPlansTable["&$BZ11&"]"))) -> 205.78 | CC11: =MIN(IF((PriorPlansTable[Market]=$CA$6)*(PriorPlansTable[Metal]=CC$7)*(INDIRECT("PriorPlansTable["&$BZ11&"]")>0),INDIRECT("PriorPlansTable["&$BZ11&"]"))) -> 263.78 | CD11: =MIN(IF((PriorPlansTable[Market]=$CA$6)*(PriorPlansTable[Metal]=CD$7)*(INDIRECT("PriorPlansTable["&$BZ11&"]")>0),INDIRECT("PriorPlansTable["&$BZ11&"]"))) -> 332.61 | CE11: =MIN(IF((PriorPlansTable[Market]=$CA$6)*(PriorPlansTable[Metal]=CE$7)*(INDIRECT("PriorPlansTable["&$BZ11&"]")>0),INDIRECT("PriorPlansTable["&$BZ11&"]"))) -> 581.41 | CF11: =MIN(IF((PriorPlansTable[Market]=$CA$6)*(PriorPlansTable[Metal]="Silver")*(INDIRECT("PriorPlansTable["&$BZ11&"]")>CC11),INDIRECT("PriorPlansTable["&$BZ11&"]"))) -> 345.42 | CG11: =MIN(IF((PriorPlansTable[Market]=$CG$6)*(PriorPlansTable[Metal]=CG$7)*(INDIRECT("PriorPlansTable["&$BZ11&"]")>0),INDIRECT("PriorPlansTable["&$BZ11&"]"))) -> 0 | CH11: =MIN(IF((PriorPlansTable[Market]=$CG$6)*(PriorPlansTable[Metal]=CH$7)*(INDIRECT("PriorPlansTable["&$BZ11&"]")>0),INDIRECT("PriorPlansTable["&$BZ11&"]"))) -> 189.44 | CI11: =MIN(IF((PriorPlansTable[Market]=$CG$6)*(PriorPlansTable[Metal]=CI$7)*(INDIRECT("PriorPlansTable["&$BZ11&"]")>0),INDIRECT("PriorPlansTable["&$BZ11&"]"))) -> 209.57 | CJ11: =MIN(IF((PriorPlansTable[Market]=$CG$6)*(PriorPlansTable[Metal]=CJ$7)*(INDIRECT("PriorPlansTable["&$BZ11&"]")>0),INDIRECT("PriorPlansTable["&$BZ11&"]"))) -> 246.05 | CK11: =MIN(IF((PriorPlansTable[Market]=$CG$6)*(PriorPlansTable[Metal]=CK$7)*(INDIRECT("PriorPlansTable["&$BZ11&"]")>0),INDIRECT("PriorPlansTable["&$BZ11&"]"))) -> 313.68 | CL11: =MIN(IF((PriorPlansTable[Market]=$CG$6)*(PriorPlansTable[Metal]="Silver")*(INDIRECT("PriorPlansTable["&$BZ11&"]")>CI11),INDIRECT("PriorPlansTable["&$BZ11&"]"))) -> 209.75
B12: Capital Blue Cross | C12: Capital Advantage Assurance Company | D12: Individual | E12: 45127PA0020008 | F12: Silver PPO 5000/10/30 | Combined w/Med | G12: PPO | H12: Silver | I12: On/Off | J12: 0 | K12: 0 | L12: 0 | M12: 0 | N12: 0 | O12: 0 | P12: 0 | Q12: 0 | R12: 0 | S12: 0 | T12: 0 | U12: 0 | V12: 0 | W12: 0 | X12: 0 | Y12: 0 | Z12: 0 | AA12: 0 | AB12: 0 | AC12: 0 | AD12: 0 | AE12: 0 | AF12: 0 | AG12: 0 | AH12: 0 | AI12: 0 | AJ12: 0 | AK12: 0 | AL12: 0 | AM12: 0 | AN12: 0 | AO12: 0 | AP12: 0 | AQ12: 0 | AR12: 0 | AS12: 0 | AT12: 0 | AU12: 0 | AV12: 0 | AW12: 0 | AX12: 0 | AY12: 618.2 | AZ12: 618.2 | BA12: 618.2 | BB12: 618.2 | BC12: 0 | BD12: 618.2 | BE12: 618.2 | BF12: 618.2 | BG12: 618.2 | BH12: 618.2 | BI12: 636.74 | BJ12: 636.74 | BK12: 636.74 | BL12: 636.74 | BM12: 0 | BN12: 0 | BO12: 0 | BP12: 0 | BQ12: 0 | BR12: 667.65 | BS12: 667.65 | BT12: 667.65 | BU12: 667.65 | BV12: 667.65 | BW12: 0 | BX12: 667.65 | BZ12: McKean | CA12: =MIN(IF((PriorPlansTable[Market]=$CA$6)*(PriorPlansTable[Metal]=CA$7)*(INDIRECT("PriorPlansTable["&$BZ12&"]")>0),INDIRECT("PriorPlansTable["&$BZ12&"]"))) -> 205.7 | CB12: =MIN(IF((PriorPlansTable[Market]=$CA$6)*(PriorPlansTable[Metal]=CB$7)*(INDIRECT("PriorPlansTable["&$BZ12&"]")>0),INDIRECT("PriorPlansTable["&$BZ12&"]"))) -> 205.78 | CC12: =MIN(IF((PriorPlansTable[Market]=$CA$6)*(PriorPlansTable[Metal]=CC$7)*(INDIRECT("PriorPlansTable["&$BZ12&"]")>0),INDIRECT("PriorPlansTable["&$BZ12&"]"))) -> 263.78 | CD12: =MIN(IF((PriorPlansTable[Market]=$CA$6)*(PriorPlansTable[Metal]=CD$7)*(INDIRECT("PriorPlansTable["&$BZ12&"]")>0),INDIRECT("PriorPlansTable["&$BZ12&"]"))) -> 332.61 | CE12: =MIN(IF((PriorPlansTable[Market]=$CA$6)*(PriorPlansTable[Metal]=CE$7)*(INDIRECT("PriorPlansTable["&$BZ12&"]")>0),INDIRECT("PriorPlansTable["&$BZ12&"]"))) -> 581.41 | CF12: =MIN(IF((PriorPlansTable[Market]=$CA$6)*(PriorPlansTable[Metal]="Silver")*(INDIRECT("PriorPlansTable["&$BZ12&"]")>CC12),INDIRECT("PriorPlansTable["&$BZ12&"]"))) -> 345.42 | CG12: =MIN(IF((PriorPlansTable[Market]=$CG$6)*(PriorPlansTable[Metal]=CG$7)*(INDIRECT("PriorPlansTable["&$BZ12&"]")>0),INDIRECT("PriorPlansTable["&$BZ12&"]"))) -> 0 | CH12: =MIN(IF((PriorPlansTable[Market]=$CG$6)*(PriorPlansTable[Metal]=CH$7)*(INDIRECT("PriorPlansTable["&$BZ12&"]")>0),INDIRECT("PriorPlansTable["&$BZ12&"]"))) -> 189.44 | CI12: =MIN(IF((PriorPlansTable[Market]=$CG$6)*(PriorPlansTable[Metal]=CI$7)*(INDIRECT("PriorPlansTable["&$BZ12&"]")>0),INDIRECT("PriorPlansTable["&$BZ12&"]"))) -> 209.57 | CJ12: =MIN(IF((PriorPlansTable[Market]=$CG$6)*(PriorPlansTable[Metal]=CJ$7)*(INDIRECT("PriorPlansTable["&$BZ12&"]")>0),INDIRECT("PriorPlansTable["&$BZ12&"]"))) -> 246.05 | CK12: =MIN(IF((PriorPlansTable[Market]=$CG$6)*(PriorPlansTable[Metal]=CK$7)*(INDIRECT("PriorPlansTable["&$BZ12&"]")>0),INDIRECT("PriorPlansTable["&$BZ12&"]"))) -> 313.68 | CL12: =MIN(IF((PriorPlansTable[Market]=$CG$6)*(PriorPlansTable[Metal]="Silver")*(INDIRECT("PriorPlansTable["&$BZ12&"]")>CI12),INDIRECT("PriorPlansTable["&$BZ12&"]"))) -> 209.75
B13: Capital Blue Cross | C13: Capital Advantage Assurance Company | D13: Individual | E13: 45127PA0020013 | F13: Gold PPO 2000/10/20 | Combined w/Med | G13: PPO | H13: Gold | I13: On/Off | J13: 0 | K13: 0 | L13: 0 | M13: 0 | N13: 0 | O13: 0 | P13: 0 | Q13: 0 | R13: 0 | S13: 0 | T13: 0 | U13: 0 | V13: 0 | W13: 0 | X13: 0 | Y13: 0 | Z13: 0 | AA13: 0 | AB13: 0 | AC13: 0 | AD13: 0 | AE13: 0 | AF13: 0 | AG13: 0 | AH13: 0 | AI13: 0 | AJ13: 0 | AK13: 0 | AL13: 0 | AM13: 0 | AN13: 0 | AO13: 0 | AP13: 0 | AQ13: 0 | AR13: 0 | AS13: 0 | AT13: 0 | AU13: 0 | AV13: 0 | AW13: 0 | AX13: 0 | AY13: 563.36 | AZ13: 563.36 | BA13: 563.36 | BB13: 563.36 | BC13: 0 | BD13: 563.36 | BE13: 563.36 | BF13: 563.36 | BG13: 563.36 | BH13: 563.36 | BI13: 580.26 | BJ13: 580.26 | BK13: 580.26 | BL13: 580.26 | BM13: 0 | BN13: 0 | BO13: 0 | BP13: 0 | BQ13: 0 | BR13: 608.43 | BS13: 608.43 | BT13: 608.43 | BU13: 608.43 | BV13: 608.43 | BW13: 0 | BX13: 608.43 | BZ13: Mercer | CA13: =MIN(IF((PriorPlansTable[Market]=$CA$6)*(PriorPlansTable[Metal]=CA$7)*(INDIRECT("PriorPlansTable["&$BZ13&"]")>0),INDIRECT("PriorPlansTable["&$BZ13&"]"))) -> 162.98 | CB13: =MIN(IF((PriorPlansTable[Market]=$CA$6)*(PriorPlansTable[Metal]=CB$7)*(INDIRECT("PriorPlansTable["&$BZ13&"]")>0),INDIRECT("PriorPlansTable["&$BZ13&"]"))) -> 190.33 | CC13: =MIN(IF((PriorPlansTable[Market]=$CA$6)*(PriorPlansTable[Metal]=CC$7)*(INDIRECT("PriorPlansTable["&$BZ13&"]")>0),INDIRECT("PriorPlansTable["&$BZ13&"]"))) -> 208.98 | CD13: =MIN(IF((PriorPlansTable[Market]=$CA$6)*(PriorPlansTable[Metal]=CD$7)*(INDIRECT("PriorPlansTable["&$BZ13&"]")>0),INDIRECT("PriorPlansTable["&$BZ13&"]"))) -> 263.53 | CE13: =MIN(IF((PriorPlansTable[Market]=$CA$6)*(PriorPlansTable[Metal]=CE$7)*(INDIRECT("PriorPlansTable["&$BZ13&"]")>0),INDIRECT("PriorPlansTable["&$BZ13&"]"))) -> 460.65 | CF13: =MIN(IF((PriorPlansTable[Market]=$CA$6)*(PriorPlansTable[Metal]="Silver")*(INDIRECT("PriorPlansTable["&$BZ13&"]")>CC13),INDIRECT("PriorPlansTable["&$BZ13&"]"))) -> 263.78 | CG13: =MIN(IF((PriorPlansTable[Market]=$CG$6)*(PriorPlansTable[Metal]=CG$7)*(INDIRECT("PriorPlansTable["&$BZ13&"]")>0),INDIRECT("PriorPlansTable["&$BZ13&"]"))) -> 0 | CH13: =MIN(IF((PriorPlansTable[Market]=$CG$6)*(PriorPlansTable[Metal]=CH$7)*(INDIRECT("PriorPlansTable["&$BZ13&"]")>0),INDIRECT("PriorPlansTable["&$BZ13&"]"))) -> 189.44 | CI13: =MIN(IF((PriorPlansTable[Market]=$CG$6)*(PriorPlansTable[Metal]=CI$7)*(INDIRECT("PriorPlansTable["&$BZ13&"]")>0),INDIRECT("PriorPlansTable["&$BZ13&"]"))) -> 201.72 | CJ13: =MIN(IF((PriorPlansTable[Market]=$CG$6)*(PriorPlansTable[Metal]=CJ$7)*(INDIRECT("PriorPlansTable["&$BZ13&"]")>0),INDIRECT("PriorPlansTable["&$BZ13&"]"))) -> 245.5 | CK13: =MIN(IF((PriorPlansTable[Market]=$CG$6)*(PriorPlansTable[Metal]=CK$7)*(INDIRECT("PriorPlansTable["&$BZ13&"]")>0),INDIRECT("PriorPlansTable["&$BZ13&"]"))) -> 313.68 | CL13: =MIN(IF((PriorPlansTable[Market]=$CG$6)*(PriorPlansTable[Metal]="Silver")*(INDIRECT("PriorPlansTable["&$BZ13&"]")>CI13),INDIRECT("PriorPlansTable["&$BZ13&"]"))) -> 202.06
B14: Capital Blue Cross | C14: Capital Advantage Assurance Company | D14: Individual | E14: 45127PA0020020 | F14: Bronze PPO 7350/0/60 | Combined w/Med | G14: PPO | H14: Bronze | I14: On/Off | J14: 0 | K14: 0 | L14: 0 | M14: 0 | N14: 0 | O14: 0 | P14: 0 | Q14: 0 | R14: 0 | S14: 0 | T14: 0 | U14: 0 | V14: 0 | W14: 0 | X14: 0 | Y14: 0 | Z14: 0 | AA14: 0 | AB14: 0 | AC14: 0 | AD14: 0 | AE14: 0 | AF14: 0 | AG14: 0 | AH14: 0 | AI14: 0 | AJ14: 0 | AK14: 0 | AL14: 0 | AM14: 0 | AN14: 0 | AO14: 0 | AP14: 0 | AQ14: 0 | AR14: 0 | AS14: 0 | AT14: 0 | AU14: 0 | AV14: 0 | AW14: 0 | AX14: 0 | AY14: 414.3 | AZ14: 414.3 | BA14: 414.3 | BB14: 414.3 | BC14: 0 | BD14: 414.3 | BE14: 414.3 | BF14: 414.3 | BG14: 414.3 | BH14: 414.3 | BI14: 426.73 | BJ14: 426.73 | BK14: 426.73 | BL14: 426.73 | BM14: 0 | BN14: 0 | BO14: 0 | BP14: 0 | BQ14: 0 | BR14: 447.44 | BS14: 447.44 | BT14: 447.44 | BU14: 447.44 | BV14: 447.44 | BW14: 0 | BX14: 447.44 | BZ14: Venango | CA14: =MIN(IF((PriorPlansTable[Market]=$CA$6)*(PriorPlansTable[Metal]=CA$7)*(INDIRECT("PriorPlansTable["&$BZ14&"]")>0),INDIRECT("PriorPlansTable["&$BZ14&"]"))) -> 162.98 | CB14: =MIN(IF((PriorPlansTable[Market]=$CA$6)*(PriorPlansTable[Metal]=CB$7)*(INDIRECT("PriorPlansTable["&$BZ14&"]")>0),INDIRECT("PriorPlansTable["&$BZ14&"]"))) -> 190.33 | CC14: =MIN(IF((PriorPlansTable[Market]=$CA$6)*(PriorPlansTable[Metal]=CC$7)*(INDIRECT("PriorPlansTable["&$BZ14&"]")>0),INDIRECT("PriorPlansTable["&$BZ14&"]"))) -> 208.98 | CD14: =MIN(IF((PriorPlansTable[Market]=$CA$6)*(PriorPlansTable[Metal]=CD$7)*(INDIRECT("PriorPlansTable["&$BZ14&"]")>0),INDIRECT("PriorPlansTable["&$BZ14&"]"))) -> 263.53 | CE14: =MIN(IF((PriorPlansTable[Market]=$CA$6)*(PriorPlansTable[Metal]=CE$7)*(INDIRECT("PriorPlansTable["&$BZ14&"]")>0),INDIRECT("PriorPlansTable["&$BZ14&"]"))) -> 460.65 | CF14: =MIN(IF((PriorPlansTable[Market]=$CA$6)*(PriorPlansTable[Metal]="Silver")*(INDIRECT("PriorPlansTable["&$BZ14&"]")>CC14),INDIRECT("PriorPlansTable["&$BZ14&"]"))) -> 263.78 | CG14: =MIN(IF((PriorPlansTable[Market]=$CG$6)*(PriorPlansTable[Metal]=CG$7)*(INDIRECT("PriorPlansTable["&$BZ14&"]")>0),INDIRECT("PriorPlansTable["&$BZ14&"]"))) -> 0 | CH14: =MIN(IF((PriorPlansTable[Market]=$CG$6)*(PriorPlansTable[Metal]=CH$7)*(INDIRECT("PriorPlansTable["&$BZ14&"]")>0),INDIRECT("PriorPlansTable["&$BZ14&"]"))) -> 189.44 | CI14: =MIN(IF((PriorPlansTable[Market]=$CG$6)*(PriorPlansTable[Metal]=CI$7)*(INDIRECT("PriorPlansTable["&$BZ14&"]")>0),INDIRECT("PriorPlansTable["&$BZ14&"]"))) -> 201.72 | CJ14: =MIN(IF((PriorPlansTable[Market]=$CG$6)*(PriorPlansTable[Metal]=CJ$7)*(INDIRECT("PriorPlansTable["&$BZ14&"]")>0),INDIRECT("PriorPlansTable["&$BZ14&"]"))) -> 245.5 | CK14: =MIN(IF((PriorPlansTable[Market]=$CG$6)*(PriorPlansTable[Metal]=CK$7)*(INDIRECT("PriorPlansTable["&$BZ14&"]")>0),INDIRECT("PriorPlansTable["&$BZ14&"]"))) -> 313.68 | CL14: =MIN(IF((PriorPlansTable[Market]=$CG$6)*(PriorPlansTable[Metal]="Silver")*(INDIRECT("PriorPlansTable["&$BZ14&"]")>CI14),INDIRECT("PriorPlansTable["&$BZ14&"]"))) -> 202.06
B15: Capital Blue Cross | C15: Capital Advantage Assurance Company | D15: Individual | E15: 45127PA0020021 | F15: Silver PPO 4950/10/30 | Combined w/Med | G15: PPO | H15: Silver | I15: Off | J15: 0 | K15: 0 | L15: 0 | M15: 0 | N15: 0 | O15: 0 | P15: 0 | Q15: 0 | R15: 0 | S15: 0 | T15: 0 | U15: 0 | V15: 0 | W15: 0 | X15: 0 | Y15: 0 | Z15: 0 | AA15: 0 | AB15: 0 | AC15: 0 | AD15: 0 | AE15: 0 | AF15: 0 | AG15: 0 | AH15: 0 | AI15: 0 | AJ15: 0 | AK15: 0 | AL15: 0 | AM15: 0 | AN15: 0 | AO15: 0 | AP15: 0 | AQ15: 0 | AR15: 0 | AS15: 0 | AT15: 0 | AU15: 0 | AV15: 0 | AW15: 0 | AX15: 0 | AY15: 469.02 | AZ15: 469.02 | BA15: 469.02 | BB15: 469.02 | BC15: 0 | BD15: 469.02 | BE15: 469.02 | BF15: 469.02 | BG15: 469.02 | BH15: 469.02 | BI15: 483.09 | BJ15: 483.09 | BK15: 483.09 | BL15: 483.09 | BM15: 0 | BN15: 0 | BO15: 0 | BP15: 0 | BQ15: 0 | BR15: 506.54 | BS15: 506.54 | BT15: 506.54 | BU15: 506.54 | BV15: 506.54 | BW15: 0 | BX15: 506.54 | BZ15: Warren | CA15: =MIN(IF((PriorPlansTable[Market]=$CA$6)*(PriorPlansTable[Metal]=CA$7)*(INDIRECT("PriorPlansTable["&$BZ15&"]")>0),INDIRECT("PriorPlansTable["&$BZ15&"]"))) -> 205.7 | CB15: =MIN(IF((PriorPlansTable[Market]=$CA$6)*(PriorPlansTable[Metal]=CB$7)*(INDIRECT("PriorPlansTable["&$BZ15&"]")>0),INDIRECT("PriorPlansTable["&$BZ15&"]"))) -> 205.78 | CC15: =MIN(IF((PriorPlansTable[Market]=$CA$6)*(PriorPlansTable[Metal]=CC$7)*(INDIRECT("PriorPlansTable["&$BZ15&"]")>0),INDIRECT("PriorPlansTable["&$BZ15&"]"))) -> 263.78 | CD15: =MIN(IF((PriorPlansTable[Market]=$CA$6)*(PriorPlansTable[Metal]=CD$7)*(INDIRECT("PriorPlansTable["&$BZ15&"]")>0),INDIRECT("PriorPlansTable["&$BZ15&"]"))) -> 332.61 | CE15: =MIN(IF((PriorPlansTable[Market]=$CA$6)*(PriorPlansTable[Metal]=CE$7)*(INDIRECT("PriorPlansTable["&$BZ15&"]")>0),INDIRECT("PriorPlansTable["&$BZ15&"]"))) -> 581.41 | CF15: =MIN(IF((PriorPlansTable[Market]=$CA$6)*(PriorPlansTable[Metal]="Silver")*(INDIRECT("PriorPlansTable["&$BZ15&"]")>CC15),INDIRECT("PriorPlansTable["&$BZ15&"]"))) -> 345.42 | CG15: =MIN(IF((PriorPlansTable[Market]=$CG$6)*(PriorPlansTable[Metal]=CG$7)*(INDIRECT("PriorPlansTable["&$BZ15&"]")>0),INDIRECT("PriorPlansTable["&$BZ15&"]"))) -> 0 | CH15: =MIN(IF((PriorPlansTable[Market]=$CG$6)*(PriorPlansTable[Metal]=CH$7)*(INDIRECT("PriorPlansTable["&$BZ15&"]")>0),INDIRECT("PriorPlansTable["&$BZ15&"]"))) -> 189.44 | CI15: =MIN(IF((PriorPlansTable[Market]=$CG$6)*(PriorPlansTable[Metal]=CI$7)*(INDIRECT("PriorPlansTable["&$BZ15&"]")>0),INDIRECT("PriorPlansTable["&$BZ15&"]"))) -> 209.57 | CJ15: =MIN(IF((PriorPlansTable[Market]=$CG$6)*(PriorPlansTable[Metal]=CJ$7)*(INDIRECT("PriorPlansTable["&$BZ15&"]")>0),INDIRECT("PriorPlansTable["&$BZ15&"]"))) -> 246.05 | CK15: =MIN(IF((PriorPlansTable[Market]=$CG$6)*(PriorPlansTable[Metal]=CK$7)*(INDIRECT("PriorPlansTable["&$BZ15&"]")>0),INDIRECT("PriorPlansTable["&$BZ15&"]"))) -> 313.68 | CL15: =MIN(IF((PriorPlansTable[Market]=$CG$6)*(PriorPlansTable[Metal]="Silver")*(INDIRECT("PriorPlansTable["&$BZ15&"]")>CI15),INDIRECT("PriorPlansTable["&$BZ15&"]"))) -> 209.75
B16: Capital Blue Cross | C16: Capital Advantage Insurance Company | D16: Individual | E16: 82795PA0120001 | F16: Silver CareConnect 3000/0/35 | G16: Gatekeeper PPO | H16: Silver | I16: Off | J16: 0 | K16: 0 | L16: 0 | M16: 0 | N16: 0 | O16: 0 | P16: 0 | Q16: 0 | R16: 0 | S16: 0 | T16: 0 | U16: 0 | V16: 0 | W16: 0 | X16: 0 | Y16: 0 | Z16: 0 | AA16: 0 | AB16: 0 | AC16: 0 | AD16: 0 | AE16: 0 | AF16: 0 | AG16: 0 | AH16: 0 | AI16: 0 | AJ16: 0 | AK16: 0 | AL16: 0 | AM16: 0 | AN16: 0 | AO16: 0 | AP16: 0 | AQ16: 0 | AR16: 0 | AS16: 0 | AT16: 0 | AU16: 0 | AV16: 0 | AW16: 0 | AX16: 0 | AY16: 0 | AZ16: 0 | BA16: 0 | BB16: 0 | BC16: 0 | BD16: 0 | BE16: 0 | BF16: 0 | BG16: 0 | BH16: 0 | BI16: 0 | BJ16: 0 | BK16: 0 | BL16: 0 | BM16: 0 | BN16: 0 | BO16: 0 | BP16: 0 | BQ16: 0 | BR16: 438.75 | BS16: 438.75 | BT16: 0 | BU16: 0 | BV16: 0 | BW16: 0 | BX16: 438.75 | BZ16: Cameron | CA16: =MIN(IF((PriorPlansTable[Market]=$CA$6)*(PriorPlansTable[Metal]=CA$7)*(INDIRECT("PriorPlansTable["&$BZ16&"]")>0),INDIRECT("PriorPlansTable["&$BZ16&"]"))) -> 205.7 | CB16: =MIN(IF((PriorPlansTable[Market]=$CA$6)*(PriorPlansTable[Metal]=CB$7)*(INDIRECT("PriorPlansTable["&$BZ16&"]")>0),INDIRECT("PriorPlansTable["&$BZ16&"]"))) -> 205.78 | CC16: =MIN(IF((PriorPlansTable[Market]=$CA$6)*(PriorPlansTable[Metal]=CC$7)*(INDIRECT("PriorPlansTable["&$BZ16&"]")>0),INDIRECT("PriorPlansTable["&$BZ16&"]"))) -> 263.78 | CD16: =MIN(IF((PriorPlansTable[Market]=$CA$6)*(PriorPlansTable[Metal]=CD$7)*(INDIRECT("PriorPlansTable["&$BZ16&"]")>0),INDIRECT("PriorPlansTable["&$BZ16&"]"))) -> 332.61 | CE16: =MIN(IF((PriorPlansTable[Market]=$CA$6)*(PriorPlansTable[Metal]=CE$7)*(INDIRECT("PriorPlansTable["&$BZ16&"]")>0),INDIRECT("PriorPlansTable["&$BZ16&"]"))) -> 581.41 | CF16: =MIN(IF((PriorPlansTable[Market]=$CA$6)*(PriorPlansTable[Metal]="Silver")*(INDIRECT("PriorPlansTable["&$BZ16&"]")>CC16),INDIRECT("PriorPlansTable["&$BZ16&"]"))) -> 315.18 | CG16: =MIN(IF((PriorPlansTable[Market]=$CG$6)*(PriorPlansTable[Metal]=CG$7)*(INDIRECT("PriorPlansTable["&$BZ16&"]")>0),INDIRECT("PriorPlansTable["&$BZ16&"]"))) -> 0 | CH16: =MIN(IF((PriorPlansTable[Market]=$CG$6)*(PriorPlansTable[Metal]=CH$7)*(INDIRECT("PriorPlansTable["&$BZ16&"]")>0),INDIRECT("PriorPlansTable["&$BZ16&"]"))) -> 189.44 | CI16: =MIN(IF((PriorPlansTable[Market]=$CG$6)*(PriorPlansTable[Metal]=CI$7)*(INDIRECT("PriorPlansTable["&$BZ16&"]")>0),INDIRECT("PriorPlansTable["&$BZ16&"]"))) -> 209.57 | CJ16: =MIN(IF((PriorPlansTable[Market]=$CG$6)*(PriorPlansTable[Metal]=CJ$7)*(INDIRECT("PriorPlansTable["&$BZ16&"]")>0),INDIRECT("PriorPlansTable["&$BZ16&"]"))) -> 246.05 | CK16: =MIN(IF((PriorPlansTable[Market]=$CG$6)*(PriorPlansTable[Metal]=CK$7)*(INDIRECT("PriorPlansTable["&$BZ16&"]")>0),INDIRECT("PriorPlansTable["&$BZ16&"]"))) -> 328.68 | CL16: =MIN(IF((PriorPlansTable[Market]=$CG$6)*(PriorPlansTable[Metal]="Silver")*(INDIRECT("PriorPlansTable["&$BZ16&"]")>CI16),INDIRECT("PriorPlansTable["&$BZ16&"]"))) -> 209.75
B17: Capital Blue Cross | C17: Keystone Health Plan Central | D17: Individual | E17: 53789PA0100004 | F17: Catastrophic HMO 7350/0/75 | Combined w/Med | G17: HMO | H17: Catastrophic | I17: Off | J17: 0 | K17: 0 | L17: 0 | M17: 0 | N17: 0 | O17: 0 | P17: 0 | Q17: 0 | R17: 0 | S17: 0 | T17: 0 | U17: 0 | V17: 0 | W17: 0 | X17: 0 | Y17: 0 | Z17: 0 | AA17: 0 | AB17: 0 | AC17: 0 | AD17: 0 | AE17: 0 | AF17: 0 | AG17: 0 | AH17: 0 | AI17: 0 | AJ17: 0 | AK17: 0 | AL17: 0 | AM17: 0 | AN17: 0 | AO17: 0 | AP17: 0 | AQ17: 0 | AR17: 0 | AS17: 0 | AT17: 0 | AU17: 0 | AV17: 0 | AW17: 0 | AX17: 0 | AY17: 221.05 | AZ17: 221.05 | BA17: 221.05 | BB17: 221.05 | BC17: 0 | BD17: 221.05 | BE17: 221.05 | BF17: 221.05 | BG17: 221.05 | BH17: 221.05 | BI17: 227.68 | BJ17: 227.68 | BK17: 227.68 | BL17: 227.68 | BM17: 0 | BN17: 0 | BO17: 0 | BP17: 0 | BQ17: 0 | BR17: 238.73 | BS17: 238.73 | BT17: 238.73 | BU17: 238.73 | BV17: 238.73 | BW17: 0 | BX17: 238.73 | BZ17: Elk | CA17: =MIN(IF((PriorPlansTable[Market]=$CA$6)*(PriorPlansTable[Metal]=CA$7)*(INDIRECT("PriorPlansTable["&$BZ17&"]")>0),INDIRECT("PriorPlansTable["&$BZ17&"]"))) -> 205.7 | CB17: =MIN(IF((PriorPlansTable[Market]=$CA$6)*(PriorPlansTable[Metal]=CB$7)*(INDIRECT("PriorPlansTable["&$BZ17&"]")>0),INDIRECT("PriorPlansTable["&$BZ17&"]"))) -> 205.78 | CC17: =MIN(IF((PriorPlansTable[Market]=$CA$6)*(PriorPlansTable[Metal]=CC$7)*(INDIRECT("PriorPlansTable["&$BZ17&"]")>0),INDIRECT("PriorPlansTable["&$BZ17&"]"))) -> 263.78 | CD17: =MIN(IF((PriorPlansTable[Market]=$CA$6)*(PriorPlansTable[Metal]=CD$7)*(INDIRECT("PriorPlansTable["&$BZ17&"]")>0),INDIRECT("PriorPlansTable["&$BZ17&"]"))) -> 332.61 | CE17: =MIN(IF((PriorPlansTable[Market]=$CA$6)*(PriorPlansTable[Metal]=CE$7)*(INDIRECT("PriorPlansTable["&$BZ17&"]")>0),INDIRECT("PriorPlansTable["&$BZ17&"]"))) -> 581.41 | CF17: =MIN(IF((PriorPlansTable[Market]=$CA$6)*(PriorPlansTable[Metal]="Silver")*(INDIRECT("PriorPlansTable["&$BZ17&"]")>CC17),INDIRECT("PriorPlansTable["&$BZ17&"]"))) -> 345.42 | CG17: =MIN(IF((PriorPlansTable[Market]=$CG$6)*(PriorPlansTable[Metal]=CG$7)*(INDIRECT("PriorPlansTable["&$BZ17&"]")>0),INDIRECT("PriorPlansTable["&$BZ17&"]"))) -> 0 | CH17: =MIN(IF((PriorPlansTable[Market]=$CG$6)*(PriorPlansTable[Metal]=CH$7)*(INDIRECT("PriorPlansTable["&$BZ17&"]")>0),INDIRECT("PriorPlansTable["&$BZ17&"]"))) -> 189.44 | CI17: =MIN(IF((PriorPlansTable[Market]=$CG$6)*(PriorPlansTable[Metal]=CI$7)*(INDIRECT("PriorPlansTable["&$BZ17&"]")>0),INDIRECT("PriorPlansTable["&$BZ17&"]"))) -> 209.57 | CJ17: =MIN(IF((PriorPlansTable[Market]=$CG$6)*(PriorPlansTable[Metal]=CJ$7)*(INDIRECT("PriorPlansTable["&$BZ17&"]")>0),INDIRECT("PriorPlansTable["&$BZ17&"]"))) -> 246.05 | CK17: =MIN(IF((PriorPlansTable[Market]=$CG$6)*(PriorPlansTable[Metal]=CK$7)*(INDIRECT("PriorPlansTable["&$BZ17&"]")>0),INDIRECT("PriorPlansTable["&$BZ17&"]"))) -> 328.68 | CL17: =MIN(IF((PriorPlansTable[Market]=$CG$6)*(PriorPlansTable[Metal]="Silver")*(INDIRECT("PriorPlansTable["&$BZ17&"]")>CI17),INDIRECT("PriorPlansTable["&$BZ17&"]"))) -> 209.75
B18: Capital Blue Cross | C18: Keystone Health Plan Central | D18: Individual | E18: 53789PA0100008 | F18: Bronze HMO 7350/0/60 | Combined w/Med | G18: HMO | H18: Bronze | I18: Off | J18: 0 | K18: 0 | L18: 0 | M18: 0 | N18: 0 | O18: 0 | P18: 0 | Q18: 0 | R18: 0 | S18: 0 | T18: 0 | U18: 0 | V18: 0 | W18: 0 | X18: 0 | Y18: 0 | Z18: 0 | AA18: 0 | AB18: 0 | AC18: 0 | AD18: 0 | AE18: 0 | AF18: 0 | AG18: 0 | AH18: 0 | AI18: 0 | AJ18: 0 | AK18: 0 | AL18: 0 | AM18: 0 | AN18: 0 | AO18: 0 | AP18: 0 | AQ18: 0 | AR18: 0 | AS18: 0 | AT18: 0 | AU18: 0 | AV18: 0 | AW18: 0 | AX18: 0 | AY18: 356.54 | AZ18: 356.54 | BA18: 356.54 | BB18: 356.54 | BC18: 0 | BD18: 356.54 | BE18: 356.54 | BF18: 356.54 | BG18: 356.54 | BH18: 356.54 | BI18: 367.24 | BJ18: 367.24 | BK18: 367.24 | BL18: 367.24 | BM18: 0 | BN18: 0 | BO18: 0 | BP18: 0 | BQ18: 0 | BR18: 385.07 | BS18: 385.07 | BT18: 385.07 | BU18: 385.07 | BV18: 385.07 | BW18: 0 | BX18: 385.07 | BZ18: Potter | CA18: =MIN(IF((PriorPlansTable[Market]=$CA$6)*(PriorPlansTable[Metal]=CA$7)*(INDIRECT("PriorPlansTable["&$BZ18&"]")>0),INDIRECT("PriorPlansTable["&$BZ18&"]"))) -> 205.7 | CB18: =MIN(IF((PriorPlansTable[Market]=$CA$6)*(PriorPlansTable[Metal]=CB$7)*(INDIRECT("PriorPlansTable["&$BZ18&"]")>0),INDIRECT("PriorPlansTable["&$BZ18&"]"))) -> 205.78 | CC18: =MIN(IF((PriorPlansTable[Market]=$CA$6)*(PriorPlansTable[Metal]=CC$7)*(INDIRECT("PriorPlansTable["&$BZ18&"]")>0),INDIRECT("PriorPlansTable["&$BZ18&"]"))) -> 263.78 | CD18: =MIN(IF((PriorPlansTable[Market]=$CA$6)*(PriorPlansTable[Metal]=CD$7)*(INDIRECT("PriorPlansTable["&$BZ18&"]")>0),INDIRECT("PriorPlansTable["&$BZ18&"]"))) -> 332.61 | CE18: =MIN(IF((PriorPlansTable[Market]=$CA$6)*(PriorPlansTable[Metal]=CE$7)*(INDIRECT("PriorPlansTable["&$BZ18&"]")>0),INDIRECT("PriorPlansTable["&$BZ18&"]"))) -> 581.41 | CF18: =MIN(IF((PriorPlansTable[Market]=$CA$6)*(PriorPlansTable[Metal]="Silver")*(INDIRECT("PriorPlansTable["&$BZ18&"]")>CC18),INDIRECT("PriorPlansTable["&$BZ18&"]"))) -> 315.18 | CG18: =MIN(IF((PriorPlansTable[Market]=$CG$6)*(PriorPlansTable[Metal]=CG$7)*(INDIRECT("PriorPlansTable["&$BZ18&"]")>0),INDIRECT("PriorPlansTable["&$BZ18&"]"))) -> 0 | CH18: =MIN(IF((PriorPlansTable[Market]=$CG$6)*(PriorPlansTable[Metal]=CH$7)*(INDIRECT("PriorPlansTable["&$BZ18&"]")>0),INDIRECT("PriorPlansTable["&$BZ18&"]"))) -> 189.44 | CI18: =MIN(IF((PriorPlansTable[Market]=$CG$6)*(PriorPlansTable[Metal]=CI$7)*(INDIRECT("PriorPlansTable["&$BZ18&"]")>0),INDIRECT("PriorPlansTable["&$BZ18&"]"))) -> 209.57 | CJ18: =MIN(IF((PriorPlansTable[Market]=$CG$6)*(PriorPlansTable[Metal]=CJ$7)*(INDIRECT("PriorPlansTable["&$BZ18&"]")>0),INDIRECT("PriorPlansTable["&$BZ18&"]"))) -> 246.05 | CK18: =MIN(IF((PriorPlansTable[Market]=$CG$6)*(PriorPlansTable[Metal]=CK$7)*(INDIRECT("PriorPlansTable["&$BZ18&"]")>0),INDIRECT("PriorPlansTable["&$BZ18&"]"))) -> 328.68 | CL18: =MIN(IF((PriorPlansTable[Market]=$CG$6)*(PriorPlansTable[Metal]="Silver")*(INDIRECT("PriorPlansTable["&$BZ18&"]")>CI18),INDIRECT("PriorPlansTable["&$BZ18&"]"))) -> 209.75
B19: Capital Blue Cross | C19: Capital Advantage Assurance Company | D19: Small Group | E19: 45127PA0010054 | F19: Platinum PPO 0/0/15 | Rx 250 | G19: PPO | H19: Platinum | I19: Off | J19: 0 | K19: 0 | L19: 0 | M19: 0 | N19: 0 | O19: 0 | P19: 0 | Q19: 0 | R19: 0 | S19: 0 | T19: 0 | U19: 0 | V19: 0 | W19: 0 | X19: 0 | Y19: 0 | Z19: 0 | AA19: 0 | AB19: 0 | AC19: 0 | AD19: 0 | AE19: 0 | AF19: 0 | AG19: 0 | AH19: 0 | AI19: 0 | AJ19: 0 | AK19: 0 | AL19: 0 | AM19: 0 | AN19: 0 | AO19: 0 | AP19: 0 | AQ19: 0 | AR19: 0 | AS19: 0 | AT19: 0 | AU19: 0 | AV19: 0 | AW19: 0 | AX19: 0 | AY19: 455.77 | AZ19: 455.77 | BA19: 455.77 | BB19: 455.77 | BC19: 455.77 | BD19: 455.77 | BE19: 455.77 | BF19: 455.77 | BG19: 455.77 | BH19: 455.77 | BI19: 469.44 | BJ19: 469.44 | BK19: 469.44 | BL19: 469.44 | BM19: 0 | BN19: 0 | BO19: 0 | BP19: 0 | BQ19: 0 | BR19: 492.23 | BS19: 492.23 | BT19: 492.23 | BU19: 492.23 | BV19: 492.23 | BW19: 492.23 | BX19: 492.23 | BZ19: Bradford | CA19: =MIN(IF((PriorPlansTable[Market]=$CA$6)*(PriorPlansTable[Metal]=CA$7)*(INDIRECT("PriorPlansTable["&$BZ19&"]")>0),INDIRECT("PriorPlansTable["&$BZ19&"]"))) -> 225.2 | CB19: =MIN(IF((PriorPlansTable[Market]=$CA$6)*(PriorPlansTable[Metal]=CB$7)*(INDIRECT("PriorPlansTable["&$BZ19&"]")>0),INDIRECT("PriorPlansTable["&$BZ19&"]"))) -> 270.35 | CC19: =MIN(IF((PriorPlansTable[Market]=$CA$6)*(PriorPlansTable[Metal]=CC$7)*(INDIRECT("PriorPlansTable["&$BZ19&"]")>0),INDIRECT("PriorPlansTable["&$BZ19&"]"))) -> 310.49 | CD19: =MIN(IF((PriorPlansTable[Market]=$CA$6)*(PriorPlansTable[Metal]=CD$7)*(INDIRECT("PriorPlansTable["&$BZ19&"]")>0),INDIRECT("PriorPlansTable["&$BZ19&"]"))) -> 391.22 | CE19: =MIN(IF((PriorPlansTable[Market]=$CA$6)*(PriorPlansTable[Metal]=CE$7)*(INDIRECT("PriorPlansTable["&$BZ19&"]")>0),INDIRECT("PriorPlansTable["&$BZ19&"]"))) -> 0 | CF19: =MIN(IF((PriorPlansTable[Market]=$CA$6)*(PriorPlansTable[Metal]="Silver")*(INDIRECT("PriorPlansTable["&$BZ19&"]")>CC19),INDIRECT("PriorPlansTable["&$BZ19&"]"))) -> 321.67 | CG19: =MIN(IF((PriorPlansTable[Market]=$CG$6)*(PriorPlansTable[Metal]=CG$7)*(INDIRECT("PriorPlansTable["&$BZ19&"]")>0),INDIRECT("PriorPlansTable["&$BZ19&"]"))) -> 0 | CH19: =MIN(IF((PriorPlansTable[Market]=$CG$6)*(PriorPlansTable[Metal]=CH$7)*(INDIRECT("PriorPlansTable["&$BZ19&"]")>0),INDIRECT("PriorPlansTable["&$BZ19&"]"))) -> 235.68 | CI19: =MIN(IF((PriorPlansTable[Market]=$CG$6)*(PriorPlansTable[Metal]=CI$7)*(INDIRECT("PriorPlansTable["&$BZ19&"]")>0),INDIRECT("PriorPlansTable["&$BZ19&"]"))) -> 262.77 | CJ19: =MIN(IF((PriorPlansTable[Market]=$CG$6)*(PriorPlansTable[Metal]=CJ$7)*(INDIRECT("PriorPlansTable["&$BZ19&"]")>0),INDIRECT("PriorPlansTable["&$BZ19&"]"))) -> 290.83 | CK19: =MIN(IF((PriorPlansTable[Market]=$CG$6)*(PriorPlansTable[Metal]=CK$7)*(INDIRECT("PriorPlansTable["&$BZ19&"]")>0),INDIRECT("PriorPlansTable["&$BZ19&"]"))) -> 358.63 | CL19: =MIN(IF((PriorPlansTable[Market]=$CG$6)*(PriorPlansTable[Metal]="Silver")*(INDIRECT("PriorPlansTable["&$BZ19&"]")>CI19),INDIRECT("PriorPlansTable["&$BZ19&"]"))) -> 262.92
B20: Capital Blue Cross | C20: Capital Advantage Assurance Company | D20: Small Group | E20: 45127PA0010055 | F20: Platinum PPO 0/0/15 | Rx 0 | G20: PPO | H20: Platinum | I20: Off | J20: 0 | K20: 0 | L20: 0 | M20: 0 | N20: 0 | O20: 0 | P20: 0 | Q20: 0 | R20: 0 | S20: 0 | T20: 0 | U20: 0 | V20: 0 | W20: 0 | X20: 0 | Y20: 0 | Z20: 0 | AA20: 0 | AB20: 0 | AC20: 0 | AD20: 0 | AE20: 0 | AF20: 0 | AG20: 0 | AH20: 0 | AI20: 0 | AJ20: 0 | AK20: 0 | AL20: 0 | AM20: 0 | AN20: 0 | AO20: 0 | AP20: 0 | AQ20: 0 | AR20: 0 | AS20: 0 | AT20: 0 | AU20: 0 | AV20: 0 | AW20: 0 | AX20: 0 | AY20: 462.4 | AZ20: 462.4 | BA20: 462.4 | BB20: 462.4 | BC20: 462.4 | BD20: 462.4 | BE20: 462.4 | BF20: 462.4 | BG20: 462.4 | BH20: 462.4 | BI20: 476.27 | BJ20: 476.27 | BK20: 476.27 | BL20: 476.27 | BM20: 0 | BN20: 0 | BO20: 0 | BP20: 0 | BQ20: 0 | BR20: 499.39 | BS20: 499.39 | BT20: 499.39 | BU20: 499.39 | BV20: 499.39 | BW20: 499.39 | BX20: 499.39 | BZ20: Carbon | CA20: =MIN(IF((PriorPlansTable[Market]=$CA$6)*(PriorPlansTable[Metal]=CA$7)*(INDIRECT("PriorPlansTable["&$BZ20&"]")>0),INDIRECT("PriorPlansTable["&$BZ20&"]"))) -> 225.2 | CB20: =MIN(IF((PriorPlansTable[Market]=$CA$6)*(PriorPlansTable[Metal]=CB$7)*(INDIRECT("PriorPlansTable["&$BZ20&"]")>0),INDIRECT("PriorPlansTable["&$BZ20&"]"))) -> 270.35 | CC20: =MIN(IF((PriorPlansTable[Market]=$CA$6)*(PriorPlansTable[Metal]=CC$7)*(INDIRECT("PriorPlansTable["&$BZ20&"]")>0),INDIRECT("PriorPlansTable["&$BZ20&"]"))) -> 310.49 | CD20: =MIN(IF((PriorPlansTable[Market]=$CA$6)*(PriorPlansTable[Metal]=CD$7)*(INDIRECT("PriorPlansTable["&$BZ20&"]")>0),INDIRECT("PriorPlansTable["&$BZ20&"]"))) -> 391.22 | CE20: =MIN(IF((PriorPlansTable[Market]=$CA$6)*(PriorPlansTable[Metal]=CE$7)*(INDIRECT("PriorPlansTable["&$BZ20&"]")>0),INDIRECT("PriorPlansTable["&$BZ20&"]"))) -> 0 | CF20: =MIN(IF((PriorPlansTable[Market]=$CA$6)*(PriorPlansTable[Metal]="Silver")*(INDIRECT("PriorPlansTable["&$BZ20&"]")>CC20),INDIRECT("PriorPlansTable["&$BZ20&"]"))) -> 321.67 | CG20: =MIN(IF((PriorPlansTable[Market]=$CG$6)*(PriorPlansTable[Metal]=CG$7)*(INDIRECT("PriorPlansTable["&$BZ20&"]")>0),INDIRECT("PriorPlansTable["&$BZ20&"]"))) -> 0 | CH20: =MIN(IF((PriorPlansTable[Market]=$CG$6)*(PriorPlansTable[Metal]=CH$7)*(INDIRECT("PriorPlansTable["&$BZ20&"]")>0),INDIRECT("PriorPlansTable["&$BZ20&"]"))) -> 235.68 | CI20: =MIN(IF((PriorPlansTable[Market]=$CG$6)*(PriorPlansTable[Metal]=CI$7)*(INDIRECT("PriorPlansTable["&$BZ20&"]")>0),INDIRECT("PriorPlansTable["&$BZ20&"]"))) -> 262.77 | CJ20: =MIN(IF((PriorPlansTable[Market]=$CG$6)*(PriorPlansTable[Metal]=CJ$7)*(INDIRECT("PriorPlansTable["&$BZ20&"]")>0),INDIRECT("PriorPlansTable["&$BZ20&"]"))) -> 290.83 | CK20: =MIN(IF((PriorPlansTable[Market]=$CG$6)*(PriorPlansTable[Metal]=CK$7)*(INDIRECT("PriorPlansTable["&$BZ20&"]")>0),INDIRECT("PriorPlansTable["&$BZ20&"]"))) -> 358.63 | CL20: =MIN(IF((PriorPlansTable[Market]=$CG$6)*(PriorPlansTable[Metal]="Silver")*(INDIRECT("PriorPlansTable["&$BZ20&"]")>CI20),INDIRECT("PriorPlansTable["&$BZ20&"]"))) -> 262.92
B21: Capital Blue Cross | C21: Capital Advantage Assurance Company | D21: Small Group | E21: 45127PA0010057 | F21: Platinum PPO 250/0/15 | Rx 250 | G21: PPO | H21: Platinum | I21: Off | J21: 0 | K21: 0 | L21: 0 | M21: 0 | N21: 0 | O21: 0 | P21: 0 | Q21: 0 | R21: 0 | S21: 0 | T21: 0 | U21: 0 | V21: 0 | W21: 0 | X21: 0 | Y21: 0 | Z21: 0 | AA21: 0 | AB21: 0 | AC21: 0 | AD21: 0 | AE21: 0 | AF21: 0 | AG21: 0 | AH21: 0 | AI21: 0 | AJ21: 0 | AK21: 0 | AL21: 0 | AM21: 0 | AN21: 0 | AO21: 0 | AP21: 0 | AQ21: 0 | AR21: 0 | AS21: 0 | AT21: 0 | AU21: 0 | AV21: 0 | AW21: 0 | AX21: 0 | AY21: 436.8 | AZ21: 436.8 | BA21: 436.8 | BB21: 436.8 | BC21: 436.8 | BD21: 436.8 | BE21: 436.8 | BF21: 436.8 | BG21: 436.8 | BH21: 436.8 | BI21: 449.9 | BJ21: 449.9 | BK21: 449.9 | BL21: 449.9 | BM21: 0 | BN21: 0 | BO21: 0 | BP21: 0 | BQ21: 0 | BR21: 471.74 | BS21: 471.74 | BT21: 471.74 | BU21: 471.74 | BV21: 471.74 | BW21: 471.74 | BX21: 471.74 | BZ21: Clinton | CA21: =MIN(IF((PriorPlansTable[Market]=$CA$6)*(PriorPlansTable[Metal]=CA$7)*(INDIRECT("PriorPlansTable["&$BZ21&"]")>0),INDIRECT("PriorPlansTable["&$BZ21&"]"))) -> 225.2 | CB21: =MIN(IF((PriorPlansTable[Market]=$CA$6)*(PriorPlansTable[Metal]=CB$7)*(INDIRECT("PriorPlansTable["&$BZ21&"]")>0),INDIRECT("PriorPlansTable["&$BZ21&"]"))) -> 256.83 | CC21: =MIN(IF((PriorPlansTable[Market]=$CA$6)*(PriorPlansTable[Metal]=CC$7)*(INDIRECT("PriorPlansTable["&$BZ21&"]")>0),INDIRECT("PriorPlansTable["&$BZ21&"]"))) -> 310.49 | CD21: =MIN(IF((PriorPlansTable[Market]=$CA$6)*(PriorPlansTable[Metal]=CD$7)*(INDIRECT("PriorPlansTable["&$BZ21&"]")>0),INDIRECT("PriorPlansTable["&$BZ21&"]"))) -> 363.65 | CE21: =MIN(IF((PriorPlansTable[Market]=$CA$6)*(PriorPlansTable[Metal]=CE$7)*(INDIRECT("PriorPlansTable["&$BZ21&"]")>0),INDIRECT("PriorPlansTable["&$BZ21&"]"))) -> 0 | CF21: =MIN(IF((PriorPlansTable[Market]=$CA$6)*(PriorPlansTable[Metal]="Silver")*(INDIRECT("PriorPlansTable["&$BZ21&"]")>CC21),INDIRECT("PriorPlansTable["&$BZ21&"]"))) -> 321.67 | CG21: =MIN(IF((PriorPlansTable[Market]=$CG$6)*(PriorPlansTable[Metal]=CG$7)*(INDIRECT("PriorPlansTable["&$BZ21&"]")>0),INDIRECT("PriorPlansTable["&$BZ21&"]"))) -> 0 | CH21: =MIN(IF((PriorPlansTable[Market]=$CG$6)*(PriorPlansTable[Metal]=CH$7)*(INDIRECT("PriorPlansTable["&$BZ21&"]")>0),INDIRECT("PriorPlansTable["&$BZ21&"]"))) -> 235.68 | CI21: =MIN(IF((PriorPlansTable[Market]=$CG$6)*(PriorPlansTable[Metal]=CI$7)*(INDIRECT("PriorPlansTable["&$BZ21&"]")>0),INDIRECT("PriorPlansTable["&$BZ21&"]"))) -> 262.77 | CJ21: =MIN(IF((PriorPlansTable[Market]=$CG$6)*(PriorPlansTable[Metal]=CJ$7)*(INDIRECT("PriorPlansTable["&$BZ21&"]")>0),INDIRECT("PriorPlansTable["&$BZ21&"]"))) -> 290.83 | CK21: =MIN(IF((PriorPlansTable[Market]=$CG$6)*(PriorPlansTable[Metal]=CK$7)*(INDIRECT("PriorPlansTable["&$BZ21&"]")>0),INDIRECT("PriorPlansTable["&$BZ21&"]"))) -> 358.63 | CL21: =MIN(IF((PriorPlansTable[Market]=$CG$6)*(PriorPlansTable[Metal]="Silver")*(INDIRECT("PriorPlansTable["&$BZ21&"]")>CI21),INDIRECT("PriorPlansTable["&$BZ21&"]"))) -> 262.92
B22: Capital Blue Cross | C22: Capital Advantage Assurance Company | D22: Small Group | E22: 45127PA0010058 | F22: Platinum PPO 250/0/15 | Rx 0 | G22: PPO | H22: Platinum | I22: Off | J22: 0 | K22: 0 | L22: 0 | M22: 0 | N22: 0 | O22: 0 | P22: 0 | Q22: 0 | R22: 0 | S22: 0 | T22: 0 | U22: 0 | V22: 0 | W22: 0 | X22: 0 | Y22: 0 | Z22: 0 | AA22: 0 | AB22: 0 | AC22: 0 | AD22: 0 | AE22: 0 | AF22: 0 | AG22: 0 | AH22: 0 | AI22: 0 | AJ22: 0 | AK22: 0 | AL22: 0 | AM22: 0 | AN22: 0 | AO22: 0 | AP22: 0 | AQ22: 0 | AR22: 0 | AS22: 0 | AT22: 0 | AU22: 0 | AV22: 0 | AW22: 0 | AX22: 0 | AY22: 443.43 | AZ22: 443.43 | BA22: 443.43 | BB22: 443.43 | BC22: 443.43 | BD22: 443.43 | BE22: 443.43 | BF22: 443.43 | BG22: 443.43 | BH22: 443.43 | BI22: 456.73 | BJ22: 456.73 | BK22: 456.73 | BL22: 456.73 | BM22: 0 | BN22: 0 | BO22: 0 | BP22: 0 | BQ22: 0 | BR22: 478.9 | BS22: 478.9 | BT22: 478.9 | BU22: 478.9 | BV22: 478.9 | BW22: 478.9 | BX22: 478.9 | BZ22: Lackawanna | CA22: =MIN(IF((PriorPlansTable[Market]=$CA$6)*(PriorPlansTable[Metal]=CA$7)*(INDIRECT("PriorPlansTable["&$BZ22&"]")>0),INDIRECT("PriorPlansTable["&$BZ22&"]"))) -> 225.2 | CB22: =MIN(IF((PriorPlansTable[Market]=$CA$6)*(PriorPlansTable[Metal]=CB$7)*(INDIRECT("PriorPlansTable["&$BZ22&"]")>0),INDIRECT("PriorPlansTable["&$BZ22&"]"))) -> 270.35 | CC22: =MIN(IF((PriorPlansTable[Market]=$CA$6)*(PriorPlansTable[Metal]=CC$7)*(INDIRECT("PriorPlansTable["&$BZ22&"]")>0),INDIRECT("PriorPlansTable["&$BZ22&"]"))) -> 310.49 | CD22: =MIN(IF((PriorPlansTable[Market]=$CA$6)*(PriorPlansTable[Metal]=CD$7)*(INDIRECT("PriorPlansTable["&$BZ22&"]")>0),INDIRECT("PriorPlansTable["&$BZ22&"]"))) -> 363.65 | CE22: =MIN(IF((PriorPlansTable[Market]=$CA$6)*(PriorPlansTable[Metal]=CE$7)*(INDIRECT("PriorPlansTable["&$BZ22&"]")>0),INDIRECT("PriorPlansTable["&$BZ22&"]"))) -> 0 | CF22: =MIN(IF((PriorPlansTable[Market]=$CA$6)*(PriorPlansTable[Metal]="Silver")*(INDIRECT("PriorPlansTable["&$BZ22&"]")>CC22),INDIRECT("PriorPlansTable["&$BZ22&"]"))) -> 321.67 | CG22: =MIN(IF((PriorPlansTable[Market]=$CG$6)*(PriorPlansTable[Metal]=CG$7)*(INDIRECT("PriorPlansTable["&$BZ22&"]")>0),INDIRECT("PriorPlansTable["&$BZ22&"]"))) -> 0 | CH22: =MIN(IF((PriorPlansTable[Market]=$CG$6)*(PriorPlansTable[Metal]=CH$7)*(INDIRECT("PriorPlansTable["&$BZ22&"]")>0),INDIRECT("PriorPlansTable["&$BZ22&"]"))) -> 235.68 | CI22: =MIN(IF((PriorPlansTable[Market]=$CG$6)*(PriorPlansTable[Metal]=CI$7)*(INDIRECT("PriorPlansTable["&$BZ22&"]")>0),INDIRECT("PriorPlansTable["&$BZ22&"]"))) -> 262.77 | CJ22: =MIN(IF((PriorPlansTable[Market]=$CG$6)*(PriorPlansTable[Metal]=CJ$7)*(INDIRECT("PriorPlansTable["&$BZ22&"]")>0),INDIRECT("PriorPlansTable["&$BZ22&"]"))) -> 290.83 | CK22: =MIN(IF((PriorPlansTable[Market]=$CG$6)*(PriorPlansTable[Metal]=CK$7)*(INDIRECT("PriorPlansTable["&$BZ22&"]")>0),INDIRECT("PriorPlansTable["&$BZ22&"]"))) -> 358.63 | CL22: =MIN(IF((PriorPlansTable[Market]=$CG$6)*(PriorPlansTable[Metal]="Silver")*(INDIRECT("PriorPlansTable["&$BZ22&"]")>CI22),INDIRECT("PriorPlansTable["&$BZ22&"]"))) -> 262.92
B23: Capital Blue Cross | C23: Capital Advantage Assurance Company | D23: Small Group | E23: 45127PA0010069 | F23: Gold PPO HRA 3000/0/45 - 800 | Rx 250 | G23: PPO | H23: Gold | I23: Off | J23: 0 | K23: 0 | L23: 0 | M23: 0 | N23: 0 | O23: 0 | P23: 0 | Q23: 0 | R23: 0 | S23: 0 | T23: 0 | U23: 0 | V23: 0 | W23: 0 | X23: 0 | Y23: 0 | Z23: 0 | AA23: 0 | AB23: 0 | AC23: 0 | AD23: 0 | AE23: 0 | AF23: 0 | AG23: 0 | AH23: 0 | AI23: 0 | AJ23: 0 | AK23: 0 | AL23: 0 | AM23: 0 | AN23: 0 | AO23: 0 | AP23: 0 | AQ23: 0 | AR23: 0 | AS23: 0 | AT23: 0 | AU23: 0 | AV23: 0 | AW23: 0 | AX23: 0 | AY23: 345.49 | AZ23: 345.49 | BA23: 345.49 | BB23: 345.49 | BC23: 345.49 | BD23: 345.49 | BE23: 345.49 | BF23: 345.49 | BG23: 345.49 | BH23: 345.49 | BI23: 355.85 | BJ23: 355.85 | BK23: 355.85 | BL23: 355.85 | BM23: 0 | BN23: 0 | BO23: 0 | BP23: 0 | BQ23: 0 | BR23: 373.13 | BS23: 373.13 | BT23: 373.13 | BU23: 373.13 | BV23: 373.13 | BW23: 373.13 | BX23: 373.13 | BZ23: Luzerne | CA23: =MIN(IF((PriorPlansTable[Market]=$CA$6)*(PriorPlansTable[Metal]=CA$7)*(INDIRECT("PriorPlansTable["&$BZ23&"]")>0),INDIRECT("PriorPlansTable["&$BZ23&"]"))) -> 225.2 | CB23: =MIN(IF((PriorPlansTable[Market]=$CA$6)*(PriorPlansTable[Metal]=CB$7)*(INDIRECT("PriorPlansTable["&$BZ23&"]")>0),INDIRECT("PriorPlansTable["&$BZ23&"]"))) -> 256.83 | CC23: =MIN(IF((PriorPlansTable[Market]=$CA$6)*(PriorPlansTable[Metal]=CC$7)*(INDIRECT("PriorPlansTable["&$BZ23&"]")>0),INDIRECT("PriorPlansTable["&$BZ23&"]"))) -> 310.49 | CD23: =MIN(IF((PriorPlansTable[Market]=$CA$6)*(PriorPlansTable[Metal]=CD$7)*(INDIRECT("PriorPlansTable["&$BZ23&"]")>0),INDIRECT("PriorPlansTable["&$BZ23&"]"))) -> 363.65 | CE23: =MIN(IF((PriorPlansTable[Market]=$CA$6)*(PriorPlansTable[Metal]=CE$7)*(INDIRECT("PriorPlansTable["&$BZ23&"]")>0),INDIRECT("PriorPlansTable["&$BZ23&"]"))) -> 0 | CF23: =MIN(IF((PriorPlansTable[Market]=$CA$6)*(PriorPlansTable[Metal]="Silver")*(INDIRECT("PriorPlansTable["&$BZ23&"]")>CC23),INDIRECT("PriorPlansTable["&$BZ23&"]"))) -> 321.67 | CG23: =MIN(IF((PriorPlansTable[Market]=$CG$6)*(PriorPlansTable[Metal]=CG$7)*(INDIRECT("PriorPlansTable["&$BZ23&"]")>0),INDIRECT("PriorPlansTable["&$BZ23&"]"))) -> 0 | CH23: =MIN(IF((PriorPlansTable[Market]=$CG$6)*(PriorPlansTable[Metal]=CH$7)*(INDIRECT("PriorPlansTable["&$BZ23&"]")>0),INDIRECT("PriorPlansTable["&$BZ23&"]"))) -> 235.68 | CI23: =MIN(IF((PriorPlansTable[Market]=$CG$6)*(PriorPlansTable[Metal]=CI$7)*(INDIRECT("PriorPlansTable["&$BZ23&"]")>0),INDIRECT("PriorPlansTable["&$BZ23&"]"))) -> 262.77 | CJ23: =MIN(IF((PriorPlansTable[Market]=$CG$6)*(PriorPlansTable[Metal]=CJ$7)*(INDIRECT("PriorPlansTable["&$BZ23&"]")>0),INDIRECT("PriorPlansTable["&$BZ23&"]"))) -> 290.83 | CK23: =MIN(IF((PriorPlansTable[Market]=$CG$6)*(PriorPlansTable[Metal]=CK$7)*(INDIRECT("PriorPlansTable["&$BZ23&"]")>0),INDIRECT("PriorPlansTable["&$BZ23&"]"))) -> 358.63 | CL23: =MIN(IF((PriorPlansTable[Market]=$CG$6)*(PriorPlansTable[Metal]="Silver")*(INDIRECT("PriorPlansTable["&$BZ23&"]")>CI23),INDIRECT("PriorPlansTable["&$BZ23&"]"))) -> 262.92
B24: Capital Blue Cross | C24: Capital Advantage Assurance Company | D24: Small Group | E24: 45127PA0010070 | F24: Gold PPO HRA 3000/0/45 - 800 | Rx 0 | G24: PPO | H24: Gold | I24: Off | J24: 0 | K24: 0 | L24: 0 | M24: 0 | N24: 0 | O24: 0 | P24: 0 | Q24: 0 | R24: 0 | S24: 0 | T24: 0 | U24: 0 | V24: 0 | W24: 0 | X24: 0 | Y24: 0 | Z24: 0 | AA24: 0 | AB24: 0 | AC24: 0 | AD24: 0 | AE24: 0 | AF24: 0 | AG24: 0 | AH24: 0 | AI24: 0 | AJ24: 0 | AK24: 0 | AL24: 0 | AM24: 0 | AN24: 0 | AO24: 0 | AP24: 0 | AQ24: 0 | AR24: 0 | AS24: 0 | AT24: 0 | AU24: 0 | AV24: 0 | AW24: 0 | AX24: 0 | AY24: 352.12 | AZ24: 352.12 | BA24: 352.12 | BB24: 352.12 | BC24: 352.12 | BD24: 352.12 | BE24: 352.12 | BF24: 352.12 | BG24: 352.12 | BH24: 352.12 | BI24: 362.68 | BJ24: 362.68 | BK24: 362.68 | BL24: 362.68 | BM24: 0 | BN24: 0 | BO24: 0 | BP24: 0 | BQ24: 0 | BR24: 380.29 | BS24: 380.29 | BT24: 380.29 | BU24: 380.29 | BV24: 380.29 | BW24: 380.29 | BX24: 380.29 | BZ24: Lycoming | CA24: =MIN(IF((PriorPlansTable[Market]=$CA$6)*(PriorPlansTable[Metal]=CA$7)*(INDIRECT("PriorPlansTable["&$BZ24&"]")>0),INDIRECT("PriorPlansTable["&$BZ24&"]"))) -> 205.89 | CB24: =MIN(IF((PriorPlansTable[Market]=$CA$6)*(PriorPlansTable[Metal]=CB$7)*(INDIRECT("PriorPlansTable["&$BZ24&"]")>0),INDIRECT("PriorPlansTable["&$BZ24&"]"))) -> 240.45 | CC24: =MIN(IF((PriorPlansTable[Market]=$CA$6)*(PriorPlansTable[Metal]=CC$7)*(INDIRECT("PriorPlansTable["&$BZ24&"]")>0),INDIRECT("PriorPlansTable["&$BZ24&"]"))) -> 264.01 | CD24: =MIN(IF((PriorPlansTable[Market]=$CA$6)*(PriorPlansTable[Metal]=CD$7)*(INDIRECT("PriorPlansTable["&$BZ24&"]")>0),INDIRECT("PriorPlansTable["&$BZ24&"]"))) -> 332.92 | CE24: =MIN(IF((PriorPlansTable[Market]=$CA$6)*(PriorPlansTable[Metal]=CE$7)*(INDIRECT("PriorPlansTable["&$BZ24&"]")>0),INDIRECT("PriorPlansTable["&$BZ24&"]"))) -> 581.95 | CF24: =MIN(IF((PriorPlansTable[Market]=$CA$6)*(PriorPlansTable[Metal]="Silver")*(INDIRECT("PriorPlansTable["&$BZ24&"]")>CC24),INDIRECT("PriorPlansTable["&$BZ24&"]"))) -> 310.49 | CG24: =MIN(IF((PriorPlansTable[Market]=$CG$6)*(PriorPlansTable[Metal]=CG$7)*(INDIRECT("PriorPlansTable["&$BZ24&"]")>0),INDIRECT("PriorPlansTable["&$BZ24&"]"))) -> 0 | CH24: =MIN(IF((PriorPlansTable[Market]=$CG$6)*(PriorPlansTable[Metal]=CH$7)*(INDIRECT("PriorPlansTable["&$BZ24&"]")>0),INDIRECT("PriorPlansTable["&$BZ24&"]"))) -> 235.68 | CI24: =MIN(IF((PriorPlansTable[Market]=$CG$6)*(PriorPlansTable[Metal]=CI$7)*(INDIRECT("PriorPlansTable["&$BZ24&"]")>0),INDIRECT("PriorPlansTable["&$BZ24&"]"))) -> 262.77 | CJ24: =MIN(IF((PriorPlansTable[Market]=$CG$6)*(PriorPlansTable[Metal]=CJ$7)*(INDIRECT("PriorPlansTable["&$BZ24&"]")>0),INDIRECT("PriorPlansTable["&$BZ24&"]"))) -> 290.83 | CK24: =MIN(IF((PriorPlansTable[Market]=$CG$6)*(PriorPlansTable[Metal]=CK$7)*(INDIRECT("PriorPlansTable["&$BZ24&"]")>0),INDIRECT("PriorPlansTable["&$BZ24&"]"))) -> 358.63 | CL24: =MIN(IF((PriorPlansTable[Market]=$CG$6)*(PriorPlansTable[Metal]="Silver")*(INDIRECT("PriorPlansTable["&$BZ24&"]")>CI24),INDIRECT("PriorPlansTable["&$BZ24&"]"))) -> 262.92
B25: Capital Blue Cross | C25: Capital Advantage Assurance Company | D25: Small Group | E25: 45127PA0010084 | F25: Gold PPO 1000/0/25 | Rx 250 | G25: PPO | H25: Gold | I25: Off | J25: 0 | K25: 0 | L25: 0 | M25: 0 | N25: 0 | O25: 0 | P25: 0 | Q25: 0 | R25: 0 | S25: 0 | T25: 0 | U25: 0 | V25: 0 | W25: 0 | X25: 0 | Y25: 0 | Z25: 0 | AA25: 0 | AB25: 0 | AC25: 0 | AD25: 0 | AE25: 0 | AF25: 0 | AG25: 0 | AH25: 0 | AI25: 0 | AJ25: 0 | AK25: 0 | AL25: 0 | AM25: 0 | AN25: 0 | AO25: 0 | AP25: 0 | AQ25: 0 | AR25: 0 | AS25: 0 | AT25: 0 | AU25: 0 | AV25: 0 | AW25: 0 | AX25: 0 | AY25: 400.94 | AZ25: 400.94 | BA25: 400.94 | BB25: 400.94 | BC25: 400.94 | BD25: 400.94 | BE25: 400.94 | BF25: 400.94 | BG25: 400.94 | BH25: 400.94 | BI25: 412.97 | BJ25: 412.97 | BK25: 412.97 | BL25: 412.97 | BM25: 0 | BN25: 0 | BO25: 0 | BP25: 0 | BQ25: 0 | BR25: 433.02 | BS25: 433.02 | BT25: 433.02 | BU25: 433.02 | BV25: 433.02 | BW25: 433.02 | BX25: 433.02 | BZ25: Monroe | CA25: =MIN(IF((PriorPlansTable[Market]=$CA$6)*(PriorPlansTable[Metal]=CA$7)*(INDIRECT("PriorPlansTable["&$BZ25&"]")>0),INDIRECT("PriorPlansTable["&$BZ25&"]"))) -> 225.2 | CB25: =MIN(IF((PriorPlansTable[Market]=$CA$6)*(PriorPlansTable[Metal]=CB$7)*(INDIRECT("PriorPlansTable["&$BZ25&"]")>0),INDIRECT("PriorPlansTable["&$BZ25&"]"))) -> 270.35 | CC25: =MIN(IF((PriorPlansTable[Market]=$CA$6)*(PriorPlansTable[Metal]=CC$7)*(INDIRECT("PriorPlansTable["&$BZ25&"]")>0),INDIRECT("PriorPlansTable["&$BZ25&"]"))) -> 310.49 | CD25: =MIN(IF((PriorPlansTable[Market]=$CA$6)*(PriorPlansTable[Metal]=CD$7)*(INDIRECT("PriorPlansTable["&$BZ25&"]")>0),INDIRECT("PriorPlansTable["&$BZ25&"]"))) -> 363.65 | CE25: =MIN(IF((PriorPlansTable[Market]=$CA$6)*(PriorPlansTable[Metal]=CE$7)*(INDIRECT("PriorPlansTable["&$BZ25&"]")>0),INDIRECT("PriorPlansTable["&$BZ25&"]"))) -> 0 | CF25: =MIN(IF((PriorPlansTable[Market]=$CA$6)*(PriorPlansTable[Metal]="Silver")*(INDIRECT("PriorPlansTable["&$BZ25&"]")>CC25),INDIRECT("PriorPlansTable["&$BZ25&"]"))) -> 321.67 | CG25: =MIN(IF((PriorPlansTable[Market]=$CG$6)*(PriorPlansTable[Metal]=CG$7)*(INDIRECT("PriorPlansTable["&$BZ25&"]")>0),INDIRECT("PriorPlansTable["&$BZ25&"]"))) -> 0 | CH25: =MIN(IF((PriorPlansTable[Market]=$CG$6)*(PriorPlansTable[Metal]=CH$7)*(INDIRECT("PriorPlansTable["&$BZ25&"]")>0),INDIRECT("PriorPlansTable["&$BZ25&"]"))) -> 235.68 | CI25: =MIN(IF((PriorPlansTable[Market]=$CG$6)*(PriorPlansTable[Metal]=CI$7)*(INDIRECT("PriorPlansTable["&$BZ25&"]")>0),INDIRECT("PriorPlansTable["&$BZ25&"]"))) -> 262.77 | CJ25: =MIN(IF((PriorPlansTable[Market]=$CG$6)*(PriorPlansTable[Metal]=CJ$7)*(INDIRECT("PriorPlansTable["&$BZ25&"]")>0),INDIRECT("PriorPlansTable["&$BZ25&"]"))) -> 290.83 | CK25: =MIN(IF((PriorPlansTable[Market]=$CG$6)*(PriorPlansTable[Metal]=CK$7)*(INDIRECT("PriorPlansTable["&$BZ25&"]")>0),INDIRECT("PriorPlansTable["&$BZ25&"]"))) -> 358.63 | CL25: =MIN(IF((PriorPlansTable[Market]=$CG$6)*(PriorPlansTable[Metal]="Silver")*(INDIRECT("PriorPlansTable["&$BZ25&"]")>CI25),INDIRECT("PriorPlansTable["&$BZ25&"]"))) -> 262.92
B26: Capital Blue Cross | C26: Capital Advantage Assurance Company | D26: Small Group | E26: 45127PA0010085 | F26: Gold PPO 1000/0/25 | Rx 0 | G26: PPO | H26: Gold | I26: Off | J26: 0 | K26: 0 | L26: 0 | M26: 0 | N26: 0 | O26: 0 | P26: 0 | Q26: 0 | R26: 0 | S26: 0 | T26: 0 | U26: 0 | V26: 0 | W26: 0 | X26: 0 | Y26: 0 | Z26: 0 | AA26: 0 | AB26: 0 | AC26: 0 | AD26: 0 | AE26: 0 | AF26: 0 | AG26: 0 | AH26: 0 | AI26: 0 | AJ26: 0 | AK26: 0 | AL26: 0 | AM26: 0 | AN26: 0 | AO26: 0 | AP26: 0 | AQ26: 0 | AR26: 0 | AS26: 0 | AT26: 0 | AU26: 0 | AV26: 0 | AW26: 0 | AX26: 0 | AY26: 407.58 | AZ26: 407.58 | BA26: 407.58 | BB26: 407.58 | BC26: 407.58 | BD26: 407.58 | BE26: 407.58 | BF26: 407.58 | BG26: 407.58 | BH26: 407.58 | BI26: 419.81 | BJ26: 419.81 | BK26: 419.81 | BL26: 419.81 | BM26: 0 | BN26: 0 | BO26: 0 | BP26: 0 | BQ26: 0 | BR26: 440.19 | BS26: 440.19 | BT26: 440.19 | BU26: 440.19 | BV26: 440.19 | BW26: 440.19 | BX26: 440.19 | BZ26: Pike | CA26: =MIN(IF((PriorPlansTable[Market]=$CA$6)*(PriorPlansTable[Metal]=CA$7)*(INDIRECT("PriorPlansTable["&$BZ26&"]")>0),INDIRECT("PriorPlansTable["&$BZ26&"]"))) -> 225.2 | CB26: =MIN(IF((PriorPlansTable[Market]=$CA$6)*(PriorPlansTable[Metal]=CB$7)*(INDIRECT("PriorPlansTable["&$BZ26&"]")>0),INDIRECT("PriorPlansTable["&$BZ26&"]"))) -> 270.35 | CC26: =MIN(IF((PriorPlansTable[Market]=$CA$6)*(PriorPlansTable[Metal]=CC$7)*(INDIRECT("PriorPlansTable["&$BZ26&"]")>0),INDIRECT("PriorPlansTable["&$BZ26&"]"))) -> 310.49 | CD26: =MIN(IF((PriorPlansTable[Market]=$CA$6)*(PriorPlansTable[Metal]=CD$7)*(INDIRECT("PriorPlansTable["&$BZ26&"]")>0),INDIRECT("PriorPlansTable["&$BZ26&"]"))) -> 391.22 | CE26: =MIN(IF((PriorPlansTable[Market]=$CA$6)*(PriorPlansTable[Metal]=CE$7)*(INDIRECT("PriorPlansTable["&$BZ26&"]")>0),INDIRECT("PriorPlansTable["&$BZ26&"]"))) -> 0 | CF26: =MIN(IF((PriorPlansTable[Market]=$CA$6)*(PriorPlansTable[Metal]="Silver")*(INDIRECT("PriorPlansTable["&$BZ26&"]")>CC26),INDIRECT("PriorPlansTable["&$BZ26&"]"))) -> 321.67 | CG26: =MIN(IF((PriorPlansTable[Market]=$CG$6)*(PriorPlansTable[Metal]=CG$7)*(INDIRECT("PriorPlansTable["&$BZ26&"]")>0),INDIRECT("PriorPlansTable["&$BZ26&"]"))) -> 0 | CH26: =MIN(IF((PriorPlansTable[Market]=$CG$6)*(PriorPlansTable[Metal]=CH$7)*(INDIRECT("PriorPlansTable["&$BZ26&"]")>0),INDIRECT("PriorPlansTable["&$BZ26&"]"))) -> 235.68 | CI26: =MIN(IF((PriorPlansTable[Market]=$CG$6)*(PriorPlansTable[Metal]=CI$7)*(INDIRECT("PriorPlansTable["&$BZ26&"]")>0),INDIRECT("PriorPlansTable["&$BZ26&"]"))) -> 262.77 | CJ26: =MIN(IF((PriorPlansTable[Market]=$CG$6)*(PriorPlansTable[Metal]=CJ$7)*(INDIRECT("PriorPlansTable["&$BZ26&"]")>0),INDIRECT("PriorPlansTable["&$BZ26&"]"))) -> 290.83 | CK26: =MIN(IF((PriorPlansTable[Market]=$CG$6)*(PriorPlansTable[Metal]=CK$7)*(INDIRECT("PriorPlansTable["&$BZ26&"]")>0),INDIRECT("PriorPlansTable["&$BZ26&"]"))) -> 358.63 | CL26: =MIN(IF((PriorPlansTable[Market]=$CG$6)*(PriorPlansTable[Metal]="Silver")*(INDIRECT("PriorPlansTable["&$BZ26&"]")>CI26),INDIRECT("PriorPlansTable["&$BZ26&"]"))) -> 262.92
B27: Capital Blue Cross | C27: Capital Advantage Assurance Company | D27: Small Group | E27: 45127PA0010089 | F27: Gold PPO 2000/0/25 | Rx 250 | G27: PPO | H27: Gold | I27: Off | J27: 0 | K27: 0 | L27: 0 | M27: 0 | N27: 0 | O27: 0 | P27: 0 | Q27: 0 | R27: 0 | S27: 0 | T27: 0 | U27: 0 | V27: 0 | W27: 0 | X27: 0 | Y27: 0 | Z27: 0 | AA27: 0 | AB27: 0 | AC27: 0 | AD27: 0 | AE27: 0 | AF27: 0 | AG27: 0 | AH27: 0 | AI27: 0 | AJ27: 0 | AK27: 0 | AL27: 0 | AM27: 0 | AN27: 0 | AO27: 0 | AP27: 0 | AQ27: 0 | AR27: 0 | AS27: 0 | AT27: 0 | AU27: 0 | AV27: 0 | AW27: 0 | AX27: 0 | AY27: 376.6 | AZ27: 376.6 | BA27: 376.6 | BB27: 376.6 | BC27: 376.6 | BD27: 376.6 | BE27: 376.6 | BF27: 376.6 | BG27: 376.6 | BH27: 376.6 | BI27: 387.9 | BJ27: 387.9 | BK27: 387.9 | BL27: 387.9 | BM27: 0 | BN27: 0 | BO27: 0 | BP27: 0 | BQ27: 0 | BR27: 406.73 | BS27: 406.73 | BT27: 406.73 | BU27: 406.73 | BV27: 406.73 | BW27: 406.73 | BX27: 406.73 | BZ27: Sullivan | CA27: =MIN(IF((PriorPlansTable[Market]=$CA$6)*(PriorPlansTable[Metal]=CA$7)*(INDIRECT("PriorPlansTable["&$BZ27&"]")>0),INDIRECT("PriorPlansTable["&$BZ27&"]"))) -> 225.2 | CB27: =MIN(IF((PriorPlansTable[Market]=$CA$6)*(PriorPlansTable[Metal]=CB$7)*(INDIRECT("PriorPlansTable["&$BZ27&"]")>0),INDIRECT("PriorPlansTable["&$BZ27&"]"))) -> 256.83 | CC27: =MIN(IF((PriorPlansTable[Market]=$CA$6)*(PriorPlansTable[Metal]=CC$7)*(INDIRECT("PriorPlansTable["&$BZ27&"]")>0),INDIRECT("PriorPlansTable["&$BZ27&"]"))) -> 310.49 | CD27: =MIN(IF((PriorPlansTable[Market]=$CA$6)*(PriorPlansTable[Metal]=CD$7)*(INDIRECT("PriorPlansTable["&$BZ27&"]")>0),INDIRECT("PriorPlansTable["&$BZ27&"]"))) -> 371.66 | CE27: =MIN(IF((PriorPlansTable[Market]=$CA$6)*(PriorPlansTable[Metal]=CE$7)*(INDIRECT("PriorPlansTable["&$BZ27&"]")>0),INDIRECT("PriorPlansTable["&$BZ27&"]"))) -> 0 | CF27: =MIN(IF((PriorPlansTable[Market]=$CA$6)*(PriorPlansTable[Metal]="Silver")*(INDIRECT("PriorPlansTable["&$BZ27&"]")>CC27),INDIRECT("PriorPlansTable["&$BZ27&"]"))) -> 321.67 | CG27: =MIN(IF((PriorPlansTable[Market]=$CG$6)*(PriorPlansTable[Metal]=CG$7)*(INDIRECT("PriorPlansTable["&$BZ27&"]")>0),INDIRECT("PriorPlansTable["&$BZ27&"]"))) -> 0 | CH27: =MIN(IF((PriorPlansTable[Market]=$CG$6)*(PriorPlansTable[Metal]=CH$7)*(INDIRECT("PriorPlansTable["&$BZ27&"]")>0),INDIRECT("PriorPlansTable["&$BZ27&"]"))) -> 235.68 | CI27: =MIN(IF((PriorPlansTable[Market]=$CG$6)*(PriorPlansTable[Metal]=CI$7)*(INDIRECT("PriorPlansTable["&$BZ27&"]")>0),INDIRECT("PriorPlansTable["&$BZ27&"]"))) -> 262.77 | CJ27: =MIN(IF((PriorPlansTable[Market]=$CG$6)*(PriorPlansTable[Metal]=CJ$7)*(INDIRECT("PriorPlansTable["&$BZ27&"]")>0),INDIRECT("PriorPlansTable["&$BZ27&"]"))) -> 290.83 | CK27: =MIN(IF((PriorPlansTable[Market]=$CG$6)*(PriorPlansTable[Metal]=CK$7)*(INDIRECT("PriorPlansTable["&$BZ27&"]")>0),INDIRECT("PriorPlansTable["&$BZ27&"]"))) -> 358.63 | CL27: =MIN(IF((PriorPlansTable[Market]=$CG$6)*(PriorPlansTable[Metal]="Silver")*(INDIRECT("PriorPlansTable["&$BZ27&"]")>CI27),INDIRECT("PriorPlansTable["&$BZ27&"]"))) -> 262.92
B28: Capital Blue Cross | C28: Capital Advantage Assurance Company | D28: Small Group | E28: 45127PA0010090 | F28: Gold PPO 2000/0/25 | Rx 0 | G28: PPO | H28: Gold | I28: Off | J28: 0 | K28: 0 | L28: 0 | M28: 0 | N28: 0 | O28: 0 | P28: 0 | Q28: 0 | R28: 0 | S28: 0 | T28: 0 | U28: 0 | V28: 0 | W28: 0 | X28: 0 | Y28: 0 | Z28: 0 | AA28: 0 | AB28: 0 | AC28: 0 | AD28: 0 | AE28: 0 | AF28: 0 | AG28: 0 | AH28: 0 | AI28: 0 | AJ28: 0 | AK28: 0 | AL28: 0 | AM28: 0 | AN28: 0 | AO28: 0 | AP28: 0 | AQ28: 0 | AR28: 0 | AS28: 0 | AT28: 0 | AU28: 0 | AV28: 0 | AW28: 0 | AX28: 0 | AY28: 383.24 | AZ28: 383.24 | BA28: 383.24 | BB28: 383.24 | BC28: 383.24 | BD28: 383.24 | BE28: 383.24 | BF28: 383.24 | BG28: 383.24 | BH28: 383.24 | BI28: 394.74 | BJ28: 394.74 | BK28: 394.74 | BL28: 394.74 | BM28: 0 | BN28: 0 | BO28: 0 | BP28: 0 | BQ28: 0 | BR28: 413.9 | BS28: 413.9 | BT28: 413.9 | BU28: 413.9 | BV28: 413.9 | BW28: 413.9 | BX28: 413.9 | BZ28: Susquehanna | CA28: =MIN(IF((PriorPlansTable[Market]=$CA$6)*(PriorPlansTable[Metal]=CA$7)*(INDIRECT("PriorPlansTable["&$BZ28&"]")>0),INDIRECT("PriorPlansTable["&$BZ28&"]"))) -> 225.2 | CB28: =MIN(IF((PriorPlansTable[Market]=$CA$6)*(PriorPlansTable[Metal]=CB$7)*(INDIRECT("PriorPlansTable["&$BZ28&"]")>0),INDIRECT("PriorPlansTable["&$BZ28&"]"))) -> 256.83 | CC28: =MIN(IF((PriorPlansTable[Market]=$CA$6)*(PriorPlansTable[Metal]=CC$7)*(INDIRECT("PriorPlansTable["&$BZ28&"]")>0),INDIRECT("PriorPlansTable["&$BZ28&"]"))) -> 310.49 | CD28: =MIN(IF((PriorPlansTable[Market]=$CA$6)*(PriorPlansTable[Metal]=CD$7)*(INDIRECT("PriorPlansTable["&$BZ28&"]")>0),INDIRECT("PriorPlansTable["&$BZ28&"]"))) -> 363.65 | CE28: =MIN(IF((PriorPlansTable[Market]=$CA$6)*(PriorPlansTable[Metal]=CE$7)*(INDIRECT("PriorPlansTable["&$BZ28&"]")>0),INDIRECT("PriorPlansTable["&$BZ28&"]"))) -> 0 | CF28: =MIN(IF((PriorPlansTable[Market]=$CA$6)*(PriorPlansTable[Metal]="Silver")*(INDIRECT("PriorPlansTable["&$BZ28&"]")>CC28),INDIRECT("PriorPlansTable["&$BZ28&"]"))) -> 321.67 | CG28: =MIN(IF((PriorPlansTable[Market]=$CG$6)*(PriorPlansTable[Metal]=CG$7)*(INDIRECT("PriorPlansTable["&$BZ28&"]")>0),INDIRECT("PriorPlansTable["&$BZ28&"]"))) -> 0 | CH28: =MIN(IF((PriorPlansTable[Market]=$CG$6)*(PriorPlansTable[Metal]=CH$7)*(INDIRECT("PriorPlansTable["&$BZ28&"]")>0),INDIRECT("PriorPlansTable["&$BZ28&"]"))) -> 235.68 | CI28: =MIN(IF((PriorPlansTable[Market]=$CG$6)*(PriorPlansTable[Metal]=CI$7)*(INDIRECT("PriorPlansTable["&$BZ28&"]")>0),INDIRECT("PriorPlansTable["&$BZ28&"]"))) -> 262.77 | CJ28: =MIN(IF((PriorPlansTable[Market]=$CG$6)*(PriorPlansTable[Metal]=CJ$7)*(INDIRECT("PriorPlansTable["&$BZ28&"]")>0),INDIRECT("PriorPlansTable["&$BZ28&"]"))) -> 290.83 | CK28: =MIN(IF((PriorPlansTable[Market]=$CG$6)*(PriorPlansTable[Metal]=CK$7)*(INDIRECT("PriorPlansTable["&$BZ28&"]")>0),INDIRECT("PriorPlansTable["&$BZ28&"]"))) -> 358.63 | CL28: =MIN(IF((PriorPlansTable[Market]=$CG$6)*(PriorPlansTable[Metal]="Silver")*(INDIRECT("PriorPlansTable["&$BZ28&"]")>CI28),INDIRECT("PriorPlansTable["&$BZ28&"]"))) -> 262.92
B29: Capital Blue Cross | C29: Capital Advantage Assurance Company | D29: Small Group | E29: 45127PA0010100 | F29: Gold PPO 0/0/35 | Rx 250 | G29: PPO | H29: Gold | I29: Off | J29: 0 | K29: 0 | L29: 0 | M29: 0 | N29: 0 | O29: 0 | P29: 0 | Q29: 0 | R29: 0 | S29: 0 | T29: 0 | U29: 0 | V29: 0 | W29: 0 | X29: 0 | Y29: 0 | Z29: 0 | AA29: 0 | AB29: 0 | AC29: 0 | AD29: 0 | AE29: 0 | AF29: 0 | AG29: 0 | AH29: 0 | AI29: 0 | AJ29: 0 | AK29: 0 | AL29: 0 | AM29: 0 | AN29: 0 | AO29: 0 | AP29: 0 | AQ29: 0 | AR29: 0 | AS29: 0 | AT29: 0 | AU29: 0 | AV29: 0 | AW29: 0 | AX29: 0 | AY29: 414.96 | AZ29: 414.96 | BA29: 414.96 | BB29: 414.96 | BC29: 414.96 | BD29: 414.96 | BE29: 414.96 | BF29: 414.96 | BG29: 414.96 | BH29: 414.96 | BI29: 427.41 | BJ29: 427.41 | BK29: 427.41 | BL29: 427.41 | BM29: 0 | BN29: 0 | BO29: 0 | BP29: 0 | BQ29: 0 | BR29: 448.16 | BS29: 448.16 | BT29: 448.16 | BU29: 448.16 | BV29: 448.16 | BW29: 448.16 | BX29: 448.16 | BZ29: Tioga | CA29: =MIN(IF((PriorPlansTable[Market]=$CA$6)*(PriorPlansTable[Metal]=CA$7)*(INDIRECT("PriorPlansTable["&$BZ29&"]")>0),INDIRECT("PriorPlansTable["&$BZ29&"]"))) -> 205.89 | CB29: =MIN(IF((PriorPlansTable[Market]=$CA$6)*(PriorPlansTable[Metal]=CB$7)*(INDIRECT("PriorPlansTable["&$BZ29&"]")>0),INDIRECT("PriorPlansTable["&$BZ29&"]"))) -> 240.45 | CC29: =MIN(IF((PriorPlansTable[Market]=$CA$6)*(PriorPlansTable[Metal]=CC$7)*(INDIRECT("PriorPlansTable["&$BZ29&"]")>0),INDIRECT("PriorPlansTable["&$BZ29&"]"))) -> 264.01 | CD29: =MIN(IF((PriorPlansTable[Market]=$CA$6)*(PriorPlansTable[Metal]=CD$7)*(INDIRECT("PriorPlansTable["&$BZ29&"]")>0),INDIRECT("PriorPlansTable["&$BZ29&"]"))) -> 332.92 | CE29: =MIN(IF((PriorPlansTable[Market]=$CA$6)*(PriorPlansTable[Metal]=CE$7)*(INDIRECT("PriorPlansTable["&$BZ29&"]")>0),INDIRECT("PriorPlansTable["&$BZ29&"]"))) -> 581.95 | CF29: =MIN(IF((PriorPlansTable[Market]=$CA$6)*(PriorPlansTable[Metal]="Silver")*(INDIRECT("PriorPlansTable["&$BZ29&"]")>CC29),INDIRECT("PriorPlansTable["&$BZ29&"]"))) -> 310.49 | CG29: =MIN(IF((PriorPlansTable[Market]=$CG$6)*(PriorPlansTable[Metal]=CG$7)*(INDIRECT("PriorPlansTable["&$BZ29&"]")>0),INDIRECT("PriorPlansTable["&$BZ29&"]"))) -> 0 | CH29: =MIN(IF((PriorPlansTable[Market]=$CG$6)*(PriorPlansTable[Metal]=CH$7)*(INDIRECT("PriorPlansTable["&$BZ29&"]")>0),INDIRECT("PriorPlansTable["&$BZ29&"]"))) -> 235.68 | CI29: =MIN(IF((PriorPlansTable[Market]=$CG$6)*(PriorPlansTable[Metal]=CI$7)*(INDIRECT("PriorPlansTable["&$BZ29&"]")>0),INDIRECT("PriorPlansTable["&$BZ29&"]"))) -> 262.77 | CJ29: =MIN(IF((PriorPlansTable[Market]=$CG$6)*(PriorPlansTable[Metal]=CJ$7)*(INDIRECT("PriorPlansTable["&$BZ29&"]")>0),INDIRECT("PriorPlansTable["&$BZ29&"]"))) -> 290.83 | CK29: =MIN(IF((PriorPlansTable[Market]=$CG$6)*(PriorPlansTable[Metal]=CK$7)*(INDIRECT("PriorPlansTable["&$BZ29&"]")>0),INDIRECT("PriorPlansTable["&$BZ29&"]"))) -> 358.63 | CL29: =MIN(IF((PriorPlansTable[Market]=$CG$6)*(PriorPlansTable[Metal]="Silver")*(INDIRECT("PriorPlansTable["&$BZ29&"]")>CI29),INDIRECT("PriorPlansTable["&$BZ29&"]"))) -> 262.92
B30: Capital Blue Cross | C30: Capital Advantage Assurance Company | D30: Small Group | E30: 45127PA0010101 | F30: Gold PPO 0/0/35 | Rx 0 | G30: PPO | H30: Gold | I30: Off | J30: 0 | K30: 0 | L30: 0 | M30: 0 | N30: 0 | O30: 0 | P30: 0 | Q30: 0 | R30: 0 | S30: 0 | T30: 0 | U30: 0 | V30: 0 | W30: 0 | X30: 0 | Y30: 0 | Z30: 0 | AA30: 0 | AB30: 0 | AC30: 0 | AD30: 0 | AE30: 0 | AF30: 0 | AG30: 0 | AH30: 0 | AI30: 0 | AJ30: 0 | AK30: 0 | AL30: 0 | AM30: 0 | AN30: 0 | AO30: 0 | AP30: 0 | AQ30: 0 | AR30: 0 | AS30: 0 | AT30: 0 | AU30: 0 | AV30: 0 | AW30: 0 | AX30: 0 | AY30: 421.59 | AZ30: 421.59 | BA30: 421.59 | BB30: 421.59 | BC30: 421.59 | BD30: 421.59 | BE30: 421.59 | BF30: 421.59 | BG30: 421.59 | BH30: 421.59 | BI30: 434.24 | BJ30: 434.24 | BK30: 434.24 | BL30: 434.24 | BM30: 0 | BN30: 0 | BO30: 0 | BP30: 0 | BQ30: 0 | BR30: 455.32 | BS30: 455.32 | BT30: 455.32 | BU30: 455.32 | BV30: 455.32 | BW30: 455.32 | BX30: 455.32 | BZ30: Wayne | CA30: =MIN(IF((PriorPlansTable[Market]=$CA$6)*(PriorPlansTable[Metal]=CA$7)*(INDIRECT("PriorPlansTable["&$BZ30&"]")>0),INDIRECT("PriorPlansTable["&$BZ30&"]"))) -> 225.2 | CB30: =MIN(IF((PriorPlansTable[Market]=$CA$6)*(PriorPlansTable[Metal]=CB$7)*(INDIRECT("PriorPlansTable["&$BZ30&"]")>0),INDIRECT("PriorPlansTable["&$BZ30&"]"))) -> 256.83 | CC30: =MIN(IF((PriorPlansTable[Market]=$CA$6)*(PriorPlansTable[Metal]=CC$7)*(INDIRECT("PriorPlansTable["&$BZ30&"]")>0),INDIRECT("PriorPlansTable["&$BZ30&"]"))) -> 310.49 | CD30: =MIN(IF((PriorPlansTable[Market]=$CA$6)*(PriorPlansTable[Metal]=CD$7)*(INDIRECT("PriorPlansTable["&$BZ30&"]")>0),INDIRECT("PriorPlansTable["&$BZ30&"]"))) -> 363.65 | CE30: =MIN(IF((PriorPlansTable[Market]=$CA$6)*(PriorPlansTable[Metal]=CE$7)*(INDIRECT("PriorPlansTable["&$BZ30&"]")>0),INDIRECT("PriorPlansTable["&$BZ30&"]"))) -> 0 | CF30: =MIN(IF((PriorPlansTable[Market]=$CA$6)*(PriorPlansTable[Metal]="Silver")*(INDIRECT("PriorPlansTable["&$BZ30&"]")>CC30),INDIRECT("PriorPlansTable["&$BZ30&"]"))) -> 321.67 | CG30: =MIN(IF((PriorPlansTable[Market]=$CG$6)*(PriorPlansTable[Metal]=CG$7)*(INDIRECT("PriorPlansTable["&$BZ30&"]")>0),INDIRECT("PriorPlansTable["&$BZ30&"]"))) -> 0 | CH30: =MIN(IF((PriorPlansTable[Market]=$CG$6)*(PriorPlansTable[Metal]=CH$7)*(INDIRECT("PriorPlansTable["&$BZ30&"]")>0),INDIRECT("PriorPlansTable["&$BZ30&"]"))) -> 235.68 | CI30: =MIN(IF((PriorPlansTable[Market]=$CG$6)*(PriorPlansTable[Metal]=CI$7)*(INDIRECT("PriorPlansTable["&$BZ30&"]")>0),INDIRECT("PriorPlansTable["&$BZ30&"]"))) -> 262.77 | CJ30: =MIN(IF((PriorPlansTable[Market]=$CG$6)*(PriorPlansTable[Metal]=CJ$7)*(INDIRECT("PriorPlansTable["&$BZ30&"]")>0),INDIRECT("PriorPlansTable["&$BZ30&"]"))) -> 290.83 | CK30: =MIN(IF((PriorPlansTable[Market]=$CG$6)*(PriorPlansTable[Metal]=CK$7)*(INDIRECT("PriorPlansTable["&$BZ30&"]")>0),INDIRECT("PriorPlansTable["&$BZ30&"]"))) -> 358.63 | CL30: =MIN(IF((PriorPlansTable[Market]=$CG$6)*(PriorPlansTable[Metal]="Silver")*(INDIRECT("PriorPlansTable["&$BZ30&"]")>CI30),INDIRECT("PriorPlansTable["&$BZ30&"]"))) -> 262.92
B31: Capital Blue Cross | C31: Capital Advantage Assurance Company | D31: Small Group | E31: 45127PA0010116 | F31: Gold PPO 500/0/40 | Rx 250 | G31: PPO | H31: Gold | I31: Off | J31: 0 | K31: 0 | L31: 0 | M31: 0 | N31: 0 | O31: 0 | P31: 0 | Q31: 0 | R31: 0 | S31: 0 | T31: 0 | U31: 0 | V31: 0 | W31: 0 | X31: 0 | Y31: 0 | Z31: 0 | AA31: 0 | AB31: 0 | AC31: 0 | AD31: 0 | AE31: 0 | AF31: 0 | AG31: 0 | AH31: 0 | AI31: 0 | AJ31: 0 | AK31: 0 | AL31: 0 | AM31: 0 | AN31: 0 | AO31: 0 | AP31: 0 | AQ31: 0 | AR31: 0 | AS31: 0 | AT31: 0 | AU31: 0 | AV31: 0 | AW31: 0 | AX31: 0 | AY31: 411.7 | AZ31: 411.7 | BA31: 411.7 | BB31: 411.7 | BC31: 411.7 | BD31: 411.7 | BE31: 411.7 | BF31: 411.7 | BG31: 411.7 | BH31: 411.7 | BI31: 424.05 | BJ31: 424.05 | BK31: 424.05 | BL31: 424.05 | BM31: 0 | BN31: 0 | BO31: 0 | BP31: 0 | BQ31: 0 | BR31: 444.64 | BS31: 444.64 | BT31: 444.64 | BU31: 444.64 | BV31: 444.64 | BW31: 444.64 | BX31: 444.64 | BZ31: Wyoming | CA31: =MIN(IF((PriorPlansTable[Market]=$CA$6)*(PriorPlansTable[Metal]=CA$7)*(INDIRECT("PriorPlansTable["&$BZ31&"]")>0),INDIRECT("PriorPlansTable["&$BZ31&"]"))) -> 225.2 | CB31: =MIN(IF((PriorPlansTable[Market]=$CA$6)*(PriorPlansTable[Metal]=CB$7)*(INDIRECT("PriorPlansTable["&$BZ31&"]")>0),INDIRECT("PriorPlansTable["&$BZ31&"]"))) -> 270.35 | CC31: =MIN(IF((PriorPlansTable[Market]=$CA$6)*(PriorPlansTable[Metal]=CC$7)*(INDIRECT("PriorPlansTable["&$BZ31&"]")>0),INDIRECT("PriorPlansTable["&$BZ31&"]"))) -> 310.49 | CD31: =MIN(IF((PriorPlansTable[Market]=$CA$6)*(PriorPlansTable[Metal]=CD$7)*(INDIRECT("PriorPlansTable["&$BZ31&"]")>0),INDIRECT("PriorPlansTable["&$BZ31&"]"))) -> 363.65 | CE31: =MIN(IF((PriorPlansTable[Market]=$CA$6)*(PriorPlansTable[Metal]=CE$7)*(INDIRECT("PriorPlansTable["&$BZ31&"]")>0),INDIRECT("PriorPlansTable["&$BZ31&"]"))) -> 0 | CF31: =MIN(IF((PriorPlansTable[Market]=$CA$6)*(PriorPlansTable[Metal]="Silver")*(INDIRECT("PriorPlansTable["&$BZ31&"]")>CC31),INDIRECT("PriorPlansTable["&$BZ31&"]"))) -> 321.67 | CG31: =MIN(IF((PriorPlansTable[Market]=$CG$6)*(PriorPlansTable[Metal]=CG$7)*(INDIRECT("PriorPlansTable["&$BZ31&"]")>0),INDIRECT("PriorPlansTable["&$BZ31&"]"))) -> 0 | CH31: =MIN(IF((PriorPlansTable[Market]=$CG$6)*(PriorPlansTable[Metal]=CH$7)*(INDIRECT("PriorPlansTable["&$BZ31&"]")>0),INDIRECT("PriorPlansTable["&$BZ31&"]"))) -> 235.68 | CI31: =MIN(IF((PriorPlansTable[Market]=$CG$6)*(PriorPlansTable[Metal]=CI$7)*(INDIRECT("PriorPlansTable["&$BZ31&"]")>0),INDIRECT("PriorPlansTable["&$BZ31&"]"))) -> 262.77 | CJ31: =MIN(IF((PriorPlansTable[Market]=$CG$6)*(PriorPlansTable[Metal]=CJ$7)*(INDIRECT("PriorPlansTable["&$BZ31&"]")>0),INDIRECT("PriorPlansTable["&$BZ31&"]"))) -> 290.83 | CK31: =MIN(IF((PriorPlansTable[Market]=$CG$6)*(PriorPlansTable[Metal]=CK$7)*(INDIRECT("PriorPlansTable["&$BZ31&"]")>0),INDIRECT("PriorPlansTable["&$BZ31&"]"))) -> 358.63 | CL31: =MIN(IF((PriorPlansTable[Market]=$CG$6)*(PriorPlansTable[Metal]="Silver")*(INDIRECT("PriorPlansTable["&$BZ31&"]")>CI31),INDIRECT("PriorPlansTable["&$BZ31&"]"))) -> 262.92
... 38 more rows

Sheet Prior Issuers (hidden)
A1: PRIOR ISSUERS BY RATING AREA AND COUNTY
B4: Inputs Tab | C4: Inputs Tab | D4: Inputs Tab | E4: Prior Plans Tab | F4: Prior Plans Tab | G4: Prior Plans Tab | H4: Prior Plans Tab | I4: Prior Plans Tab | J4: Calc | K4: Prior Plans Tab | L4: Prior Plans Tab | M4: Prior Plans Tab | N4: Prior Plans Tab | O4: Prior Plans Tab | P4: Prior Plans Tab | Q4: Prior Plans Tab | R4: Prior Plans Tab | S4: Prior Plans Tab | T4: Prior Plans Tab | U4: Prior Plans Tab | V4: Prior Plans Tab | W4: Prior Plans Tab | X4: Prior Plans Tab | Y4: Prior Plans Tab | Z4: Prior Plans Tab | AA4: Prior Plans Tab | AB4: Prior Plans Tab | AC4: Prior Plans Tab | AD4: Prior Plans Tab | AE4: Prior Plans Tab | AF4: Prior Plans Tab | AG4: Prior Plans Tab | AH4: Prior Plans Tab | AI4: Prior Plans Tab | AJ4: Prior Plans Tab | AK4: Prior Plans Tab | AL4: Prior Plans Tab | AM4: Prior Plans Tab | AN4: Prior Plans Tab | AO4: Prior Plans Tab | AP4: Prior Plans Tab | AQ4: Prior Plans Tab | AR4: Prior Plans Tab | AS4: Prior Plans Tab | AT4: Prior Plans Tab | AU4: Prior Plans Tab | AV4: Prior Plans Tab | AW4: Prior Plans Tab | AX4: Prior Plans Tab | AY4: Prior Plans Tab | AZ4: Prior Plans Tab | BA4: Prior Plans Tab | BB4: Prior Plans Tab | BC4: Prior Plans Tab | BD4: Prior Plans Tab | BE4: Prior Plans Tab | BF4: Prior Plans Tab | BG4: Prior Plans Tab | BH4: Prior Plans Tab | BI4: Prior Plans Tab | BJ4: Prior Plans Tab | BK4: Prior Plans Tab | BL4: Prior Plans Tab | BM4: Prior Plans Tab | BN4: Prior Plans Tab | BO4: Prior Plans Tab | BP4: Prior Plans Tab | BQ4: Prior Plans Tab | BR4: Prior Plans Tab | BS4: Prior Plans Tab | BT4: Prior Plans Tab | BU4: Prior Plans Tab | BV4: Prior Plans Tab | BW4: Prior Plans Tab | BX4: Prior Plans Tab | BY4: Prior Plans Tab | BZ4: Calc | CA4: Calc | CB4: Calc | CC4: Calc | CD4: Calc | CE4: Calc | CF4: Calc | CG4: Calc | CH4: Calc | CI4: Calc | CJ4: Calc | CK4: Calc | CL4: Calc | CM4: Calc | CN4: Calc | CO4: Calc | CP4: Calc | CQ4: Calc | CR4: Calc | CS4: Calc | CT4: Calc | CU4: Calc | CV4: Calc | CW4: Calc | CX4: Calc | CY4: Calc | CZ4: Calc | DA4: Calc | DB4: Calc | DC4: Calc | DD4: Calc | DE4: Calc | DF4: Calc | DG4: Calc | DH4: Calc | DI4: Calc | DJ4: Calc | DK4: Calc | DL4: Calc | DM4: Calc | DN4: Calc | DO4: Calc | DP4: Calc | DQ4: Calc | DR4: Calc | DS4: Calc | DT4: Calc | DU4: Calc | DV4: Calc | DW4: Calc | DX4: Calc | DY4: Calc | DZ4: Calc | EA4: Calc | EB4: Calc | EC4: Calc | ED4: Calc | EE4: Calc | EF4: Calc | EG4: Calc | EH4: Calc | EI4: Calc | EJ4: Calc | EK4: Calc | EL4: Calc | EM4: Calc | EN4: Calc
K5: By Metal Level | BZ5: Overall (No Metal Split)
K6: =INDEX(Lookups!$B:$B,MATCH(K$7,Lookups!$A:$A,0),1) -> Rating Area 1 | L6: =INDEX(Lookups!$B:$B,MATCH(L$7,Lookups!$A:$A,0),1) -> Rating Area 1 | M6: =INDEX(Lookups!$B:$B,MATCH(M$7,Lookups!$A:$A,0),1) -> Rating Area 1 | N6: =INDEX(Lookups!$B:$B,MATCH(N$7,Lookups!$A:$A,0),1) -> Rating Area 1 | O6: =INDEX(Lookups!$B:$B,MATCH(O$7,Lookups!$A:$A,0),1) -> Rating Area 1 | P6: =INDEX(Lookups!$B:$B,MATCH(P$7,Lookups!$A:$A,0),1) -> Rating Area 1 | Q6: =INDEX(Lookups!$B:$B,MATCH(Q$7,Lookups!$A:$A,0),1) -> Rating Area 1 | R6: =INDEX(Lookups!$B:$B,MATCH(R$7,Lookups!$A:$A,0),1) -> Rating Area 1 | S6: =INDEX(Lookups!$B:$B,MATCH(S$7,Lookups!$A:$A,0),1) -> Rating Area 2 | T6: =INDEX(Lookups!$B:$B,MATCH(T$7,Lookups!$A:$A,0),1) -> Rating Area 2 | U6: =INDEX(Lookups!$B:$B,MATCH(U$7,Lookups!$A:$A,0),1) -> Rating Area 2 | V6: =INDEX(Lookups!$B:$B,MATCH(V$7,Lookups!$A:$A,0),1) -> Rating Area 3 | W6: =INDEX(Lookups!$B:$B,MATCH(W$7,Lookups!$A:$A,0),1) -> Rating Area 3 | X6: =INDEX(Lookups!$B:$B,MATCH(X$7,Lookups!$A:$A,0),1) -> Rating Area 3 | Y6: =INDEX(Lookups!$B:$B,MATCH(Y$7,Lookups!$A:$A,0),1) -> Rating Area 3 | Z6: =INDEX(Lookups!$B:$B,MATCH(Z$7,Lookups!$A:$A,0),1) -> Rating Area 3 | AA6: =INDEX(Lookups!$B:$B,MATCH(AA$7,Lookups!$A:$A,0),1) -> Rating Area 3 | AB6: =INDEX(Lookups!$B:$B,MATCH(AB$7,Lookups!$A:$A,0),1) -> Rating Area 3 | AC6: =INDEX(Lookups!$B:$B,MATCH(AC$7,Lookups!$A:$A,0),1) -> Rating Area 3 | AD6: =INDEX(Lookups!$B:$B,MATCH(AD$7,Lookups!$A:$A,0),1) -> Rating Area 3 | AE6: =INDEX(Lookups!$B:$B,MATCH(AE$7,Lookups!$A:$A,0),1) -> Rating Area 3 | AF6: =INDEX(Lookups!$B:$B,MATCH(AF$7,Lookups!$A:$A,0),1) -> Rating Area 3 | AG6: =INDEX(Lookups!$B:$B,MATCH(AG$7,Lookups!$A:$A,0),1) -> Rating Area 3 | AH6: =INDEX(Lookups!$B:$B,MATCH(AH$7,Lookups!$A:$A,0),1) -> Rating Area 3 | AI6: =INDEX(Lookups!$B:$B,MATCH(AI$7,Lookups!$A:$A,0),1) -> Rating Area 4 | AJ6: =INDEX(Lookups!$B:$B,MATCH(AJ$7,Lookups!$A:$A,0),1) -> Rating Area 4 | AK6: =INDEX(Lookups!$B:$B,MATCH(AK$7,Lookups!$A:$A,0),1) -> Rating Area 4 | AL6: =INDEX(Lookups!$B:$B,MATCH(AL$7,Lookups!$A:$A,0),1) -> Rating Area 4 | AM6: =INDEX(Lookups!$B:$B,MATCH(AM$7,Lookups!$A:$A,0),1) -> Rating Area 4 | AN6: =INDEX(Lookups!$B:$B,MATCH(AN$7,Lookups!$A:$A,0),1) -> Rating Area 4 | AO6: =INDEX(Lookups!$B:$B,MATCH(AO$7,Lookups!$A:$A,0),1) -> Rating Area 4 | AP6: =INDEX(Lookups!$B:$B,MATCH(AP$7,Lookups!$A:$A,0),1) -> Rating Area 4 | AQ6: =INDEX(Lookups!$B:$B,MATCH(AQ$7,Lookups!$A:$A,0),1) -> Rating Area 4 | AR6: =INDEX(Lookups!$B:$B,MATCH(AR$7,Lookups!$A:$A,0),1) -> Rating Area 4 | AS6: =INDEX(Lookups!$B:$B,MATCH(AS$7,Lookups!$A:$A,0),1) -> Rating Area 5 | AT6: =INDEX(Lookups!$B:$B,MATCH(AT$7,Lookups!$A:$A,0),1) -> Rating Area 5 | AU6: =INDEX(Lookups!$B:$B,MATCH(AU$7,Lookups!$A:$A,0),1) -> Rating Area 5 | AV6: =INDEX(Lookups!$B:$B,MATCH(AV$7,Lookups!$A:$A,0),1) -> Rating Area 5 | AW6: =INDEX(Lookups!$B:$B,MATCH(AW$7,Lookups!$A:$A,0),1) -> Rating Area 5 | AX6: =INDEX(Lookups!$B:$B,MATCH(AX$7,Lookups!$A:$A,0),1) -> Rating Area 5 | AY6: =INDEX(Lookups!$B:$B,MATCH(AY$7,Lookups!$A:$A,0),1) -> Rating Area 5 | AZ6: =INDEX(Lookups!$B:$B,MATCH(AZ$7,Lookups!$A:$A,0),1) -> Rating Area 6 | BA6: =INDEX(Lookups!$B:$B,MATCH(BA$7,Lookups!$A:$A,0),1) -> Rating Area 6 | BB6: =INDEX(Lookups!$B:$B,MATCH(BB$7,Lookups!$A:$A,0),1) -> Rating Area 6 | BC6: =INDEX(Lookups!$B:$B,MATCH(BC$7,Lookups!$A:$A,0),1) -> Rating Area 6 | BD6: =INDEX(Lookups!$B:$B,MATCH(BD$7,Lookups!$A:$A,0),1) -> Rating Area 6 | BE6: =INDEX(Lookups!$B:$B,MATCH(BE$7,Lookups!$A:$A,0),1) -> Rating Area 6 | BF6: =INDEX(Lookups!$B:$B,MATCH(BF$7,Lookups!$A:$A,0),1) -> Rating Area 6 | BG6: =INDEX(Lookups!$B:$B,MATCH(BG$7,Lookups!$A:$A,0),1) -> Rating Area 6 | BH6: =INDEX(Lookups!$B:$B,MATCH(BH$7,Lookups!$A:$A,0),1) -> Rating Area 6 | BI6: =INDEX(Lookups!$B:$B,MATCH(BI$7,Lookups!$A:$A,0),1) -> Rating Area 6 | BJ6: =INDEX(Lookups!$B:$B,MATCH(BJ$7,Lookups!$A:$A,0),1) -> Rating Area 7 | BK6: =INDEX(Lookups!$B:$B,MATCH(BK$7,Lookups!$A:$A,0),1) -> Rating Area 7 | BL6: =INDEX(Lookups!$B:$B,MATCH(BL$7,Lookups!$A:$A,0),1) -> Rating Area 7 | BM6: =INDEX(Lookups!$B:$B,MATCH(BM$7,Lookups!$A:$A,0),1) -> Rating Area 7 | BN6: =INDEX(Lookups!$B:$B,MATCH(BN$7,Lookups!$A:$A,0),1) -> Rating Area 8 | BO6: =INDEX(Lookups!$B:$B,MATCH(BO$7,Lookups!$A:$A,0),1) -> Rating Area 8 | BP6: =INDEX(Lookups!$B:$B,MATCH(BP$7,Lookups!$A:$A,0),1) -> Rating Area 8 | BQ6: =INDEX(Lookups!$B:$B,MATCH(BQ$7,Lookups!$A:$A,0),1) -> Rating Area 8 | BR6: =INDEX(Lookups!$B:$B,MATCH(BR$7,Lookups!$A:$A,0),1) -> Rating Area 8 | BS6: =INDEX(Lookups!$B:$B,MATCH(BS$7,Lookups!$A:$A,0),1) -> Rating Area 9 | BT6: =INDEX(Lookups!$B:$B,MATCH(BT$7,Lookups!$A:$A,0),1) -> Rating Area 9 | BU6: =INDEX(Lookups!$B:$B,MATCH(BU$7,Lookups!$A:$A,0),1) -> Rating Area 9 | BV6: =INDEX(Lookups!$B:$B,MATCH(BV$7,Lookups!$A:$A,0),1) -> Rating Area 9 | BW6: =INDEX(Lookups!$B:$B,MATCH(BW$7,Lookups!$A:$A,0),1) -> Rating Area 9 | BX6: =INDEX(Lookups!$B:$B,MATCH(BX$7,Lookups!$A:$A,0),1) -> Rating Area 9 | BY6: =INDEX(Lookups!$B:$B,MATCH(BY$7,Lookups!$A:$A,0),1) -> Rating Area 9 | BZ6: =INDEX(Lookups!$B:$B,MATCH(LEFT(BZ$7,LEN(BZ$7)-1),Lookups!$A:$A,0),1) -> Rating Area 1 | CA6: =INDEX(Lookups!$B:$B,MATCH(LEFT(CA$7,LEN(CA$7)-1),Lookups!$A:$A,0),1) -> Rating Area 1 | CB6: =INDEX(Lookups!$B:$B,MATCH(LEFT(CB$7,LEN(CB$7)-1),Lookups!$A:$A,0),1) -> Rating Area 1 | CC6: =INDEX(Lookups!$B:$B,MATCH(LEFT(CC$7,LEN(CC$7)-1),Lookups!$A:$A,0),1) -> Rating Area 1 | CD6: =INDEX(Lookups!$B:$B,MATCH(LEFT(CD$7,LEN(CD$7)-1),Lookups!$A:$A,0),1) -> Rating Area 1 | CE6: =INDEX(Lookups!$B:$B,MATCH(LEFT(CE$7,LEN(CE$7)-1),Lookups!$A:$A,0),1) -> Rating Area 1 | CF6: =INDEX(Lookups!$B:$B,MATCH(LEFT(CF$7,LEN(CF$7)-1),Lookups!$A:$A,0),1) -> Rating Area 1 | CG6: =INDEX(Lookups!$B:$B,MATCH(LEFT(CG$7,LEN(CG$7)-1),Lookups!$A:$A,0),1) -> Rating Area 1 | CH6: =INDEX(Lookups!$B:$B,MATCH(LEFT(CH$7,LEN(CH$7)-1),Lookups!$A:$A,0),1) -> Rating Area 2 | CI6: =INDEX(Lookups!$B:$B,MATCH(LEFT(CI$7,LEN(CI$7)-1),Lookups!$A:$A,0),1) -> Rating Area 2 | CJ6: =INDEX(Lookups!$B:$B,MATCH(LEFT(CJ$7,LEN(CJ$7)-1),Lookups!$A:$A,0),1) -> Rating Area 2 | CK6: =INDEX(Lookups!$B:$B,MATCH(LEFT(CK$7,LEN(CK$7)-1),Lookups!$A:$A,0),1) -> Rating Area 3 | CL6: =INDEX(Lookups!$B:$B,MATCH(LEFT(CL$7,LEN(CL$7)-1),Lookups!$A:$A,0),1) -> Rating Area 3 | CM6: =INDEX(Lookups!$B:$B,MATCH(LEFT(CM$7,LEN(CM$7)-1),Lookups!$A:$A,0),1) -> Rating Area 3 | CN6: =INDEX(Lookups!$B:$B,MATCH(LEFT(CN$7,LEN(CN$7)-1),Lookups!$A:$A,0),1) -> Rating Area 3 | CO6: =INDEX(Lookups!$B:$B,MATCH(LEFT(CO$7,LEN(CO$7)-1),Lookups!$A:$A,0),1) -> Rating Area 3 | CP6: =INDEX(Lookups!$B:$B,MATCH(LEFT(CP$7,LEN(CP$7)-1),Lookups!$A:$A,0),1) -> Rating Area 3 | CQ6: =INDEX(Lookups!$B:$B,MATCH(LEFT(CQ$7,LEN(CQ$7)-1),Lookups!$A:$A,0),1) -> Rating Area 3 | CR6: =INDEX(Lookups!$B:$B,MATCH(LEFT(CR$7,LEN(CR$7)-1),Lookups!$A:$A,0),1) -> Rating Area 3 | CS6: =INDEX(Lookups!$B:$B,MATCH(LEFT(CS$7,LEN(CS$7)-1),Lookups!$A:$A,0),1) -> Rating Area 3 | CT6: =INDEX(Lookups!$B:$B,MATCH(LEFT(CT$7,LEN(CT$7)-1),Lookups!$A:$A,0),1) -> Rating Area 3 | CU6: =INDEX(Lookups!$B:$B,MATCH(LEFT(CU$7,LEN(CU$7)-1),Lookups!$A:$A,0),1) -> Rating Area 3 | CV6: =INDEX(Lookups!$B:$B,MATCH(LEFT(CV$7,LEN(CV$7)-1),Lookups!$A:$A,0),1) -> Rating Area 3 | CW6: =INDEX(Lookups!$B:$B,MATCH(LEFT(CW$7,LEN(CW$7)-1),Lookups!$A:$A,0),1) -> Rating Area 3 | CX6: =INDEX(Lookups!$B:$B,MATCH(LEFT(CX$7,LEN(CX$7)-1),Lookups!$A:$A,0),1) -> Rating Area 4 | CY6: =INDEX(Lookups!$B:$B,MATCH(LEFT(CY$7,LEN(CY$7)-1),Lookups!$A:$A,0),1) -> Rating Area 4 | CZ6: =INDEX(Lookups!$B:$B,MATCH(LEFT(CZ$7,LEN(CZ$7)-1),Lookups!$A:$A,0),1) -> Rating Area 4 | DA6: =INDEX(Lookups!$B:$B,MATCH(LEFT(DA$7,LEN(DA$7)-1),Lookups!$A:$A,0),1) -> Rating Area 4 | DB6: =INDEX(Lookups!$B:$B,MATCH(LEFT(DB$7,LEN(DB$7)-1),Lookups!$A:$A,0),1) -> Rating Area 4 | DC6: =INDEX(Lookups!$B:$B,MATCH(LEFT(DC$7,LEN(DC$7)-1),Lookups!$A:$A,0),1) -> Rating Area 4 | DD6: =INDEX(Lookups!$B:$B,MATCH(LEFT(DD$7,LEN(DD$7)-1),Lookups!$A:$A,0),1) -> Rating Area 4 | DE6: =INDEX(Lookups!$B:$B,MATCH(LEFT(DE$7,LEN(DE$7)-1),Lookups!$A:$A,0),1) -> Rating Area 4 | DF6: =INDEX(Lookups!$B:$B,MATCH(LEFT(DF$7,LEN(DF$7)-1),Lookups!$A:$A,0),1) -> Rating Area 4 | DG6: =INDEX(Lookups!$B:$B,MATCH(LEFT(DG$7,LEN(DG$7)-1),Lookups!$A:$A,0),1) -> Rating Area 4 | DH6: =INDEX(Lookups!$B:$B,MATCH(LEFT(DH$7,LEN(DH$7)-1),Lookups!$A:$A,0),1) -> Rating Area 5 | DI6: =INDEX(Lookups!$B:$B,MATCH(LEFT(DI$7,LEN(DI$7)-1),Lookups!$A:$A,0),1) -> Rating Area 5 | DJ6: =INDEX(Lookups!$B:$B,MATCH(LEFT(DJ$7,LEN(DJ$7)-1),Lookups!$A:$A,0),1) -> Rating Area 5 | DK6: =INDEX(Lookups!$B:$B,MATCH(LEFT(DK$7,LEN(DK$7)-1),Lookups!$A:$A,0),1) -> Rating Area 5 | DL6: =INDEX(Lookups!$B:$B,MATCH(LEFT(DL$7,LEN(DL$7)-1),Lookups!$A:$A,0),1) -> Rating Area 5 | DM6: =INDEX(Lookups!$B:$B,MATCH(LEFT(DM$7,LEN(DM$7)-1),Lookups!$A:$A,0),1) -> Rating Area 5 | DN6: =INDEX(Lookups!$B:$B,MATCH(LEFT(DN$7,LEN(DN$7)-1),Lookups!$A:$A,0),1) -> Rating Area 5 | DO6: =INDEX(Lookups!$B:$B,MATCH(LEFT(DO$7,LEN(DO$7)-1),Lookups!$A:$A,0),1) -> Rating Area 6 | DP6: =INDEX(Lookups!$B:$B,MATCH(LEFT(DP$7,LEN(DP$7)-1),Lookups!$A:$A,0),1) -> Rating Area 6 | DQ6: =INDEX(Lookups!$B:$B,MATCH(LEFT(DQ$7,LEN(DQ$7)-1),Lookups!$A:$A,0),1) -> Rating Area 6 | DR6: =INDEX(Lookups!$B:$B,MATCH(LEFT(DR$7,LEN(DR$7)-1),Lookups!$A:$A,0),1) -> Rating Area 6 | DS6: =INDEX(Lookups!$B:$B,MATCH(LEFT(DS$7,LEN(DS$7)-1),Lookups!$A:$A,0),1) -> Rating Area 6 | DT6: =INDEX(Lookups!$B:$B,MATCH(LEFT(DT$7,LEN(DT$7)-1),Lookups!$A:$A,0),1) -> Rating Area 6 | DU6: =INDEX(Lookups!$B:$B,MATCH(LEFT(DU$7,LEN(DU$7)-1),Lookups!$A:$A,0),1) -> Rating Area 6 | DV6: =INDEX(Lookups!$B:$B,MATCH(LEFT(DV$7,LEN(DV$7)-1),Lookups!$A:$A,0),1) -> Rating Area 6 | DW6: =INDEX(Lookups!$B:$B,MATCH(LEFT(DW$7,LEN(DW$7)-1),Lookups!$A:$A,0),1) -> Rating Area 6 | DX6: =INDEX(Lookups!$B:$B,MATCH(LEFT(DX$7,LEN(DX$7)-1),Lookups!$A:$A,0),1) -> Rating Area 6 | DY6: =INDEX(Lookups!$B:$B,MATCH(LEFT(DY$7,LEN(DY$7)-1),Lookups!$A:$A,0),1) -> Rating Area 7 | DZ6: =INDEX(Lookups!$B:$B,MATCH(LEFT(DZ$7,LEN(DZ$7)-1),Lookups!$A:$A,0),1) -> Rating Area 7 | EA6: =INDEX(Lookups!$B:$B,MATCH(LEFT(EA$7,LEN(EA$7)-1),Lookups!$A:$A,0),1) -> Rating Area 7 | EB6: =INDEX(Lookups!$B:$B,MATCH(LEFT(EB$7,LEN(EB$7)-1),Lookups!$A:$A,0),1) -> Rating Area 7 | EC6: =INDEX(Lookups!$B:$B,MATCH(LEFT(EC$7,LEN(EC$7)-1),Lookups!$A:$A,0),1) -> Rating Area 8 | ED6: =INDEX(Lookups!$B:$B,MATCH(LEFT(ED$7,LEN(ED$7)-1),Lookups!$A:$A,0),1) -> Rating Area 8 | EE6: =INDEX(Lookups!$B:$B,MATCH(LEFT(EE$7,LEN(EE$7)-1),Lookups!$A:$A,0),1) -> Rating Area 8 | EF6: =INDEX(Lookups!$B:$B,MATCH(LEFT(EF$7,LEN(EF$7)-1),Lookups!$A:$A,0),1) -> Rating Area 8 | EG6: =INDEX(Lookups!$B:$B,MATCH(LEFT(EG$7,LEN(EG$7)-1),Lookups!$A:$A,0),1) -> Rating Area 8 | EH6: =INDEX(Lookups!$B:$B,MATCH(LEFT(EH$7,LEN(EH$7)-1),Lookups!$A:$A,0),1) -> Rating Area 9 | EI6: =INDEX(Lookups!$B:$B,MATCH(LEFT(EI$7,LEN(EI$7)-1),Lookups!$A:$A,0),1) -> Rating Area 9 | EJ6: =INDEX(Lookups!$B:$B,MATCH(LEFT(EJ$7,LEN(EJ$7)-1),Lookups!$A:$A,0),1) -> Rating Area 9 | EK6: =INDEX(Lookups!$B:$B,MATCH(LEFT(EK$7,LEN(EK$7)-1),Lookups!$A:$A,0),1) -> Rating Area 9 | EL6: =INDEX(Lookups!$B:$B,MATCH(LEFT(EL$7,LEN(EL$7)-1),Lookups!$A:$A,0),1) -> Rating Area 9 | EM6: =INDEX(Lookups!$B:$B,MATCH(LEFT(EM$7,LEN(EM$7)-1),Lookups!$A:$A,0),1) -> Rating Area 9 | EN6: =INDEX(Lookups!$B:$B,MATCH(LEFT(EN$7,LEN(EN$7)-1),Lookups!$A:$A,0),1) -> Rating Area 9
B7: Parent Company | C7: Legal Entity | D7: Market | E7: HIOS Plan ID | F7: Plan Marketing Name | G7: Product | H7: Metal | I7: On/Off Exchange | J7: Issuers Exhibit Ind | K7: Clarion | L7: Crawford | M7: Erie | N7: Forest | O7: McKean | P7: Mercer | Q7: Venango | R7: Warren | S7: Cameron | T7: Elk | U7: Potter | V7: Bradford | W7: Carbon | X7: Clinton | Y7: Lackawanna | Z7: Luzerne | AA7: Lycoming | AB7: Monroe | AC7: Pike | AD7: Sullivan | AE7: Susquehanna | AF7: Tioga | AG7: Wayne | AH7: Wyoming | AI7: Allegheny | AJ7: Armstrong | AK7: Beaver | AL7: Butler | AM7: Fayette | AN7: Greene | AO7: Indiana | AP7: Lawrence | AQ7: Washington | AR7: Westmoreland | AS7: Bedford | AT7: Blair | AU7: Cambria | AV7: Clearfield | AW7: Huntingdon | AX7: Jefferson | AY7: Somerset | AZ7: Centre | BA7: Columbia | BB7: Lehigh | BC7: Mifflin | BD7: Montour | BE7: Northampton | BF7: Northumberland | BG7: Schuylkill | BH7: Snyder | BI7: Union | BJ7: Adams | BK7: Berks | BL7: Lancaster | BM7: York | BN7: Bucks | BO7: Chester | BP7: Delaware | BQ7: Montgomery | BR7: Philadelphia | BS7: Cumberland | BT7: Dauphin | BU7: Franklin | BV7: Fulton | BW7: Juniata | BX7: Lebanon | BY7: Perry | BZ7: Clarion2 | CA7: Crawford2 | CB7: Erie2 | CC7: Forest2 | CD7: McKean2 | CE7: Mercer2 | CF7: Venango2 | CG7: Warren2 | CH7: Cameron2 | CI7: Elk2 | CJ7: Potter2 | CK7: Bradford2 | CL7: Carbon2 | CM7: Clinton2 | CN7: Lackawanna2 | CO7: Luzerne2 | CP7: Lycoming2 | CQ7: Monroe2 | CR7: Pike2 | CS7: Sullivan2 | CT7: Susquehanna2 | CU7: Tioga2 | CV7: Wayne2 | CW7: Wyoming2 | CX7: Allegheny2 | CY7: Armstrong2 | CZ7: Beaver2 | DA7: Butler2 | DB7: Fayette2 | DC7: Greene2 | DD7: Indiana2 | DE7: Lawrence2 | DF7: Washington2 | DG7: Westmoreland2 | DH7: Bedford2 | DI7: Blair2 | DJ7: Cambria2 | DK7: Clearfield2 | DL7: Huntingdon2 | DM7: Jefferson2 | DN7: Somerset2 | DO7: Centre2 | DP7: Columbia2 | DQ7: Lehigh2 | DR7: Mifflin2 | DS7: Montour2 | DT7: Northampton2 | DU7: Northumberland2 | DV7: Schuylkill2 | DW7: Snyder2 | DX7: Union2 | DY7: Adams2 | DZ7: Berks2 | EA7: Lancaster2 | EB7: York2 | EC7: Bucks2 | ED7: Chester2 | EE7: Delaware2 | EF7: Montgomery2 | EG7: Philadelphia2 | EH7: Cumberland2 | EI7: Dauphin2 | EJ7: Franklin2 | EK7: Fulton2 | EL7: Juniata2 | EM7: Lebanon2 | EN7: Perry2
B8: Aetna | C8: Aetna Health Inc. PA AZ DC DE IN KY MA MD NV NC OK TN VA WV | D8: Small Group | E8: 64844PA0060126 | F8: PA Silver QPOS 5000 80/50 | G8: QPOS | H8: Silver | I8: Off | J8: =IF(PriorIssTable[[#This Row],[Market]]<>Iss_Cnty_Mkt,0,IF(OR(Iss_Cnty_Exch="On/Off",PriorIssTable[[#This Row],[On/Off Exchange]]="On/Off"),1,IF(PriorIssTable[[#This Row],[On/Off Exchange]]<>Iss_Cnty_Exch,0,1))) -> 0 | K8: =IF(OR(PriorIssTable[[#This Row],[Issuers Exhibit Ind]]=0,'Prior Plans'!J8={0,""},COUNTIFS($C$8:$C8,PriorIssTable[[#This Row],[Legal Entity]],$J$8:$J8,PriorIssTable[[#This Row],[Issuers Exhibit Ind]],$H$8:$H8,PriorIssTable[[#This Row],[Metal]],'Prior Plans'!J$8:J8,">0")>1),0,1) -> 0 | L8: =IF(OR(PriorIssTable[[#This Row],[Issuers Exhibit Ind]]=0,'Prior Plans'!K8={0,""},COUNTIFS($C$8:$C8,PriorIssTable[[#This Row],[Legal Entity]],$J$8:$J8,PriorIssTable[[#This Row],[Issuers Exhibit Ind]],$H$8:$H8,PriorIssTable[[#This Row],[Metal]],'Prior Plans'!K$8:K8,">0")>1),0,1) -> 0 | M8: =IF(OR(PriorIssTable[[#This Row],[Issuers Exhibit Ind]]=0,'Prior Plans'!L8={0,""},COUNTIFS($C$8:$C8,PriorIssTable[[#This Row],[Legal Entity]],$J$8:$J8,PriorIssTable[[#This Row],[Issuers Exhibit Ind]],$H$8:$H8,PriorIssTable[[#This Row],[Metal]],'Prior Plans'!L$8:L8,">0")>1),0,1) -> 0 | N8: =IF(OR(PriorIssTable[[#This Row],[Issuers Exhibit Ind]]=0,'Prior Plans'!M8={0,""},COUNTIFS($C$8:$C8,PriorIssTable[[#This Row],[Legal Entity]],$J$8:$J8,PriorIssTable[[#This Row],[Issuers Exhibit Ind]],$H$8:$H8,PriorIssTable[[#This Row],[Metal]],'Prior Plans'!M$8:M8,">0")>1),0,1) -> 0 | O8: =IF(OR(PriorIssTable[[#This Row],[Issuers Exhibit Ind]]=0,'Prior Plans'!N8={0,""},COUNTIFS($C$8:$C8,PriorIssTable[[#This Row],[Legal Entity]],$J$8:$J8,PriorIssTable[[#This Row],[Issuers Exhibit Ind]],$H$8:$H8,PriorIssTable[[#This Row],[Metal]],'Prior Plans'!N$8:N8,">0")>1),0,1) -> 0 | P8: =IF(OR(PriorIssTable[[#This Row],[Issuers Exhibit Ind]]=0,'Prior Plans'!O8={0,""},COUNTIFS($C$8:$C8,PriorIssTable[[#This Row],[Legal Entity]],$J$8:$J8,PriorIssTable[[#This Row],[Issuers Exhibit Ind]],$H$8:$H8,PriorIssTable[[#This Row],[Metal]],'Prior Plans'!O$8:O8,">0")>1),0,1) -> 0 | Q8: =IF(OR(PriorIssTable[[#This Row],[Issuers Exhibit Ind]]=0,'Prior Plans'!P8={0,""},COUNTIFS($C$8:$C8,PriorIssTable[[#This Row],[Legal Entity]],$J$8:$J8,PriorIssTable[[#This Row],[Issuers Exhibit Ind]],$H$8:$H8,PriorIssTable[[#This Row],[Metal]],'Prior Plans'!P$8:P8,">0")>1),0,1) -> 0 | R8: =IF(OR(PriorIssTable[[#This Row],[Issuers Exhibit Ind]]=0,'Prior Plans'!Q8={0,""},COUNTIFS($C$8:$C8,PriorIssTable[[#This Row],[Legal Entity]],$J$8:$J8,PriorIssTable[[#This Row],[Issuers Exhibit Ind]],$H$8:$H8,PriorIssTable[[#This Row],[Metal]],'Prior Plans'!Q$8:Q8,">0")>1),0,1) -> 0 | S8: =IF(OR(PriorIssTable[[#This Row],[Issuers Exhibit Ind]]=0,'Prior Plans'!R8={0,""},COUNTIFS($C$8:$C8,PriorIssTable[[#This Row],[Legal Entity]],$J$8:$J8,PriorIssTable[[#This Row],[Issuers Exhibit Ind]],$H$8:$H8,PriorIssTable[[#This Row],[Metal]],'Prior Plans'!R$8:R8,">0")>1),0,1) -> 0 | T8: =IF(OR(PriorIssTable[[#This Row],[Issuers Exhibit Ind]]=0,'Prior Plans'!S8={0,""},COUNTIFS($C$8:$C8,PriorIssTable[[#This Row],[Legal Entity]],$J$8:$J8,PriorIssTable[[#This Row],[Issuers Exhibit Ind]],$H$8:$H8,PriorIssTable[[#This Row],[Metal]],'Prior Plans'!S$8:S8,">0")>1),0,1) -> 0 | U8: =IF(OR(PriorIssTable[[#This Row],[Issuers Exhibit Ind]]=0,'Prior Plans'!T8={0,""},COUNTIFS($C$8:$C8,PriorIssTable[[#This Row],[Legal Entity]],$J$8:$J8,PriorIssTable[[#This Row],[Issuers Exhibit Ind]],$H$8:$H8,PriorIssTable[[#This Row],[Metal]],'Prior Plans'!T$8:T8,">0")>1),0,1) -> 0 | V8: =IF(OR(PriorIssTable[[#This Row],[Issuers Exhibit Ind]]=0,'Prior Plans'!U8={0,""},COUNTIFS($C$8:$C8,PriorIssTable[[#This Row],[Legal Entity]],$J$8:$J8,PriorIssTable[[#This Row],[Issuers Exhibit Ind]],$H$8:$H8,PriorIssTable[[#This Row],[Metal]],'Prior Plans'!U$8:U8,">0")>1),0,1) -> 0 | W8: =IF(OR(PriorIssTable[[#This Row],[Issuers Exhibit Ind]]=0,'Prior Plans'!V8={0,""},COUNTIFS($C$8:$C8,PriorIssTable[[#This Row],[Legal Entity]],$J$8:$J8,PriorIssTable[[#This Row],[Issuers Exhibit Ind]],$H$8:$H8,PriorIssTable[[#This Row],[Metal]],'Prior Plans'!V$8:V8,">0")>1),0,1) -> 0 | X8: =IF(OR(PriorIssTable[[#This Row],[Issuers Exhibit Ind]]=0,'Prior Plans'!W8={0,""},COUNTIFS($C$8:$C8,PriorIssTable[[#This Row],[Legal Entity]],$J$8:$J8,PriorIssTable[[#This Row],[Issuers Exhibit Ind]],$H$8:$H8,PriorIssTable[[#This Row],[Metal]],'Prior Plans'!W$8:W8,">0")>1),0,1) -> 0 | Y8: =IF(OR(PriorIssTable[[#This Row],[Issuers Exhibit Ind]]=0,'Prior Plans'!X8={0,""},COUNTIFS($C$8:$C8,PriorIssTable[[#This Row],[Legal Entity]],$J$8:$J8,PriorIssTable[[#This Row],[Issuers Exhibit Ind]],$H$8:$H8,PriorIssTable[[#This Row],[Metal]],'Prior Plans'!X$8:X8,">0")>1),0,1) -> 0 | Z8: =IF(OR(PriorIssTable[[#This Row],[Issuers Exhibit Ind]]=0,'Prior Plans'!Y8={0,""},COUNTIFS($C$8:$C8,PriorIssTable[[#This Row],[Legal Entity]],$J$8:$J8,PriorIssTable[[#This Row],[Issuers Exhibit Ind]],$H$8:$H8,PriorIssTable[[#This Row],[Metal]],'Prior Plans'!Y$8:Y8,">0")>1),0,1) -> 0 | AA8: =IF(OR(PriorIssTable[[#This Row],[Issuers Exhibit Ind]]=0,'Prior Plans'!Z8={0,""},COUNTIFS($C$8:$C8,PriorIssTable[[#This Row],[Legal Entity]],$J$8:$J8,PriorIssTable[[#This Row],[Issuers Exhibit Ind]],$H$8:$H8,PriorIssTable[[#This Row],[Metal]],'Prior Plans'!Z$8:Z8,">0")>1),0,1) -> 0 | AB8: =IF(OR(PriorIssTable[[#This Row],[Issuers Exhibit Ind]]=0,'Prior Plans'!AA8={0,""},COUNTIFS($C$8:$C8,PriorIssTable[[#This Row],[Legal Entity]],$J$8:$J8,PriorIssTable[[#This Row],[Issuers Exhibit Ind]],$H$8:$H8,PriorIssTable[[#This Row],[Metal]],'Prior Plans'!AA$8:AA8,">0")>1),0,1) -> 0 | AC8: =IF(OR(PriorIssTable[[#This Row],[Issuers Exhibit Ind]]=0,'Prior Plans'!AB8={0,""},COUNTIFS($C$8:$C8,PriorIssTable[[#This Row],[Legal Entity]],$J$8:$J8,PriorIssTable[[#This Row],[Issuers Exhibit Ind]],$H$8:$H8,PriorIssTable[[#This Row],[Metal]],'Prior Plans'!AB$8:AB8,">0")>1),0,1) -> 0 | AD8: =IF(OR(PriorIssTable[[#This Row],[Issuers Exhibit Ind]]=0,'Prior Plans'!AC8={0,""},COUNTIFS($C$8:$C8,PriorIssTable[[#This Row],[Legal Entity]],$J$8:$J8,PriorIssTable[[#This Row],[Issuers Exhibit Ind]],$H$8:$H8,PriorIssTable[[#This Row],[Metal]],'Prior Plans'!AC$8:AC8,">0")>1),0,1) -> 0 | AE8: =IF(OR(PriorIssTable[[#This Row],[Issuers Exhibit Ind]]=0,'Prior Plans'!AD8={0,""},COUNTIFS($C$8:$C8,PriorIssTable[[#This Row],[Legal Entity]],$J$8:$J8,PriorIssTable[[#This Row],[Issuers Exhibit Ind]],$H$8:$H8,PriorIssTable[[#This Row],[Metal]],'Prior Plans'!AD$8:AD8,">0")>1),0,1) -> 0 | AF8: =IF(OR(PriorIssTable[[#This Row],[Issuers Exhibit Ind]]=0,'Prior Plans'!AE8={0,""},COUNTIFS($C$8:$C8,PriorIssTable[[#This Row],[Legal Entity]],$J$8:$J8,PriorIssTable[[#This Row],[Issuers Exhibit Ind]],$H$8:$H8,PriorIssTable[[#This Row],[Metal]],'Prior Plans'!AE$8:AE8,">0")>1),0,1) -> 0 | AG8: =IF(OR(PriorIssTable[[#This Row],[Issuers Exhibit Ind]]=0,'Prior Plans'!AF8={0,""},COUNTIFS($C$8:$C8,PriorIssTable[[#This Row],[Legal Entity]],$J$8:$J8,PriorIssTable[[#This Row],[Issuers Exhibit Ind]],$H$8:$H8,PriorIssTable[[#This Row],[Metal]],'Prior Plans'!AF$8:AF8,">0")>1),0,1) -> 0 | AH8: =IF(OR(PriorIssTable[[#This Row],[Issuers Exhibit Ind]]=0,'Prior Plans'!AG8={0,""},COUNTIFS($C$8:$C8,PriorIssTable[[#This Row],[Legal Entity]],$J$8:$J8,PriorIssTable[[#This Row],[Issuers Exhibit Ind]],$H$8:$H8,PriorIssTable[[#This Row],[Metal]],'Prior Plans'!AG$8:AG8,">0")>1),0,1) -> 0 | AI8: =IF(OR(PriorIssTable[[#This Row],[Issuers Exhibit Ind]]=0,'Prior Plans'!AH8={0,""},COUNTIFS($C$8:$C8,PriorIssTable[[#This Row],[Legal Entity]],$J$8:$J8,PriorIssTable[[#This Row],[Issuers Exhibit Ind]],$H$8:$H8,PriorIssTable[[#This Row],[Metal]],'Prior Plans'!AH$8:AH8,">0")>1),0,1) -> 0 | AJ8: =IF(OR(PriorIssTable[[#This Row],[Issuers Exhibit Ind]]=0,'Prior Plans'!AI8={0,""},COUNTIFS($C$8:$C8,PriorIssTable[[#This Row],[Legal Entity]],$J$8:$J8,PriorIssTable[[#This Row],[Issuers Exhibit Ind]],$H$8:$H8,PriorIssTable[[#This Row],[Metal]],'Prior Plans'!AI$8:AI8,">0")>1),0,1) -> 0 | AK8: =IF(OR(PriorIssTable[[#This Row],[Issuers Exhibit Ind]]=0,'Prior Plans'!AJ8={0,""},COUNTIFS($C$8:$C8,PriorIssTable[[#This Row],[Legal Entity]],$J$8:$J8,PriorIssTable[[#This Row],[Issuers Exhibit Ind]],$H$8:$H8,PriorIssTable[[#This Row],[Metal]],'Prior Plans'!AJ$8:AJ8,">0")>1),0,1) -> 0 | AL8: =IF(OR(PriorIssTable[[#This Row],[Issuers Exhibit Ind]]=0,'Prior Plans'!AK8={0,""},COUNTIFS($C$8:$C8,PriorIssTable[[#This Row],[Legal Entity]],$J$8:$J8,PriorIssTable[[#This Row],[Issuers Exhibit Ind]],$H$8:$H8,PriorIssTable[[#This Row],[Metal]],'Prior Plans'!AK$8:AK8,">0")>1),0,1) -> 0 | AM8: =IF(OR(PriorIssTable[[#This Row],[Issuers Exhibit Ind]]=0,'Prior Plans'!AL8={0,""},COUNTIFS($C$8:$C8,PriorIssTable[[#This Row],[Legal Entity]],$J$8:$J8,PriorIssTable[[#This Row],[Issuers Exhibit Ind]],$H$8:$H8,PriorIssTable[[#This Row],[Metal]],'Prior Plans'!AL$8:AL8,">0")>1),0,1) -> 0 | AN8: =IF(OR(PriorIssTable[[#This Row],[Issuers Exhibit Ind]]=0,'Prior Plans'!AM8={0,""},COUNTIFS($C$8:$C8,PriorIssTable[[#This Row],[Legal Entity]],$J$8:$J8,PriorIssTable[[#This Row],[Issuers Exhibit Ind]],$H$8:$H8,PriorIssTable[[#This Row],[Metal]],'Prior Plans'!AM$8:AM8,">0")>1),0,1) -> 0 | AO8: =IF(OR(PriorIssTable[[#This Row],[Issuers Exhibit Ind]]=0,'Prior Plans'!AN8={0,""},COUNTIFS($C$8:$C8,PriorIssTable[[#This Row],[Legal Entity]],$J$8:$J8,PriorIssTable[[#This Row],[Issuers Exhibit Ind]],$H$8:$H8,PriorIssTable[[#This Row],[Metal]],'Prior Plans'!AN$8:AN8,">0")>1),0,1) -> 0 | AP8: =IF(OR(PriorIssTable[[#This Row],[Issuers Exhibit Ind]]=0,'Prior Plans'!AO8={0,""},COUNTIFS($C$8:$C8,PriorIssTable[[#This Row],[Legal Entity]],$J$8:$J8,PriorIssTable[[#This Row],[Issuers Exhibit Ind]],$H$8:$H8,PriorIssTable[[#This Row],[Metal]],'Prior Plans'!AO$8:AO8,">0")>1),0,1) -> 0 | AQ8: =IF(OR(PriorIssTable[[#This Row],[Issuers Exhibit Ind]]=0,'Prior Plans'!AP8={0,""},COUNTIFS($C$8:$C8,PriorIssTable[[#This Row],[Legal Entity]],$J$8:$J8,PriorIssTable[[#This Row],[Issuers Exhibit Ind]],$H$8:$H8,PriorIssTable[[#This Row],[Metal]],'Prior Plans'!AP$8:AP8,">0")>1),0,1) -> 0 | AR8: =IF(OR(PriorIssTable[[#This Row],[Issuers Exhibit Ind]]=0,'Prior Plans'!AQ8={0,""},COUNTIFS($C$8:$C8,PriorIssTable[[#This Row],[Legal Entity]],$J$8:$J8,PriorIssTable[[#This Row],[Issuers Exhibit Ind]],$H$8:$H8,PriorIssTable[[#This Row],[Metal]],'Prior Plans'!AQ$8:AQ8,">0")>1),0,1) -> 0 | AS8: =IF(OR(PriorIssTable[[#This Row],[Issuers Exhibit Ind]]=0,'Prior Plans'!AR8={0,""},COUNTIFS($C$8:$C8,PriorIssTable[[#This Row],[Legal Entity]],$J$8:$J8,PriorIssTable[[#This Row],[Issuers Exhibit Ind]],$H$8:$H8,PriorIssTable[[#This Row],[Metal]],'Prior Plans'!AR$8:AR8,">0")>1),0,1) -> 0 | AT8: =IF(OR(PriorIssTable[[#This Row],[Issuers Exhibit Ind]]=0,'Prior Plans'!AS8={0,""},COUNTIFS($C$8:$C8,PriorIssTable[[#This Row],[Legal Entity]],$J$8:$J8,PriorIssTable[[#This Row],[Issuers Exhibit Ind]],$H$8:$H8,PriorIssTable[[#This Row],[Metal]],'Prior Plans'!AS$8:AS8,">0")>1),0,1) -> 0 | AU8: =IF(OR(PriorIssTable[[#This Row],[Issuers Exhibit Ind]]=0,'Prior Plans'!AT8={0,""},COUNTIFS($C$8:$C8,PriorIssTable[[#This Row],[Legal Entity]],$J$8:$J8,PriorIssTable[[#This Row],[Issuers Exhibit Ind]],$H$8:$H8,PriorIssTable[[#This Row],[Metal]],'Prior Plans'!AT$8:AT8,">0")>1),0,1) -> 0 | AV8: =IF(OR(PriorIssTable[[#This Row],[Issuers Exhibit Ind]]=0,'Prior Plans'!AU8={0,""},COUNTIFS($C$8:$C8,PriorIssTable[[#This Row],[Legal Entity]],$J$8:$J8,PriorIssTable[[#This Row],[Issuers Exhibit Ind]],$H$8:$H8,PriorIssTable[[#This Row],[Metal]],'Prior Plans'!AU$8:AU8,">0")>1),0,1) -> 0 | AW8: =IF(OR(PriorIssTable[[#This Row],[Issuers Exhibit Ind]]=0,'Prior Plans'!AV8={0,""},COUNTIFS($C$8:$C8,PriorIssTable[[#This Row],[Legal Entity]],$J$8:$J8,PriorIssTable[[#This Row],[Issuers Exhibit Ind]],$H$8:$H8,PriorIssTable[[#This Row],[Metal]],'Prior Plans'!AV$8:AV8,">0")>1),0,1) -> 0 | AX8: =IF(OR(PriorIssTable[[#This Row],[Issuers Exhibit Ind]]=0,'Prior Plans'!AW8={0,""},COUNTIFS($C$8:$C8,PriorIssTable[[#This Row],[Legal Entity]],$J$8:$J8,PriorIssTable[[#This Row],[Issuers Exhibit Ind]],$H$8:$H8,PriorIssTable[[#This Row],[Metal]],'Prior Plans'!AW$8:AW8,">0")>1),0,1) -> 0 | AY8: =IF(OR(PriorIssTable[[#This Row],[Issuers Exhibit Ind]]=0,'Prior Plans'!AX8={0,""},COUNTIFS($C$8:$C8,PriorIssTable[[#This Row],[Legal Entity]],$J$8:$J8,PriorIssTable[[#This Row],[Issuers Exhibit Ind]],$H$8:$H8,PriorIssTable[[#This Row],[Metal]],'Prior Plans'!AX$8:AX8,">0")>1),0,1) -> 0 | AZ8: =IF(OR(PriorIssTable[[#This Row],[Issuers Exhibit Ind]]=0,'Prior Plans'!AY8={0,""},COUNTIFS($C$8:$C8,PriorIssTable[[#This Row],[Legal Entity]],$J$8:$J8,PriorIssTable[[#This Row],[Issuers Exhibit Ind]],$H$8:$H8,PriorIssTable[[#This Row],[Metal]],'Prior Plans'!AY$8:AY8,">0")>1),0,1) -> 0 | BA8: =IF(OR(PriorIssTable[[#This Row],[Issuers Exhibit Ind]]=0,'Prior Plans'!AZ8={0,""},COUNTIFS($C$8:$C8,PriorIssTable[[#This Row],[Legal Entity]],$J$8:$J8,PriorIssTable[[#This Row],[Issuers Exhibit Ind]],$H$8:$H8,PriorIssTable[[#This Row],[Metal]],'Prior Plans'!AZ$8:AZ8,">0")>1),0,1) -> 0 | BB8: =IF(OR(PriorIssTable[[#This Row],[Issuers Exhibit Ind]]=0,'Prior Plans'!BA8={0,""},COUNTIFS($C$8:$C8,PriorIssTable[[#This Row],[Legal Entity]],$J$8:$J8,PriorIssTable[[#This Row],[Issuers Exhibit Ind]],$H$8:$H8,PriorIssTable[[#This Row],[Metal]],'Prior Plans'!BA$8:BA8,">0")>1),0,1) -> 0 | BC8: =IF(OR(PriorIssTable[[#This Row],[Issuers Exhibit Ind]]=0,'Prior Plans'!BB8={0,""},COUNTIFS($C$8:$C8,PriorIssTable[[#This Row],[Legal Entity]],$J$8:$J8,PriorIssTable[[#This Row],[Issuers Exhibit Ind]],$H$8:$H8,PriorIssTable[[#This Row],[Metal]],'Prior Plans'!BB$8:BB8,">0")>1),0,1) -> 0 | BD8: =IF(OR(PriorIssTable[[#This Row],[Issuers Exhibit Ind]]=0,'Prior Plans'!BC8={0,""},COUNTIFS($C$8:$C8,PriorIssTable[[#This Row],[Legal Entity]],$J$8:$J8,PriorIssTable[[#This Row],[Issuers Exhibit Ind]],$H$8:$H8,PriorIssTable[[#This Row],[Metal]],'Prior Plans'!BC$8:BC8,">0")>1),0,1) -> 0 | BE8: =IF(OR(PriorIssTable[[#This Row],[Issuers Exhibit Ind]]=0,'Prior Plans'!BD8={0,""},COUNTIFS($C$8:$C8,PriorIssTable[[#This Row],[Legal Entity]],$J$8:$J8,PriorIssTable[[#This Row],[Issuers Exhibit Ind]],$H$8:$H8,PriorIssTable[[#This Row],[Metal]],'Prior Plans'!BD$8:BD8,">0")>1),0,1) -> 0 | BF8: =IF(OR(PriorIssTable[[#This Row],[Issuers Exhibit Ind]]=0,'Prior Plans'!BE8={0,""},COUNTIFS($C$8:$C8,PriorIssTable[[#This Row],[Legal Entity]],$J$8:$J8,PriorIssTable[[#This Row],[Issuers Exhibit Ind]],$H$8:$H8,PriorIssTable[[#This Row],[Metal]],'Prior Plans'!BE$8:BE8,">0")>1),0,1) -> 0 | BG8: =IF(OR(PriorIssTable[[#This Row],[Issuers Exhibit Ind]]=0,'Prior Plans'!BF8={0,""},COUNTIFS($C$8:$C8,PriorIssTable[[#This Row],[Legal Entity]],$J$8:$J8,PriorIssTable[[#This Row],[Issuers Exhibit Ind]],$H$8:$H8,PriorIssTable[[#This Row],[Metal]],'Prior Plans'!BF$8:BF8,">0")>1),0,1) -> 0 | BH8: =IF(OR(PriorIssTable[[#This Row],[Issuers Exhibit Ind]]=0,'Prior Plans'!BG8={0,""},COUNTIFS($C$8:$C8,PriorIssTable[[#This Row],[Legal Entity]],$J$8:$J8,PriorIssTable[[#This Row],[Issuers Exhibit Ind]],$H$8:$H8,PriorIssTable[[#This Row],[Metal]],'Prior Plans'!BG$8:BG8,">0")>1),0,1) -> 0 | BI8: =IF(OR(PriorIssTable[[#This Row],[Issuers Exhibit Ind]]=0,'Prior Plans'!BH8={0,""},COUNTIFS($C$8:$C8,PriorIssTable[[#This Row],[Legal Entity]],$J$8:$J8,PriorIssTable[[#This Row],[Issuers Exhibit Ind]],$H$8:$H8,PriorIssTable[[#This Row],[Metal]],'Prior Plans'!BH$8:BH8,">0")>1),0,1) -> 0 | BJ8: =IF(OR(PriorIssTable[[#This Row],[Issuers Exhibit Ind]]=0,'Prior Plans'!BI8={0,""},COUNTIFS($C$8:$C8,PriorIssTable[[#This Row],[Legal Entity]],$J$8:$J8,PriorIssTable[[#This Row],[Issuers Exhibit Ind]],$H$8:$H8,PriorIssTable[[#This Row],[Metal]],'Prior Plans'!BI$8:BI8,">0")>1),0,1) -> 0 | BK8: =IF(OR(PriorIssTable[[#This Row],[Issuers Exhibit Ind]]=0,'Prior Plans'!BJ8={0,""},COUNTIFS($C$8:$C8,PriorIssTable[[#This Row],[Legal Entity]],$J$8:$J8,PriorIssTable[[#This Row],[Issuers Exhibit Ind]],$H$8:$H8,PriorIssTable[[#This Row],[Metal]],'Prior Plans'!BJ$8:BJ8,">0")>1),0,1) -> 0 | BL8: =IF(OR(PriorIssTable[[#This Row],[Issuers Exhibit Ind]]=0,'Prior Plans'!BK8={0,""},COUNTIFS($C$8:$C8,PriorIssTable[[#This Row],[Legal Entity]],$J$8:$J8,PriorIssTable[[#This Row],[Issuers Exhibit Ind]],$H$8:$H8,PriorIssTable[[#This Row],[Metal]],'Prior Plans'!BK$8:BK8,">0")>1),0,1) -> 0 | BM8: =IF(OR(PriorIssTable[[#This Row],[Issuers Exhibit Ind]]=0,'Prior Plans'!BL8={0,""},COUNTIFS($C$8:$C8,PriorIssTable[[#This Row],[Legal Entity]],$J$8:$J8,PriorIssTable[[#This Row],[Issuers Exhibit Ind]],$H$8:$H8,PriorIssTable[[#This Row],[Metal]],'Prior Plans'!BL$8:BL8,">0")>1),0,1) -> 0 | BN8: =IF(OR(PriorIssTable[[#This Row],[Issuers Exhibit Ind]]=0,'Prior Plans'!BM8={0,""},COUNTIFS($C$8:$C8,PriorIssTable[[#This Row],[Legal Entity]],$J$8:$J8,PriorIssTable[[#This Row],[Issuers Exhibit Ind]],$H$8:$H8,PriorIssTable[[#This Row],[Metal]],'Prior Plans'!BM$8:BM8,">0")>1),0,1) -> 0 | BO8: =IF(OR(PriorIssTable[[#This Row],[Issuers Exhibit Ind]]=0,'Prior Plans'!BN8={0,""},COUNTIFS($C$8:$C8,PriorIssTable[[#This Row],[Legal Entity]],$J$8:$J8,PriorIssTable[[#This Row],[Issuers Exhibit Ind]],$H$8:$H8,PriorIssTable[[#This Row],[Metal]],'Prior Plans'!BN$8:BN8,">0")>1),0,1) -> 0 | BP8: =IF(OR(PriorIssTable[[#This Row],[Issuers Exhibit Ind]]=0,'Prior Plans'!BO8={0,""},COUNTIFS($C$8:$C8,PriorIssTable[[#This Row],[Legal Entity]],$J$8:$J8,PriorIssTable[[#This Row],[Issuers Exhibit Ind]],$H$8:$H8,PriorIssTable[[#This Row],[Metal]],'Prior Plans'!BO$8:BO8,">0")>1),0,1) -> 0 | BQ8: =IF(OR(PriorIssTable[[#This Row],[Issuers Exhibit Ind]]=0,'Prior Plans'!BP8={0,""},COUNTIFS($C$8:$C8,PriorIssTable[[#This Row],[Legal Entity]],$J$8:$J8,PriorIssTable[[#This Row],[Issuers Exhibit Ind]],$H$8:$H8,PriorIssTable[[#This Row],[Metal]],'Prior Plans'!BP$8:BP8,">0")>1),0,1) -> 0 | BR8: =IF(OR(PriorIssTable[[#This Row],[Issuers Exhibit Ind]]=0,'Prior Plans'!BQ8={0,""},COUNTIFS($C$8:$C8,PriorIssTable[[#This Row],[Legal Entity]],$J$8:$J8,PriorIssTable[[#This Row],[Issuers Exhibit Ind]],$H$8:$H8,PriorIssTable[[#This Row],[Metal]],'Prior Plans'!BQ$8:BQ8,">0")>1),0,1) -> 0 | BS8: =IF(OR(PriorIssTable[[#This Row],[Issuers Exhibit Ind]]=0,'Prior Plans'!BR8={0,""},COUNTIFS($C$8:$C8,PriorIssTable[[#This Row],[Legal Entity]],$J$8:$J8,PriorIssTable[[#This Row],[Issuers Exhibit Ind]],$H$8:$H8,PriorIssTable[[#This Row],[Metal]],'Prior Plans'!BR$8:BR8,">0")>1),0,1) -> 0 | BT8: =IF(OR(PriorIssTable[[#This Row],[Issuers Exhibit Ind]]=0,'Prior Plans'!BS8={0,""},COUNTIFS($C$8:$C8,PriorIssTable[[#This Row],[Legal Entity]],$J$8:$J8,PriorIssTable[[#This Row],[Issuers Exhibit Ind]],$H$8:$H8,PriorIssTable[[#This Row],[Metal]],'Prior Plans'!BS$8:BS8,">0")>1),0,1) -> 0 | BU8: =IF(OR(PriorIssTable[[#This Row],[Issuers Exhibit Ind]]=0,'Prior Plans'!BT8={0,""},COUNTIFS($C$8:$C8,PriorIssTable[[#This Row],[Legal Entity]],$J$8:$J8,PriorIssTable[[#This Row],[Issuers Exhibit Ind]],$H$8:$H8,PriorIssTable[[#This Row],[Metal]],'Prior Plans'!BT$8:BT8,">0")>1),0,1) -> 0 | BV8: =IF(OR(PriorIssTable[[#This Row],[Issuers Exhibit Ind]]=0,'Prior Plans'!BU8={0,""},COUNTIFS($C$8:$C8,PriorIssTable[[#This Row],[Legal Entity]],$J$8:$J8,PriorIssTable[[#This Row],[Issuers Exhibit Ind]],$H$8:$H8,PriorIssTable[[#This Row],[Metal]],'Prior Plans'!BU$8:BU8,">0")>1),0,1) -> 0 | BW8: =IF(OR(PriorIssTable[[#This Row],[Issuers Exhibit Ind]]=0,'Prior Plans'!BV8={0,""},COUNTIFS($C$8:$C8,PriorIssTable[[#This Row],[Legal Entity]],$J$8:$J8,PriorIssTable[[#This Row],[Issuers Exhibit Ind]],$H$8:$H8,PriorIssTable[[#This Row],[Metal]],'Prior Plans'!BV$8:BV8,">0")>1),0,1) -> 0 | BX8: =IF(OR(PriorIssTable[[#This Row],[Issuers Exhibit Ind]]=0,'Prior Plans'!BW8={0,""},COUNTIFS($C$8:$C8,PriorIssTable[[#This Row],[Legal Entity]],$J$8:$J8,PriorIssTable[[#This Row],[Issuers Exhibit Ind]],$H$8:$H8,PriorIssTable[[#This Row],[Metal]],'Prior Plans'!BW$8:BW8,">0")>1),0,1) -> 0 | BY8: =IF(OR(PriorIssTable[[#This Row],[Issuers Exhibit Ind]]=0,'Prior Plans'!BX8={0,""},COUNTIFS($C$8:$C8,PriorIssTable[[#This Row],[Legal Entity]],$J$8:$J8,PriorIssTable[[#This Row],[Issuers Exhibit Ind]],$H$8:$H8,PriorIssTable[[#This Row],[Metal]],'Prior Plans'!BX$8:BX8,">0")>1),0,1) -> 0 | BZ8: =IF(OR(PriorIssTable[[#This Row],[Issuers Exhibit Ind]]=0,'Prior Plans'!J8=0,'Prior Plans'!J8="",COUNTIFS($C$8:$C8,PriorIssTable[[#This Row],[Legal Entity]],$J$8:$J8,PriorIssTable[[#This Row],[Issuers Exhibit Ind]],'Prior Plans'!J$8:J8,">0")>1),0,1) -> 0 | CA8: =IF(OR(PriorIssTable[[#This Row],[Issuers Exhibit Ind]]=0,'Prior Plans'!K8=0,'Prior Plans'!K8="",COUNTIFS($C$8:$C8,PriorIssTable[[#This Row],[Legal Entity]],$J$8:$J8,PriorIssTable[[#This Row],[Issuers Exhibit Ind]],'Prior Plans'!K$8:K8,">0")>1),0,1) -> 0 | CB8: =IF(OR(PriorIssTable[[#This Row],[Issuers Exhibit Ind]]=0,'Prior Plans'!L8=0,'Prior Plans'!L8="",COUNTIFS($C$8:$C8,PriorIssTable[[#This Row],[Legal Entity]],$J$8:$J8,PriorIssTable[[#This Row],[Issuers Exhibit Ind]],'Prior Plans'!L$8:L8,">0")>1),0,1) -> 0 | CC8: =IF(OR(PriorIssTable[[#This Row],[Issuers Exhibit Ind]]=0,'Prior Plans'!M8=0,'Prior Plans'!M8="",COUNTIFS($C$8:$C8,PriorIssTable[[#This Row],[Legal Entity]],$J$8:$J8,PriorIssTable[[#This Row],[Issuers Exhibit Ind]],'Prior Plans'!M$8:M8,">0")>1),0,1) -> 0 | CD8: =IF(OR(PriorIssTable[[#This Row],[Issuers Exhibit Ind]]=0,'Prior Plans'!N8=0,'Prior Plans'!N8="",COUNTIFS($C$8:$C8,PriorIssTable[[#This Row],[Legal Entity]],$J$8:$J8,PriorIssTable[[#This Row],[Issuers Exhibit Ind]],'Prior Plans'!N$8:N8,">0")>1),0,1) -> 0 | CE8: =IF(OR(PriorIssTable[[#This Row],[Issuers Exhibit Ind]]=0,'Prior Plans'!O8=0,'Prior Plans'!O8="",COUNTIFS($C$8:$C8,PriorIssTable[[#This Row],[Legal Entity]],$J$8:$J8,PriorIssTable[[#This Row],[Issuers Exhibit Ind]],'Prior Plans'!O$8:O8,">0")>1),0,1) -> 0 | CF8: =IF(OR(PriorIssTable[[#This Row],[Issuers Exhibit Ind]]=0,'Prior Plans'!P8=0,'Prior Plans'!P8="",COUNTIFS($C$8:$C8,PriorIssTable[[#This Row],[Legal Entity]],$J$8:$J8,PriorIssTable[[#This Row],[Issuers Exhibit Ind]],'Prior Plans'!P$8:P8,">0")>1),0,1) -> 0 | CG8: =IF(OR(PriorIssTable[[#This Row],[Issuers Exhibit Ind]]=0,'Prior Plans'!Q8=0,'Prior Plans'!Q8="",COUNTIFS($C$8:$C8,PriorIssTable[[#This Row],[Legal Entity]],$J$8:$J8,PriorIssTable[[#This Row],[Issuers Exhibit Ind]],'Prior Plans'!Q$8:Q8,">0")>1),0,1) -> 0 | CH8: =IF(OR(PriorIssTable[[#This Row],[Issuers Exhibit Ind]]=0,'Prior Plans'!R8=0,'Prior Plans'!R8="",COUNTIFS($C$8:$C8,PriorIssTable[[#This Row],[Legal Entity]],$J$8:$J8,PriorIssTable[[#This Row],[Issuers Exhibit Ind]],'Prior Plans'!R$8:R8,">0")>1),0,1) -> 0 | CI8: =IF(OR(PriorIssTable[[#This Row],[Issuers Exhibit Ind]]=0,'Prior Plans'!S8=0,'Prior Plans'!S8="",COUNTIFS($C$8:$C8,PriorIssTable[[#This Row],[Legal Entity]],$J$8:$J8,PriorIssTable[[#This Row],[Issuers Exhibit Ind]],'Prior Plans'!S$8:S8,">0")>1),0,1) -> 0 | CJ8: =IF(OR(PriorIssTable[[#This Row],[Issuers Exhibit Ind]]=0,'Prior Plans'!T8=0,'Prior Plans'!T8="",COUNTIFS($C$8:$C8,PriorIssTable[[#This Row],[Legal Entity]],$J$8:$J8,PriorIssTable[[#This Row],[Issuers Exhibit Ind]],'Prior Plans'!T$8:T8,">0")>1),0,1) -> 0 | CK8: =IF(OR(PriorIssTable[[#This Row],[Issuers Exhibit Ind]]=0,'Prior Plans'!U8=0,'Prior Plans'!U8="",COUNTIFS($C$8:$C8,PriorIssTable[[#This Row],[Legal Entity]],$J$8:$J8,PriorIssTable[[#This Row],[Issuers Exhibit Ind]],'Prior Plans'!U$8:U8,">0")>1),0,1) -> 0 | CL8: =IF(OR(PriorIssTable[[#This Row],[Issuers Exhibit Ind]]=0,'Prior Plans'!V8=0,'Prior Plans'!V8="",COUNTIFS($C$8:$C8,PriorIssTable[[#This Row],[Legal Entity]],$J$8:$J8,PriorIssTable[[#This Row],[Issuers Exhibit Ind]],'Prior Plans'!V$8:V8,">0")>1),0,1) -> 0 | CM8: =IF(OR(PriorIssTable[[#This Row],[Issuers Exhibit Ind]]=0,'Prior Plans'!W8=0,'Prior Plans'!W8="",COUNTIFS($C$8:$C8,PriorIssTable[[#This Row],[Legal Entity]],$J$8:$J8,PriorIssTable[[#This Row],[Issuers Exhibit Ind]],'Prior Plans'!W$8:W8,">0")>1),0,1) -> 0 | CN8: =IF(OR(PriorIssTable[[#This Row],[Issuers Exhibit Ind]]=0,'Prior Plans'!X8=0,'Prior Plans'!X8="",COUNTIFS($C$8:$C8,PriorIssTable[[#This Row],[Legal Entity]],$J$8:$J8,PriorIssTable[[#This Row],[Issuers Exhibit Ind]],'Prior Plans'!X$8:X8,">0")>1),0,1) -> 0 | CO8: =IF(OR(PriorIssTable[[#This Row],[Issuers Exhibit Ind]]=0,'Prior Plans'!Y8=0,'Prior Plans'!Y8="",COUNTIFS($C$8:$C8,PriorIssTable[[#This Row],[Legal Entity]],$J$8:$J8,PriorIssTable[[#This Row],[Issuers Exhibit Ind]],'Prior Plans'!Y$8:Y8,">0")>1),0,1) -> 0 | CP8: =IF(OR(PriorIssTable[[#This Row],[Issuers Exhibit Ind]]=0,'Prior Plans'!Z8=0,'Prior Plans'!Z8="",COUNTIFS($C$8:$C8,PriorIssTable[[#This Row],[Legal Entity]],$J$8:$J8,PriorIssTable[[#This Row],[Issuers Exhibit Ind]],'Prior Plans'!Z$8:Z8,">0")>1),0,1) -> 0 | CQ8: =IF(OR(PriorIssTable[[#This Row],[Issuers Exhibit Ind]]=0,'Prior Plans'!AA8=0,'Prior Plans'!AA8="",COUNTIFS($C$8:$C8,PriorIssTable[[#This Row],[Legal Entity]],$J$8:$J8,PriorIssTable[[#This Row],[Issuers Exhibit Ind]],'Prior Plans'!AA$8:AA8,">0")>1),0,1) -> 0 | CR8: =IF(OR(PriorIssTable[[#This Row],[Issuers Exhibit Ind]]=0,'Prior Plans'!AB8=0,'Prior Plans'!AB8="",COUNTIFS($C$8:$C8,PriorIssTable[[#This Row],[Legal Entity]],$J$8:$J8,PriorIssTable[[#This Row],[Issuers Exhibit Ind]],'Prior Plans'!AB$8:AB8,">0")>1),0,1) -> 0 | CS8: =IF(OR(PriorIssTable[[#This Row],[Issuers Exhibit Ind]]=0,'Prior Plans'!AC8=0,'Prior Plans'!AC8="",COUNTIFS($C$8:$C8,PriorIssTable[[#This Row],[Legal Entity]],$J$8:$J8,PriorIssTable[[#This Row],[Issuers Exhibit Ind]],'Prior Plans'!AC$8:AC8,">0")>1),0,1) -> 0 | CT8: =IF(OR(PriorIssTable[[#This Row],[Issuers Exhibit Ind]]=0,'Prior Plans'!AD8=0,'Prior Plans'!AD8="",COUNTIFS($C$8:$C8,PriorIssTable[[#This Row],[Legal Entity]],$J$8:$J8,PriorIssTable[[#This Row],[Issuers Exhibit Ind]],'Prior Plans'!AD$8:AD8,">0")>1),0,1) -> 0 | CU8: =IF(OR(PriorIssTable[[#This Row],[Issuers Exhibit Ind]]=0,'Prior Plans'!AE8=0,'Prior Plans'!AE8="",COUNTIFS($C$8:$C8,PriorIssTable[[#This Row],[Legal Entity]],$J$8:$J8,PriorIssTable[[#This Row],[Issuers Exhibit Ind]],'Prior Plans'!AE$8:AE8,">0")>1),0,1) -> 0 | CV8: =IF(OR(PriorIssTable[[#This Row],[Issuers Exhibit Ind]]=0,'Prior Plans'!AF8=0,'Prior Plans'!AF8="",COUNTIFS($C$8:$C8,PriorIssTable[[#This Row],[Legal Entity]],$J$8:$J8,PriorIssTable[[#This Row],[Issuers Exhibit Ind]],'Prior Plans'!AF$8:AF8,">0")>1),0,1) -> 0 | CW8: =IF(OR(PriorIssTable[[#This Row],[Issuers Exhibit Ind]]=0,'Prior Plans'!AG8=0,'Prior Plans'!AG8="",COUNTIFS($C$8:$C8,PriorIssTable[[#This Row],[Legal Entity]],$J$8:$J8,PriorIssTable[[#This Row],[Issuers Exhibit Ind]],'Prior Plans'!AG$8:AG8,">0")>1),0,1) -> 0 | CX8: =IF(OR(PriorIssTable[[#This Row],[Issuers Exhibit Ind]]=0,'Prior Plans'!AH8=0,'Prior Plans'!AH8="",COUNTIFS($C$8:$C8,PriorIssTable[[#This Row],[Legal Entity]],$J$8:$J8,PriorIssTable[[#This Row],[Issuers Exhibit Ind]],'Prior Plans'!AH$8:AH8,">0")>1),0,1) -> 0 | CY8: =IF(OR(PriorIssTable[[#This Row],[Issuers Exhibit Ind]]=0,'Prior Plans'!AI8=0,'Prior Plans'!AI8="",COUNTIFS($C$8:$C8,PriorIssTable[[#This Row],[Legal Entity]],$J$8:$J8,PriorIssTable[[#This Row],[Issuers Exhibit Ind]],'Prior Plans'!AI$8:AI8,">0")>1),0,1) -> 0 | CZ8: =IF(OR(PriorIssTable[[#This Row],[Issuers Exhibit Ind]]=0,'Prior Plans'!AJ8=0,'Prior Plans'!AJ8="",COUNTIFS($C$8:$C8,PriorIssTable[[#This Row],[Legal Entity]],$J$8:$J8,PriorIssTable[[#This Row],[Issuers Exhibit Ind]],'Prior Plans'!AJ$8:AJ8,">0")>1),0,1) -> 0 | DA8: =IF(OR(PriorIssTable[[#This Row],[Issuers Exhibit Ind]]=0,'Prior Plans'!AK8=0,'Prior Plans'!AK8="",COUNTIFS($C$8:$C8,PriorIssTable[[#This Row],[Legal Entity]],$J$8:$J8,PriorIssTable[[#This Row],[Issuers Exhibit Ind]],'Prior Plans'!AK$8:AK8,">0")>1),0,1) -> 0 | DB8: =IF(OR(PriorIssTable[[#This Row],[Issuers Exhibit Ind]]=0,'Prior Plans'!AL8=0,'Prior Plans'!AL8="",COUNTIFS($C$8:$C8,PriorIssTable[[#This Row],[Legal Entity]],$J$8:$J8,PriorIssTable[[#This Row],[Issuers Exhibit Ind]],'Prior Plans'!AL$8:AL8,">0")>1),0,1) -> 0 | DC8: =IF(OR(PriorIssTable[[#This Row],[Issuers Exhibit Ind]]=0,'Prior Plans'!AM8=0,'Prior Plans'!AM8="",COUNTIFS($C$8:$C8,PriorIssTable[[#This Row],[Legal Entity]],$J$8:$J8,PriorIssTable[[#This Row],[Issuers Exhibit Ind]],'Prior Plans'!AM$8:AM8,">0")>1),0,1) -> 0 | DD8: =IF(OR(PriorIssTable[[#This Row],[Issuers Exhibit Ind]]=0,'Prior Plans'!AN8=0,'Prior Plans'!AN8="",COUNTIFS($C$8:$C8,PriorIssTable[[#This Row],[Legal Entity]],$J$8:$J8,PriorIssTable[[#This Row],[Issuers Exhibit Ind]],'Prior Plans'!AN$8:AN8,">0")>1),0,1) -> 0 | DE8: =IF(OR(PriorIssTable[[#This Row],[Issuers Exhibit Ind]]=0,'Prior Plans'!AO8=0,'Prior Plans'!AO8="",COUNTIFS($C$8:$C8,PriorIssTable[[#This Row],[Legal Entity]],$J$8:$J8,PriorIssTable[[#This Row],[Issuers Exhibit Ind]],'Prior Plans'!AO$8:AO8,">0")>1),0,1) -> 0 | DF8: =IF(OR(PriorIssTable[[#This Row],[Issuers Exhibit Ind]]=0,'Prior Plans'!AP8=0,'Prior Plans'!AP8="",COUNTIFS($C$8:$C8,PriorIssTable[[#This Row],[Legal Entity]],$J$8:$J8,PriorIssTable[[#This Row],[Issuers Exhibit Ind]],'Prior Plans'!AP$8:AP8,">0")>1),0,1) -> 0 | DG8: =IF(OR(PriorIssTable[[#This Row],[Issuers Exhibit Ind]]=0,'Prior Plans'!AQ8=0,'Prior Plans'!AQ8="",COUNTIFS($C$8:$C8,PriorIssTable[[#This Row],[Legal Entity]],$J$8:$J8,PriorIssTable[[#This Row],[Issuers Exhibit Ind]],'Prior Plans'!AQ$8:AQ8,">0")>1),0,1) -> 0 | DH8: =IF(OR(PriorIssTable[[#This Row],[Issuers Exhibit Ind]]=0,'Prior Plans'!AR8=0,'Prior Plans'!AR8="",COUNTIFS($C$8:$C8,PriorIssTable[[#This Row],[Legal Entity]],$J$8:$J8,PriorIssTable[[#This Row],[Issuers Exhibit Ind]],'Prior Plans'!AR$8:AR8,">0")>1),0,1) -> 0 | DI8: =IF(OR(PriorIssTable[[#This Row],[Issuers Exhibit Ind]]=0,'Prior Plans'!AS8=0,'Prior Plans'!AS8="",COUNTIFS($C$8:$C8,PriorIssTable[[#This Row],[Legal Entity]],$J$8:$J8,PriorIssTable[[#This Row],[Issuers Exhibit Ind]],'Prior Plans'!AS$8:AS8,">0")>1),0,1) -> 0 | DJ8: =IF(OR(PriorIssTable[[#This Row],[Issuers Exhibit Ind]]=0,'Prior Plans'!AT8=0,'Prior Plans'!AT8="",COUNTIFS($C$8:$C8,PriorIssTable[[#This Row],[Legal Entity]],$J$8:$J8,PriorIssTable[[#This Row],[Issuers Exhibit Ind]],'Prior Plans'!AT$8:AT8,">0")>1),0,1) -> 0 | DK8: =IF(OR(PriorIssTable[[#This Row],[Issuers Exhibit Ind]]=0,'Prior Plans'!AU8=0,'Prior Plans'!AU8="",COUNTIFS($C$8:$C8,PriorIssTable[[#This Row],[Legal Entity]],$J$8:$J8,PriorIssTable[[#This Row],[Issuers Exhibit Ind]],'Prior Plans'!AU$8:AU8,">0")>1),0,1) -> 0 | DL8: =IF(OR(PriorIssTable[[#This Row],[Issuers Exhibit Ind]]=0,'Prior Plans'!AV8=0,'Prior Plans'!AV8="",COUNTIFS($C$8:$C8,PriorIssTable[[#This Row],[Legal Entity]],$J$8:$J8,PriorIssTable[[#This Row],[Issuers Exhibit Ind]],'Prior Plans'!AV$8:AV8,">0")>1),0,1) -> 0 | DM8: =IF(OR(PriorIssTable[[#This Row],[Issuers Exhibit Ind]]=0,'Prior Plans'!AW8=0,'Prior Plans'!AW8="",COUNTIFS($C$8:$C8,PriorIssTable[[#This Row],[Legal Entity]],$J$8:$J8,PriorIssTable[[#This Row],[Issuers Exhibit Ind]],'Prior Plans'!AW$8:AW8,">0")>1),0,1) -> 0 | DN8: =IF(OR(PriorIssTable[[#This Row],[Issuers Exhibit Ind]]=0,'Prior Plans'!AX8=0,'Prior Plans'!AX8="",COUNTIFS($C$8:$C8,PriorIssTable[[#This Row],[Legal Entity]],$J$8:$J8,PriorIssTable[[#This Row],[Issuers Exhibit Ind]],'Prior Plans'!AX$8:AX8,">0")>1),0,1) -> 0 | DO8: =IF(OR(PriorIssTable[[#This Row],[Issuers Exhibit Ind]]=0,'Prior Plans'!AY8=0,'Prior Plans'!AY8="",COUNTIFS($C$8:$C8,PriorIssTable[[#This Row],[Legal Entity]],$J$8:$J8,PriorIssTable[[#This Row],[Issuers Exhibit Ind]],'Prior Plans'!AY$8:AY8,">0")>1),0,1) -> 0 | DP8: =IF(OR(PriorIssTable[[#This Row],[Issuers Exhibit Ind]]=0,'Prior Plans'!AZ8=0,'Prior Plans'!AZ8="",COUNTIFS($C$8:$C8,PriorIssTable[[#This Row],[Legal Entity]],$J$8:$J8,PriorIssTable[[#This Row],[Issuers Exhibit Ind]],'Prior Plans'!AZ$8:AZ8,">0")>1),0,1) -> 0 | DQ8: =IF(OR(PriorIssTable[[#This Row],[Issuers Exhibit Ind]]=0,'Prior Plans'!BA8=0,'Prior Plans'!BA8="",COUNTIFS($C$8:$C8,PriorIssTable[[#This Row],[Legal Entity]],$J$8:$J8,PriorIssTable[[#This Row],[Issuers Exhibit Ind]],'Prior Plans'!BA$8:BA8,">0")>1),0,1) -> 0 | DR8: =IF(OR(PriorIssTable[[#This Row],[Issuers Exhibit Ind]]=0,'Prior Plans'!BB8=0,'Prior Plans'!BB8="",COUNTIFS($C$8:$C8,PriorIssTable[[#This Row],[Legal Entity]],$J$8:$J8,PriorIssTable[[#This Row],[Issuers Exhibit Ind]],'Prior Plans'!BB$8:BB8,">0")>1),0,1) -> 0 | DS8: =IF(OR(PriorIssTable[[#This Row],[Issuers Exhibit Ind]]=0,'Prior Plans'!BC8=0,'Prior Plans'!BC8="",COUNTIFS($C$8:$C8,PriorIssTable[[#This Row],[Legal Entity]],$J$8:$J8,PriorIssTable[[#This Row],[Issuers Exhibit Ind]],'Prior Plans'!BC$8:BC8,">0")>1),0,1) -> 0 | DT8: =IF(OR(PriorIssTable[[#This Row],[Issuers Exhibit Ind]]=0,'Prior Plans'!BD8=0,'Prior Plans'!BD8="",COUNTIFS($C$8:$C8,PriorIssTable[[#This Row],[Legal Entity]],$J$8:$J8,PriorIssTable[[#This Row],[Issuers Exhibit Ind]],'Prior Plans'!BD$8:BD8,">0")>1),0,1) -> 0 | DU8: =IF(OR(PriorIssTable[[#This Row],[Issuers Exhibit Ind]]=0,'Prior Plans'!BE8=0,'Prior Plans'!BE8="",COUNTIFS($C$8:$C8,PriorIssTable[[#This Row],[Legal Entity]],$J$8:$J8,PriorIssTable[[#This Row],[Issuers Exhibit Ind]],'Prior Plans'!BE$8:BE8,">0")>1),0,1) -> 0 | DV8: =IF(OR(PriorIssTable[[#This Row],[Issuers Exhibit Ind]]=0,'Prior Plans'!BF8=0,'Prior Plans'!BF8="",COUNTIFS($C$8:$C8,PriorIssTable[[#This Row],[Legal Entity]],$J$8:$J8,PriorIssTable[[#This Row],[Issuers Exhibit Ind]],'Prior Plans'!BF$8:BF8,">0")>1),0,1) -> 0 | DW8: =IF(OR(PriorIssTable[[#This Row],[Issuers Exhibit Ind]]=0,'Prior Plans'!BG8=0,'Prior Plans'!BG8="",COUNTIFS($C$8:$C8,PriorIssTable[[#This Row],[Legal Entity]],$J$8:$J8,PriorIssTable[[#This Row],[Issuers Exhibit Ind]],'Prior Plans'!BG$8:BG8,">0")>1),0,1) -> 0 | DX8: =IF(OR(PriorIssTable[[#This Row],[Issuers Exhibit Ind]]=0,'Prior Plans'!BH8=0,'Prior Plans'!BH8="",COUNTIFS($C$8:$C8,PriorIssTable[[#This Row],[Legal Entity]],$J$8:$J8,PriorIssTable[[#This Row],[Issuers Exhibit Ind]],'Prior Plans'!BH$8:BH8,">0")>1),0,1) -> 0 | DY8: =IF(OR(PriorIssTable[[#This Row],[Issuers Exhibit Ind]]=0,'Prior Plans'!BI8=0,'Prior Plans'!BI8="",COUNTIFS($C$8:$C8,PriorIssTable[[#This Row],[Legal Entity]],$J$8:$J8,PriorIssTable[[#This Row],[Issuers Exhibit Ind]],'Prior Plans'!BI$8:BI8,">0")>1),0,1) -> 0 | DZ8: =IF(OR(PriorIssTable[[#This Row],[Issuers Exhibit Ind]]=0,'Prior Plans'!BJ8=0,'Prior Plans'!BJ8="",COUNTIFS($C$8:$C8,PriorIssTable[[#This Row],[Legal Entity]],$J$8:$J8,PriorIssTable[[#This Row],[Issuers Exhibit Ind]],'Prior Plans'!BJ$8:BJ8,">0")>1),0,1) -> 0 | EA8: =IF(OR(PriorIssTable[[#This Row],[Issuers Exhibit Ind]]=0,'Prior Plans'!BK8=0,'Prior Plans'!BK8="",COUNTIFS($C$8:$C8,PriorIssTable[[#This Row],[Legal Entity]],$J$8:$J8,PriorIssTable[[#This Row],[Issuers Exhibit Ind]],'Prior Plans'!BK$8:BK8,">0")>1),0,1) -> 0 | EB8: =IF(OR(PriorIssTable[[#This Row],[Issuers Exhibit Ind]]=0,'Prior Plans'!BL8=0,'Prior Plans'!BL8="",COUNTIFS($C$8:$C8,PriorIssTable[[#This Row],[Legal Entity]],$J$8:$J8,PriorIssTable[[#This Row],[Issuers Exhibit Ind]],'Prior Plans'!BL$8:BL8,">0")>1),0,1) -> 0 | EC8: =IF(OR(PriorIssTable[[#This Row],[Issuers Exhibit Ind]]=0,'Prior Plans'!BM8=0,'Prior Plans'!BM8="",COUNTIFS($C$8:$C8,PriorIssTable[[#This Row],[Legal Entity]],$J$8:$J8,PriorIssTable[[#This Row],[Issuers Exhibit Ind]],'Prior Plans'!BM$8:BM8,">0")>1),0,1) -> 0 | ED8: =IF(OR(PriorIssTable[[#This Row],[Issuers Exhibit Ind]]=0,'Prior Plans'!BN8=0,'Prior Plans'!BN8="",COUNTIFS($C$8:$C8,PriorIssTable[[#This Row],[Legal Entity]],$J$8:$J8,PriorIssTable[[#This Row],[Issuers Exhibit Ind]],'Prior Plans'!BN$8:BN8,">0")>1),0,1) -> 0 | EE8: =IF(OR(PriorIssTable[[#This Row],[Issuers Exhibit Ind]]=0,'Prior Plans'!BO8=0,'Prior Plans'!BO8="",COUNTIFS($C$8:$C8,PriorIssTable[[#This Row],[Legal Entity]],$J$8:$J8,PriorIssTable[[#This Row],[Issuers Exhibit Ind]],'Prior Plans'!BO$8:BO8,">0")>1),0,1) -> 0 | EF8: =IF(OR(PriorIssTable[[#This Row],[Issuers Exhibit Ind]]=0,'Prior Plans'!BP8=0,'Prior Plans'!BP8="",COUNTIFS($C$8:$C8,PriorIssTable[[#This Row],[Legal Entity]],$J$8:$J8,PriorIssTable[[#This Row],[Issuers Exhibit Ind]],'Prior Plans'!BP$8:BP8,">0")>1),0,1) -> 0 | EG8: =IF(OR(PriorIssTable[[#This Row],[Issuers Exhibit Ind]]=0,'Prior Plans'!BQ8=0,'Prior Plans'!BQ8="",COUNTIFS($C$8:$C8,PriorIssTable[[#This Row],[Legal Entity]],$J$8:$J8,PriorIssTable[[#This Row],[Issuers Exhibit Ind]],'Prior Plans'!BQ$8:BQ8,">0")>1),0,1) -> 0 | EH8: =IF(OR(PriorIssTable[[#This Row],[Issuers Exhibit Ind]]=0,'Prior Plans'!BR8=0,'Prior Plans'!BR8="",COUNTIFS($C$8:$C8,PriorIssTable[[#This Row],[Legal Entity]],$J$8:$J8,PriorIssTable[[#This Row],[Issuers Exhibit Ind]],'Prior Plans'!BR$8:BR8,">0")>1),0,1) -> 0 | EI8: =IF(OR(PriorIssTable[[#This Row],[Issuers Exhibit Ind]]=0,'Prior Plans'!BS8=0,'Prior Plans'!BS8="",COUNTIFS($C$8:$C8,PriorIssTable[[#This Row],[Legal Entity]],$J$8:$J8,PriorIssTable[[#This Row],[Issuers Exhibit Ind]],'Prior Plans'!BS$8:BS8,">0")>1),0,1) -> 0 | EJ8: =IF(OR(PriorIssTable[[#This Row],[Issuers Exhibit Ind]]=0,'Prior Plans'!BT8=0,'Prior Plans'!BT8="",COUNTIFS($C$8:$C8,PriorIssTable[[#This Row],[Legal Entity]],$J$8:$J8,PriorIssTable[[#This Row],[Issuers Exhibit Ind]],'Prior Plans'!BT$8:BT8,">0")>1),0,1) -> 0 | EK8: =IF(OR(PriorIssTable[[#This Row],[Issuers Exhibit Ind]]=0,'Prior Plans'!BU8=0,'Prior Plans'!BU8="",COUNTIFS($C$8:$C8,PriorIssTable[[#This Row],[Legal Entity]],$J$8:$J8,PriorIssTable[[#This Row],[Issuers Exhibit Ind]],'Prior Plans'!BU$8:BU8,">0")>1),0,1) -> 0 | EL8: =IF(OR(PriorIssTable[[#This Row],[Issuers Exhibit Ind]]=0,'Prior Plans'!BV8=0,'Prior Plans'!BV8="",COUNTIFS($C$8:$C8,PriorIssTable[[#This Row],[Legal Entity]],$J$8:$J8,PriorIssTable[[#This Row],[Issuers Exhibit Ind]],'Prior Plans'!BV$8:BV8,">0")>1),0,1) -> 0 | EM8: =IF(OR(PriorIssTable[[#This Row],[Issuers Exhibit Ind]]=0,'Prior Plans'!BW8=0,'Prior Plans'!BW8="",COUNTIFS($C$8:$C8,PriorIssTable[[#This Row],[Legal Entity]],$J$8:$J8,PriorIssTable[[#This Row],[Issuers Exhibit Ind]],'Prior Plans'!BW$8:BW8,">0")>1),0,1) -> 0 | EN8: =IF(OR(PriorIssTable[[#This Row],[Issuers Exhibit Ind]]=0,'Prior Plans'!BX8=0,'Prior Plans'!BX8="",COUNTIFS($C$8:$C8,PriorIssTable[[#This Row],[Legal Entity]],$J$8:$J8,PriorIssTable[[#This Row],[Issuers Exhibit Ind]],'Prior Plans'!BX$8:BX8,">0")>1),0,1) -> 0
B9: Aetna | C9: Aetna Health Inc. PA AZ DC DE IN KY MA MD NV NC OK TN VA WV | D9: Small Group | E9: 64844PA0070142 | F9: PA Silver HMO 5000 80% | G9: HMO | H9: Silver | I9: Off | J9: =IF(PriorIssTable[[#This Row],[Market]]<>Iss_Cnty_Mkt,0,IF(OR(Iss_Cnty_Exch="On/Off",PriorIssTable[[#This Row],[On/Off Exchange]]="On/Off"),1,IF(PriorIssTable[[#This Row],[On/Off Exchange]]<>Iss_Cnty_Exch,0,1))) -> 0 | K9: =IF(OR(PriorIssTable[[#This Row],[Issuers Exhibit Ind]]=0,'Prior Plans'!J9={0,""},COUNTIFS($C$8:$C9,PriorIssTable[[#This Row],[Legal Entity]],$J$8:$J9,PriorIssTable[[#This Row],[Issuers Exhibit Ind]],$H$8:$H9,PriorIssTable[[#This Row],[Metal]],'Prior Plans'!J$8:J9,">0")>1),0,1) -> 0 | L9: =IF(OR(PriorIssTable[[#This Row],[Issuers Exhibit Ind]]=0,'Prior Plans'!K9={0,""},COUNTIFS($C$8:$C9,PriorIssTable[[#This Row],[Legal Entity]],$J$8:$J9,PriorIssTable[[#This Row],[Issuers Exhibit Ind]],$H$8:$H9,PriorIssTable[[#This Row],[Metal]],'Prior Plans'!K$8:K9,">0")>1),0,1) -> 0 | M9: =IF(OR(PriorIssTable[[#This Row],[Issuers Exhibit Ind]]=0,'Prior Plans'!L9={0,""},COUNTIFS($C$8:$C9,PriorIssTable[[#This Row],[Legal Entity]],$J$8:$J9,PriorIssTable[[#This Row],[Issuers Exhibit Ind]],$H$8:$H9,PriorIssTable[[#This Row],[Metal]],'Prior Plans'!L$8:L9,">0")>1),0,1) -> 0 | N9: =IF(OR(PriorIssTable[[#This Row],[Issuers Exhibit Ind]]=0,'Prior Plans'!M9={0,""},COUNTIFS($C$8:$C9,PriorIssTable[[#This Row],[Legal Entity]],$J$8:$J9,PriorIssTable[[#This Row],[Issuers Exhibit Ind]],$H$8:$H9,PriorIssTable[[#This Row],[Metal]],'Prior Plans'!M$8:M9,">0")>1),0,1) -> 0 | O9: =IF(OR(PriorIssTable[[#This Row],[Issuers Exhibit Ind]]=0,'Prior Plans'!N9={0,""},COUNTIFS($C$8:$C9,PriorIssTable[[#This Row],[Legal Entity]],$J$8:$J9,PriorIssTable[[#This Row],[Issuers Exhibit Ind]],$H$8:$H9,PriorIssTable[[#This Row],[Metal]],'Prior Plans'!N$8:N9,">0")>1),0,1) -> 0 | P9: =IF(OR(PriorIssTable[[#This Row],[Issuers Exhibit Ind]]=0,'Prior Plans'!O9={0,""},COUNTIFS($C$8:$C9,PriorIssTable[[#This Row],[Legal Entity]],$J$8:$J9,PriorIssTable[[#This Row],[Issuers Exhibit Ind]],$H$8:$H9,PriorIssTable[[#This Row],[Metal]],'Prior Plans'!O$8:O9,">0")>1),0,1) -> 0 | Q9: =IF(OR(PriorIssTable[[#This Row],[Issuers Exhibit Ind]]=0,'Prior Plans'!P9={0,""},COUNTIFS($C$8:$C9,PriorIssTable[[#This Row],[Legal Entity]],$J$8:$J9,PriorIssTable[[#This Row],[Issuers Exhibit Ind]],$H$8:$H9,PriorIssTable[[#This Row],[Metal]],'Prior Plans'!P$8:P9,">0")>1),0,1) -> 0 | R9: =IF(OR(PriorIssTable[[#This Row],[Issuers Exhibit Ind]]=0,'Prior Plans'!Q9={0,""},COUNTIFS($C$8:$C9,PriorIssTable[[#This Row],[Legal Entity]],$J$8:$J9,PriorIssTable[[#This Row],[Issuers Exhibit Ind]],$H$8:$H9,PriorIssTable[[#This Row],[Metal]],'Prior Plans'!Q$8:Q9,">0")>1),0,1) -> 0 | S9: =IF(OR(PriorIssTable[[#This Row],[Issuers Exhibit Ind]]=0,'Prior Plans'!R9={0,""},COUNTIFS($C$8:$C9,PriorIssTable[[#This Row],[Legal Entity]],$J$8:$J9,PriorIssTable[[#This Row],[Issuers Exhibit Ind]],$H$8:$H9,PriorIssTable[[#This Row],[Metal]],'Prior Plans'!R$8:R9,">0")>1),0,1) -> 0 | T9: =IF(OR(PriorIssTable[[#This Row],[Issuers Exhibit Ind]]=0,'Prior Plans'!S9={0,""},COUNTIFS($C$8:$C9,PriorIssTable[[#This Row],[Legal Entity]],$J$8:$J9,PriorIssTable[[#This Row],[Issuers Exhibit Ind]],$H$8:$H9,PriorIssTable[[#This Row],[Metal]],'Prior Plans'!S$8:S9,">0")>1),0,1) -> 0 | U9: =IF(OR(PriorIssTable[[#This Row],[Issuers Exhibit Ind]]=0,'Prior Plans'!T9={0,""},COUNTIFS($C$8:$C9,PriorIssTable[[#This Row],[Legal Entity]],$J$8:$J9,PriorIssTable[[#This Row],[Issuers Exhibit Ind]],$H$8:$H9,PriorIssTable[[#This Row],[Metal]],'Prior Plans'!T$8:T9,">0")>1),0,1) -> 0 | V9: =IF(OR(PriorIssTable[[#This Row],[Issuers Exhibit Ind]]=0,'Prior Plans'!U9={0,""},COUNTIFS($C$8:$C9,PriorIssTable[[#This Row],[Legal Entity]],$J$8:$J9,PriorIssTable[[#This Row],[Issuers Exhibit Ind]],$H$8:$H9,PriorIssTable[[#This Row],[Metal]],'Prior Plans'!U$8:U9,">0")>1),0,1) -> 0 | W9: =IF(OR(PriorIssTable[[#This Row],[Issuers Exhibit Ind]]=0,'Prior Plans'!V9={0,""},COUNTIFS($C$8:$C9,PriorIssTable[[#This Row],[Legal Entity]],$J$8:$J9,PriorIssTable[[#This Row],[Issuers Exhibit Ind]],$H$8:$H9,PriorIssTable[[#This Row],[Metal]],'Prior Plans'!V$8:V9,">0")>1),0,1) -> 0 | X9: =IF(OR(PriorIssTable[[#This Row],[Issuers Exhibit Ind]]=0,'Prior Plans'!W9={0,""},COUNTIFS($C$8:$C9,PriorIssTable[[#This Row],[Legal Entity]],$J$8:$J9,PriorIssTable[[#This Row],[Issuers Exhibit Ind]],$H$8:$H9,PriorIssTable[[#This Row],[Metal]],'Prior Plans'!W$8:W9,">0")>1),0,1) -> 0 | Y9: =IF(OR(PriorIssTable[[#This Row],[Issuers Exhibit Ind]]=0,'Prior Plans'!X9={0,""},COUNTIFS($C$8:$C9,PriorIssTable[[#This Row],[Legal Entity]],$J$8:$J9,PriorIssTable[[#This Row],[Issuers Exhibit Ind]],$H$8:$H9,PriorIssTable[[#This Row],[Metal]],'Prior Plans'!X$8:X9,">0")>1),0,1) -> 0 | Z9: =IF(OR(PriorIssTable[[#This Row],[Issuers Exhibit Ind]]=0,'Prior Plans'!Y9={0,""},COUNTIFS($C$8:$C9,PriorIssTable[[#This Row],[Legal Entity]],$J$8:$J9,PriorIssTable[[#This Row],[Issuers Exhibit Ind]],$H$8:$H9,PriorIssTable[[#This Row],[Metal]],'Prior Plans'!Y$8:Y9,">0")>1),0,1) -> 0 | AA9: =IF(OR(PriorIssTable[[#This Row],[Issuers Exhibit Ind]]=0,'Prior Plans'!Z9={0,""},COUNTIFS($C$8:$C9,PriorIssTable[[#This Row],[Legal Entity]],$J$8:$J9,PriorIssTable[[#This Row],[Issuers Exhibit Ind]],$H$8:$H9,PriorIssTable[[#This Row],[Metal]],'Prior Plans'!Z$8:Z9,">0")>1),0,1) -> 0 | AB9: =IF(OR(PriorIssTable[[#This Row],[Issuers Exhibit Ind]]=0,'Prior Plans'!AA9={0,""},COUNTIFS($C$8:$C9,PriorIssTable[[#This Row],[Legal Entity]],$J$8:$J9,PriorIssTable[[#This Row],[Issuers Exhibit Ind]],$H$8:$H9,PriorIssTable[[#This Row],[Metal]],'Prior Plans'!AA$8:AA9,">0")>1),0,1) -> 0 | AC9: =IF(OR(PriorIssTable[[#This Row],[Issuers Exhibit Ind]]=0,'Prior Plans'!AB9={0,""},COUNTIFS($C$8:$C9,PriorIssTable[[#This Row],[Legal Entity]],$J$8:$J9,PriorIssTable[[#This Row],[Issuers Exhibit Ind]],$H$8:$H9,PriorIssTable[[#This Row],[Metal]],'Prior Plans'!AB$8:AB9,">0")>1),0,1) -> 0 | AD9: =IF(OR(PriorIssTable[[#This Row],[Issuers Exhibit Ind]]=0,'Prior Plans'!AC9={0,""},COUNTIFS($C$8:$C9,PriorIssTable[[#This Row],[Legal Entity]],$J$8:$J9,PriorIssTable[[#This Row],[Issuers Exhibit Ind]],$H$8:$H9,PriorIssTable[[#This Row],[Metal]],'Prior Plans'!AC$8:AC9,">0")>1),0,1) -> 0 | AE9: =IF(OR(PriorIssTable[[#This Row],[Issuers Exhibit Ind]]=0,'Prior Plans'!AD9={0,""},COUNTIFS($C$8:$C9,PriorIssTable[[#This Row],[Legal Entity]],$J$8:$J9,PriorIssTable[[#This Row],[Issuers Exhibit Ind]],$H$8:$H9,PriorIssTable[[#This Row],[Metal]],'Prior Plans'!AD$8:AD9,">0")>1),0,1) -> 0 | AF9: =IF(OR(PriorIssTable[[#This Row],[Issuers Exhibit Ind]]=0,'Prior Plans'!AE9={0,""},COUNTIFS($C$8:$C9,PriorIssTable[[#This Row],[Legal Entity]],$J$8:$J9,PriorIssTable[[#This Row],[Issuers Exhibit Ind]],$H$8:$H9,PriorIssTable[[#This Row],[Metal]],'Prior Plans'!AE$8:AE9,">0")>1),0,1) -> 0 | AG9: =IF(OR(PriorIssTable[[#This Row],[Issuers Exhibit Ind]]=0,'Prior Plans'!AF9={0,""},COUNTIFS($C$8:$C9,PriorIssTable[[#This Row],[Legal Entity]],$J$8:$J9,PriorIssTable[[#This Row],[Issuers Exhibit Ind]],$H$8:$H9,PriorIssTable[[#This Row],[Metal]],'Prior Plans'!AF$8:AF9,">0")>1),0,1) -> 0 | AH9: =IF(OR(PriorIssTable[[#This Row],[Issuers Exhibit Ind]]=0,'Prior Plans'!AG9={0,""},COUNTIFS($C$8:$C9,PriorIssTable[[#This Row],[Legal Entity]],$J$8:$J9,PriorIssTable[[#This Row],[Issuers Exhibit Ind]],$H$8:$H9,PriorIssTable[[#This Row],[Metal]],'Prior Plans'!AG$8:AG9,">0")>1),0,1) -> 0 | AI9: =IF(OR(PriorIssTable[[#This Row],[Issuers Exhibit Ind]]=0,'Prior Plans'!AH9={0,""},COUNTIFS($C$8:$C9,PriorIssTable[[#This Row],[Legal Entity]],$J$8:$J9,PriorIssTable[[#This Row],[Issuers Exhibit Ind]],$H$8:$H9,PriorIssTable[[#This Row],[Metal]],'Prior Plans'!AH$8:AH9,">0")>1),0,1) -> 0 | AJ9: =IF(OR(PriorIssTable[[#This Row],[Issuers Exhibit Ind]]=0,'Prior Plans'!AI9={0,""},COUNTIFS($C$8:$C9,PriorIssTable[[#This Row],[Legal Entity]],$J$8:$J9,PriorIssTable[[#This Row],[Issuers Exhibit Ind]],$H$8:$H9,PriorIssTable[[#This Row],[Metal]],'Prior Plans'!AI$8:AI9,">0")>1),0,1) -> 0 | AK9: =IF(OR(PriorIssTable[[#This Row],[Issuers Exhibit Ind]]=0,'Prior Plans'!AJ9={0,""},COUNTIFS($C$8:$C9,PriorIssTable[[#This Row],[Legal Entity]],$J$8:$J9,PriorIssTable[[#This Row],[Issuers Exhibit Ind]],$H$8:$H9,PriorIssTable[[#This Row],[Metal]],'Prior Plans'!AJ$8:AJ9,">0")>1),0,1) -> 0 | AL9: =IF(OR(PriorIssTable[[#This Row],[Issuers Exhibit Ind]]=0,'Prior Plans'!AK9={0,""},COUNTIFS($C$8:$C9,PriorIssTable[[#This Row],[Legal Entity]],$J$8:$J9,PriorIssTable[[#This Row],[Issuers Exhibit Ind]],$H$8:$H9,PriorIssTable[[#This Row],[Metal]],'Prior Plans'!AK$8:AK9,">0")>1),0,1) -> 0 | AM9: =IF(OR(PriorIssTable[[#This Row],[Issuers Exhibit Ind]]=0,'Prior Plans'!AL9={0,""},COUNTIFS($C$8:$C9,PriorIssTable[[#This Row],[Legal Entity]],$J$8:$J9,PriorIssTable[[#This Row],[Issuers Exhibit Ind]],$H$8:$H9,PriorIssTable[[#This Row],[Metal]],'Prior Plans'!AL$8:AL9,">0")>1),0,1) -> 0 | AN9: =IF(OR(PriorIssTable[[#This Row],[Issuers Exhibit Ind]]=0,'Prior Plans'!AM9={0,""},COUNTIFS($C$8:$C9,PriorIssTable[[#This Row],[Legal Entity]],$J$8:$J9,PriorIssTable[[#This Row],[Issuers Exhibit Ind]],$H$8:$H9,PriorIssTable[[#This Row],[Metal]],'Prior Plans'!AM$8:AM9,">0")>1),0,1) -> 0 | AO9: =IF(OR(PriorIssTable[[#This Row],[Issuers Exhibit Ind]]=0,'Prior Plans'!AN9={0,""},COUNTIFS($C$8:$C9,PriorIssTable[[#This Row],[Legal Entity]],$J$8:$J9,PriorIssTable[[#This Row],[Issuers Exhibit Ind]],$H$8:$H9,PriorIssTable[[#This Row],[Metal]],'Prior Plans'!AN$8:AN9,">0")>1),0,1) -> 0 | AP9: =IF(OR(PriorIssTable[[#This Row],[Issuers Exhibit Ind]]=0,'Prior Plans'!AO9={0,""},COUNTIFS($C$8:$C9,PriorIssTable[[#This Row],[Legal Entity]],$J$8:$J9,PriorIssTable[[#This Row],[Issuers Exhibit Ind]],$H$8:$H9,PriorIssTable[[#This Row],[Metal]],'Prior Plans'!AO$8:AO9,">0")>1),0,1) -> 0 | AQ9: =IF(OR(PriorIssTable[[#This Row],[Issuers Exhibit Ind]]=0,'Prior Plans'!AP9={0,""},COUNTIFS($C$8:$C9,PriorIssTable[[#This Row],[Legal Entity]],$J$8:$J9,PriorIssTable[[#This Row],[Issuers Exhibit Ind]],$H$8:$H9,PriorIssTable[[#This Row],[Metal]],'Prior Plans'!AP$8:AP9,">0")>1),0,1) -> 0 | AR9: =IF(OR(PriorIssTable[[#This Row],[Issuers Exhibit Ind]]=0,'Prior Plans'!AQ9={0,""},COUNTIFS($C$8:$C9,PriorIssTable[[#This Row],[Legal Entity]],$J$8:$J9,PriorIssTable[[#This Row],[Issuers Exhibit Ind]],$H$8:$H9,PriorIssTable[[#This Row],[Metal]],'Prior Plans'!AQ$8:AQ9,">0")>1),0,1) -> 0 | AS9: =IF(OR(PriorIssTable[[#This Row],[Issuers Exhibit Ind]]=0,'Prior Plans'!AR9={0,""},COUNTIFS($C$8:$C9,PriorIssTable[[#This Row],[Legal Entity]],$J$8:$J9,PriorIssTable[[#This Row],[Issuers Exhibit Ind]],$H$8:$H9,PriorIssTable[[#This Row],[Metal]],'Prior Plans'!AR$8:AR9,">0")>1),0,1) -> 0 | AT9: =IF(OR(PriorIssTable[[#This Row],[Issuers Exhibit Ind]]=0,'Prior Plans'!AS9={0,""},COUNTIFS($C$8:$C9,PriorIssTable[[#This Row],[Legal Entity]],$J$8:$J9,PriorIssTable[[#This Row],[Issuers Exhibit Ind]],$H$8:$H9,PriorIssTable[[#This Row],[Metal]],'Prior Plans'!AS$8:AS9,">0")>1),0,1) -> 0 | AU9: =IF(OR(PriorIssTable[[#This Row],[Issuers Exhibit Ind]]=0,'Prior Plans'!AT9={0,""},COUNTIFS($C$8:$C9,PriorIssTable[[#This Row],[Legal Entity]],$J$8:$J9,PriorIssTable[[#This Row],[Issuers Exhibit Ind]],$H$8:$H9,PriorIssTable[[#This Row],[Metal]],'Prior Plans'!AT$8:AT9,">0")>1),0,1) -> 0 | AV9: =IF(OR(PriorIssTable[[#This Row],[Issuers Exhibit Ind]]=0,'Prior Plans'!AU9={0,""},COUNTIFS($C$8:$C9,PriorIssTable[[#This Row],[Legal Entity]],$J$8:$J9,PriorIssTable[[#This Row],[Issuers Exhibit Ind]],$H$8:$H9,PriorIssTable[[#This Row],[Metal]],'Prior Plans'!AU$8:AU9,">0")>1),0,1) -> 0 | AW9: =IF(OR(PriorIssTable[[#This Row],[Issuers Exhibit Ind]]=0,'Prior Plans'!AV9={0,""},COUNTIFS($C$8:$C9,PriorIssTable[[#This Row],[Legal Entity]],$J$8:$J9,PriorIssTable[[#This Row],[Issuers Exhibit Ind]],$H$8:$H9,PriorIssTable[[#This Row],[Metal]],'Prior Plans'!AV$8:AV9,">0")>1),0,1) -> 0 | AX9: =IF(OR(PriorIssTable[[#This Row],[Issuers Exhibit Ind]]=0,'Prior Plans'!AW9={0,""},COUNTIFS($C$8:$C9,PriorIssTable[[#This Row],[Legal Entity]],$J$8:$J9,PriorIssTable[[#This Row],[Issuers Exhibit Ind]],$H$8:$H9,PriorIssTable[[#This Row],[Metal]],'Prior Plans'!AW$8:AW9,">0")>1),0,1) -> 0 | AY9: =IF(OR(PriorIssTable[[#This Row],[Issuers Exhibit Ind]]=0,'Prior Plans'!AX9={0,""},COUNTIFS($C$8:$C9,PriorIssTable[[#This Row],[Legal Entity]],$J$8:$J9,PriorIssTable[[#This Row],[Issuers Exhibit Ind]],$H$8:$H9,PriorIssTable[[#This Row],[Metal]],'Prior Plans'!AX$8:AX9,">0")>1),0,1) -> 0 | AZ9: =IF(OR(PriorIssTable[[#This Row],[Issuers Exhibit Ind]]=0,'Prior Plans'!AY9={0,""},COUNTIFS($C$8:$C9,PriorIssTable[[#This Row],[Legal Entity]],$J$8:$J9,PriorIssTable[[#This Row],[Issuers Exhibit Ind]],$H$8:$H9,PriorIssTable[[#This Row],[Metal]],'Prior Plans'!AY$8:AY9,">0")>1),0,1) -> 0 | BA9: =IF(OR(PriorIssTable[[#This Row],[Issuers Exhibit Ind]]=0,'Prior Plans'!AZ9={0,""},COUNTIFS($C$8:$C9,PriorIssTable[[#This Row],[Legal Entity]],$J$8:$J9,PriorIssTable[[#This Row],[Issuers Exhibit Ind]],$H$8:$H9,PriorIssTable[[#This Row],[Metal]],'Prior Plans'!AZ$8:AZ9,">0")>1),0,1) -> 0 | BB9: =IF(OR(PriorIssTable[[#This Row],[Issuers Exhibit Ind]]=0,'Prior Plans'!BA9={0,""},COUNTIFS($C$8:$C9,PriorIssTable[[#This Row],[Legal Entity]],$J$8:$J9,PriorIssTable[[#This Row],[Issuers Exhibit Ind]],$H$8:$H9,PriorIssTable[[#This Row],[Metal]],'Prior Plans'!BA$8:BA9,">0")>1),0,1) -> 0 | BC9: =IF(OR(PriorIssTable[[#This Row],[Issuers Exhibit Ind]]=0,'Prior Plans'!BB9={0,""},COUNTIFS($C$8:$C9,PriorIssTable[[#This Row],[Legal Entity]],$J$8:$J9,PriorIssTable[[#This Row],[Issuers Exhibit Ind]],$H$8:$H9,PriorIssTable[[#This Row],[Metal]],'Prior Plans'!BB$8:BB9,">0")>1),0,1) -> 0 | BD9: =IF(OR(PriorIssTable[[#This Row],[Issuers Exhibit Ind]]=0,'Prior Plans'!BC9={0,""},COUNTIFS($C$8:$C9,PriorIssTable[[#This Row],[Legal Entity]],$J$8:$J9,PriorIssTable[[#This Row],[Issuers Exhibit Ind]],$H$8:$H9,PriorIssTable[[#This Row],[Metal]],'Prior Plans'!BC$8:BC9,">0")>1),0,1) -> 0 | BE9: =IF(OR(PriorIssTable[[#This Row],[Issuers Exhibit Ind]]=0,'Prior Plans'!BD9={0,""},COUNTIFS($C$8:$C9,PriorIssTable[[#This Row],[Legal Entity]],$J$8:$J9,PriorIssTable[[#This Row],[Issuers Exhibit Ind]],$H$8:$H9,PriorIssTable[[#This Row],[Metal]],'Prior Plans'!BD$8:BD9,">0")>1),0,1) -> 0 | BF9: =IF(OR(PriorIssTable[[#This Row],[Issuers Exhibit Ind]]=0,'Prior Plans'!BE9={0,""},COUNTIFS($C$8:$C9,PriorIssTable[[#This Row],[Legal Entity]],$J$8:$J9,PriorIssTable[[#This Row],[Issuers Exhibit Ind]],$H$8:$H9,PriorIssTable[[#This Row],[Metal]],'Prior Plans'!BE$8:BE9,">0")>1),0,1) -> 0 | BG9: =IF(OR(PriorIssTable[[#This Row],[Issuers Exhibit Ind]]=0,'Prior Plans'!BF9={0,""},COUNTIFS($C$8:$C9,PriorIssTable[[#This Row],[Legal Entity]],$J$8:$J9,PriorIssTable[[#This Row],[Issuers Exhibit Ind]],$H$8:$H9,PriorIssTable[[#This Row],[Metal]],'Prior Plans'!BF$8:BF9,">0")>1),0,1) -> 0 | BH9: =IF(OR(PriorIssTable[[#This Row],[Issuers Exhibit Ind]]=0,'Prior Plans'!BG9={0,""},COUNTIFS($C$8:$C9,PriorIssTable[[#This Row],[Legal Entity]],$J$8:$J9,PriorIssTable[[#This Row],[Issuers Exhibit Ind]],$H$8:$H9,PriorIssTable[[#This Row],[Metal]],'Prior Plans'!BG$8:BG9,">0")>1),0,1) -> 0 | BI9: =IF(OR(PriorIssTable[[#This Row],[Issuers Exhibit Ind]]=0,'Prior Plans'!BH9={0,""},COUNTIFS($C$8:$C9,PriorIssTable[[#This Row],[Legal Entity]],$J$8:$J9,PriorIssTable[[#This Row],[Issuers Exhibit Ind]],$H$8:$H9,PriorIssTable[[#This Row],[Metal]],'Prior Plans'!BH$8:BH9,">0")>1),0,1) -> 0 | BJ9: =IF(OR(PriorIssTable[[#This Row],[Issuers Exhibit Ind]]=0,'Prior Plans'!BI9={0,""},COUNTIFS($C$8:$C9,PriorIssTable[[#This Row],[Legal Entity]],$J$8:$J9,PriorIssTable[[#This Row],[Issuers Exhibit Ind]],$H$8:$H9,PriorIssTable[[#This Row],[Metal]],'Prior Plans'!BI$8:BI9,">0")>1),0,1) -> 0 | BK9: =IF(OR(PriorIssTable[[#This Row],[Issuers Exhibit Ind]]=0,'Prior Plans'!BJ9={0,""},COUNTIFS($C$8:$C9,PriorIssTable[[#This Row],[Legal Entity]],$J$8:$J9,PriorIssTable[[#This Row],[Issuers Exhibit Ind]],$H$8:$H9,PriorIssTable[[#This Row],[Metal]],'Prior Plans'!BJ$8:BJ9,">0")>1),0,1) -> 0 | BL9: =IF(OR(PriorIssTable[[#This Row],[Issuers Exhibit Ind]]=0,'Prior Plans'!BK9={0,""},COUNTIFS($C$8:$C9,PriorIssTable[[#This Row],[Legal Entity]],$J$8:$J9,PriorIssTable[[#This Row],[Issuers Exhibit Ind]],$H$8:$H9,PriorIssTable[[#This Row],[Metal]],'Prior Plans'!BK$8:BK9,">0")>1),0,1) -> 0 | BM9: =IF(OR(PriorIssTable[[#This Row],[Issuers Exhibit Ind]]=0,'Prior Plans'!BL9={0,""},COUNTIFS($C$8:$C9,PriorIssTable[[#This Row],[Legal Entity]],$J$8:$J9,PriorIssTable[[#This Row],[Issuers Exhibit Ind]],$H$8:$H9,PriorIssTable[[#This Row],[Metal]],'Prior Plans'!BL$8:BL9,">0")>1),0,1) -> 0 | BN9: =IF(OR(PriorIssTable[[#This Row],[Issuers Exhibit Ind]]=0,'Prior Plans'!BM9={0,""},COUNTIFS($C$8:$C9,PriorIssTable[[#This Row],[Legal Entity]],$J$8:$J9,PriorIssTable[[#This Row],[Issuers Exhibit Ind]],$H$8:$H9,PriorIssTable[[#This Row],[Metal]],'Prior Plans'!BM$8:BM9,">0")>1),0,1) -> 0 | BO9: =IF(OR(PriorIssTable[[#This Row],[Issuers Exhibit Ind]]=0,'Prior Plans'!BN9={0,""},COUNTIFS($C$8:$C9,PriorIssTable[[#This Row],[Legal Entity]],$J$8:$J9,PriorIssTable[[#This Row],[Issuers Exhibit Ind]],$H$8:$H9,PriorIssTable[[#This Row],[Metal]],'Prior Plans'!BN$8:BN9,">0")>1),0,1) -> 0 | BP9: =IF(OR(PriorIssTable[[#This Row],[Issuers Exhibit Ind]]=0,'Prior Plans'!BO9={0,""},COUNTIFS($C$8:$C9,PriorIssTable[[#This Row],[Legal Entity]],$J$8:$J9,PriorIssTable[[#This Row],[Issuers Exhibit Ind]],$H$8:$H9,PriorIssTable[[#This Row],[Metal]],'Prior Plans'!BO$8:BO9,">0")>1),0,1) -> 0 | BQ9: =IF(OR(PriorIssTable[[#This Row],[Issuers Exhibit Ind]]=0,'Prior Plans'!BP9={0,""},COUNTIFS($C$8:$C9,PriorIssTable[[#This Row],[Legal Entity]],$J$8:$J9,PriorIssTable[[#This Row],[Issuers Exhibit Ind]],$H$8:$H9,PriorIssTable[[#This Row],[Metal]],'Prior Plans'!BP$8:BP9,">0")>1),0,1) -> 0 | BR9: =IF(OR(PriorIssTable[[#This Row],[Issuers Exhibit Ind]]=0,'Prior Plans'!BQ9={0,""},COUNTIFS($C$8:$C9,PriorIssTable[[#This Row],[Legal Entity]],$J$8:$J9,PriorIssTable[[#This Row],[Issuers Exhibit Ind]],$H$8:$H9,PriorIssTable[[#This Row],[Metal]],'Prior Plans'!BQ$8:BQ9,">0")>1),0,1) -> 0 | BS9: =IF(OR(PriorIssTable[[#This Row],[Issuers Exhibit Ind]]=0,'Prior Plans'!BR9={0,""},COUNTIFS($C$8:$C9,PriorIssTable[[#This Row],[Legal Entity]],$J$8:$J9,PriorIssTable[[#This Row],[Issuers Exhibit Ind]],$H$8:$H9,PriorIssTable[[#This Row],[Metal]],'Prior Plans'!BR$8:BR9,">0")>1),0,1) -> 0 | BT9: =IF(OR(PriorIssTable[[#This Row],[Issuers Exhibit Ind]]=0,'Prior Plans'!BS9={0,""},COUNTIFS($C$8:$C9,PriorIssTable[[#This Row],[Legal Entity]],$J$8:$J9,PriorIssTable[[#This Row],[Issuers Exhibit Ind]],$H$8:$H9,PriorIssTable[[#This Row],[Metal]],'Prior Plans'!BS$8:BS9,">0")>1),0,1) -> 0 | BU9: =IF(OR(PriorIssTable[[#This Row],[Issuers Exhibit Ind]]=0,'Prior Plans'!BT9={0,""},COUNTIFS($C$8:$C9,PriorIssTable[[#This Row],[Legal Entity]],$J$8:$J9,PriorIssTable[[#This Row],[Issuers Exhibit Ind]],$H$8:$H9,PriorIssTable[[#This Row],[Metal]],'Prior Plans'!BT$8:BT9,">0")>1),0,1) -> 0 | BV9: =IF(OR(PriorIssTable[[#This Row],[Issuers Exhibit Ind]]=0,'Prior Plans'!BU9={0,""},COUNTIFS($C$8:$C9,PriorIssTable[[#This Row],[Legal Entity]],$J$8:$J9,PriorIssTable[[#This Row],[Issuers Exhibit Ind]],$H$8:$H9,PriorIssTable[[#This Row],[Metal]],'Prior Plans'!BU$8:BU9,">0")>1),0,1) -> 0 | BW9: =IF(OR(PriorIssTable[[#This Row],[Issuers Exhibit Ind]]=0,'Prior Plans'!BV9={0,""},COUNTIFS($C$8:$C9,PriorIssTable[[#This Row],[Legal Entity]],$J$8:$J9,PriorIssTable[[#This Row],[Issuers Exhibit Ind]],$H$8:$H9,PriorIssTable[[#This Row],[Metal]],'Prior Plans'!BV$8:BV9,">0")>1),0,1) -> 0 | BX9: =IF(OR(PriorIssTable[[#This Row],[Issuers Exhibit Ind]]=0,'Prior Plans'!BW9={0,""},COUNTIFS($C$8:$C9,PriorIssTable[[#This Row],[Legal Entity]],$J$8:$J9,PriorIssTable[[#This Row],[Issuers Exhibit Ind]],$H$8:$H9,PriorIssTable[[#This Row],[Metal]],'Prior Plans'!BW$8:BW9,">0")>1),0,1) -> 0 | BY9: =IF(OR(PriorIssTable[[#This Row],[Issuers Exhibit Ind]]=0,'Prior Plans'!BX9={0,""},COUNTIFS($C$8:$C9,PriorIssTable[[#This Row],[Legal Entity]],$J$8:$J9,PriorIssTable[[#This Row],[Issuers Exhibit Ind]],$H$8:$H9,PriorIssTable[[#This Row],[Metal]],'Prior Plans'!BX$8:BX9,">0")>1),0,1) -> 0 | BZ9: =IF(OR(PriorIssTable[[#This Row],[Issuers Exhibit Ind]]=0,'Prior Plans'!J9=0,'Prior Plans'!J9="",COUNTIFS($C$8:$C9,PriorIssTable[[#This Row],[Legal Entity]],$J$8:$J9,PriorIssTable[[#This Row],[Issuers Exhibit Ind]],'Prior Plans'!J$8:J9,">0")>1),0,1) -> 0 | CA9: =IF(OR(PriorIssTable[[#This Row],[Issuers Exhibit Ind]]=0,'Prior Plans'!K9=0,'Prior Plans'!K9="",COUNTIFS($C$8:$C9,PriorIssTable[[#This Row],[Legal Entity]],$J$8:$J9,PriorIssTable[[#This Row],[Issuers Exhibit Ind]],'Prior Plans'!K$8:K9,">0")>1),0,1) -> 0 | CB9: =IF(OR(PriorIssTable[[#This Row],[Issuers Exhibit Ind]]=0,'Prior Plans'!L9=0,'Prior Plans'!L9="",COUNTIFS($C$8:$C9,PriorIssTable[[#This Row],[Legal Entity]],$J$8:$J9,PriorIssTable[[#This Row],[Issuers Exhibit Ind]],'Prior Plans'!L$8:L9,">0")>1),0,1) -> 0 | CC9: =IF(OR(PriorIssTable[[#This Row],[Issuers Exhibit Ind]]=0,'Prior Plans'!M9=0,'Prior Plans'!M9="",COUNTIFS($C$8:$C9,PriorIssTable[[#This Row],[Legal Entity]],$J$8:$J9,PriorIssTable[[#This Row],[Issuers Exhibit Ind]],'Prior Plans'!M$8:M9,">0")>1),0,1) -> 0 | CD9: =IF(OR(PriorIssTable[[#This Row],[Issuers Exhibit Ind]]=0,'Prior Plans'!N9=0,'Prior Plans'!N9="",COUNTIFS($C$8:$C9,PriorIssTable[[#This Row],[Legal Entity]],$J$8:$J9,PriorIssTable[[#This Row],[Issuers Exhibit Ind]],'Prior Plans'!N$8:N9,">0")>1),0,1) -> 0 | CE9: =IF(OR(PriorIssTable[[#This Row],[Issuers Exhibit Ind]]=0,'Prior Plans'!O9=0,'Prior Plans'!O9="",COUNTIFS($C$8:$C9,PriorIssTable[[#This Row],[Legal Entity]],$J$8:$J9,PriorIssTable[[#This Row],[Issuers Exhibit Ind]],'Prior Plans'!O$8:O9,">0")>1),0,1) -> 0 | CF9: =IF(OR(PriorIssTable[[#This Row],[Issuers Exhibit Ind]]=0,'Prior Plans'!P9=0,'Prior Plans'!P9="",COUNTIFS($C$8:$C9,PriorIssTable[[#This Row],[Legal Entity]],$J$8:$J9,PriorIssTable[[#This Row],[Issuers Exhibit Ind]],'Prior Plans'!P$8:P9,">0")>1),0,1) -> 0 | CG9: =IF(OR(PriorIssTable[[#This Row],[Issuers Exhibit Ind]]=0,'Prior Plans'!Q9=0,'Prior Plans'!Q9="",COUNTIFS($C$8:$C9,PriorIssTable[[#This Row],[Legal Entity]],$J$8:$J9,PriorIssTable[[#This Row],[Issuers Exhibit Ind]],'Prior Plans'!Q$8:Q9,">0")>1),0,1) -> 0 | CH9: =IF(OR(PriorIssTable[[#This Row],[Issuers Exhibit Ind]]=0,'Prior Plans'!R9=0,'Prior Plans'!R9="",COUNTIFS($C$8:$C9,PriorIssTable[[#This Row],[Legal Entity]],$J$8:$J9,PriorIssTable[[#This Row],[Issuers Exhibit Ind]],'Prior Plans'!R$8:R9,">0")>1),0,1) -> 0 | CI9: =IF(OR(PriorIssTable[[#This Row],[Issuers Exhibit Ind]]=0,'Prior Plans'!S9=0,'Prior Plans'!S9="",COUNTIFS($C$8:$C9,PriorIssTable[[#This Row],[Legal Entity]],$J$8:$J9,PriorIssTable[[#This Row],[Issuers Exhibit Ind]],'Prior Plans'!S$8:S9,">0")>1),0,1) -> 0 | CJ9: =IF(OR(PriorIssTable[[#This Row],[Issuers Exhibit Ind]]=0,'Prior Plans'!T9=0,'Prior Plans'!T9="",COUNTIFS($C$8:$C9,PriorIssTable[[#This Row],[Legal Entity]],$J$8:$J9,PriorIssTable[[#This Row],[Issuers Exhibit Ind]],'Prior Plans'!T$8:T9,">0")>1),0,1) -> 0 | CK9: =IF(OR(PriorIssTable[[#This Row],[Issuers Exhibit Ind]]=0,'Prior Plans'!U9=0,'Prior Plans'!U9="",COUNTIFS($C$8:$C9,PriorIssTable[[#This Row],[Legal Entity]],$J$8:$J9,PriorIssTable[[#This Row],[Issuers Exhibit Ind]],'Prior Plans'!U$8:U9,">0")>1),0,1) -> 0 | CL9: =IF(OR(PriorIssTable[[#This Row],[Issuers Exhibit Ind]]=0,'Prior Plans'!V9=0,'Prior Plans'!V9="",COUNTIFS($C$8:$C9,PriorIssTable[[#This Row],[Legal Entity]],$J$8:$J9,PriorIssTable[[#This Row],[Issuers Exhibit Ind]],'Prior Plans'!V$8:V9,">0")>1),0,1) -> 0 | CM9: =IF(OR(PriorIssTable[[#This Row],[Issuers Exhibit Ind]]=0,'Prior Plans'!W9=0,'Prior Plans'!W9="",COUNTIFS($C$8:$C9,PriorIssTable[[#This Row],[Legal Entity]],$J$8:$J9,PriorIssTable[[#This Row],[Issuers Exhibit Ind]],'Prior Plans'!W$8:W9,">0")>1),0,1) -> 0 | CN9: =IF(OR(PriorIssTable[[#This Row],[Issuers Exhibit Ind]]=0,'Prior Plans'!X9=0,'Prior Plans'!X9="",COUNTIFS($C$8:$C9,PriorIssTable[[#This Row],[Legal Entity]],$J$8:$J9,PriorIssTable[[#This Row],[Issuers Exhibit Ind]],'Prior Plans'!X$8:X9,">0")>1),0,1) -> 0 | CO9: =IF(OR(PriorIssTable[[#This Row],[Issuers Exhibit Ind]]=0,'Prior Plans'!Y9=0,'Prior Plans'!Y9="",COUNTIFS($C$8:$C9,PriorIssTable[[#This Row],[Legal Entity]],$J$8:$J9,PriorIssTable[[#This Row],[Issuers Exhibit Ind]],'Prior Plans'!Y$8:Y9,">0")>1),0,1) -> 0 | CP9: =IF(OR(PriorIssTable[[#This Row],[Issuers Exhibit Ind]]=0,'Prior Plans'!Z9=0,'Prior Plans'!Z9="",COUNTIFS($C$8:$C9,PriorIssTable[[#This Row],[Legal Entity]],$J$8:$J9,PriorIssTable[[#This Row],[Issuers Exhibit Ind]],'Prior Plans'!Z$8:Z9,">0")>1),0,1) -> 0 | CQ9: =IF(OR(PriorIssTable[[#This Row],[Issuers Exhibit Ind]]=0,'Prior Plans'!AA9=0,'Prior Plans'!AA9="",COUNTIFS($C$8:$C9,PriorIssTable[[#This Row],[Legal Entity]],$J$8:$J9,PriorIssTable[[#This Row],[Issuers Exhibit Ind]],'Prior Plans'!AA$8:AA9,">0")>1),0,1) -> 0 | CR9: =IF(OR(PriorIssTable[[#This Row],[Issuers Exhibit Ind]]=0,'Prior Plans'!AB9=0,'Prior Plans'!AB9="",COUNTIFS($C$8:$C9,PriorIssTable[[#This Row],[Legal Entity]],$J$8:$J9,PriorIssTable[[#This Row],[Issuers Exhibit Ind]],'Prior Plans'!AB$8:AB9,">0")>1),0,1) -> 0 | CS9: =IF(OR(PriorIssTable[[#This Row],[Issuers Exhibit Ind]]=0,'Prior Plans'!AC9=0,'Prior Plans'!AC9="",COUNTIFS($C$8:$C9,PriorIssTable[[#This Row],[Legal Entity]],$J$8:$J9,PriorIssTable[[#This Row],[Issuers Exhibit Ind]],'Prior Plans'!AC$8:AC9,">0")>1),0,1) -> 0 | CT9: =IF(OR(PriorIssTable[[#This Row],[Issuers Exhibit Ind]]=0,'Prior Plans'!AD9=0,'Prior Plans'!AD9="",COUNTIFS($C$8:$C9,PriorIssTable[[#This Row],[Legal Entity]],$J$8:$J9,PriorIssTable[[#This Row],[Issuers Exhibit Ind]],'Prior Plans'!AD$8:AD9,">0")>1),0,1) -> 0 | CU9: =IF(OR(PriorIssTable[[#This Row],[Issuers Exhibit Ind]]=0,'Prior Plans'!AE9=0,'Prior Plans'!AE9="",COUNTIFS($C$8:$C9,PriorIssTable[[#This Row],[Legal Entity]],$J$8:$J9,PriorIssTable[[#This Row],[Issuers Exhibit Ind]],'Prior Plans'!AE$8:AE9,">0")>1),0,1) -> 0 | CV9: =IF(OR(PriorIssTable[[#This Row],[Issuers Exhibit Ind]]=0,'Prior Plans'!AF9=0,'Prior Plans'!AF9="",COUNTIFS($C$8:$C9,PriorIssTable[[#This Row],[Legal Entity]],$J$8:$J9,PriorIssTable[[#This Row],[Issuers Exhibit Ind]],'Prior Plans'!AF$8:AF9,">0")>1),0,1) -> 0 | CW9: =IF(OR(PriorIssTable[[#This Row],[Issuers Exhibit Ind]]=0,'Prior Plans'!AG9=0,'Prior Plans'!AG9="",COUNTIFS($C$8:$C9,PriorIssTable[[#This Row],[Legal Entity]],$J$8:$J9,PriorIssTable[[#This Row],[Issuers Exhibit Ind]],'Prior Plans'!AG$8:AG9,">0")>1),0,1) -> 0 | CX9: =IF(OR(PriorIssTable[[#This Row],[Issuers Exhibit Ind]]=0,'Prior Plans'!AH9=0,'Prior Plans'!AH9="",COUNTIFS($C$8:$C9,PriorIssTable[[#This Row],[Legal Entity]],$J$8:$J9,PriorIssTable[[#This Row],[Issuers Exhibit Ind]],'Prior Plans'!AH$8:AH9,">0")>1),0,1) -> 0 | CY9: =IF(OR(PriorIssTable[[#This Row],[Issuers Exhibit Ind]]=0,'Prior Plans'!AI9=0,'Prior Plans'!AI9="",COUNTIFS($C$8:$C9,PriorIssTable[[#This Row],[Legal Entity]],$J$8:$J9,PriorIssTable[[#This Row],[Issuers Exhibit Ind]],'Prior Plans'!AI$8:AI9,">0")>1),0,1) -> 0 | CZ9: =IF(OR(PriorIssTable[[#This Row],[Issuers Exhibit Ind]]=0,'Prior Plans'!AJ9=0,'Prior Plans'!AJ9="",COUNTIFS($C$8:$C9,PriorIssTable[[#This Row],[Legal Entity]],$J$8:$J9,PriorIssTable[[#This Row],[Issuers Exhibit Ind]],'Prior Plans'!AJ$8:AJ9,">0")>1),0,1) -> 0 | DA9: =IF(OR(PriorIssTable[[#This Row],[Issuers Exhibit Ind]]=0,'Prior Plans'!AK9=0,'Prior Plans'!AK9="",COUNTIFS($C$8:$C9,PriorIssTable[[#This Row],[Legal Entity]],$J$8:$J9,PriorIssTable[[#This Row],[Issuers Exhibit Ind]],'Prior Plans'!AK$8:AK9,">0")>1),0,1) -> 0 | DB9: =IF(OR(PriorIssTable[[#This Row],[Issuers Exhibit Ind]]=0,'Prior Plans'!AL9=0,'Prior Plans'!AL9="",COUNTIFS($C$8:$C9,PriorIssTable[[#This Row],[Legal Entity]],$J$8:$J9,PriorIssTable[[#This Row],[Issuers Exhibit Ind]],'Prior Plans'!AL$8:AL9,">0")>1),0,1) -> 0 | DC9: =IF(OR(PriorIssTable[[#This Row],[Issuers Exhibit Ind]]=0,'Prior Plans'!AM9=0,'Prior Plans'!AM9="",COUNTIFS($C$8:$C9,PriorIssTable[[#This Row],[Legal Entity]],$J$8:$J9,PriorIssTable[[#This Row],[Issuers Exhibit Ind]],'Prior Plans'!AM$8:AM9,">0")>1),0,1) -> 0 | DD9: =IF(OR(PriorIssTable[[#This Row],[Issuers Exhibit Ind]]=0,'Prior Plans'!AN9=0,'Prior Plans'!AN9="",COUNTIFS($C$8:$C9,PriorIssTable[[#This Row],[Legal Entity]],$J$8:$J9,PriorIssTable[[#This Row],[Issuers Exhibit Ind]],'Prior Plans'!AN$8:AN9,">0")>1),0,1) -> 0 | DE9: =IF(OR(PriorIssTable[[#This Row],[Issuers Exhibit Ind]]=0,'Prior Plans'!AO9=0,'Prior Plans'!AO9="",COUNTIFS($C$8:$C9,PriorIssTable[[#This Row],[Legal Entity]],$J$8:$J9,PriorIssTable[[#This Row],[Issuers Exhibit Ind]],'Prior Plans'!AO$8:AO9,">0")>1),0,1) -> 0 | DF9: =IF(OR(PriorIssTable[[#This Row],[Issuers Exhibit Ind]]=0,'Prior Plans'!AP9=0,'Prior Plans'!AP9="",COUNTIFS($C$8:$C9,PriorIssTable[[#This Row],[Legal Entity]],$J$8:$J9,PriorIssTable[[#This Row],[Issuers Exhibit Ind]],'Prior Plans'!AP$8:AP9,">0")>1),0,1) -> 0 | DG9: =IF(OR(PriorIssTable[[#This Row],[Issuers Exhibit Ind]]=0,'Prior Plans'!AQ9=0,'Prior Plans'!AQ9="",COUNTIFS($C$8:$C9,PriorIssTable[[#This Row],[Legal Entity]],$J$8:$J9,PriorIssTable[[#This Row],[Issuers Exhibit Ind]],'Prior Plans'!AQ$8:AQ9,">0")>1),0,1) -> 0 | DH9: =IF(OR(PriorIssTable[[#This Row],[Issuers Exhibit Ind]]=0,'Prior Plans'!AR9=0,'Prior Plans'!AR9="",COUNTIFS($C$8:$C9,PriorIssTable[[#This Row],[Legal Entity]],$J$8:$J9,PriorIssTable[[#This Row],[Issuers Exhibit Ind]],'Prior Plans'!AR$8:AR9,">0")>1),0,1) -> 0 | DI9: =IF(OR(PriorIssTable[[#This Row],[Issuers Exhibit Ind]]=0,'Prior Plans'!AS9=0,'Prior Plans'!AS9="",COUNTIFS($C$8:$C9,PriorIssTable[[#This Row],[Legal Entity]],$J$8:$J9,PriorIssTable[[#This Row],[Issuers Exhibit Ind]],'Prior Plans'!AS$8:AS9,">0")>1),0,1) -> 0 | DJ9: =IF(OR(PriorIssTable[[#This Row],[Issuers Exhibit Ind]]=0,'Prior Plans'!AT9=0,'Prior Plans'!AT9="",COUNTIFS($C$8:$C9,PriorIssTable[[#This Row],[Legal Entity]],$J$8:$J9,PriorIssTable[[#This Row],[Issuers Exhibit Ind]],'Prior Plans'!AT$8:AT9,">0")>1),0,1) -> 0 | DK9: =IF(OR(PriorIssTable[[#This Row],[Issuers Exhibit Ind]]=0,'Prior Plans'!AU9=0,'Prior Plans'!AU9="",COUNTIFS($C$8:$C9,PriorIssTable[[#This Row],[Legal Entity]],$J$8:$J9,PriorIssTable[[#This Row],[Issuers Exhibit Ind]],'Prior Plans'!AU$8:AU9,">0")>1),0,1) -> 0 | DL9: =IF(OR(PriorIssTable[[#This Row],[Issuers Exhibit Ind]]=0,'Prior Plans'!AV9=0,'Prior Plans'!AV9="",COUNTIFS($C$8:$C9,PriorIssTable[[#This Row],[Legal Entity]],$J$8:$J9,PriorIssTable[[#This Row],[Issuers Exhibit Ind]],'Prior Plans'!AV$8:AV9,">0")>1),0,1) -> 0 | DM9: =IF(OR(PriorIssTable[[#This Row],[Issuers Exhibit Ind]]=0,'Prior Plans'!AW9=0,'Prior Plans'!AW9="",COUNTIFS($C$8:$C9,PriorIssTable[[#This Row],[Legal Entity]],$J$8:$J9,PriorIssTable[[#This Row],[Issuers Exhibit Ind]],'Prior Plans'!AW$8:AW9,">0")>1),0,1) -> 0 | DN9: =IF(OR(PriorIssTable[[#This Row],[Issuers Exhibit Ind]]=0,'Prior Plans'!AX9=0,'Prior Plans'!AX9="",COUNTIFS($C$8:$C9,PriorIssTable[[#This Row],[Legal Entity]],$J$8:$J9,PriorIssTable[[#This Row],[Issuers Exhibit Ind]],'Prior Plans'!AX$8:AX9,">0")>1),0,1) -> 0 | DO9: =IF(OR(PriorIssTable[[#This Row],[Issuers Exhibit Ind]]=0,'Prior Plans'!AY9=0,'Prior Plans'!AY9="",COUNTIFS($C$8:$C9,PriorIssTable[[#This Row],[Legal Entity]],$J$8:$J9,PriorIssTable[[#This Row],[Issuers Exhibit Ind]],'Prior Plans'!AY$8:AY9,">0")>1),0,1) -> 0 | DP9: =IF(OR(PriorIssTable[[#This Row],[Issuers Exhibit Ind]]=0,'Prior Plans'!AZ9=0,'Prior Plans'!AZ9="",COUNTIFS($C$8:$C9,PriorIssTable[[#This Row],[Legal Entity]],$J$8:$J9,PriorIssTable[[#This Row],[Issuers Exhibit Ind]],'Prior Plans'!AZ$8:AZ9,">0")>1),0,1) -> 0 | DQ9: =IF(OR(PriorIssTable[[#This Row],[Issuers Exhibit Ind]]=0,'Prior Plans'!BA9=0,'Prior Plans'!BA9="",COUNTIFS($C$8:$C9,PriorIssTable[[#This Row],[Legal Entity]],$J$8:$J9,PriorIssTable[[#This Row],[Issuers Exhibit Ind]],'Prior Plans'!BA$8:BA9,">0")>1),0,1) -> 0 | DR9: =IF(OR(PriorIssTable[[#This Row],[Issuers Exhibit Ind]]=0,'Prior Plans'!BB9=0,'Prior Plans'!BB9="",COUNTIFS($C$8:$C9,PriorIssTable[[#This Row],[Legal Entity]],$J$8:$J9,PriorIssTable[[#This Row],[Issuers Exhibit Ind]],'Prior Plans'!BB$8:BB9,">0")>1),0,1) -> 0 | DS9: =IF(OR(PriorIssTable[[#This Row],[Issuers Exhibit Ind]]=0,'Prior Plans'!BC9=0,'Prior Plans'!BC9="",COUNTIFS($C$8:$C9,PriorIssTable[[#This Row],[Legal Entity]],$J$8:$J9,PriorIssTable[[#This Row],[Issuers Exhibit Ind]],'Prior Plans'!BC$8:BC9,">0")>1),0,1) -> 0 | DT9: =IF(OR(PriorIssTable[[#This Row],[Issuers Exhibit Ind]]=0,'Prior Plans'!BD9=0,'Prior Plans'!BD9="",COUNTIFS($C$8:$C9,PriorIssTable[[#This Row],[Legal Entity]],$J$8:$J9,PriorIssTable[[#This Row],[Issuers Exhibit Ind]],'Prior Plans'!BD$8:BD9,">0")>1),0,1) -> 0 | DU9: =IF(OR(PriorIssTable[[#This Row],[Issuers Exhibit Ind]]=0,'Prior Plans'!BE9=0,'Prior Plans'!BE9="",COUNTIFS($C$8:$C9,PriorIssTable[[#This Row],[Legal Entity]],$J$8:$J9,PriorIssTable[[#This Row],[Issuers Exhibit Ind]],'Prior Plans'!BE$8:BE9,">0")>1),0,1) -> 0 | DV9: =IF(OR(PriorIssTable[[#This Row],[Issuers Exhibit Ind]]=0,'Prior Plans'!BF9=0,'Prior Plans'!BF9="",COUNTIFS($C$8:$C9,PriorIssTable[[#This Row],[Legal Entity]],$J$8:$J9,PriorIssTable[[#This Row],[Issuers Exhibit Ind]],'Prior Plans'!BF$8:BF9,">0")>1),0,1) -> 0 | DW9: =IF(OR(PriorIssTable[[#This Row],[Issuers Exhibit Ind]]=0,'Prior Plans'!BG9=0,'Prior Plans'!BG9="",COUNTIFS($C$8:$C9,PriorIssTable[[#This Row],[Legal Entity]],$J$8:$J9,PriorIssTable[[#This Row],[Issuers Exhibit Ind]],'Prior Plans'!BG$8:BG9,">0")>1),0,1) -> 0 | DX9: =IF(OR(PriorIssTable[[#This Row],[Issuers Exhibit Ind]]=0,'Prior Plans'!BH9=0,'Prior Plans'!BH9="",COUNTIFS($C$8:$C9,PriorIssTable[[#This Row],[Legal Entity]],$J$8:$J9,PriorIssTable[[#This Row],[Issuers Exhibit Ind]],'Prior Plans'!BH$8:BH9,">0")>1),0,1) -> 0 | DY9: =IF(OR(PriorIssTable[[#This Row],[Issuers Exhibit Ind]]=0,'Prior Plans'!BI9=0,'Prior Plans'!BI9="",COUNTIFS($C$8:$C9,PriorIssTable[[#This Row],[Legal Entity]],$J$8:$J9,PriorIssTable[[#This Row],[Issuers Exhibit Ind]],'Prior Plans'!BI$8:BI9,">0")>1),0,1) -> 0 | DZ9: =IF(OR(PriorIssTable[[#This Row],[Issuers Exhibit Ind]]=0,'Prior Plans'!BJ9=0,'Prior Plans'!BJ9="",COUNTIFS($C$8:$C9,PriorIssTable[[#This Row],[Legal Entity]],$J$8:$J9,PriorIssTable[[#This Row],[Issuers Exhibit Ind]],'Prior Plans'!BJ$8:BJ9,">0")>1),0,1) -> 0 | EA9: =IF(OR(PriorIssTable[[#This Row],[Issuers Exhibit Ind]]=0,'Prior Plans'!BK9=0,'Prior Plans'!BK9="",COUNTIFS($C$8:$C9,PriorIssTable[[#This Row],[Legal Entity]],$J$8:$J9,PriorIssTable[[#This Row],[Issuers Exhibit Ind]],'Prior Plans'!BK$8:BK9,">0")>1),0,1) -> 0 | EB9: =IF(OR(PriorIssTable[[#This Row],[Issuers Exhibit Ind]]=0,'Prior Plans'!BL9=0,'Prior Plans'!BL9="",COUNTIFS($C$8:$C9,PriorIssTable[[#This Row],[Legal Entity]],$J$8:$J9,PriorIssTable[[#This Row],[Issuers Exhibit Ind]],'Prior Plans'!BL$8:BL9,">0")>1),0,1) -> 0 | EC9: =IF(OR(PriorIssTable[[#This Row],[Issuers Exhibit Ind]]=0,'Prior Plans'!BM9=0,'Prior Plans'!BM9="",COUNTIFS($C$8:$C9,PriorIssTable[[#This Row],[Legal Entity]],$J$8:$J9,PriorIssTable[[#This Row],[Issuers Exhibit Ind]],'Prior Plans'!BM$8:BM9,">0")>1),0,1) -> 0 | ED9: =IF(OR(PriorIssTable[[#This Row],[Issuers Exhibit Ind]]=0,'Prior Plans'!BN9=0,'Prior Plans'!BN9="",COUNTIFS($C$8:$C9,PriorIssTable[[#This Row],[Legal Entity]],$J$8:$J9,PriorIssTable[[#This Row],[Issuers Exhibit Ind]],'Prior Plans'!BN$8:BN9,">0")>1),0,1) -> 0 | EE9: =IF(OR(PriorIssTable[[#This Row],[Issuers Exhibit Ind]]=0,'Prior Plans'!BO9=0,'Prior Plans'!BO9="",COUNTIFS($C$8:$C9,PriorIssTable[[#This Row],[Legal Entity]],$J$8:$J9,PriorIssTable[[#This Row],[Issuers Exhibit Ind]],'Prior Plans'!BO$8:BO9,">0")>1),0,1) -> 0 | EF9: =IF(OR(PriorIssTable[[#This Row],[Issuers Exhibit Ind]]=0,'Prior Plans'!BP9=0,'Prior Plans'!BP9="",COUNTIFS($C$8:$C9,PriorIssTable[[#This Row],[Legal Entity]],$J$8:$J9,PriorIssTable[[#This Row],[Issuers Exhibit Ind]],'Prior Plans'!BP$8:BP9,">0")>1),0,1) -> 0 | EG9: =IF(OR(PriorIssTable[[#This Row],[Issuers Exhibit Ind]]=0,'Prior Plans'!BQ9=0,'Prior Plans'!BQ9="",COUNTIFS($C$8:$C9,PriorIssTable[[#This Row],[Legal Entity]],$J$8:$J9,PriorIssTable[[#This Row],[Issuers Exhibit Ind]],'Prior Plans'!BQ$8:BQ9,">0")>1),0,1) -> 0 | EH9: =IF(OR(PriorIssTable[[#This Row],[Issuers Exhibit Ind]]=0,'Prior Plans'!BR9=0,'Prior Plans'!BR9="",COUNTIFS($C$8:$C9,PriorIssTable[[#This Row],[Legal Entity]],$J$8:$J9,PriorIssTable[[#This Row],[Issuers Exhibit Ind]],'Prior Plans'!BR$8:BR9,">0")>1),0,1) -> 0 | EI9: =IF(OR(PriorIssTable[[#This Row],[Issuers Exhibit Ind]]=0,'Prior Plans'!BS9=0,'Prior Plans'!BS9="",COUNTIFS($C$8:$C9,PriorIssTable[[#This Row],[Legal Entity]],$J$8:$J9,PriorIssTable[[#This Row],[Issuers Exhibit Ind]],'Prior Plans'!BS$8:BS9,">0")>1),0,1) -> 0 | EJ9: =IF(OR(PriorIssTable[[#This Row],[Issuers Exhibit Ind]]=0,'Prior Plans'!BT9=0,'Prior Plans'!BT9="",COUNTIFS($C$8:$C9,PriorIssTable[[#This Row],[Legal Entity]],$J$8:$J9,PriorIssTable[[#This Row],[Issuers Exhibit Ind]],'Prior Plans'!BT$8:BT9,">0")>1),0,1) -> 0 | EK9: =IF(OR(PriorIssTable[[#This Row],[Issuers Exhibit Ind]]=0,'Prior Plans'!BU9=0,'Prior Plans'!BU9="",COUNTIFS($C$8:$C9,PriorIssTable[[#This Row],[Legal Entity]],$J$8:$J9,PriorIssTable[[#This Row],[Issuers Exhibit Ind]],'Prior Plans'!BU$8:BU9,">0")>1),0,1) -> 0 | EL9: =IF(OR(PriorIssTable[[#This Row],[Issuers Exhibit Ind]]=0,'Prior Plans'!BV9=0,'Prior Plans'!BV9="",COUNTIFS($C$8:$C9,PriorIssTable[[#This Row],[Legal Entity]],$J$8:$J9,PriorIssTable[[#This Row],[Issuers Exhibit Ind]],'Prior Plans'!BV$8:BV9,">0")>1),0,1) -> 0 | EM9: =IF(OR(PriorIssTable[[#This Row],[Issuers Exhibit Ind]]=0,'Prior Plans'!BW9=0,'Prior Plans'!BW9="",COUNTIFS($C$8:$C9,PriorIssTable[[#This Row],[Legal Entity]],$J$8:$J9,PriorIssTable[[#This Row],[Issuers Exhibit Ind]],'Prior Plans'!BW$8:BW9,">0")>1),0,1) -> 0 | EN9: =IF(OR(PriorIssTable[[#This Row],[Issuers Exhibit Ind]]=0,'Prior Plans'!BX9=0,'Prior Plans'!BX9="",COUNTIFS($C$8:$C9,PriorIssTable[[#This Row],[Legal Entity]],$J$8:$J9,PriorIssTable[[#This Row],[Issuers Exhibit Ind]],'Prior Plans'!BX$8:BX9,">0")>1),0,1) -> 0
B10: Aetna | C10: Aetna HealthAssurance Pennsylvania, Inc. | D10: Small Group | E10: 18939PA0010025 | F10: PA Silver PPO 5000 80/50 | G10: PPO | H10: Silver | I10: Off | J10: =IF(PriorIssTable[[#This Row],[Market]]<>Iss_Cnty_Mkt,0,IF(OR(Iss_Cnty_Exch="On/Off",PriorIssTable[[#This Row],[On/Off Exchange]]="On/Off"),1,IF(PriorIssTable[[#This Row],[On/Off Exchange]]<>Iss_Cnty_Exch,0,1))) -> 0 | K10: =IF(OR(PriorIssTable[[#This Row],[Issuers Exhibit Ind]]=0,'Prior Plans'!J10={0,""},COUNTIFS($C$8:$C10,PriorIssTable[[#This Row],[Legal Entity]],$J$8:$J10,PriorIssTable[[#This Row],[Issuers Exhibit Ind]],$H$8:$H10,PriorIssTable[[#This Row],[Metal]],'Prior Plans'!J$8:J10,">0")>1),0,1) -> 0 | L10: =IF(OR(PriorIssTable[[#This Row],[Issuers Exhibit Ind]]=0,'Prior Plans'!K10={0,""},COUNTIFS($C$8:$C10,PriorIssTable[[#This Row],[Legal Entity]],$J$8:$J10,PriorIssTable[[#This Row],[Issuers Exhibit Ind]],$H$8:$H10,PriorIssTable[[#This Row],[Metal]],'Prior Plans'!K$8:K10,">0")>1),0,1) -> 0 | M10: =IF(OR(PriorIssTable[[#This Row],[Issuers Exhibit Ind]]=0,'Prior Plans'!L10={0,""},COUNTIFS($C$8:$C10,PriorIssTable[[#This Row],[Legal Entity]],$J$8:$J10,PriorIssTable[[#This Row],[Issuers Exhibit Ind]],$H$8:$H10,PriorIssTable[[#This Row],[Metal]],'Prior Plans'!L$8:L10,">0")>1),0,1) -> 0 | N10: =IF(OR(PriorIssTable[[#This Row],[Issuers Exhibit Ind]]=0,'Prior Plans'!M10={0,""},COUNTIFS($C$8:$C10,PriorIssTable[[#This Row],[Legal Entity]],$J$8:$J10,PriorIssTable[[#This Row],[Issuers Exhibit Ind]],$H$8:$H10,PriorIssTable[[#This Row],[Metal]],'Prior Plans'!M$8:M10,">0")>1),0,1) -> 0 | O10: =IF(OR(PriorIssTable[[#This Row],[Issuers Exhibit Ind]]=0,'Prior Plans'!N10={0,""},COUNTIFS($C$8:$C10,PriorIssTable[[#This Row],[Legal Entity]],$J$8:$J10,PriorIssTable[[#This Row],[Issuers Exhibit Ind]],$H$8:$H10,PriorIssTable[[#This Row],[Metal]],'Prior Plans'!N$8:N10,">0")>1),0,1) -> 0 | P10: =IF(OR(PriorIssTable[[#This Row],[Issuers Exhibit Ind]]=0,'Prior Plans'!O10={0,""},COUNTIFS($C$8:$C10,PriorIssTable[[#This Row],[Legal Entity]],$J$8:$J10,PriorIssTable[[#This Row],[Issuers Exhibit Ind]],$H$8:$H10,PriorIssTable[[#This Row],[Metal]],'Prior Plans'!O$8:O10,">0")>1),0,1) -> 0 | Q10: =IF(OR(PriorIssTable[[#This Row],[Issuers Exhibit Ind]]=0,'Prior Plans'!P10={0,""},COUNTIFS($C$8:$C10,PriorIssTable[[#This Row],[Legal Entity]],$J$8:$J10,PriorIssTable[[#This Row],[Issuers Exhibit Ind]],$H$8:$H10,PriorIssTable[[#This Row],[Metal]],'Prior Plans'!P$8:P10,">0")>1),0,1) -> 0 | R10: =IF(OR(PriorIssTable[[#This Row],[Issuers Exhibit Ind]]=0,'Prior Plans'!Q10={0,""},COUNTIFS($C$8:$C10,PriorIssTable[[#This Row],[Legal Entity]],$J$8:$J10,PriorIssTable[[#This Row],[Issuers Exhibit Ind]],$H$8:$H10,PriorIssTable[[#This Row],[Metal]],'Prior Plans'!Q$8:Q10,">0")>1),0,1) -> 0 | S10: =IF(OR(PriorIssTable[[#This Row],[Issuers Exhibit Ind]]=0,'Prior Plans'!R10={0,""},COUNTIFS($C$8:$C10,PriorIssTable[[#This Row],[Legal Entity]],$J$8:$J10,PriorIssTable[[#This Row],[Issuers Exhibit Ind]],$H$8:$H10,PriorIssTable[[#This Row],[Metal]],'Prior Plans'!R$8:R10,">0")>1),0,1) -> 0 | T10: =IF(OR(PriorIssTable[[#This Row],[Issuers Exhibit Ind]]=0,'Prior Plans'!S10={0,""},COUNTIFS($C$8:$C10,PriorIssTable[[#This Row],[Legal Entity]],$J$8:$J10,PriorIssTable[[#This Row],[Issuers Exhibit Ind]],$H$8:$H10,PriorIssTable[[#This Row],[Metal]],'Prior Plans'!S$8:S10,">0")>1),0,1) -> 0 | U10: =IF(OR(PriorIssTable[[#This Row],[Issuers Exhibit Ind]]=0,'Prior Plans'!T10={0,""},COUNTIFS($C$8:$C10,PriorIssTable[[#This Row],[Legal Entity]],$J$8:$J10,PriorIssTable[[#This Row],[Issuers Exhibit Ind]],$H$8:$H10,PriorIssTable[[#This Row],[Metal]],'Prior Plans'!T$8:T10,">0")>1),0,1) -> 0 | V10: =IF(OR(PriorIssTable[[#This Row],[Issuers Exhibit Ind]]=0,'Prior Plans'!U10={0,""},COUNTIFS($C$8:$C10,PriorIssTable[[#This Row],[Legal Entity]],$J$8:$J10,PriorIssTable[[#This Row],[Issuers Exhibit Ind]],$H$8:$H10,PriorIssTable[[#This Row],[Metal]],'Prior Plans'!U$8:U10,">0")>1),0,1) -> 0 | W10: =IF(OR(PriorIssTable[[#This Row],[Issuers Exhibit Ind]]=0,'Prior Plans'!V10={0,""},COUNTIFS($C$8:$C10,PriorIssTable[[#This Row],[Legal Entity]],$J$8:$J10,PriorIssTable[[#This Row],[Issuers Exhibit Ind]],$H$8:$H10,PriorIssTable[[#This Row],[Metal]],'Prior Plans'!V$8:V10,">0")>1),0,1) -> 0 | X10: =IF(OR(PriorIssTable[[#This Row],[Issuers Exhibit Ind]]=0,'Prior Plans'!W10={0,""},COUNTIFS($C$8:$C10,PriorIssTable[[#This Row],[Legal Entity]],$J$8:$J10,PriorIssTable[[#This Row],[Issuers Exhibit Ind]],$H$8:$H10,PriorIssTable[[#This Row],[Metal]],'Prior Plans'!W$8:W10,">0")>1),0,1) -> 0 | Y10: =IF(OR(PriorIssTable[[#This Row],[Issuers Exhibit Ind]]=0,'Prior Plans'!X10={0,""},COUNTIFS($C$8:$C10,PriorIssTable[[#This Row],[Legal Entity]],$J$8:$J10,PriorIssTable[[#This Row],[Issuers Exhibit Ind]],$H$8:$H10,PriorIssTable[[#This Row],[Metal]],'Prior Plans'!X$8:X10,">0")>1),0,1) -> 0 | Z10: =IF(OR(PriorIssTable[[#This Row],[Issuers Exhibit Ind]]=0,'Prior Plans'!Y10={0,""},COUNTIFS($C$8:$C10,PriorIssTable[[#This Row],[Legal Entity]],$J$8:$J10,PriorIssTable[[#This Row],[Issuers Exhibit Ind]],$H$8:$H10,PriorIssTable[[#This Row],[Metal]],'Prior Plans'!Y$8:Y10,">0")>1),0,1) -> 0 | AA10: =IF(OR(PriorIssTable[[#This Row],[Issuers Exhibit Ind]]=0,'Prior Plans'!Z10={0,""},COUNTIFS($C$8:$C10,PriorIssTable[[#This Row],[Legal Entity]],$J$8:$J10,PriorIssTable[[#This Row],[Issuers Exhibit Ind]],$H$8:$H10,PriorIssTable[[#This Row],[Metal]],'Prior Plans'!Z$8:Z10,">0")>1),0,1) -> 0 | AB10: =IF(OR(PriorIssTable[[#This Row],[Issuers Exhibit Ind]]=0,'Prior Plans'!AA10={0,""},COUNTIFS($C$8:$C10,PriorIssTable[[#This Row],[Legal Entity]],$J$8:$J10,PriorIssTable[[#This Row],[Issuers Exhibit Ind]],$H$8:$H10,PriorIssTable[[#This Row],[Metal]],'Prior Plans'!AA$8:AA10,">0")>1),0,1) -> 0 | AC10: =IF(OR(PriorIssTable[[#This Row],[Issuers Exhibit Ind]]=0,'Prior Plans'!AB10={0,""},COUNTIFS($C$8:$C10,PriorIssTable[[#This Row],[Legal Entity]],$J$8:$J10,PriorIssTable[[#This Row],[Issuers Exhibit Ind]],$H$8:$H10,PriorIssTable[[#This Row],[Metal]],'Prior Plans'!AB$8:AB10,">0")>1),0,1) -> 0 | AD10: =IF(OR(PriorIssTable[[#This Row],[Issuers Exhibit Ind]]=0,'Prior Plans'!AC10={0,""},COUNTIFS($C$8:$C10,PriorIssTable[[#This Row],[Legal Entity]],$J$8:$J10,PriorIssTable[[#This Row],[Issuers Exhibit Ind]],$H$8:$H10,PriorIssTable[[#This Row],[Metal]],'Prior Plans'!AC$8:AC10,">0")>1),0,1) -> 0 | AE10: =IF(OR(PriorIssTable[[#This Row],[Issuers Exhibit Ind]]=0,'Prior Plans'!AD10={0,""},COUNTIFS($C$8:$C10,PriorIssTable[[#This Row],[Legal Entity]],$J$8:$J10,PriorIssTable[[#This Row],[Issuers Exhibit Ind]],$H$8:$H10,PriorIssTable[[#This Row],[Metal]],'Prior Plans'!AD$8:AD10,">0")>1),0,1) -> 0 | AF10: =IF(OR(PriorIssTable[[#This Row],[Issuers Exhibit Ind]]=0,'Prior Plans'!AE10={0,""},COUNTIFS($C$8:$C10,PriorIssTable[[#This Row],[Legal Entity]],$J$8:$J10,PriorIssTable[[#This Row],[Issuers Exhibit Ind]],$H$8:$H10,PriorIssTable[[#This Row],[Metal]],'Prior Plans'!AE$8:AE10,">0")>1),0,1) -> 0 | AG10: =IF(OR(PriorIssTable[[#This Row],[Issuers Exhibit Ind]]=0,'Prior Plans'!AF10={0,""},COUNTIFS($C$8:$C10,PriorIssTable[[#This Row],[Legal Entity]],$J$8:$J10,PriorIssTable[[#This Row],[Issuers Exhibit Ind]],$H$8:$H10,PriorIssTable[[#This Row],[Metal]],'Prior Plans'!AF$8:AF10,">0")>1),0,1) -> 0 | AH10: =IF(OR(PriorIssTable[[#This Row],[Issuers Exhibit Ind]]=0,'Prior Plans'!AG10={0,""},COUNTIFS($C$8:$C10,PriorIssTable[[#This Row],[Legal Entity]],$J$8:$J10,PriorIssTable[[#This Row],[Issuers Exhibit Ind]],$H$8:$H10,PriorIssTable[[#This Row],[Metal]],'Prior Plans'!AG$8:AG10,">0")>1),0,1) -> 0 | AI10: =IF(OR(PriorIssTable[[#This Row],[Issuers Exhibit Ind]]=0,'Prior Plans'!AH10={0,""},COUNTIFS($C$8:$C10,PriorIssTable[[#This Row],[Legal Entity]],$J$8:$J10,PriorIssTable[[#This Row],[Issuers Exhibit Ind]],$H$8:$H10,PriorIssTable[[#This Row],[Metal]],'Prior Plans'!AH$8:AH10,">0")>1),0,1) -> 0 | AJ10: =IF(OR(PriorIssTable[[#This Row],[Issuers Exhibit Ind]]=0,'Prior Plans'!AI10={0,""},COUNTIFS($C$8:$C10,PriorIssTable[[#This Row],[Legal Entity]],$J$8:$J10,PriorIssTable[[#This Row],[Issuers Exhibit Ind]],$H$8:$H10,PriorIssTable[[#This Row],[Metal]],'Prior Plans'!AI$8:AI10,">0")>1),0,1) -> 0 | AK10: =IF(OR(PriorIssTable[[#This Row],[Issuers Exhibit Ind]]=0,'Prior Plans'!AJ10={0,""},COUNTIFS($C$8:$C10,PriorIssTable[[#This Row],[Legal Entity]],$J$8:$J10,PriorIssTable[[#This Row],[Issuers Exhibit Ind]],$H$8:$H10,PriorIssTable[[#This Row],[Metal]],'Prior Plans'!AJ$8:AJ10,">0")>1),0,1) -> 0 | AL10: =IF(OR(PriorIssTable[[#This Row],[Issuers Exhibit Ind]]=0,'Prior Plans'!AK10={0,""},COUNTIFS($C$8:$C10,PriorIssTable[[#This Row],[Legal Entity]],$J$8:$J10,PriorIssTable[[#This Row],[Issuers Exhibit Ind]],$H$8:$H10,PriorIssTable[[#This Row],[Metal]],'Prior Plans'!AK$8:AK10,">0")>1),0,1) -> 0 | AM10: =IF(OR(PriorIssTable[[#This Row],[Issuers Exhibit Ind]]=0,'Prior Plans'!AL10={0,""},COUNTIFS($C$8:$C10,PriorIssTable[[#This Row],[Legal Entity]],$J$8:$J10,PriorIssTable[[#This Row],[Issuers Exhibit Ind]],$H$8:$H10,PriorIssTable[[#This Row],[Metal]],'Prior Plans'!AL$8:AL10,">0")>1),0,1) -> 0 | AN10: =IF(OR(PriorIssTable[[#This Row],[Issuers Exhibit Ind]]=0,'Prior Plans'!AM10={0,""},COUNTIFS($C$8:$C10,PriorIssTable[[#This Row],[Legal Entity]],$J$8:$J10,PriorIssTable[[#This Row],[Issuers Exhibit Ind]],$H$8:$H10,PriorIssTable[[#This Row],[Metal]],'Prior Plans'!AM$8:AM10,">0")>1),0,1) -> 0 | AO10: =IF(OR(PriorIssTable[[#This Row],[Issuers Exhibit Ind]]=0,'Prior Plans'!AN10={0,""},COUNTIFS($C$8:$C10,PriorIssTable[[#This Row],[Legal Entity]],$J$8:$J10,PriorIssTable[[#This Row],[Issuers Exhibit Ind]],$H$8:$H10,PriorIssTable[[#This Row],[Metal]],'Prior Plans'!AN$8:AN10,">0")>1),0,1) -> 0 | AP10: =IF(OR(PriorIssTable[[#This Row],[Issuers Exhibit Ind]]=0,'Prior Plans'!AO10={0,""},COUNTIFS($C$8:$C10,PriorIssTable[[#This Row],[Legal Entity]],$J$8:$J10,PriorIssTable[[#This Row],[Issuers Exhibit Ind]],$H$8:$H10,PriorIssTable[[#This Row],[Metal]],'Prior Plans'!AO$8:AO10,">0")>1),0,1) -> 0 | AQ10: =IF(OR(PriorIssTable[[#This Row],[Issuers Exhibit Ind]]=0,'Prior Plans'!AP10={0,""},COUNTIFS($C$8:$C10,PriorIssTable[[#This Row],[Legal Entity]],$J$8:$J10,PriorIssTable[[#This Row],[Issuers Exhibit Ind]],$H$8:$H10,PriorIssTable[[#This Row],[Metal]],'Prior Plans'!AP$8:AP10,">0")>1),0,1) -> 0 | AR10: =IF(OR(PriorIssTable[[#This Row],[Issuers Exhibit Ind]]=0,'Prior Plans'!AQ10={0,""},COUNTIFS($C$8:$C10,PriorIssTable[[#This Row],[Legal Entity]],$J$8:$J10,PriorIssTable[[#This Row],[Issuers Exhibit Ind]],$H$8:$H10,PriorIssTable[[#This Row],[Metal]],'Prior Plans'!AQ$8:AQ10,">0")>1),0,1) -> 0 | AS10: =IF(OR(PriorIssTable[[#This Row],[Issuers Exhibit Ind]]=0,'Prior Plans'!AR10={0,""},COUNTIFS($C$8:$C10,PriorIssTable[[#This Row],[Legal Entity]],$J$8:$J10,PriorIssTable[[#This Row],[Issuers Exhibit Ind]],$H$8:$H10,PriorIssTable[[#This Row],[Metal]],'Prior Plans'!AR$8:AR10,">0")>1),0,1) -> 0 | AT10: =IF(OR(PriorIssTable[[#This Row],[Issuers Exhibit Ind]]=0,'Prior Plans'!AS10={0,""},COUNTIFS($C$8:$C10,PriorIssTable[[#This Row],[Legal Entity]],$J$8:$J10,PriorIssTable[[#This Row],[Issuers Exhibit Ind]],$H$8:$H10,PriorIssTable[[#This Row],[Metal]],'Prior Plans'!AS$8:AS10,">0")>1),0,1) -> 0 | AU10: =IF(OR(PriorIssTable[[#This Row],[Issuers Exhibit Ind]]=0,'Prior Plans'!AT10={0,""},COUNTIFS($C$8:$C10,PriorIssTable[[#This Row],[Legal Entity]],$J$8:$J10,PriorIssTable[[#This Row],[Issuers Exhibit Ind]],$H$8:$H10,PriorIssTable[[#This Row],[Metal]],'Prior Plans'!AT$8:AT10,">0")>1),0,1) -> 0 | AV10: =IF(OR(PriorIssTable[[#This Row],[Issuers Exhibit Ind]]=0,'Prior Plans'!AU10={0,""},COUNTIFS($C$8:$C10,PriorIssTable[[#This Row],[Legal Entity]],$J$8:$J10,PriorIssTable[[#This Row],[Issuers Exhibit Ind]],$H$8:$H10,PriorIssTable[[#This Row],[Metal]],'Prior Plans'!AU$8:AU10,">0")>1),0,1) -> 0 | AW10: =IF(OR(PriorIssTable[[#This Row],[Issuers Exhibit Ind]]=0,'Prior Plans'!AV10={0,""},COUNTIFS($C$8:$C10,PriorIssTable[[#This Row],[Legal Entity]],$J$8:$J10,PriorIssTable[[#This Row],[Issuers Exhibit Ind]],$H$8:$H10,PriorIssTable[[#This Row],[Metal]],'Prior Plans'!AV$8:AV10,">0")>1),0,1) -> 0 | AX10: =IF(OR(PriorIssTable[[#This Row],[Issuers Exhibit Ind]]=0,'Prior Plans'!AW10={0,""},COUNTIFS($C$8:$C10,PriorIssTable[[#This Row],[Legal Entity]],$J$8:$J10,PriorIssTable[[#This Row],[Issuers Exhibit Ind]],$H$8:$H10,PriorIssTable[[#This Row],[Metal]],'Prior Plans'!AW$8:AW10,">0")>1),0,1) -> 0 | AY10: =IF(OR(PriorIssTable[[#This Row],[Issuers Exhibit Ind]]=0,'Prior Plans'!AX10={0,""},COUNTIFS($C$8:$C10,PriorIssTable[[#This Row],[Legal Entity]],$J$8:$J10,PriorIssTable[[#This Row],[Issuers Exhibit Ind]],$H$8:$H10,PriorIssTable[[#This Row],[Metal]],'Prior Plans'!AX$8:AX10,">0")>1),0,1) -> 0 | AZ10: =IF(OR(PriorIssTable[[#This Row],[Issuers Exhibit Ind]]=0,'Prior Plans'!AY10={0,""},COUNTIFS($C$8:$C10,PriorIssTable[[#This Row],[Legal Entity]],$J$8:$J10,PriorIssTable[[#This Row],[Issuers Exhibit Ind]],$H$8:$H10,PriorIssTable[[#This Row],[Metal]],'Prior Plans'!AY$8:AY10,">0")>1),0,1) -> 0 | BA10: =IF(OR(PriorIssTable[[#This Row],[Issuers Exhibit Ind]]=0,'Prior Plans'!AZ10={0,""},COUNTIFS($C$8:$C10,PriorIssTable[[#This Row],[Legal Entity]],$J$8:$J10,PriorIssTable[[#This Row],[Issuers Exhibit Ind]],$H$8:$H10,PriorIssTable[[#This Row],[Metal]],'Prior Plans'!AZ$8:AZ10,">0")>1),0,1) -> 0 | BB10: =IF(OR(PriorIssTable[[#This Row],[Issuers Exhibit Ind]]=0,'Prior Plans'!BA10={0,""},COUNTIFS($C$8:$C10,PriorIssTable[[#This Row],[Legal Entity]],$J$8:$J10,PriorIssTable[[#This Row],[Issuers Exhibit Ind]],$H$8:$H10,PriorIssTable[[#This Row],[Metal]],'Prior Plans'!BA$8:BA10,">0")>1),0,1) -> 0 | BC10: =IF(OR(PriorIssTable[[#This Row],[Issuers Exhibit Ind]]=0,'Prior Plans'!BB10={0,""},COUNTIFS($C$8:$C10,PriorIssTable[[#This Row],[Legal Entity]],$J$8:$J10,PriorIssTable[[#This Row],[Issuers Exhibit Ind]],$H$8:$H10,PriorIssTable[[#This Row],[Metal]],'Prior Plans'!BB$8:BB10,">0")>1),0,1) -> 0 | BD10: =IF(OR(PriorIssTable[[#This Row],[Issuers Exhibit Ind]]=0,'Prior Plans'!BC10={0,""},COUNTIFS($C$8:$C10,PriorIssTable[[#This Row],[Legal Entity]],$J$8:$J10,PriorIssTable[[#This Row],[Issuers Exhibit Ind]],$H$8:$H10,PriorIssTable[[#This Row],[Metal]],'Prior Plans'!BC$8:BC10,">0")>1),0,1) -> 0 | BE10: =IF(OR(PriorIssTable[[#This Row],[Issuers Exhibit Ind]]=0,'Prior Plans'!BD10={0,""},COUNTIFS($C$8:$C10,PriorIssTable[[#This Row],[Legal Entity]],$J$8:$J10,PriorIssTable[[#This Row],[Issuers Exhibit Ind]],$H$8:$H10,PriorIssTable[[#This Row],[Metal]],'Prior Plans'!BD$8:BD10,">0")>1),0,1) -> 0 | BF10: =IF(OR(PriorIssTable[[#This Row],[Issuers Exhibit Ind]]=0,'Prior Plans'!BE10={0,""},COUNTIFS($C$8:$C10,PriorIssTable[[#This Row],[Legal Entity]],$J$8:$J10,PriorIssTable[[#This Row],[Issuers Exhibit Ind]],$H$8:$H10,PriorIssTable[[#This Row],[Metal]],'Prior Plans'!BE$8:BE10,">0")>1),0,1) -> 0 | BG10: =IF(OR(PriorIssTable[[#This Row],[Issuers Exhibit Ind]]=0,'Prior Plans'!BF10={0,""},COUNTIFS($C$8:$C10,PriorIssTable[[#This Row],[Legal Entity]],$J$8:$J10,PriorIssTable[[#This Row],[Issuers Exhibit Ind]],$H$8:$H10,PriorIssTable[[#This Row],[Metal]],'Prior Plans'!BF$8:BF10,">0")>1),0,1) -> 0 | BH10: =IF(OR(PriorIssTable[[#This Row],[Issuers Exhibit Ind]]=0,'Prior Plans'!BG10={0,""},COUNTIFS($C$8:$C10,PriorIssTable[[#This Row],[Legal Entity]],$J$8:$J10,PriorIssTable[[#This Row],[Issuers Exhibit Ind]],$H$8:$H10,PriorIssTable[[#This Row],[Metal]],'Prior Plans'!BG$8:BG10,">0")>1),0,1) -> 0 | BI10: =IF(OR(PriorIssTable[[#This Row],[Issuers Exhibit Ind]]=0,'Prior Plans'!BH10={0,""},COUNTIFS($C$8:$C10,PriorIssTable[[#This Row],[Legal Entity]],$J$8:$J10,PriorIssTable[[#This Row],[Issuers Exhibit Ind]],$H$8:$H10,PriorIssTable[[#This Row],[Metal]],'Prior Plans'!BH$8:BH10,">0")>1),0,1) -> 0 | BJ10: =IF(OR(PriorIssTable[[#This Row],[Issuers Exhibit Ind]]=0,'Prior Plans'!BI10={0,""},COUNTIFS($C$8:$C10,PriorIssTable[[#This Row],[Legal Entity]],$J$8:$J10,PriorIssTable[[#This Row],[Issuers Exhibit Ind]],$H$8:$H10,PriorIssTable[[#This Row],[Metal]],'Prior Plans'!BI$8:BI10,">0")>1),0,1) -> 0 | BK10: =IF(OR(PriorIssTable[[#This Row],[Issuers Exhibit Ind]]=0,'Prior Plans'!BJ10={0,""},COUNTIFS($C$8:$C10,PriorIssTable[[#This Row],[Legal Entity]],$J$8:$J10,PriorIssTable[[#This Row],[Issuers Exhibit Ind]],$H$8:$H10,PriorIssTable[[#This Row],[Metal]],'Prior Plans'!BJ$8:BJ10,">0")>1),0,1) -> 0 | BL10: =IF(OR(PriorIssTable[[#This Row],[Issuers Exhibit Ind]]=0,'Prior Plans'!BK10={0,""},COUNTIFS($C$8:$C10,PriorIssTable[[#This Row],[Legal Entity]],$J$8:$J10,PriorIssTable[[#This Row],[Issuers Exhibit Ind]],$H$8:$H10,PriorIssTable[[#This Row],[Metal]],'Prior Plans'!BK$8:BK10,">0")>1),0,1) -> 0 | BM10: =IF(OR(PriorIssTable[[#This Row],[Issuers Exhibit Ind]]=0,'Prior Plans'!BL10={0,""},COUNTIFS($C$8:$C10,PriorIssTable[[#This Row],[Legal Entity]],$J$8:$J10,PriorIssTable[[#This Row],[Issuers Exhibit Ind]],$H$8:$H10,PriorIssTable[[#This Row],[Metal]],'Prior Plans'!BL$8:BL10,">0")>1),0,1) -> 0 | BN10: =IF(OR(PriorIssTable[[#This Row],[Issuers Exhibit Ind]]=0,'Prior Plans'!BM10={0,""},COUNTIFS($C$8:$C10,PriorIssTable[[#This Row],[Legal Entity]],$J$8:$J10,PriorIssTable[[#This Row],[Issuers Exhibit Ind]],$H$8:$H10,PriorIssTable[[#This Row],[Metal]],'Prior Plans'!BM$8:BM10,">0")>1),0,1) -> 0 | BO10: =IF(OR(PriorIssTable[[#This Row],[Issuers Exhibit Ind]]=0,'Prior Plans'!BN10={0,""},COUNTIFS($C$8:$C10,PriorIssTable[[#This Row],[Legal Entity]],$J$8:$J10,PriorIssTable[[#This Row],[Issuers Exhibit Ind]],$H$8:$H10,PriorIssTable[[#This Row],[Metal]],'Prior Plans'!BN$8:BN10,">0")>1),0,1) -> 0 | BP10: =IF(OR(PriorIssTable[[#This Row],[Issuers Exhibit Ind]]=0,'Prior Plans'!BO10={0,""},COUNTIFS($C$8:$C10,PriorIssTable[[#This Row],[Legal Entity]],$J$8:$J10,PriorIssTable[[#This Row],[Issuers Exhibit Ind]],$H$8:$H10,PriorIssTable[[#This Row],[Metal]],'Prior Plans'!BO$8:BO10,">0")>1),0,1) -> 0 | BQ10: =IF(OR(PriorIssTable[[#This Row],[Issuers Exhibit Ind]]=0,'Prior Plans'!BP10={0,""},COUNTIFS($C$8:$C10,PriorIssTable[[#This Row],[Legal Entity]],$J$8:$J10,PriorIssTable[[#This Row],[Issuers Exhibit Ind]],$H$8:$H10,PriorIssTable[[#This Row],[Metal]],'Prior Plans'!BP$8:BP10,">0")>1),0,1) -> 0 | BR10: =IF(OR(PriorIssTable[[#This Row],[Issuers Exhibit Ind]]=0,'Prior Plans'!BQ10={0,""},COUNTIFS($C$8:$C10,PriorIssTable[[#This Row],[Legal Entity]],$J$8:$J10,PriorIssTable[[#This Row],[Issuers Exhibit Ind]],$H$8:$H10,PriorIssTable[[#This Row],[Metal]],'Prior Plans'!BQ$8:BQ10,">0")>1),0,1) -> 0 | BS10: =IF(OR(PriorIssTable[[#This Row],[Issuers Exhibit Ind]]=0,'Prior Plans'!BR10={0,""},COUNTIFS($C$8:$C10,PriorIssTable[[#This Row],[Legal Entity]],$J$8:$J10,PriorIssTable[[#This Row],[Issuers Exhibit Ind]],$H$8:$H10,PriorIssTable[[#This Row],[Metal]],'Prior Plans'!BR$8:BR10,">0")>1),0,1) -> 0 | BT10: =IF(OR(PriorIssTable[[#This Row],[Issuers Exhibit Ind]]=0,'Prior Plans'!BS10={0,""},COUNTIFS($C$8:$C10,PriorIssTable[[#This Row],[Legal Entity]],$J$8:$J10,PriorIssTable[[#This Row],[Issuers Exhibit Ind]],$H$8:$H10,PriorIssTable[[#This Row],[Metal]],'Prior Plans'!BS$8:BS10,">0")>1),0,1) -> 0 | BU10: =IF(OR(PriorIssTable[[#This Row],[Issuers Exhibit Ind]]=0,'Prior Plans'!BT10={0,""},COUNTIFS($C$8:$C10,PriorIssTable[[#This Row],[Legal Entity]],$J$8:$J10,PriorIssTable[[#This Row],[Issuers Exhibit Ind]],$H$8:$H10,PriorIssTable[[#This Row],[Metal]],'Prior Plans'!BT$8:BT10,">0")>1),0,1) -> 0 | BV10: =IF(OR(PriorIssTable[[#This Row],[Issuers Exhibit Ind]]=0,'Prior Plans'!BU10={0,""},COUNTIFS($C$8:$C10,PriorIssTable[[#This Row],[Legal Entity]],$J$8:$J10,PriorIssTable[[#This Row],[Issuers Exhibit Ind]],$H$8:$H10,PriorIssTable[[#This Row],[Metal]],'Prior Plans'!BU$8:BU10,">0")>1),0,1) -> 0 | BW10: =IF(OR(PriorIssTable[[#This Row],[Issuers Exhibit Ind]]=0,'Prior Plans'!BV10={0,""},COUNTIFS($C$8:$C10,PriorIssTable[[#This Row],[Legal Entity]],$J$8:$J10,PriorIssTable[[#This Row],[Issuers Exhibit Ind]],$H$8:$H10,PriorIssTable[[#This Row],[Metal]],'Prior Plans'!BV$8:BV10,">0")>1),0,1) -> 0 | BX10: =IF(OR(PriorIssTable[[#This Row],[Issuers Exhibit Ind]]=0,'Prior Plans'!BW10={0,""},COUNTIFS($C$8:$C10,PriorIssTable[[#This Row],[Legal Entity]],$J$8:$J10,PriorIssTable[[#This Row],[Issuers Exhibit Ind]],$H$8:$H10,PriorIssTable[[#This Row],[Metal]],'Prior Plans'!BW$8:BW10,">0")>1),0,1) -> 0 | BY10: =IF(OR(PriorIssTable[[#This Row],[Issuers Exhibit Ind]]=0,'Prior Plans'!BX10={0,""},COUNTIFS($C$8:$C10,PriorIssTable[[#This Row],[Legal Entity]],$J$8:$J10,PriorIssTable[[#This Row],[Issuers Exhibit Ind]],$H$8:$H10,PriorIssTable[[#This Row],[Metal]],'Prior Plans'!BX$8:BX10,">0")>1),0,1) -> 0 | BZ10: =IF(OR(PriorIssTable[[#This Row],[Issuers Exhibit Ind]]=0,'Prior Plans'!J10=0,'Prior Plans'!J10="",COUNTIFS($C$8:$C10,PriorIssTable[[#This Row],[Legal Entity]],$J$8:$J10,PriorIssTable[[#This Row],[Issuers Exhibit Ind]],'Prior Plans'!J$8:J10,">0")>1),0,1) -> 0 | CA10: =IF(OR(PriorIssTable[[#This Row],[Issuers Exhibit Ind]]=0,'Prior Plans'!K10=0,'Prior Plans'!K10="",COUNTIFS($C$8:$C10,PriorIssTable[[#This Row],[Legal Entity]],$J$8:$J10,PriorIssTable[[#This Row],[Issuers Exhibit Ind]],'Prior Plans'!K$8:K10,">0")>1),0,1) -> 0 | CB10: =IF(OR(PriorIssTable[[#This Row],[Issuers Exhibit Ind]]=0,'Prior Plans'!L10=0,'Prior Plans'!L10="",COUNTIFS($C$8:$C10,PriorIssTable[[#This Row],[Legal Entity]],$J$8:$J10,PriorIssTable[[#This Row],[Issuers Exhibit Ind]],'Prior Plans'!L$8:L10,">0")>1),0,1) -> 0 | CC10: =IF(OR(PriorIssTable[[#This Row],[Issuers Exhibit Ind]]=0,'Prior Plans'!M10=0,'Prior Plans'!M10="",COUNTIFS($C$8:$C10,PriorIssTable[[#This Row],[Legal Entity]],$J$8:$J10,PriorIssTable[[#This Row],[Issuers Exhibit Ind]],'Prior Plans'!M$8:M10,">0")>1),0,1) -> 0 | CD10: =IF(OR(PriorIssTable[[#This Row],[Issuers Exhibit Ind]]=0,'Prior Plans'!N10=0,'Prior Plans'!N10="",COUNTIFS($C$8:$C10,PriorIssTable[[#This Row],[Legal Entity]],$J$8:$J10,PriorIssTable[[#This Row],[Issuers Exhibit Ind]],'Prior Plans'!N$8:N10,">0")>1),0,1) -> 0 | CE10: =IF(OR(PriorIssTable[[#This Row],[Issuers Exhibit Ind]]=0,'Prior Plans'!O10=0,'Prior Plans'!O10="",COUNTIFS($C$8:$C10,PriorIssTable[[#This Row],[Legal Entity]],$J$8:$J10,PriorIssTable[[#This Row],[Issuers Exhibit Ind]],'Prior Plans'!O$8:O10,">0")>1),0,1) -> 0 | CF10: =IF(OR(PriorIssTable[[#This Row],[Issuers Exhibit Ind]]=0,'Prior Plans'!P10=0,'Prior Plans'!P10="",COUNTIFS($C$8:$C10,PriorIssTable[[#This Row],[Legal Entity]],$J$8:$J10,PriorIssTable[[#This Row],[Issuers Exhibit Ind]],'Prior Plans'!P$8:P10,">0")>1),0,1) -> 0 | CG10: =IF(OR(PriorIssTable[[#This Row],[Issuers Exhibit Ind]]=0,'Prior Plans'!Q10=0,'Prior Plans'!Q10="",COUNTIFS($C$8:$C10,PriorIssTable[[#This Row],[Legal Entity]],$J$8:$J10,PriorIssTable[[#This Row],[Issuers Exhibit Ind]],'Prior Plans'!Q$8:Q10,">0")>1),0,1) -> 0 | CH10: =IF(OR(PriorIssTable[[#This Row],[Issuers Exhibit Ind]]=0,'Prior Plans'!R10=0,'Prior Plans'!R10="",COUNTIFS($C$8:$C10,PriorIssTable[[#This Row],[Legal Entity]],$J$8:$J10,PriorIssTable[[#This Row],[Issuers Exhibit Ind]],'Prior Plans'!R$8:R10,">0")>1),0,1) -> 0 | CI10: =IF(OR(PriorIssTable[[#This Row],[Issuers Exhibit Ind]]=0,'Prior Plans'!S10=0,'Prior Plans'!S10="",COUNTIFS($C$8:$C10,PriorIssTable[[#This Row],[Legal Entity]],$J$8:$J10,PriorIssTable[[#This Row],[Issuers Exhibit Ind]],'Prior Plans'!S$8:S10,">0")>1),0,1) -> 0 | CJ10: =IF(OR(PriorIssTable[[#This Row],[Issuers Exhibit Ind]]=0,'Prior Plans'!T10=0,'Prior Plans'!T10="",COUNTIFS($C$8:$C10,PriorIssTable[[#This Row],[Legal Entity]],$J$8:$J10,PriorIssTable[[#This Row],[Issuers Exhibit Ind]],'Prior Plans'!T$8:T10,">0")>1),0,1) -> 0 | CK10: =IF(OR(PriorIssTable[[#This Row],[Issuers Exhibit Ind]]=0,'Prior Plans'!U10=0,'Prior Plans'!U10="",COUNTIFS($C$8:$C10,PriorIssTable[[#This Row],[Legal Entity]],$J$8:$J10,PriorIssTable[[#This Row],[Issuers Exhibit Ind]],'Prior Plans'!U$8:U10,">0")>1),0,1) -> 0 | CL10: =IF(OR(PriorIssTable[[#This Row],[Issuers Exhibit Ind]]=0,'Prior Plans'!V10=0,'Prior Plans'!V10="",COUNTIFS($C$8:$C10,PriorIssTable[[#This Row],[Legal Entity]],$J$8:$J10,PriorIssTable[[#This Row],[Issuers Exhibit Ind]],'Prior Plans'!V$8:V10,">0")>1),0,1) -> 0 | CM10: =IF(OR(PriorIssTable[[#This Row],[Issuers Exhibit Ind]]=0,'Prior Plans'!W10=0,'Prior Plans'!W10="",COUNTIFS($C$8:$C10,PriorIssTable[[#This Row],[Legal Entity]],$J$8:$J10,PriorIssTable[[#This Row],[Issuers Exhibit Ind]],'Prior Plans'!W$8:W10,">0")>1),0,1) -> 0 | CN10: =IF(OR(PriorIssTable[[#This Row],[Issuers Exhibit Ind]]=0,'Prior Plans'!X10=0,'Prior Plans'!X10="",COUNTIFS($C$8:$C10,PriorIssTable[[#This Row],[Legal Entity]],$J$8:$J10,PriorIssTable[[#This Row],[Issuers Exhibit Ind]],'Prior Plans'!X$8:X10,">0")>1),0,1) -> 0 | CO10: =IF(OR(PriorIssTable[[#This Row],[Issuers Exhibit Ind]]=0,'Prior Plans'!Y10=0,'Prior Plans'!Y10="",COUNTIFS($C$8:$C10,PriorIssTable[[#This Row],[Legal Entity]],$J$8:$J10,PriorIssTable[[#This Row],[Issuers Exhibit Ind]],'Prior Plans'!Y$8:Y10,">0")>1),0,1) -> 0 | CP10: =IF(OR(PriorIssTable[[#This Row],[Issuers Exhibit Ind]]=0,'Prior Plans'!Z10=0,'Prior Plans'!Z10="",COUNTIFS($C$8:$C10,PriorIssTable[[#This Row],[Legal Entity]],$J$8:$J10,PriorIssTable[[#This Row],[Issuers Exhibit Ind]],'Prior Plans'!Z$8:Z10,">0")>1),0,1) -> 0 | CQ10: =IF(OR(PriorIssTable[[#This Row],[Issuers Exhibit Ind]]=0,'Prior Plans'!AA10=0,'Prior Plans'!AA10="",COUNTIFS($C$8:$C10,PriorIssTable[[#This Row],[Legal Entity]],$J$8:$J10,PriorIssTable[[#This Row],[Issuers Exhibit Ind]],'Prior Plans'!AA$8:AA10,">0")>1),0,1) -> 0 | CR10: =IF(OR(PriorIssTable[[#This Row],[Issuers Exhibit Ind]]=0,'Prior Plans'!AB10=0,'Prior Plans'!AB10="",COUNTIFS($C$8:$C10,PriorIssTable[[#This Row],[Legal Entity]],$J$8:$J10,PriorIssTable[[#This Row],[Issuers Exhibit Ind]],'Prior Plans'!AB$8:AB10,">0")>1),0,1) -> 0 | CS10: =IF(OR(PriorIssTable[[#This Row],[Issuers Exhibit Ind]]=0,'Prior Plans'!AC10=0,'Prior Plans'!AC10="",COUNTIFS($C$8:$C10,PriorIssTable[[#This Row],[Legal Entity]],$J$8:$J10,PriorIssTable[[#This Row],[Issuers Exhibit Ind]],'Prior Plans'!AC$8:AC10,">0")>1),0,1) -> 0 | CT10: =IF(OR(PriorIssTable[[#This Row],[Issuers Exhibit Ind]]=0,'Prior Plans'!AD10=0,'Prior Plans'!AD10="",COUNTIFS($C$8:$C10,PriorIssTable[[#This Row],[Legal Entity]],$J$8:$J10,PriorIssTable[[#This Row],[Issuers Exhibit Ind]],'Prior Plans'!AD$8:AD10,">0")>1),0,1) -> 0 | CU10: =IF(OR(PriorIssTable[[#This Row],[Issuers Exhibit Ind]]=0,'Prior Plans'!AE10=0,'Prior Plans'!AE10="",COUNTIFS($C$8:$C10,PriorIssTable[[#This Row],[Legal Entity]],$J$8:$J10,PriorIssTable[[#This Row],[Issuers Exhibit Ind]],'Prior Plans'!AE$8:AE10,">0")>1),0,1) -> 0 | CV10: =IF(OR(PriorIssTable[[#This Row],[Issuers Exhibit Ind]]=0,'Prior Plans'!AF10=0,'Prior Plans'!AF10="",COUNTIFS($C$8:$C10,PriorIssTable[[#This Row],[Legal Entity]],$J$8:$J10,PriorIssTable[[#This Row],[Issuers Exhibit Ind]],'Prior Plans'!AF$8:AF10,">0")>1),0,1) -> 0 | CW10: =IF(OR(PriorIssTable[[#This Row],[Issuers Exhibit Ind]]=0,'Prior Plans'!AG10=0,'Prior Plans'!AG10="",COUNTIFS($C$8:$C10,PriorIssTable[[#This Row],[Legal Entity]],$J$8:$J10,PriorIssTable[[#This Row],[Issuers Exhibit Ind]],'Prior Plans'!AG$8:AG10,">0")>1),0,1) -> 0 | CX10: =IF(OR(PriorIssTable[[#This Row],[Issuers Exhibit Ind]]=0,'Prior Plans'!AH10=0,'Prior Plans'!AH10="",COUNTIFS($C$8:$C10,PriorIssTable[[#This Row],[Legal Entity]],$J$8:$J10,PriorIssTable[[#This Row],[Issuers Exhibit Ind]],'Prior Plans'!AH$8:AH10,">0")>1),0,1) -> 0 | CY10: =IF(OR(PriorIssTable[[#This Row],[Issuers Exhibit Ind]]=0,'Prior Plans'!AI10=0,'Prior Plans'!AI10="",COUNTIFS($C$8:$C10,PriorIssTable[[#This Row],[Legal Entity]],$J$8:$J10,PriorIssTable[[#This Row],[Issuers Exhibit Ind]],'Prior Plans'!AI$8:AI10,">0")>1),0,1) -> 0 | CZ10: =IF(OR(PriorIssTable[[#This Row],[Issuers Exhibit Ind]]=0,'Prior Plans'!AJ10=0,'Prior Plans'!AJ10="",COUNTIFS($C$8:$C10,PriorIssTable[[#This Row],[Legal Entity]],$J$8:$J10,PriorIssTable[[#This Row],[Issuers Exhibit Ind]],'Prior Plans'!AJ$8:AJ10,">0")>1),0,1) -> 0 | DA10: =IF(OR(PriorIssTable[[#This Row],[Issuers Exhibit Ind]]=0,'Prior Plans'!AK10=0,'Prior Plans'!AK10="",COUNTIFS($C$8:$C10,PriorIssTable[[#This Row],[Legal Entity]],$J$8:$J10,PriorIssTable[[#This Row],[Issuers Exhibit Ind]],'Prior Plans'!AK$8:AK10,">0")>1),0,1) -> 0 | DB10: =IF(OR(PriorIssTable[[#This Row],[Issuers Exhibit Ind]]=0,'Prior Plans'!AL10=0,'Prior Plans'!AL10="",COUNTIFS($C$8:$C10,PriorIssTable[[#This Row],[Legal Entity]],$J$8:$J10,PriorIssTable[[#This Row],[Issuers Exhibit Ind]],'Prior Plans'!AL$8:AL10,">0")>1),0,1) -> 0 | DC10: =IF(OR(PriorIssTable[[#This Row],[Issuers Exhibit Ind]]=0,'Prior Plans'!AM10=0,'Prior Plans'!AM10="",COUNTIFS($C$8:$C10,PriorIssTable[[#This Row],[Legal Entity]],$J$8:$J10,PriorIssTable[[#This Row],[Issuers Exhibit Ind]],'Prior Plans'!AM$8:AM10,">0")>1),0,1) -> 0 | DD10: =IF(OR(PriorIssTable[[#This Row],[Issuers Exhibit Ind]]=0,'Prior Plans'!AN10=0,'Prior Plans'!AN10="",COUNTIFS($C$8:$C10,PriorIssTable[[#This Row],[Legal Entity]],$J$8:$J10,PriorIssTable[[#This Row],[Issuers Exhibit Ind]],'Prior Plans'!AN$8:AN10,">0")>1),0,1) -> 0 | DE10: =IF(OR(PriorIssTable[[#This Row],[Issuers Exhibit Ind]]=0,'Prior Plans'!AO10=0,'Prior Plans'!AO10="",COUNTIFS($C$8:$C10,PriorIssTable[[#This Row],[Legal Entity]],$J$8:$J10,PriorIssTable[[#This Row],[Issuers Exhibit Ind]],'Prior Plans'!AO$8:AO10,">0")>1),0,1) -> 0 | DF10: =IF(OR(PriorIssTable[[#This Row],[Issuers Exhibit Ind]]=0,'Prior Plans'!AP10=0,'Prior Plans'!AP10="",COUNTIFS($C$8:$C10,PriorIssTable[[#This Row],[Legal Entity]],$J$8:$J10,PriorIssTable[[#This Row],[Issuers Exhibit Ind]],'Prior Plans'!AP$8:AP10,">0")>1),0,1) -> 0 | DG10: =IF(OR(PriorIssTable[[#This Row],[Issuers Exhibit Ind]]=0,'Prior Plans'!AQ10=0,'Prior Plans'!AQ10="",COUNTIFS($C$8:$C10,PriorIssTable[[#This Row],[Legal Entity]],$J$8:$J10,PriorIssTable[[#This Row],[Issuers Exhibit Ind]],'Prior Plans'!AQ$8:AQ10,">0")>1),0,1) -> 0 | DH10: =IF(OR(PriorIssTable[[#This Row],[Issuers Exhibit Ind]]=0,'Prior Plans'!AR10=0,'Prior Plans'!AR10="",COUNTIFS($C$8:$C10,PriorIssTable[[#This Row],[Legal Entity]],$J$8:$J10,PriorIssTable[[#This Row],[Issuers Exhibit Ind]],'Prior Plans'!AR$8:AR10,">0")>1),0,1) -> 0 | DI10: =IF(OR(PriorIssTable[[#This Row],[Issuers Exhibit Ind]]=0,'Prior Plans'!AS10=0,'Prior Plans'!AS10="",COUNTIFS($C$8:$C10,PriorIssTable[[#This Row],[Legal Entity]],$J$8:$J10,PriorIssTable[[#This Row],[Issuers Exhibit Ind]],'Prior Plans'!AS$8:AS10,">0")>1),0,1) -> 0 | DJ10: =IF(OR(PriorIssTable[[#This Row],[Issuers Exhibit Ind]]=0,'Prior Plans'!AT10=0,'Prior Plans'!AT10="",COUNTIFS($C$8:$C10,PriorIssTable[[#This Row],[Legal Entity]],$J$8:$J10,PriorIssTable[[#This Row],[Issuers Exhibit Ind]],'Prior Plans'!AT$8:AT10,">0")>1),0,1) -> 0 | DK10: =IF(OR(PriorIssTable[[#This Row],[Issuers Exhibit Ind]]=0,'Prior Plans'!AU10=0,'Prior Plans'!AU10="",COUNTIFS($C$8:$C10,PriorIssTable[[#This Row],[Legal Entity]],$J$8:$J10,PriorIssTable[[#This Row],[Issuers Exhibit Ind]],'Prior Plans'!AU$8:AU10,">0")>1),0,1) -> 0 | DL10: =IF(OR(PriorIssTable[[#This Row],[Issuers Exhibit Ind]]=0,'Prior Plans'!AV10=0,'Prior Plans'!AV10="",COUNTIFS($C$8:$C10,PriorIssTable[[#This Row],[Legal Entity]],$J$8:$J10,PriorIssTable[[#This Row],[Issuers Exhibit Ind]],'Prior Plans'!AV$8:AV10,">0")>1),0,1) -> 0 | DM10: =IF(OR(PriorIssTable[[#This Row],[Issuers Exhibit Ind]]=0,'Prior Plans'!AW10=0,'Prior Plans'!AW10="",COUNTIFS($C$8:$C10,PriorIssTable[[#This Row],[Legal Entity]],$J$8:$J10,PriorIssTable[[#This Row],[Issuers Exhibit Ind]],'Prior Plans'!AW$8:AW10,">0")>1),0,1) -> 0 | DN10: =IF(OR(PriorIssTable[[#This Row],[Issuers Exhibit Ind]]=0,'Prior Plans'!AX10=0,'Prior Plans'!AX10="",COUNTIFS($C$8:$C10,PriorIssTable[[#This Row],[Legal Entity]],$J$8:$J10,PriorIssTable[[#This Row],[Issuers Exhibit Ind]],'Prior Plans'!AX$8:AX10,">0")>1),0,1) -> 0 | DO10: =IF(OR(PriorIssTable[[#This Row],[Issuers Exhibit Ind]]=0,'Prior Plans'!AY10=0,'Prior Plans'!AY10="",COUNTIFS($C$8:$C10,PriorIssTable[[#This Row],[Legal Entity]],$J$8:$J10,PriorIssTable[[#This Row],[Issuers Exhibit Ind]],'Prior Plans'!AY$8:AY10,">0")>1),0,1) -> 0 | DP10: =IF(OR(PriorIssTable[[#This Row],[Issuers Exhibit Ind]]=0,'Prior Plans'!AZ10=0,'Prior Plans'!AZ10="",COUNTIFS($C$8:$C10,PriorIssTable[[#This Row],[Legal Entity]],$J$8:$J10,PriorIssTable[[#This Row],[Issuers Exhibit Ind]],'Prior Plans'!AZ$8:AZ10,">0")>1),0,1) -> 0 | DQ10: =IF(OR(PriorIssTable[[#This Row],[Issuers Exhibit Ind]]=0,'Prior Plans'!BA10=0,'Prior Plans'!BA10="",COUNTIFS($C$8:$C10,PriorIssTable[[#This Row],[Legal Entity]],$J$8:$J10,PriorIssTable[[#This Row],[Issuers Exhibit Ind]],'Prior Plans'!BA$8:BA10,">0")>1),0,1) -> 0 | DR10: =IF(OR(PriorIssTable[[#This Row],[Issuers Exhibit Ind]]=0,'Prior Plans'!BB10=0,'Prior Plans'!BB10="",COUNTIFS($C$8:$C10,PriorIssTable[[#This Row],[Legal Entity]],$J$8:$J10,PriorIssTable[[#This Row],[Issuers Exhibit Ind]],'Prior Plans'!BB$8:BB10,">0")>1),0,1) -> 0 | DS10: =IF(OR(PriorIssTable[[#This Row],[Issuers Exhibit Ind]]=0,'Prior Plans'!BC10=0,'Prior Plans'!BC10="",COUNTIFS($C$8:$C10,PriorIssTable[[#This Row],[Legal Entity]],$J$8:$J10,PriorIssTable[[#This Row],[Issuers Exhibit Ind]],'Prior Plans'!BC$8:BC10,">0")>1),0,1) -> 0 | DT10: =IF(OR(PriorIssTable[[#This Row],[Issuers Exhibit Ind]]=0,'Prior Plans'!BD10=0,'Prior Plans'!BD10="",COUNTIFS($C$8:$C10,PriorIssTable[[#This Row],[Legal Entity]],$J$8:$J10,PriorIssTable[[#This Row],[Issuers Exhibit Ind]],'Prior Plans'!BD$8:BD10,">0")>1),0,1) -> 0 | DU10: =IF(OR(PriorIssTable[[#This Row],[Issuers Exhibit Ind]]=0,'Prior Plans'!BE10=0,'Prior Plans'!BE10="",COUNTIFS($C$8:$C10,PriorIssTable[[#This Row],[Legal Entity]],$J$8:$J10,PriorIssTable[[#This Row],[Issuers Exhibit Ind]],'Prior Plans'!BE$8:BE10,">0")>1),0,1) -> 0 | DV10: =IF(OR(PriorIssTable[[#This Row],[Issuers Exhibit Ind]]=0,'Prior Plans'!BF10=0,'Prior Plans'!BF10="",COUNTIFS($C$8:$C10,PriorIssTable[[#This Row],[Legal Entity]],$J$8:$J10,PriorIssTable[[#This Row],[Issuers Exhibit Ind]],'Prior Plans'!BF$8:BF10,">0")>1),0,1) -> 0 | DW10: =IF(OR(PriorIssTable[[#This Row],[Issuers Exhibit Ind]]=0,'Prior Plans'!BG10=0,'Prior Plans'!BG10="",COUNTIFS($C$8:$C10,PriorIssTable[[#This Row],[Legal Entity]],$J$8:$J10,PriorIssTable[[#This Row],[Issuers Exhibit Ind]],'Prior Plans'!BG$8:BG10,">0")>1),0,1) -> 0 | DX10: =IF(OR(PriorIssTable[[#This Row],[Issuers Exhibit Ind]]=0,'Prior Plans'!BH10=0,'Prior Plans'!BH10="",COUNTIFS($C$8:$C10,PriorIssTable[[#This Row],[Legal Entity]],$J$8:$J10,PriorIssTable[[#This Row],[Issuers Exhibit Ind]],'Prior Plans'!BH$8:BH10,">0")>1),0,1) -> 0 | DY10: =IF(OR(PriorIssTable[[#This Row],[Issuers Exhibit Ind]]=0,'Prior Plans'!BI10=0,'Prior Plans'!BI10="",COUNTIFS($C$8:$C10,PriorIssTable[[#This Row],[Legal Entity]],$J$8:$J10,PriorIssTable[[#This Row],[Issuers Exhibit Ind]],'Prior Plans'!BI$8:BI10,">0")>1),0,1) -> 0 | DZ10: =IF(OR(PriorIssTable[[#This Row],[Issuers Exhibit Ind]]=0,'Prior Plans'!BJ10=0,'Prior Plans'!BJ10="",COUNTIFS($C$8:$C10,PriorIssTable[[#This Row],[Legal Entity]],$J$8:$J10,PriorIssTable[[#This Row],[Issuers Exhibit Ind]],'Prior Plans'!BJ$8:BJ10,">0")>1),0,1) -> 0 | EA10: =IF(OR(PriorIssTable[[#This Row],[Issuers Exhibit Ind]]=0,'Prior Plans'!BK10=0,'Prior Plans'!BK10="",COUNTIFS($C$8:$C10,PriorIssTable[[#This Row],[Legal Entity]],$J$8:$J10,PriorIssTable[[#This Row],[Issuers Exhibit Ind]],'Prior Plans'!BK$8:BK10,">0")>1),0,1) -> 0 | EB10: =IF(OR(PriorIssTable[[#This Row],[Issuers Exhibit Ind]]=0,'Prior Plans'!BL10=0,'Prior Plans'!BL10="",COUNTIFS($C$8:$C10,PriorIssTable[[#This Row],[Legal Entity]],$J$8:$J10,PriorIssTable[[#This Row],[Issuers Exhibit Ind]],'Prior Plans'!BL$8:BL10,">0")>1),0,1) -> 0 | EC10: =IF(OR(PriorIssTable[[#This Row],[Issuers Exhibit Ind]]=0,'Prior Plans'!BM10=0,'Prior Plans'!BM10="",COUNTIFS($C$8:$C10,PriorIssTable[[#This Row],[Legal Entity]],$J$8:$J10,PriorIssTable[[#This Row],[Issuers Exhibit Ind]],'Prior Plans'!BM$8:BM10,">0")>1),0,1) -> 0 | ED10: =IF(OR(PriorIssTable[[#This Row],[Issuers Exhibit Ind]]=0,'Prior Plans'!BN10=0,'Prior Plans'!BN10="",COUNTIFS($C$8:$C10,PriorIssTable[[#This Row],[Legal Entity]],$J$8:$J10,PriorIssTable[[#This Row],[Issuers Exhibit Ind]],'Prior Plans'!BN$8:BN10,">0")>1),0,1) -> 0 | EE10: =IF(OR(PriorIssTable[[#This Row],[Issuers Exhibit Ind]]=0,'Prior Plans'!BO10=0,'Prior Plans'!BO10="",COUNTIFS($C$8:$C10,PriorIssTable[[#This Row],[Legal Entity]],$J$8:$J10,PriorIssTable[[#This Row],[Issuers Exhibit Ind]],'Prior Plans'!BO$8:BO10,">0")>1),0,1) -> 0 | EF10: =IF(OR(PriorIssTable[[#This Row],[Issuers Exhibit Ind]]=0,'Prior Plans'!BP10=0,'Prior Plans'!BP10="",COUNTIFS($C$8:$C10,PriorIssTable[[#This Row],[Legal Entity]],$J$8:$J10,PriorIssTable[[#This Row],[Issuers Exhibit Ind]],'Prior Plans'!BP$8:BP10,">0")>1),0,1) -> 0 | EG10: =IF(OR(PriorIssTable[[#This Row],[Issuers Exhibit Ind]]=0,'Prior Plans'!BQ10=0,'Prior Plans'!BQ10="",COUNTIFS($C$8:$C10,PriorIssTable[[#This Row],[Legal Entity]],$J$8:$J10,PriorIssTable[[#This Row],[Issuers Exhibit Ind]],'Prior Plans'!BQ$8:BQ10,">0")>1),0,1) -> 0 | EH10: =IF(OR(PriorIssTable[[#This Row],[Issuers Exhibit Ind]]=0,'Prior Plans'!BR10=0,'Prior Plans'!BR10="",COUNTIFS($C$8:$C10,PriorIssTable[[#This Row],[Legal Entity]],$J$8:$J10,PriorIssTable[[#This Row],[Issuers Exhibit Ind]],'Prior Plans'!BR$8:BR10,">0")>1),0,1) -> 0 | EI10: =IF(OR(PriorIssTable[[#This Row],[Issuers Exhibit Ind]]=0,'Prior Plans'!BS10=0,'Prior Plans'!BS10="",COUNTIFS($C$8:$C10,PriorIssTable[[#This Row],[Legal Entity]],$J$8:$J10,PriorIssTable[[#This Row],[Issuers Exhibit Ind]],'Prior Plans'!BS$8:BS10,">0")>1),0,1) -> 0 | EJ10: =IF(OR(PriorIssTable[[#This Row],[Issuers Exhibit Ind]]=0,'Prior Plans'!BT10=0,'Prior Plans'!BT10="",COUNTIFS($C$8:$C10,PriorIssTable[[#This Row],[Legal Entity]],$J$8:$J10,PriorIssTable[[#This Row],[Issuers Exhibit Ind]],'Prior Plans'!BT$8:BT10,">0")>1),0,1) -> 0 | EK10: =IF(OR(PriorIssTable[[#This Row],[Issuers Exhibit Ind]]=0,'Prior Plans'!BU10=0,'Prior Plans'!BU10="",COUNTIFS($C$8:$C10,PriorIssTable[[#This Row],[Legal Entity]],$J$8:$J10,PriorIssTable[[#This Row],[Issuers Exhibit Ind]],'Prior Plans'!BU$8:BU10,">0")>1),0,1) -> 0 | EL10: =IF(OR(PriorIssTable[[#This Row],[Issuers Exhibit Ind]]=0,'Prior Plans'!BV10=0,'Prior Plans'!BV10="",COUNTIFS($C$8:$C10,PriorIssTable[[#This Row],[Legal Entity]],$J$8:$J10,PriorIssTable[[#This Row],[Issuers Exhibit Ind]],'Prior Plans'!BV$8:BV10,">0")>1),0,1) -> 0 | EM10: =IF(OR(PriorIssTable[[#This Row],[Issuers Exhibit Ind]]=0,'Prior Plans'!BW10=0,'Prior Plans'!BW10="",COUNTIFS($C$8:$C10,PriorIssTable[[#This Row],[Legal Entity]],$J$8:$J10,PriorIssTable[[#This Row],[Issuers Exhibit Ind]],'Prior Plans'!BW$8:BW10,">0")>1),0,1) -> 0 | EN10: =IF(OR(PriorIssTable[[#This Row],[Issuers Exhibit Ind]]=0,'Prior Plans'!BX10=0,'Prior Plans'!BX10="",COUNTIFS($C$8:$C10,PriorIssTable[[#This Row],[Legal Entity]],$J$8:$J10,PriorIssTable[[#This Row],[Issuers Exhibit Ind]],'Prior Plans'!BX$8:BX10,">0")>1),0,1) -> 0
B11: Aetna | C11: Aetna Life Insurance Company | D11: Small Group | E11: 33906PA0090128 | F11: PA Silver PPO 5000 80/50 | G11: PPO | H11: Silver | I11: Off | J11: =IF(PriorIssTable[[#This Row],[Market]]<>Iss_Cnty_Mkt,0,IF(OR(Iss_Cnty_Exch="On/Off",PriorIssTable[[#This Row],[On/Off Exchange]]="On/Off"),1,IF(PriorIssTable[[#This Row],[On/Off Exchange]]<>Iss_Cnty_Exch,0,1))) -> 0 | K11: =IF(OR(PriorIssTable[[#This Row],[Issuers Exhibit Ind]]=0,'Prior Plans'!J11={0,""},COUNTIFS($C$8:$C11,PriorIssTable[[#This Row],[Legal Entity]],$J$8:$J11,PriorIssTable[[#This Row],[Issuers Exhibit Ind]],$H$8:$H11,PriorIssTable[[#This Row],[Metal]],'Prior Plans'!J$8:J11,">0")>1),0,1) -> 0 | L11: =IF(OR(PriorIssTable[[#This Row],[Issuers Exhibit Ind]]=0,'Prior Plans'!K11={0,""},COUNTIFS($C$8:$C11,PriorIssTable[[#This Row],[Legal Entity]],$J$8:$J11,PriorIssTable[[#This Row],[Issuers Exhibit Ind]],$H$8:$H11,PriorIssTable[[#This Row],[Metal]],'Prior Plans'!K$8:K11,">0")>1),0,1) -> 0 | M11: =IF(OR(PriorIssTable[[#This Row],[Issuers Exhibit Ind]]=0,'Prior Plans'!L11={0,""},COUNTIFS($C$8:$C11,PriorIssTable[[#This Row],[Legal Entity]],$J$8:$J11,PriorIssTable[[#This Row],[Issuers Exhibit Ind]],$H$8:$H11,PriorIssTable[[#This Row],[Metal]],'Prior Plans'!L$8:L11,">0")>1),0,1) -> 0 | N11: =IF(OR(PriorIssTable[[#This Row],[Issuers Exhibit Ind]]=0,'Prior Plans'!M11={0,""},COUNTIFS($C$8:$C11,PriorIssTable[[#This Row],[Legal Entity]],$J$8:$J11,PriorIssTable[[#This Row],[Issuers Exhibit Ind]],$H$8:$H11,PriorIssTable[[#This Row],[Metal]],'Prior Plans'!M$8:M11,">0")>1),0,1) -> 0 | O11: =IF(OR(PriorIssTable[[#This Row],[Issuers Exhibit Ind]]=0,'Prior Plans'!N11={0,""},COUNTIFS($C$8:$C11,PriorIssTable[[#This Row],[Legal Entity]],$J$8:$J11,PriorIssTable[[#This Row],[Issuers Exhibit Ind]],$H$8:$H11,PriorIssTable[[#This Row],[Metal]],'Prior Plans'!N$8:N11,">0")>1),0,1) -> 0 | P11: =IF(OR(PriorIssTable[[#This Row],[Issuers Exhibit Ind]]=0,'Prior Plans'!O11={0,""},COUNTIFS($C$8:$C11,PriorIssTable[[#This Row],[Legal Entity]],$J$8:$J11,PriorIssTable[[#This Row],[Issuers Exhibit Ind]],$H$8:$H11,PriorIssTable[[#This Row],[Metal]],'Prior Plans'!O$8:O11,">0")>1),0,1) -> 0 | Q11: =IF(OR(PriorIssTable[[#This Row],[Issuers Exhibit Ind]]=0,'Prior Plans'!P11={0,""},COUNTIFS($C$8:$C11,PriorIssTable[[#This Row],[Legal Entity]],$J$8:$J11,PriorIssTable[[#This Row],[Issuers Exhibit Ind]],$H$8:$H11,PriorIssTable[[#This Row],[Metal]],'Prior Plans'!P$8:P11,">0")>1),0,1) -> 0 | R11: =IF(OR(PriorIssTable[[#This Row],[Issuers Exhibit Ind]]=0,'Prior Plans'!Q11={0,""},COUNTIFS($C$8:$C11,PriorIssTable[[#This Row],[Legal Entity]],$J$8:$J11,PriorIssTable[[#This Row],[Issuers Exhibit Ind]],$H$8:$H11,PriorIssTable[[#This Row],[Metal]],'Prior Plans'!Q$8:Q11,">0")>1),0,1) -> 0 | S11: =IF(OR(PriorIssTable[[#This Row],[Issuers Exhibit Ind]]=0,'Prior Plans'!R11={0,""},COUNTIFS($C$8:$C11,PriorIssTable[[#This Row],[Legal Entity]],$J$8:$J11,PriorIssTable[[#This Row],[Issuers Exhibit Ind]],$H$8:$H11,PriorIssTable[[#This Row],[Metal]],'Prior Plans'!R$8:R11,">0")>1),0,1) -> 0 | T11: =IF(OR(PriorIssTable[[#This Row],[Issuers Exhibit Ind]]=0,'Prior Plans'!S11={0,""},COUNTIFS($C$8:$C11,PriorIssTable[[#This Row],[Legal Entity]],$J$8:$J11,PriorIssTable[[#This Row],[Issuers Exhibit Ind]],$H$8:$H11,PriorIssTable[[#This Row],[Metal]],'Prior Plans'!S$8:S11,">0")>1),0,1) -> 0 | U11: =IF(OR(PriorIssTable[[#This Row],[Issuers Exhibit Ind]]=0,'Prior Plans'!T11={0,""},COUNTIFS($C$8:$C11,PriorIssTable[[#This Row],[Legal Entity]],$J$8:$J11,PriorIssTable[[#This Row],[Issuers Exhibit Ind]],$H$8:$H11,PriorIssTable[[#This Row],[Metal]],'Prior Plans'!T$8:T11,">0")>1),0,1) -> 0 | V11: =IF(OR(PriorIssTable[[#This Row],[Issuers Exhibit Ind]]=0,'Prior Plans'!U11={0,""},COUNTIFS($C$8:$C11,PriorIssTable[[#This Row],[Legal Entity]],$J$8:$J11,PriorIssTable[[#This Row],[Issuers Exhibit Ind]],$H$8:$H11,PriorIssTable[[#This Row],[Metal]],'Prior Plans'!U$8:U11,">0")>1),0,1) -> 0 | W11: =IF(OR(PriorIssTable[[#This Row],[Issuers Exhibit Ind]]=0,'Prior Plans'!V11={0,""},COUNTIFS($C$8:$C11,PriorIssTable[[#This Row],[Legal Entity]],$J$8:$J11,PriorIssTable[[#This Row],[Issuers Exhibit Ind]],$H$8:$H11,PriorIssTable[[#This Row],[Metal]],'Prior Plans'!V$8:V11,">0")>1),0,1) -> 0 | X11: =IF(OR(PriorIssTable[[#This Row],[Issuers Exhibit Ind]]=0,'Prior Plans'!W11={0,""},COUNTIFS($C$8:$C11,PriorIssTable[[#This Row],[Legal Entity]],$J$8:$J11,PriorIssTable[[#This Row],[Issuers Exhibit Ind]],$H$8:$H11,PriorIssTable[[#This Row],[Metal]],'Prior Plans'!W$8:W11,">0")>1),0,1) -> 0 | Y11: =IF(OR(PriorIssTable[[#This Row],[Issuers Exhibit Ind]]=0,'Prior Plans'!X11={0,""},COUNTIFS($C$8:$C11,PriorIssTable[[#This Row],[Legal Entity]],$J$8:$J11,PriorIssTable[[#This Row],[Issuers Exhibit Ind]],$H$8:$H11,PriorIssTable[[#This Row],[Metal]],'Prior Plans'!X$8:X11,">0")>1),0,1) -> 0 | Z11: =IF(OR(PriorIssTable[[#This Row],[Issuers Exhibit Ind]]=0,'Prior Plans'!Y11={0,""},COUNTIFS($C$8:$C11,PriorIssTable[[#This Row],[Legal Entity]],$J$8:$J11,PriorIssTable[[#This Row],[Issuers Exhibit Ind]],$H$8:$H11,PriorIssTable[[#This Row],[Metal]],'Prior Plans'!Y$8:Y11,">0")>1),0,1) -> 0 | AA11: =IF(OR(PriorIssTable[[#This Row],[Issuers Exhibit Ind]]=0,'Prior Plans'!Z11={0,""},COUNTIFS($C$8:$C11,PriorIssTable[[#This Row],[Legal Entity]],$J$8:$J11,PriorIssTable[[#This Row],[Issuers Exhibit Ind]],$H$8:$H11,PriorIssTable[[#This Row],[Metal]],'Prior Plans'!Z$8:Z11,">0")>1),0,1) -> 0 | AB11: =IF(OR(PriorIssTable[[#This Row],[Issuers Exhibit Ind]]=0,'Prior Plans'!AA11={0,""},COUNTIFS($C$8:$C11,PriorIssTable[[#This Row],[Legal Entity]],$J$8:$J11,PriorIssTable[[#This Row],[Issuers Exhibit Ind]],$H$8:$H11,PriorIssTable[[#This Row],[Metal]],'Prior Plans'!AA$8:AA11,">0")>1),0,1) -> 0 | AC11: =IF(OR(PriorIssTable[[#This Row],[Issuers Exhibit Ind]]=0,'Prior Plans'!AB11={0,""},COUNTIFS($C$8:$C11,PriorIssTable[[#This Row],[Legal Entity]],$J$8:$J11,PriorIssTable[[#This Row],[Issuers Exhibit Ind]],$H$8:$H11,PriorIssTable[[#This Row],[Metal]],'Prior Plans'!AB$8:AB11,">0")>1),0,1) -> 0 | AD11: =IF(OR(PriorIssTable[[#This Row],[Issuers Exhibit Ind]]=0,'Prior Plans'!AC11={0,""},COUNTIFS($C$8:$C11,PriorIssTable[[#This Row],[Legal Entity]],$J$8:$J11,PriorIssTable[[#This Row],[Issuers Exhibit Ind]],$H$8:$H11,PriorIssTable[[#This Row],[Metal]],'Prior Plans'!AC$8:AC11,">0")>1),0,1) -> 0 | AE11: =IF(OR(PriorIssTable[[#This Row],[Issuers Exhibit Ind]]=0,'Prior Plans'!AD11={0,""},COUNTIFS($C$8:$C11,PriorIssTable[[#This Row],[Legal Entity]],$J$8:$J11,PriorIssTable[[#This Row],[Issuers Exhibit Ind]],$H$8:$H11,PriorIssTable[[#This Row],[Metal]],'Prior Plans'!AD$8:AD11,">0")>1),0,1) -> 0 | AF11: =IF(OR(PriorIssTable[[#This Row],[Issuers Exhibit Ind]]=0,'Prior Plans'!AE11={0,""},COUNTIFS($C$8:$C11,PriorIssTable[[#This Row],[Legal Entity]],$J$8:$J11,PriorIssTable[[#This Row],[Issuers Exhibit Ind]],$H$8:$H11,PriorIssTable[[#This Row],[Metal]],'Prior Plans'!AE$8:AE11,">0")>1),0,1) -> 0 | AG11: =IF(OR(PriorIssTable[[#This Row],[Issuers Exhibit Ind]]=0,'Prior Plans'!AF11={0,""},COUNTIFS($C$8:$C11,PriorIssTable[[#This Row],[Legal Entity]],$J$8:$J11,PriorIssTable[[#This Row],[Issuers Exhibit Ind]],$H$8:$H11,PriorIssTable[[#This Row],[Metal]],'Prior Plans'!AF$8:AF11,">0")>1),0,1) -> 0 | AH11: =IF(OR(PriorIssTable[[#This Row],[Issuers Exhibit Ind]]=0,'Prior Plans'!AG11={0,""},COUNTIFS($C$8:$C11,PriorIssTable[[#This Row],[Legal Entity]],$J$8:$J11,PriorIssTable[[#This Row],[Issuers Exhibit Ind]],$H$8:$H11,PriorIssTable[[#This Row],[Metal]],'Prior Plans'!AG$8:AG11,">0")>1),0,1) -> 0 | AI11: =IF(OR(PriorIssTable[[#This Row],[Issuers Exhibit Ind]]=0,'Prior Plans'!AH11={0,""},COUNTIFS($C$8:$C11,PriorIssTable[[#This Row],[Legal Entity]],$J$8:$J11,PriorIssTable[[#This Row],[Issuers Exhibit Ind]],$H$8:$H11,PriorIssTable[[#This Row],[Metal]],'Prior Plans'!AH$8:AH11,">0")>1),0,1) -> 0 | AJ11: =IF(OR(PriorIssTable[[#This Row],[Issuers Exhibit Ind]]=0,'Prior Plans'!AI11={0,""},COUNTIFS($C$8:$C11,PriorIssTable[[#This Row],[Legal Entity]],$J$8:$J11,PriorIssTable[[#This Row],[Issuers Exhibit Ind]],$H$8:$H11,PriorIssTable[[#This Row],[Metal]],'Prior Plans'!AI$8:AI11,">0")>1),0,1) -> 0 | AK11: =IF(OR(PriorIssTable[[#This Row],[Issuers Exhibit Ind]]=0,'Prior Plans'!AJ11={0,""},COUNTIFS($C$8:$C11,PriorIssTable[[#This Row],[Legal Entity]],$J$8:$J11,PriorIssTable[[#This Row],[Issuers Exhibit Ind]],$H$8:$H11,PriorIssTable[[#This Row],[Metal]],'Prior Plans'!AJ$8:AJ11,">0")>1),0,1) -> 0 | AL11: =IF(OR(PriorIssTable[[#This Row],[Issuers Exhibit Ind]]=0,'Prior Plans'!AK11={0,""},COUNTIFS($C$8:$C11,PriorIssTable[[#This Row],[Legal Entity]],$J$8:$J11,PriorIssTable[[#This Row],[Issuers Exhibit Ind]],$H$8:$H11,PriorIssTable[[#This Row],[Metal]],'Prior Plans'!AK$8:AK11,">0")>1),0,1) -> 0 | AM11: =IF(OR(PriorIssTable[[#This Row],[Issuers Exhibit Ind]]=0,'Prior Plans'!AL11={0,""},COUNTIFS($C$8:$C11,PriorIssTable[[#This Row],[Legal Entity]],$J$8:$J11,PriorIssTable[[#This Row],[Issuers Exhibit Ind]],$H$8:$H11,PriorIssTable[[#This Row],[Metal]],'Prior Plans'!AL$8:AL11,">0")>1),0,1) -> 0 | AN11: =IF(OR(PriorIssTable[[#This Row],[Issuers Exhibit Ind]]=0,'Prior Plans'!AM11={0,""},COUNTIFS($C$8:$C11,PriorIssTable[[#This Row],[Legal Entity]],$J$8:$J11,PriorIssTable[[#This Row],[Issuers Exhibit Ind]],$H$8:$H11,PriorIssTable[[#This Row],[Metal]],'Prior Plans'!AM$8:AM11,">0")>1),0,1) -> 0 | AO11: =IF(OR(PriorIssTable[[#This Row],[Issuers Exhibit Ind]]=0,'Prior Plans'!AN11={0,""},COUNTIFS($C$8:$C11,PriorIssTable[[#This Row],[Legal Entity]],$J$8:$J11,PriorIssTable[[#This Row],[Issuers Exhibit Ind]],$H$8:$H11,PriorIssTable[[#This Row],[Metal]],'Prior Plans'!AN$8:AN11,">0")>1),0,1) -> 0 | AP11: =IF(OR(PriorIssTable[[#This Row],[Issuers Exhibit Ind]]=0,'Prior Plans'!AO11={0,""},COUNTIFS($C$8:$C11,PriorIssTable[[#This Row],[Legal Entity]],$J$8:$J11,PriorIssTable[[#This Row],[Issuers Exhibit Ind]],$H$8:$H11,PriorIssTable[[#This Row],[Metal]],'Prior Plans'!AO$8:AO11,">0")>1),0,1) -> 0 | AQ11: =IF(OR(PriorIssTable[[#This Row],[Issuers Exhibit Ind]]=0,'Prior Plans'!AP11={0,""},COUNTIFS($C$8:$C11,PriorIssTable[[#This Row],[Legal Entity]],$J$8:$J11,PriorIssTable[[#This Row],[Issuers Exhibit Ind]],$H$8:$H11,PriorIssTable[[#This Row],[Metal]],'Prior Plans'!AP$8:AP11,">0")>1),0,1) -> 0 | AR11: =IF(OR(PriorIssTable[[#This Row],[Issuers Exhibit Ind]]=0,'Prior Plans'!AQ11={0,""},COUNTIFS($C$8:$C11,PriorIssTable[[#This Row],[Legal Entity]],$J$8:$J11,PriorIssTable[[#This Row],[Issuers Exhibit Ind]],$H$8:$H11,PriorIssTable[[#This Row],[Metal]],'Prior Plans'!AQ$8:AQ11,">0")>1),0,1) -> 0 | AS11: =IF(OR(PriorIssTable[[#This Row],[Issuers Exhibit Ind]]=0,'Prior Plans'!AR11={0,""},COUNTIFS($C$8:$C11,PriorIssTable[[#This Row],[Legal Entity]],$J$8:$J11,PriorIssTable[[#This Row],[Issuers Exhibit Ind]],$H$8:$H11,PriorIssTable[[#This Row],[Metal]],'Prior Plans'!AR$8:AR11,">0")>1),0,1) -> 0 | AT11: =IF(OR(PriorIssTable[[#This Row],[Issuers Exhibit Ind]]=0,'Prior Plans'!AS11={0,""},COUNTIFS($C$8:$C11,PriorIssTable[[#This Row],[Legal Entity]],$J$8:$J11,PriorIssTable[[#This Row],[Issuers Exhibit Ind]],$H$8:$H11,PriorIssTable[[#This Row],[Metal]],'Prior Plans'!AS$8:AS11,">0")>1),0,1) -> 0 | AU11: =IF(OR(PriorIssTable[[#This Row],[Issuers Exhibit Ind]]=0,'Prior Plans'!AT11={0,""},COUNTIFS($C$8:$C11,PriorIssTable[[#This Row],[Legal Entity]],$J$8:$J11,PriorIssTable[[#This Row],[Issuers Exhibit Ind]],$H$8:$H11,PriorIssTable[[#This Row],[Metal]],'Prior Plans'!AT$8:AT11,">0")>1),0,1) -> 0 | AV11: =IF(OR(PriorIssTable[[#This Row],[Issuers Exhibit Ind]]=0,'Prior Plans'!AU11={0,""},COUNTIFS($C$8:$C11,PriorIssTable[[#This Row],[Legal Entity]],$J$8:$J11,PriorIssTable[[#This Row],[Issuers Exhibit Ind]],$H$8:$H11,PriorIssTable[[#This Row],[Metal]],'Prior Plans'!AU$8:AU11,">0")>1),0,1) -> 0 | AW11: =IF(OR(PriorIssTable[[#This Row],[Issuers Exhibit Ind]]=0,'Prior Plans'!AV11={0,""},COUNTIFS($C$8:$C11,PriorIssTable[[#This Row],[Legal Entity]],$J$8:$J11,PriorIssTable[[#This Row],[Issuers Exhibit Ind]],$H$8:$H11,PriorIssTable[[#This Row],[Metal]],'Prior Plans'!AV$8:AV11,">0")>1),0,1) -> 0 | AX11: =IF(OR(PriorIssTable[[#This Row],[Issuers Exhibit Ind]]=0,'Prior Plans'!AW11={0,""},COUNTIFS($C$8:$C11,PriorIssTable[[#This Row],[Legal Entity]],$J$8:$J11,PriorIssTable[[#This Row],[Issuers Exhibit Ind]],$H$8:$H11,PriorIssTable[[#This Row],[Metal]],'Prior Plans'!AW$8:AW11,">0")>1),0,1) -> 0 | AY11: =IF(OR(PriorIssTable[[#This Row],[Issuers Exhibit Ind]]=0,'Prior Plans'!AX11={0,""},COUNTIFS($C$8:$C11,PriorIssTable[[#This Row],[Legal Entity]],$J$8:$J11,PriorIssTable[[#This Row],[Issuers Exhibit Ind]],$H$8:$H11,PriorIssTable[[#This Row],[Metal]],'Prior Plans'!AX$8:AX11,">0")>1),0,1) -> 0 | AZ11: =IF(OR(PriorIssTable[[#This Row],[Issuers Exhibit Ind]]=0,'Prior Plans'!AY11={0,""},COUNTIFS($C$8:$C11,PriorIssTable[[#This Row],[Legal Entity]],$J$8:$J11,PriorIssTable[[#This Row],[Issuers Exhibit Ind]],$H$8:$H11,PriorIssTable[[#This Row],[Metal]],'Prior Plans'!AY$8:AY11,">0")>1),0,1) -> 0 | BA11: =IF(OR(PriorIssTable[[#This Row],[Issuers Exhibit Ind]]=0,'Prior Plans'!AZ11={0,""},COUNTIFS($C$8:$C11,PriorIssTable[[#This Row],[Legal Entity]],$J$8:$J11,PriorIssTable[[#This Row],[Issuers Exhibit Ind]],$H$8:$H11,PriorIssTable[[#This Row],[Metal]],'Prior Plans'!AZ$8:AZ11,">0")>1),0,1) -> 0 | BB11: =IF(OR(PriorIssTable[[#This Row],[Issuers Exhibit Ind]]=0,'Prior Plans'!BA11={0,""},COUNTIFS($C$8:$C11,PriorIssTable[[#This Row],[Legal Entity]],$J$8:$J11,PriorIssTable[[#This Row],[Issuers Exhibit Ind]],$H$8:$H11,PriorIssTable[[#This Row],[Metal]],'Prior Plans'!BA$8:BA11,">0")>1),0,1) -> 0 | BC11: =IF(OR(PriorIssTable[[#This Row],[Issuers Exhibit Ind]]=0,'Prior Plans'!BB11={0,""},COUNTIFS($C$8:$C11,PriorIssTable[[#This Row],[Legal Entity]],$J$8:$J11,PriorIssTable[[#This Row],[Issuers Exhibit Ind]],$H$8:$H11,PriorIssTable[[#This Row],[Metal]],'Prior Plans'!BB$8:BB11,">0")>1),0,1) -> 0 | BD11: =IF(OR(PriorIssTable[[#This Row],[Issuers Exhibit Ind]]=0,'Prior Plans'!BC11={0,""},COUNTIFS($C$8:$C11,PriorIssTable[[#This Row],[Legal Entity]],$J$8:$J11,PriorIssTable[[#This Row],[Issuers Exhibit Ind]],$H$8:$H11,PriorIssTable[[#This Row],[Metal]],'Prior Plans'!BC$8:BC11,">0")>1),0,1) -> 0 | BE11: =IF(OR(PriorIssTable[[#This Row],[Issuers Exhibit Ind]]=0,'Prior Plans'!BD11={0,""},COUNTIFS($C$8:$C11,PriorIssTable[[#This Row],[Legal Entity]],$J$8:$J11,PriorIssTable[[#This Row],[Issuers Exhibit Ind]],$H$8:$H11,PriorIssTable[[#This Row],[Metal]],'Prior Plans'!BD$8:BD11,">0")>1),0,1) -> 0 | BF11: =IF(OR(PriorIssTable[[#This Row],[Issuers Exhibit Ind]]=0,'Prior Plans'!BE11={0,""},COUNTIFS($C$8:$C11,PriorIssTable[[#This Row],[Legal Entity]],$J$8:$J11,PriorIssTable[[#This Row],[Issuers Exhibit Ind]],$H$8:$H11,PriorIssTable[[#This Row],[Metal]],'Prior Plans'!BE$8:BE11,">0")>1),0,1) -> 0 | BG11: =IF(OR(PriorIssTable[[#This Row],[Issuers Exhibit Ind]]=0,'Prior Plans'!BF11={0,""},COUNTIFS($C$8:$C11,PriorIssTable[[#This Row],[Legal Entity]],$J$8:$J11,PriorIssTable[[#This Row],[Issuers Exhibit Ind]],$H$8:$H11,PriorIssTable[[#This Row],[Metal]],'Prior Plans'!BF$8:BF11,">0")>1),0,1) -> 0 | BH11: =IF(OR(PriorIssTable[[#This Row],[Issuers Exhibit Ind]]=0,'Prior Plans'!BG11={0,""},COUNTIFS($C$8:$C11,PriorIssTable[[#This Row],[Legal Entity]],$J$8:$J11,PriorIssTable[[#This Row],[Issuers Exhibit Ind]],$H$8:$H11,PriorIssTable[[#This Row],[Metal]],'Prior Plans'!BG$8:BG11,">0")>1),0,1) -> 0 | BI11: =IF(OR(PriorIssTable[[#This Row],[Issuers Exhibit Ind]]=0,'Prior Plans'!BH11={0,""},COUNTIFS($C$8:$C11,PriorIssTable[[#This Row],[Legal Entity]],$J$8:$J11,PriorIssTable[[#This Row],[Issuers Exhibit Ind]],$H$8:$H11,PriorIssTable[[#This Row],[Metal]],'Prior Plans'!BH$8:BH11,">0")>1),0,1) -> 0 | BJ11: =IF(OR(PriorIssTable[[#This Row],[Issuers Exhibit Ind]]=0,'Prior Plans'!BI11={0,""},COUNTIFS($C$8:$C11,PriorIssTable[[#This Row],[Legal Entity]],$J$8:$J11,PriorIssTable[[#This Row],[Issuers Exhibit Ind]],$H$8:$H11,PriorIssTable[[#This Row],[Metal]],'Prior Plans'!BI$8:BI11,">0")>1),0,1) -> 0 | BK11: =IF(OR(PriorIssTable[[#This Row],[Issuers Exhibit Ind]]=0,'Prior Plans'!BJ11={0,""},COUNTIFS($C$8:$C11,PriorIssTable[[#This Row],[Legal Entity]],$J$8:$J11,PriorIssTable[[#This Row],[Issuers Exhibit Ind]],$H$8:$H11,PriorIssTable[[#This Row],[Metal]],'Prior Plans'!BJ$8:BJ11,">0")>1),0,1) -> 0 | BL11: =IF(OR(PriorIssTable[[#This Row],[Issuers Exhibit Ind]]=0,'Prior Plans'!BK11={0,""},COUNTIFS($C$8:$C11,PriorIssTable[[#This Row],[Legal Entity]],$J$8:$J11,PriorIssTable[[#This Row],[Issuers Exhibit Ind]],$H$8:$H11,PriorIssTable[[#This Row],[Metal]],'Prior Plans'!BK$8:BK11,">0")>1),0,1) -> 0 | BM11: =IF(OR(PriorIssTable[[#This Row],[Issuers Exhibit Ind]]=0,'Prior Plans'!BL11={0,""},COUNTIFS($C$8:$C11,PriorIssTable[[#This Row],[Legal Entity]],$J$8:$J11,PriorIssTable[[#This Row],[Issuers Exhibit Ind]],$H$8:$H11,PriorIssTable[[#This Row],[Metal]],'Prior Plans'!BL$8:BL11,">0")>1),0,1) -> 0 | BN11: =IF(OR(PriorIssTable[[#This Row],[Issuers Exhibit Ind]]=0,'Prior Plans'!BM11={0,""},COUNTIFS($C$8:$C11,PriorIssTable[[#This Row],[Legal Entity]],$J$8:$J11,PriorIssTable[[#This Row],[Issuers Exhibit Ind]],$H$8:$H11,PriorIssTable[[#This Row],[Metal]],'Prior Plans'!BM$8:BM11,">0")>1),0,1) -> 0 | BO11: =IF(OR(PriorIssTable[[#This Row],[Issuers Exhibit Ind]]=0,'Prior Plans'!BN11={0,""},COUNTIFS($C$8:$C11,PriorIssTable[[#This Row],[Legal Entity]],$J$8:$J11,PriorIssTable[[#This Row],[Issuers Exhibit Ind]],$H$8:$H11,PriorIssTable[[#This Row],[Metal]],'Prior Plans'!BN$8:BN11,">0")>1),0,1) -> 0 | BP11: =IF(OR(PriorIssTable[[#This Row],[Issuers Exhibit Ind]]=0,'Prior Plans'!BO11={0,""},COUNTIFS($C$8:$C11,PriorIssTable[[#This Row],[Legal Entity]],$J$8:$J11,PriorIssTable[[#This Row],[Issuers Exhibit Ind]],$H$8:$H11,PriorIssTable[[#This Row],[Metal]],'Prior Plans'!BO$8:BO11,">0")>1),0,1) -> 0 | BQ11: =IF(OR(PriorIssTable[[#This Row],[Issuers Exhibit Ind]]=0,'Prior Plans'!BP11={0,""},COUNTIFS($C$8:$C11,PriorIssTable[[#This Row],[Legal Entity]],$J$8:$J11,PriorIssTable[[#This Row],[Issuers Exhibit Ind]],$H$8:$H11,PriorIssTable[[#This Row],[Metal]],'Prior Plans'!BP$8:BP11,">0")>1),0,1) -> 0 | BR11: =IF(OR(PriorIssTable[[#This Row],[Issuers Exhibit Ind]]=0,'Prior Plans'!BQ11={0,""},COUNTIFS($C$8:$C11,PriorIssTable[[#This Row],[Legal Entity]],$J$8:$J11,PriorIssTable[[#This Row],[Issuers Exhibit Ind]],$H$8:$H11,PriorIssTable[[#This Row],[Metal]],'Prior Plans'!BQ$8:BQ11,">0")>1),0,1) -> 0 | BS11: =IF(OR(PriorIssTable[[#This Row],[Issuers Exhibit Ind]]=0,'Prior Plans'!BR11={0,""},COUNTIFS($C$8:$C11,PriorIssTable[[#This Row],[Legal Entity]],$J$8:$J11,PriorIssTable[[#This Row],[Issuers Exhibit Ind]],$H$8:$H11,PriorIssTable[[#This Row],[Metal]],'Prior Plans'!BR$8:BR11,">0")>1),0,1) -> 0 | BT11: =IF(OR(PriorIssTable[[#This Row],[Issuers Exhibit Ind]]=0,'Prior Plans'!BS11={0,""},COUNTIFS($C$8:$C11,PriorIssTable[[#This Row],[Legal Entity]],$J$8:$J11,PriorIssTable[[#This Row],[Issuers Exhibit Ind]],$H$8:$H11,PriorIssTable[[#This Row],[Metal]],'Prior Plans'!BS$8:BS11,">0")>1),0,1) -> 0 | BU11: =IF(OR(PriorIssTable[[#This Row],[Issuers Exhibit Ind]]=0,'Prior Plans'!BT11={0,""},COUNTIFS($C$8:$C11,PriorIssTable[[#This Row],[Legal Entity]],$J$8:$J11,PriorIssTable[[#This Row],[Issuers Exhibit Ind]],$H$8:$H11,PriorIssTable[[#This Row],[Metal]],'Prior Plans'!BT$8:BT11,">0")>1),0,1) -> 0 | BV11: =IF(OR(PriorIssTable[[#This Row],[Issuers Exhibit Ind]]=0,'Prior Plans'!BU11={0,""},COUNTIFS($C$8:$C11,PriorIssTable[[#This Row],[Legal Entity]],$J$8:$J11,PriorIssTable[[#This Row],[Issuers Exhibit Ind]],$H$8:$H11,PriorIssTable[[#This Row],[Metal]],'Prior Plans'!BU$8:BU11,">0")>1),0,1) -> 0 | BW11: =IF(OR(PriorIssTable[[#This Row],[Issuers Exhibit Ind]]=0,'Prior Plans'!BV11={0,""},COUNTIFS($C$8:$C11,PriorIssTable[[#This Row],[Legal Entity]],$J$8:$J11,PriorIssTable[[#This Row],[Issuers Exhibit Ind]],$H$8:$H11,PriorIssTable[[#This Row],[Metal]],'Prior Plans'!BV$8:BV11,">0")>1),0,1) -> 0 | BX11: =IF(OR(PriorIssTable[[#This Row],[Issuers Exhibit Ind]]=0,'Prior Plans'!BW11={0,""},COUNTIFS($C$8:$C11,PriorIssTable[[#This Row],[Legal Entity]],$J$8:$J11,PriorIssTable[[#This Row],[Issuers Exhibit Ind]],$H$8:$H11,PriorIssTable[[#This Row],[Metal]],'Prior Plans'!BW$8:BW11,">0")>1),0,1) -> 0 | BY11: =IF(OR(PriorIssTable[[#This Row],[Issuers Exhibit Ind]]=0,'Prior Plans'!BX11={0,""},COUNTIFS($C$8:$C11,PriorIssTable[[#This Row],[Legal Entity]],$J$8:$J11,PriorIssTable[[#This Row],[Issuers Exhibit Ind]],$H$8:$H11,PriorIssTable[[#This Row],[Metal]],'Prior Plans'!BX$8:BX11,">0")>1),0,1) -> 0 | BZ11: =IF(OR(PriorIssTable[[#This Row],[Issuers Exhibit Ind]]=0,'Prior Plans'!J11=0,'Prior Plans'!J11="",COUNTIFS($C$8:$C11,PriorIssTable[[#This Row],[Legal Entity]],$J$8:$J11,PriorIssTable[[#This Row],[Issuers Exhibit Ind]],'Prior Plans'!J$8:J11,">0")>1),0,1) -> 0 | CA11: =IF(OR(PriorIssTable[[#This Row],[Issuers Exhibit Ind]]=0,'Prior Plans'!K11=0,'Prior Plans'!K11="",COUNTIFS($C$8:$C11,PriorIssTable[[#This Row],[Legal Entity]],$J$8:$J11,PriorIssTable[[#This Row],[Issuers Exhibit Ind]],'Prior Plans'!K$8:K11,">0")>1),0,1) -> 0 | CB11: =IF(OR(PriorIssTable[[#This Row],[Issuers Exhibit Ind]]=0,'Prior Plans'!L11=0,'Prior Plans'!L11="",COUNTIFS($C$8:$C11,PriorIssTable[[#This Row],[Legal Entity]],$J$8:$J11,PriorIssTable[[#This Row],[Issuers Exhibit Ind]],'Prior Plans'!L$8:L11,">0")>1),0,1) -> 0 | CC11: =IF(OR(PriorIssTable[[#This Row],[Issuers Exhibit Ind]]=0,'Prior Plans'!M11=0,'Prior Plans'!M11="",COUNTIFS($C$8:$C11,PriorIssTable[[#This Row],[Legal Entity]],$J$8:$J11,PriorIssTable[[#This Row],[Issuers Exhibit Ind]],'Prior Plans'!M$8:M11,">0")>1),0,1) -> 0 | CD11: =IF(OR(PriorIssTable[[#This Row],[Issuers Exhibit Ind]]=0,'Prior Plans'!N11=0,'Prior Plans'!N11="",COUNTIFS($C$8:$C11,PriorIssTable[[#This Row],[Legal Entity]],$J$8:$J11,PriorIssTable[[#This Row],[Issuers Exhibit Ind]],'Prior Plans'!N$8:N11,">0")>1),0,1) -> 0 | CE11: =IF(OR(PriorIssTable[[#This Row],[Issuers Exhibit Ind]]=0,'Prior Plans'!O11=0,'Prior Plans'!O11="",COUNTIFS($C$8:$C11,PriorIssTable[[#This Row],[Legal Entity]],$J$8:$J11,PriorIssTable[[#This Row],[Issuers Exhibit Ind]],'Prior Plans'!O$8:O11,">0")>1),0,1) -> 0 | CF11: =IF(OR(PriorIssTable[[#This Row],[Issuers Exhibit Ind]]=0,'Prior Plans'!P11=0,'Prior Plans'!P11="",COUNTIFS($C$8:$C11,PriorIssTable[[#This Row],[Legal Entity]],$J$8:$J11,PriorIssTable[[#This Row],[Issuers Exhibit Ind]],'Prior Plans'!P$8:P11,">0")>1),0,1) -> 0 | CG11: =IF(OR(PriorIssTable[[#This Row],[Issuers Exhibit Ind]]=0,'Prior Plans'!Q11=0,'Prior Plans'!Q11="",COUNTIFS($C$8:$C11,PriorIssTable[[#This Row],[Legal Entity]],$J$8:$J11,PriorIssTable[[#This Row],[Issuers Exhibit Ind]],'Prior Plans'!Q$8:Q11,">0")>1),0,1) -> 0 | CH11: =IF(OR(PriorIssTable[[#This Row],[Issuers Exhibit Ind]]=0,'Prior Plans'!R11=0,'Prior Plans'!R11="",COUNTIFS($C$8:$C11,PriorIssTable[[#This Row],[Legal Entity]],$J$8:$J11,PriorIssTable[[#This Row],[Issuers Exhibit Ind]],'Prior Plans'!R$8:R11,">0")>1),0,1) -> 0 | CI11: =IF(OR(PriorIssTable[[#This Row],[Issuers Exhibit Ind]]=0,'Prior Plans'!S11=0,'Prior Plans'!S11="",COUNTIFS($C$8:$C11,PriorIssTable[[#This Row],[Legal Entity]],$J$8:$J11,PriorIssTable[[#This Row],[Issuers Exhibit Ind]],'Prior Plans'!S$8:S11,">0")>1),0,1) -> 0 | CJ11: =IF(OR(PriorIssTable[[#This Row],[Issuers Exhibit Ind]]=0,'Prior Plans'!T11=0,'Prior Plans'!T11="",COUNTIFS($C$8:$C11,PriorIssTable[[#This Row],[Legal Entity]],$J$8:$J11,PriorIssTable[[#This Row],[Issuers Exhibit Ind]],'Prior Plans'!T$8:T11,">0")>1),0,1) -> 0 | CK11: =IF(OR(PriorIssTable[[#This Row],[Issuers Exhibit Ind]]=0,'Prior Plans'!U11=0,'Prior Plans'!U11="",COUNTIFS($C$8:$C11,PriorIssTable[[#This Row],[Legal Entity]],$J$8:$J11,PriorIssTable[[#This Row],[Issuers Exhibit Ind]],'Prior Plans'!U$8:U11,">0")>1),0,1) -> 0 | CL11: =IF(OR(PriorIssTable[[#This Row],[Issuers Exhibit Ind]]=0,'Prior Plans'!V11=0,'Prior Plans'!V11="",COUNTIFS($C$8:$C11,PriorIssTable[[#This Row],[Legal Entity]],$J$8:$J11,PriorIssTable[[#This Row],[Issuers Exhibit Ind]],'Prior Plans'!V$8:V11,">0")>1),0,1) -> 0 | CM11: =IF(OR(PriorIssTable[[#This Row],[Issuers Exhibit Ind]]=0,'Prior Plans'!W11=0,'Prior Plans'!W11="",COUNTIFS($C$8:$C11,PriorIssTable[[#This Row],[Legal Entity]],$J$8:$J11,PriorIssTable[[#This Row],[Issuers Exhibit Ind]],'Prior Plans'!W$8:W11,">0")>1),0,1) -> 0 | CN11: =IF(OR(PriorIssTable[[#This Row],[Issuers Exhibit Ind]]=0,'Prior Plans'!X11=0,'Prior Plans'!X11="",COUNTIFS($C$8:$C11,PriorIssTable[[#This Row],[Legal Entity]],$J$8:$J11,PriorIssTable[[#This Row],[Issuers Exhibit Ind]],'Prior Plans'!X$8:X11,">0")>1),0,1) -> 0 | CO11: =IF(OR(PriorIssTable[[#This Row],[Issuers Exhibit Ind]]=0,'Prior Plans'!Y11=0,'Prior Plans'!Y11="",COUNTIFS($C$8:$C11,PriorIssTable[[#This Row],[Legal Entity]],$J$8:$J11,PriorIssTable[[#This Row],[Issuers Exhibit Ind]],'Prior Plans'!Y$8:Y11,">0")>1),0,1) -> 0 | CP11: =IF(OR(PriorIssTable[[#This Row],[Issuers Exhibit Ind]]=0,'Prior Plans'!Z11=0,'Prior Plans'!Z11="",COUNTIFS($C$8:$C11,PriorIssTable[[#This Row],[Legal Entity]],$J$8:$J11,PriorIssTable[[#This Row],[Issuers Exhibit Ind]],'Prior Plans'!Z$8:Z11,">0")>1),0,1) -> 0 | CQ11: =IF(OR(PriorIssTable[[#This Row],[Issuers Exhibit Ind]]=0,'Prior Plans'!AA11=0,'Prior Plans'!AA11="",COUNTIFS($C$8:$C11,PriorIssTable[[#This Row],[Legal Entity]],$J$8:$J11,PriorIssTable[[#This Row],[Issuers Exhibit Ind]],'Prior Plans'!AA$8:AA11,">0")>1),0,1) -> 0 | CR11: =IF(OR(PriorIssTable[[#This Row],[Issuers Exhibit Ind]]=0,'Prior Plans'!AB11=0,'Prior Plans'!AB11="",COUNTIFS($C$8:$C11,PriorIssTable[[#This Row],[Legal Entity]],$J$8:$J11,PriorIssTable[[#This Row],[Issuers Exhibit Ind]],'Prior Plans'!AB$8:AB11,">0")>1),0,1) -> 0 | CS11: =IF(OR(PriorIssTable[[#This Row],[Issuers Exhibit Ind]]=0,'Prior Plans'!AC11=0,'Prior Plans'!AC11="",COUNTIFS($C$8:$C11,PriorIssTable[[#This Row],[Legal Entity]],$J$8:$J11,PriorIssTable[[#This Row],[Issuers Exhibit Ind]],'Prior Plans'!AC$8:AC11,">0")>1),0,1) -> 0 | CT11: =IF(OR(PriorIssTable[[#This Row],[Issuers Exhibit Ind]]=0,'Prior Plans'!AD11=0,'Prior Plans'!AD11="",COUNTIFS($C$8:$C11,PriorIssTable[[#This Row],[Legal Entity]],$J$8:$J11,PriorIssTable[[#This Row],[Issuers Exhibit Ind]],'Prior Plans'!AD$8:AD11,">0")>1),0,1) -> 0 | CU11: =IF(OR(PriorIssTable[[#This Row],[Issuers Exhibit Ind]]=0,'Prior Plans'!AE11=0,'Prior Plans'!AE11="",COUNTIFS($C$8:$C11,PriorIssTable[[#This Row],[Legal Entity]],$J$8:$J11,PriorIssTable[[#This Row],[Issuers Exhibit Ind]],'Prior Plans'!AE$8:AE11,">0")>1),0,1) -> 0 | CV11: =IF(OR(PriorIssTable[[#This Row],[Issuers Exhibit Ind]]=0,'Prior Plans'!AF11=0,'Prior Plans'!AF11="",COUNTIFS($C$8:$C11,PriorIssTable[[#This Row],[Legal Entity]],$J$8:$J11,PriorIssTable[[#This Row],[Issuers Exhibit Ind]],'Prior Plans'!AF$8:AF11,">0")>1),0,1) -> 0 | CW11: =IF(OR(PriorIssTable[[#This Row],[Issuers Exhibit Ind]]=0,'Prior Plans'!AG11=0,'Prior Plans'!AG11="",COUNTIFS($C$8:$C11,PriorIssTable[[#This Row],[Legal Entity]],$J$8:$J11,PriorIssTable[[#This Row],[Issuers Exhibit Ind]],'Prior Plans'!AG$8:AG11,">0")>1),0,1) -> 0 | CX11: =IF(OR(PriorIssTable[[#This Row],[Issuers Exhibit Ind]]=0,'Prior Plans'!AH11=0,'Prior Plans'!AH11="",COUNTIFS($C$8:$C11,PriorIssTable[[#This Row],[Legal Entity]],$J$8:$J11,PriorIssTable[[#This Row],[Issuers Exhibit Ind]],'Prior Plans'!AH$8:AH11,">0")>1),0,1) -> 0 | CY11: =IF(OR(PriorIssTable[[#This Row],[Issuers Exhibit Ind]]=0,'Prior Plans'!AI11=0,'Prior Plans'!AI11="",COUNTIFS($C$8:$C11,PriorIssTable[[#This Row],[Legal Entity]],$J$8:$J11,PriorIssTable[[#This Row],[Issuers Exhibit Ind]],'Prior Plans'!AI$8:AI11,">0")>1),0,1) -> 0 | CZ11: =IF(OR(PriorIssTable[[#This Row],[Issuers Exhibit Ind]]=0,'Prior Plans'!AJ11=0,'Prior Plans'!AJ11="",COUNTIFS($C$8:$C11,PriorIssTable[[#This Row],[Legal Entity]],$J$8:$J11,PriorIssTable[[#This Row],[Issuers Exhibit Ind]],'Prior Plans'!AJ$8:AJ11,">0")>1),0,1) -> 0 | DA11: =IF(OR(PriorIssTable[[#This Row],[Issuers Exhibit Ind]]=0,'Prior Plans'!AK11=0,'Prior Plans'!AK11="",COUNTIFS($C$8:$C11,PriorIssTable[[#This Row],[Legal Entity]],$J$8:$J11,PriorIssTable[[#This Row],[Issuers Exhibit Ind]],'Prior Plans'!AK$8:AK11,">0")>1),0,1) -> 0 | DB11: =IF(OR(PriorIssTable[[#This Row],[Issuers Exhibit Ind]]=0,'Prior Plans'!AL11=0,'Prior Plans'!AL11="",COUNTIFS($C$8:$C11,PriorIssTable[[#This Row],[Legal Entity]],$J$8:$J11,PriorIssTable[[#This Row],[Issuers Exhibit Ind]],'Prior Plans'!AL$8:AL11,">0")>1),0,1) -> 0 | DC11: =IF(OR(PriorIssTable[[#This Row],[Issuers Exhibit Ind]]=0,'Prior Plans'!AM11=0,'Prior Plans'!AM11="",COUNTIFS($C$8:$C11,PriorIssTable[[#This Row],[Legal Entity]],$J$8:$J11,PriorIssTable[[#This Row],[Issuers Exhibit Ind]],'Prior Plans'!AM$8:AM11,">0")>1),0,1) -> 0 | DD11: =IF(OR(PriorIssTable[[#This Row],[Issuers Exhibit Ind]]=0,'Prior Plans'!AN11=0,'Prior Plans'!AN11="",COUNTIFS($C$8:$C11,PriorIssTable[[#This Row],[Legal Entity]],$J$8:$J11,PriorIssTable[[#This Row],[Issuers Exhibit Ind]],'Prior Plans'!AN$8:AN11,">0")>1),0,1) -> 0 | DE11: =IF(OR(PriorIssTable[[#This Row],[Issuers Exhibit Ind]]=0,'Prior Plans'!AO11=0,'Prior Plans'!AO11="",COUNTIFS($C$8:$C11,PriorIssTable[[#This Row],[Legal Entity]],$J$8:$J11,PriorIssTable[[#This Row],[Issuers Exhibit Ind]],'Prior Plans'!AO$8:AO11,">0")>1),0,1) -> 0 | DF11: =IF(OR(PriorIssTable[[#This Row],[Issuers Exhibit Ind]]=0,'Prior Plans'!AP11=0,'Prior Plans'!AP11="",COUNTIFS($C$8:$C11,PriorIssTable[[#This Row],[Legal Entity]],$J$8:$J11,PriorIssTable[[#This Row],[Issuers Exhibit Ind]],'Prior Plans'!AP$8:AP11,">0")>1),0,1) -> 0 | DG11: =IF(OR(PriorIssTable[[#This Row],[Issuers Exhibit Ind]]=0,'Prior Plans'!AQ11=0,'Prior Plans'!AQ11="",COUNTIFS($C$8:$C11,PriorIssTable[[#This Row],[Legal Entity]],$J$8:$J11,PriorIssTable[[#This Row],[Issuers Exhibit Ind]],'Prior Plans'!AQ$8:AQ11,">0")>1),0,1) -> 0 | DH11: =IF(OR(PriorIssTable[[#This Row],[Issuers Exhibit Ind]]=0,'Prior Plans'!AR11=0,'Prior Plans'!AR11="",COUNTIFS($C$8:$C11,PriorIssTable[[#This Row],[Legal Entity]],$J$8:$J11,PriorIssTable[[#This Row],[Issuers Exhibit Ind]],'Prior Plans'!AR$8:AR11,">0")>1),0,1) -> 0 | DI11: =IF(OR(PriorIssTable[[#This Row],[Issuers Exhibit Ind]]=0,'Prior Plans'!AS11=0,'Prior Plans'!AS11="",COUNTIFS($C$8:$C11,PriorIssTable[[#This Row],[Legal Entity]],$J$8:$J11,PriorIssTable[[#This Row],[Issuers Exhibit Ind]],'Prior Plans'!AS$8:AS11,">0")>1),0,1) -> 0 | DJ11: =IF(OR(PriorIssTable[[#This Row],[Issuers Exhibit Ind]]=0,'Prior Plans'!AT11=0,'Prior Plans'!AT11="",COUNTIFS($C$8:$C11,PriorIssTable[[#This Row],[Legal Entity]],$J$8:$J11,PriorIssTable[[#This Row],[Issuers Exhibit Ind]],'Prior Plans'!AT$8:AT11,">0")>1),0,1) -> 0 | DK11: =IF(OR(PriorIssTable[[#This Row],[Issuers Exhibit Ind]]=0,'Prior Plans'!AU11=0,'Prior Plans'!AU11="",COUNTIFS($C$8:$C11,PriorIssTable[[#This Row],[Legal Entity]],$J$8:$J11,PriorIssTable[[#This Row],[Issuers Exhibit Ind]],'Prior Plans'!AU$8:AU11,">0")>1),0,1) -> 0 | DL11: =IF(OR(PriorIssTable[[#This Row],[Issuers Exhibit Ind]]=0,'Prior Plans'!AV11=0,'Prior Plans'!AV11="",COUNTIFS($C$8:$C11,PriorIssTable[[#This Row],[Legal Entity]],$J$8:$J11,PriorIssTable[[#This Row],[Issuers Exhibit Ind]],'Prior Plans'!AV$8:AV11,">0")>1),0,1) -> 0 | DM11: =IF(OR(PriorIssTable[[#This Row],[Issuers Exhibit Ind]]=0,'Prior Plans'!AW11=0,'Prior Plans'!AW11="",COUNTIFS($C$8:$C11,PriorIssTable[[#This Row],[Legal Entity]],$J$8:$J11,PriorIssTable[[#This Row],[Issuers Exhibit Ind]],'Prior Plans'!AW$8:AW11,">0")>1),0,1) -> 0 | DN11: =IF(OR(PriorIssTable[[#This Row],[Issuers Exhibit Ind]]=0,'Prior Plans'!AX11=0,'Prior Plans'!AX11="",COUNTIFS($C$8:$C11,PriorIssTable[[#This Row],[Legal Entity]],$J$8:$J11,PriorIssTable[[#This Row],[Issuers Exhibit Ind]],'Prior Plans'!AX$8:AX11,">0")>1),0,1) -> 0 | DO11: =IF(OR(PriorIssTable[[#This Row],[Issuers Exhibit Ind]]=0,'Prior Plans'!AY11=0,'Prior Plans'!AY11="",COUNTIFS($C$8:$C11,PriorIssTable[[#This Row],[Legal Entity]],$J$8:$J11,PriorIssTable[[#This Row],[Issuers Exhibit Ind]],'Prior Plans'!AY$8:AY11,">0")>1),0,1) -> 0 | DP11: =IF(OR(PriorIssTable[[#This Row],[Issuers Exhibit Ind]]=0,'Prior Plans'!AZ11=0,'Prior Plans'!AZ11="",COUNTIFS($C$8:$C11,PriorIssTable[[#This Row],[Legal Entity]],$J$8:$J11,PriorIssTable[[#This Row],[Issuers Exhibit Ind]],'Prior Plans'!AZ$8:AZ11,">0")>1),0,1) -> 0 | DQ11: =IF(OR(PriorIssTable[[#This Row],[Issuers Exhibit Ind]]=0,'Prior Plans'!BA11=0,'Prior Plans'!BA11="",COUNTIFS($C$8:$C11,PriorIssTable[[#This Row],[Legal Entity]],$J$8:$J11,PriorIssTable[[#This Row],[Issuers Exhibit Ind]],'Prior Plans'!BA$8:BA11,">0")>1),0,1) -> 0 | DR11: =IF(OR(PriorIssTable[[#This Row],[Issuers Exhibit Ind]]=0,'Prior Plans'!BB11=0,'Prior Plans'!BB11="",COUNTIFS($C$8:$C11,PriorIssTable[[#This Row],[Legal Entity]],$J$8:$J11,PriorIssTable[[#This Row],[Issuers Exhibit Ind]],'Prior Plans'!BB$8:BB11,">0")>1),0,1) -> 0 | DS11: =IF(OR(PriorIssTable[[#This Row],[Issuers Exhibit Ind]]=0,'Prior Plans'!BC11=0,'Prior Plans'!BC11="",COUNTIFS($C$8:$C11,PriorIssTable[[#This Row],[Legal Entity]],$J$8:$J11,PriorIssTable[[#This Row],[Issuers Exhibit Ind]],'Prior Plans'!BC$8:BC11,">0")>1),0,1) -> 0 | DT11: =IF(OR(PriorIssTable[[#This Row],[Issuers Exhibit Ind]]=0,'Prior Plans'!BD11=0,'Prior Plans'!BD11="",COUNTIFS($C$8:$C11,PriorIssTable[[#This Row],[Legal Entity]],$J$8:$J11,PriorIssTable[[#This Row],[Issuers Exhibit Ind]],'Prior Plans'!BD$8:BD11,">0")>1),0,1) -> 0 | DU11: =IF(OR(PriorIssTable[[#This Row],[Issuers Exhibit Ind]]=0,'Prior Plans'!BE11=0,'Prior Plans'!BE11="",COUNTIFS($C$8:$C11,PriorIssTable[[#This Row],[Legal Entity]],$J$8:$J11,PriorIssTable[[#This Row],[Issuers Exhibit Ind]],'Prior Plans'!BE$8:BE11,">0")>1),0,1) -> 0 | DV11: =IF(OR(PriorIssTable[[#This Row],[Issuers Exhibit Ind]]=0,'Prior Plans'!BF11=0,'Prior Plans'!BF11="",COUNTIFS($C$8:$C11,PriorIssTable[[#This Row],[Legal Entity]],$J$8:$J11,PriorIssTable[[#This Row],[Issuers Exhibit Ind]],'Prior Plans'!BF$8:BF11,">0")>1),0,1) -> 0 | DW11: =IF(OR(PriorIssTable[[#This Row],[Issuers Exhibit Ind]]=0,'Prior Plans'!BG11=0,'Prior Plans'!BG11="",COUNTIFS($C$8:$C11,PriorIssTable[[#This Row],[Legal Entity]],$J$8:$J11,PriorIssTable[[#This Row],[Issuers Exhibit Ind]],'Prior Plans'!BG$8:BG11,">0")>1),0,1) -> 0 | DX11: =IF(OR(PriorIssTable[[#This Row],[Issuers Exhibit Ind]]=0,'Prior Plans'!BH11=0,'Prior Plans'!BH11="",COUNTIFS($C$8:$C11,PriorIssTable[[#This Row],[Legal Entity]],$J$8:$J11,PriorIssTable[[#This Row],[Issuers Exhibit Ind]],'Prior Plans'!BH$8:BH11,">0")>1),0,1) -> 0 | DY11: =IF(OR(PriorIssTable[[#This Row],[Issuers Exhibit Ind]]=0,'Prior Plans'!BI11=0,'Prior Plans'!BI11="",COUNTIFS($C$8:$C11,PriorIssTable[[#This Row],[Legal Entity]],$J$8:$J11,PriorIssTable[[#This Row],[Issuers Exhibit Ind]],'Prior Plans'!BI$8:BI11,">0")>1),0,1) -> 0 | DZ11: =IF(OR(PriorIssTable[[#This Row],[Issuers Exhibit Ind]]=0,'Prior Plans'!BJ11=0,'Prior Plans'!BJ11="",COUNTIFS($C$8:$C11,PriorIssTable[[#This Row],[Legal Entity]],$J$8:$J11,PriorIssTable[[#This Row],[Issuers Exhibit Ind]],'Prior Plans'!BJ$8:BJ11,">0")>1),0,1) -> 0 | EA11: =IF(OR(PriorIssTable[[#This Row],[Issuers Exhibit Ind]]=0,'Prior Plans'!BK11=0,'Prior Plans'!BK11="",COUNTIFS($C$8:$C11,PriorIssTable[[#This Row],[Legal Entity]],$J$8:$J11,PriorIssTable[[#This Row],[Issuers Exhibit Ind]],'Prior Plans'!BK$8:BK11,">0")>1),0,1) -> 0 | EB11: =IF(OR(PriorIssTable[[#This Row],[Issuers Exhibit Ind]]=0,'Prior Plans'!BL11=0,'Prior Plans'!BL11="",COUNTIFS($C$8:$C11,PriorIssTable[[#This Row],[Legal Entity]],$J$8:$J11,PriorIssTable[[#This Row],[Issuers Exhibit Ind]],'Prior Plans'!BL$8:BL11,">0")>1),0,1) -> 0 | EC11: =IF(OR(PriorIssTable[[#This Row],[Issuers Exhibit Ind]]=0,'Prior Plans'!BM11=0,'Prior Plans'!BM11="",COUNTIFS($C$8:$C11,PriorIssTable[[#This Row],[Legal Entity]],$J$8:$J11,PriorIssTable[[#This Row],[Issuers Exhibit Ind]],'Prior Plans'!BM$8:BM11,">0")>1),0,1) -> 0 | ED11: =IF(OR(PriorIssTable[[#This Row],[Issuers Exhibit Ind]]=0,'Prior Plans'!BN11=0,'Prior Plans'!BN11="",COUNTIFS($C$8:$C11,PriorIssTable[[#This Row],[Legal Entity]],$J$8:$J11,PriorIssTable[[#This Row],[Issuers Exhibit Ind]],'Prior Plans'!BN$8:BN11,">0")>1),0,1) -> 0 | EE11: =IF(OR(PriorIssTable[[#This Row],[Issuers Exhibit Ind]]=0,'Prior Plans'!BO11=0,'Prior Plans'!BO11="",COUNTIFS($C$8:$C11,PriorIssTable[[#This Row],[Legal Entity]],$J$8:$J11,PriorIssTable[[#This Row],[Issuers Exhibit Ind]],'Prior Plans'!BO$8:BO11,">0")>1),0,1) -> 0 | EF11: =IF(OR(PriorIssTable[[#This Row],[Issuers Exhibit Ind]]=0,'Prior Plans'!BP11=0,'Prior Plans'!BP11="",COUNTIFS($C$8:$C11,PriorIssTable[[#This Row],[Legal Entity]],$J$8:$J11,PriorIssTable[[#This Row],[Issuers Exhibit Ind]],'Prior Plans'!BP$8:BP11,">0")>1),0,1) -> 0 | EG11: =IF(OR(PriorIssTable[[#This Row],[Issuers Exhibit Ind]]=0,'Prior Plans'!BQ11=0,'Prior Plans'!BQ11="",COUNTIFS($C$8:$C11,PriorIssTable[[#This Row],[Legal Entity]],$J$8:$J11,PriorIssTable[[#This Row],[Issuers Exhibit Ind]],'Prior Plans'!BQ$8:BQ11,">0")>1),0,1) -> 0 | EH11: =IF(OR(PriorIssTable[[#This Row],[Issuers Exhibit Ind]]=0,'Prior Plans'!BR11=0,'Prior Plans'!BR11="",COUNTIFS($C$8:$C11,PriorIssTable[[#This Row],[Legal Entity]],$J$8:$J11,PriorIssTable[[#This Row],[Issuers Exhibit Ind]],'Prior Plans'!BR$8:BR11,">0")>1),0,1) -> 0 | EI11: =IF(OR(PriorIssTable[[#This Row],[Issuers Exhibit Ind]]=0,'Prior Plans'!BS11=0,'Prior Plans'!BS11="",COUNTIFS($C$8:$C11,PriorIssTable[[#This Row],[Legal Entity]],$J$8:$J11,PriorIssTable[[#This Row],[Issuers Exhibit Ind]],'Prior Plans'!BS$8:BS11,">0")>1),0,1) -> 0 | EJ11: =IF(OR(PriorIssTable[[#This Row],[Issuers Exhibit Ind]]=0,'Prior Plans'!BT11=0,'Prior Plans'!BT11="",COUNTIFS($C$8:$C11,PriorIssTable[[#This Row],[Legal Entity]],$J$8:$J11,PriorIssTable[[#This Row],[Issuers Exhibit Ind]],'Prior Plans'!BT$8:BT11,">0")>1),0,1) -> 0 | EK11: =IF(OR(PriorIssTable[[#This Row],[Issuers Exhibit Ind]]=0,'Prior Plans'!BU11=0,'Prior Plans'!BU11="",COUNTIFS($C$8:$C11,PriorIssTable[[#This Row],[Legal Entity]],$J$8:$J11,PriorIssTable[[#This Row],[Issuers Exhibit Ind]],'Prior Plans'!BU$8:BU11,">0")>1),0,1) -> 0 | EL11: =IF(OR(PriorIssTable[[#This Row],[Issuers Exhibit Ind]]=0,'Prior Plans'!BV11=0,'Prior Plans'!BV11="",COUNTIFS($C$8:$C11,PriorIssTable[[#This Row],[Legal Entity]],$J$8:$J11,PriorIssTable[[#This Row],[Issuers Exhibit Ind]],'Prior Plans'!BV$8:BV11,">0")>1),0,1) -> 0 | EM11: =IF(OR(PriorIssTable[[#This Row],[Issuers Exhibit Ind]]=0,'Prior Plans'!BW11=0,'Prior Plans'!BW11="",COUNTIFS($C$8:$C11,PriorIssTable[[#This Row],[Legal Entity]],$J$8:$J11,PriorIssTable[[#This Row],[Issuers Exhibit Ind]],'Prior Plans'!BW$8:BW11,">0")>1),0,1) -> 0 | EN11: =IF(OR(PriorIssTable[[#This Row],[Issuers Exhibit Ind]]=0,'Prior Plans'!BX11=0,'Prior Plans'!BX11="",COUNTIFS($C$8:$C11,PriorIssTable[[#This Row],[Legal Entity]],$J$8:$J11,PriorIssTable[[#This Row],[Issuers Exhibit Ind]],'Prior Plans'!BX$8:BX11,">0")>1),0,1) -> 0
